Workbook

Sheet CycleTime
L1: ↓ W～AQ 「表示しない」列 ↓ ↓ W～AQ 「表示しない」列 ↓ ↓ W～AQ 「表示しない」列 ↓ ↓ W～AQ 「表示しない」列 ↓ ↓ W～AQ 「表示しない」列 ↓ ↓ W～AQ 「表示しない」列 ↓ ↓ W～AQ 「表示しない」列 ↓ ↓ W～AQ 「表示しない」列 ↓ ↓ W～AQ 「表示しない」列 ↓ ↓ | AT1: 残す列 | AV1: 残す列
L2: 参考表示
L3: Vmax[㎜/s] | N3: =SQRT(D14*(2*N4*N5)/(N4+N5)) -> 700.2374597 | AB3: feedforward | AE3: 物理計算用変換係数
A4: <a> | B4: シリーズ | C4: RCP6 | L4: =IF(AE33=0,"加速度[㎜/s^2]","加速度[deg/s^2]") -> 加速度[㎜/s^2] | N4: =D20*AH5*1000 -> 9806.65 | AB4: =AF45/100 -> 0 | AE4: ﾓｰﾀ軸角速度及び角加速度 | AH4: Ｇ
L5: =IF(AE33=0,"減速度[㎜/s^2]","減速度[deg/s^2]") -> 減速度[㎜/s^2] | N5: =D22*AH5*1000 -> 9806.65 | AB5: Kf | AC5: =IF( AB4=1,1,1-EXP(-((N11/(1-AB4))-N11)*N8) ) -> 0 | AE5: =IF(AE33=0,1000,360/(2*PI())) -> 1000 | AH5: =LeadData!$A$1 -> 9.80665
A6: <b> | B6: 型式 | C6: RCP6-SA8C | L6: 最高速度[㎜/s] | N6: =IF(D18<N3,D18,N3) -> 100 | AO6: (Tkp+2Kf) | AP6: =($N$8*$N$11+2*$AB$4) -> 0.008706436214
L7: 分割数 | N7: =ROUND(3200/(AP18+AP20*10)*AP18,0) -> 2051 | AO7: (Tkp-2Kf) | AP7: =($N$8*$N$11-2*$AB$4) -> 0.008706436214
A8: <c> | B8: =IF(AE33=0,"リード","減速比") -> リード | C8: 5 | D8: =IF(AE33=0,"㎜","：1") -> ㎜ | L8: ⊿ｔ[s] | N8: =AT32-AT31 -> 0.0002487553204 | AO8: (2+TKp) | AP8: =(2+$N$8*$N$11) -> 2.008706436
L9: 最終時刻[s] | N9: =AT3231 -> 0.7960170253 | AO9: (2-TKp) | AP9: =(2-$N$8*$N$11) -> 1.991293564
A10: <d> | B10: ストローク | C10: 50 | D10: =IF(AE33=0,"㎜","deg") -> ㎜ | L10: 最終位置[㎜] | N10: =AV3231 -> 49.99989132 | AO10: 減速時間 | AP10: =N6/N5 -> 0.01019716213 | AQ10: s
L11: 位置ｹﾞｲﾝ | N11: =AE45 -> 35 | AO11: 減速距離 | AP11: =N5*AP10*AP10/2 -> 0.5098581065 | AQ11: ㎜
A12: <e> | B12: 設置姿勢 | C12: 水平 | L12: 速度制御帯域 | N12: =AG45 -> 170 | AO12: 加速時間 | AP12: =N6/N4 -> 0.01019716213 | AQ12: s
AO13: 加速距離 | AP13: =N4*AP12*AP12/2 -> 0.5098581065 | AQ13: ㎜
A14: <1> | B14: =IF(AE33=0,"移動距離[㎜]","移動距離[deg]") -> 移動距離[㎜] | D14: 50 | L14: 移動可能距離[㎜] | N14: =X45+Y45 -> 50 | AO14: 等速時間 | AP14: =IF(D18<N3,(D14-AP13-AP11)/D18,0) -> 0.4898028379 | AQ14: s
AO15: 等速距離 | AP15: =AP14*N6 -> 48.98028379 | AQ15: ㎜
A16: <2> | B16: =IF(AE33=0,"搬送質量[kg]","搬送ｲﾅｰｼｬ[kgm^2]") -> 搬送質量[kg] | D16: 80 | L16: =CONCATENATE(C6,"-",C8) -> RCP6-SA8C-5 | AO16: 減速時刻 | AP16: =AP12+AP14 -> 0.5 | AQ16: s
L17: =CONCATENATE(C6,"-",C8,"-",C10,"-",C12) -> RCP6-SA8C-5-50-水平 | AO17: 減速位置 | AP17: =AP13+AP15 -> 49.49014189 | AQ17: ㎜
A18: <3> | B18: =IF(AE33=0,"速度[㎜/s]","速度[deg/s]") -> 速度[㎜/s] | D18: 100 | G18: ●計算結果 | L18: 最高速度 | M18: 位置ｹﾞｲﾝ | N18: 速度ﾙｰﾌﾟ比例ｹﾞｲﾝ | O18: 速度ﾙｰﾌﾟ積分ｹﾞｲﾝ | P18: 電流制御帯域番号 | Q18: ﾄﾙｸﾌｨﾙﾀ時定数 | R18: ストローク | AO18: TotalTime | AP18: =AP14+AP12+AP10 -> 0.5101971621 | AQ18: s
L19: =AD45 -> 250 | M19: =AE45 -> 35 | N19: =AN27 -> 0 | O19: =AO27 -> 0 | P19: =AK45 -> 0 | Q19: =AI45 -> 0 | R19: =C10 -> 50 | AE19: 運転姿勢 | AF19: ←初期値 | AO19: Spdτ | AP19: =1/N12 -> 0.005882352941 | AQ19: s
A20: <4> | B20: 加速度[G] | D20: 1 | E20: ="(1G=9806" & IF(AE33=0,"mm","deg") & "/s^2)" -> (1G=9806mm/s^2) | G20: 位置決め時間 [s] | I20: =LOOKUP((D14-D24),AV31:AV3231,AT31:AT3231) -> 0.6009928541 | AE20: 水平 | AF20: 水平 | AO20: Posτ | AP20: =1/N11 -> 0.02857142857 | AQ20: s
AE21: 垂直 | AO21: 収束時間 | AP21: =I20-AP18 -> 0.09079569194 | AQ21: s
A22: <5> | B22: 減速度[G] | D22: 1
A24: <6> | B24: =IF(AE33=0,"位置決め幅 [㎜]","位置決め幅 [deg]") -> 位置決め幅 [㎜] | D24: 0.1 | F24: =IF(N9<=I20,"位置決め時間を正しく計算できていません","※位置決め幅に到達するまでの時間を表します。") -> ※位置決め幅に到達するまでの時間を表します。
F25: =IF(N10<=I21,"","※計算結果は参考値です。 負荷状況により実際の位置決め時間とは異なる場合があります。 ※ゲイン調整により計算結果より早く位置決めできる場合があります。 詳しくは使用するコントローラーの取扱説明書をご確認ください。") -> ※計算結果は参考値です。 負荷状況により実際の位置決め時間とは異なる場合があります。 ※ゲイン調整により計算結果より早く位置決めできる場合があります。 詳しくは使用するコントローラーの取扱説明書をご確認ください。
A28: 1 | B28: =A28+1 -> 2 | C28: 3 | D28: 4 | E28: 5 | F28: 6 | G28: 7 | H28: 8 | I28: 9 | J28: 10 | K28: 11 | L28: 12 | M28: 13 | N28: 14 | O28: 15 | P28: =O28+1 -> 16 | Q28: =P28+1 -> 17 | R28: =Q28+1 -> 18 | S28: =R28+1 -> 19 | T28: =S28+1 -> 20 | U28: 21 | V28: 22 | W28: 23 | X28: 24 | Y28: 25 | Z28: 26 | AA28: 27 | AB28: 28 | AC28: 29 | AD28: 30 | AE28: 31 | AF28: 32 | AG28: 33 | AH28: 34 | AI28: 35 | AJ28: 36 | AK28: 37 | AL28: 38 | AM28: 39 | AN28: 40 | AO28: 41 | AP28: 42 | AQ28: 43 | AR28: 44 | AS28: 45 | AT28: 46 | AU28: 47 | AV28: 48
O29: ↓↓↓↓↓↓↓↓ フォント色を白にする列 O29～U193 ↓↓↓↓↓↓↓↓ | AS29: ↓↓↓↓↓↓↓↓↓↓↓↓↓↓↓ フォント色を白に、数式は非表示に、する列 A29～J3231 ↓↓↓↓↓↓↓↓↓↓↓↓↓↓↓
B30: 可搬質量 | C30: 加減速度 | D30: 最高速度 | E30: 実加速度 | F30: 到達速度 | G30: 運転時間 | H30: 三角速度 | O30: № | P30: メカ型式リスト | Q30: 絞込み | R30: ﾀｲﾌﾟﾘｽﾄ | S30: ﾘｰﾄﾞﾘｽﾄ | T30: ｽﾄﾛｰｸﾘｽﾄ | U30: 型式総数 | W30: =DataSerch!B1 -> メカ機種データレコード | AS30: № | AT30: 時刻 | AU30: 位置計画 | AV30: 位置
A31: =A30+1 -> 1 | B31: 5 | C31: 0.5 | D31: 225 | E31: 4903.325 | F31: 225 | G31: 0.2681094518 | H31: 495.1426562 | O31: 1 | P31: RCP4-SA5C | Q31: RCP6-SA8C | R31: RCP4 | S31: 5 | T31: 50 | U31: 123 | W31: ﾚｺｰﾄﾞ№ | X31: =DataSerch!$C$2 -> ｱｸﾁｭｴｰﾀ型式 | Z31: =DataSerch!$E$2 -> 0 | AA31: =DataSerch!$F$2 -> 0 | AB31: =DataSerch!$G$2 -> 0 | AC31: =DataSerch!$H$2 -> 最小ｽﾄﾛｰｸ | AD31: =DataSerch!$I$2 -> 最大ｽﾄﾛｰｸ | AE31: =DataSerch!$J$2 -> 動作種別 | AF31: =DataSerch!$K$2 -> 0 | AS31: 0 | AT31: =$AP$18/$N$7*AS31 -> 0 | AU31: 0 | AV31: 0
A32: 2 | B32: 5 | C32: 1 | D32: 200 | E32: 9806.65 | F32: 200 | G32: 0.2703943243 | H32: 700.2374597 | O32: =O31+1 -> 2 | P32: RCP4-SA6C | Q32: RCP6-SA8R | R32: ERC3 | S32: 10 | T32: 100 | U32: 絞込み数 | W32: =DataSerch!$B$3 -> 60 | X32: =DataSerch!$C$3 -> RCP6-SA8C | Z32: =DataSerch!$E$4 -> [kg] | AA32: =DataSerch!$F$4 -> [mm] | AB32: =DataSerch!$G$4 -> [mm] | AC32: =DataSerch!$H$4 -> [mm] | AD32: =DataSerch!$I$4 -> [mm] | AE32: =DataSerch!$J$4 -> 0/1 | AF32: =DataSerch!$K$4 -> [K] | AS32: =AS31+1 -> 1 | AT32: 0.0002487553204 | AU32: =IF(($N$4*AT32^2/2)<=$AP$13,($N$4*AT32^2/2), IF(($AP$13+$N$6*(AT32-$AP$12))<=$AP$17, ($AP$13+$N$6*(AT32-$AP$12)), IF(AU31<$D$14, ($AP$17+($N$6-$N$5*(AT32-$AP$16)/2)*(AT32-$AP$16)), $D$14))) -> 0.0003034138746 | AV32: =( $AP$6*AU32 + $AP$7*AU31 + $AP$9*AV31 )/$AP$8 -> 1.315101847e-06
A33: 3 | B33: 10 | C33: 0.7 | D33: 200 | E33: 6864.655 | F33: 200 | G33: 0.2791347489 | H33: 585.8606916 | O33: =O32+1 -> 3 | P33: RCP4-SA7C | Q33: RCP6-WSA16C | R33: RCP5 | S33: 20 | T33: 150 | U33: 64 | Z33: =DataSerch!$E$5 -> 0 | AA33: =DataSerch!$F$5 -> 0 | AB33: =DataSerch!$G$5 -> 0 | AC33: =DataSerch!$H$5 -> 50 | AD33: =DataSerch!$I$5 -> 1100 | AE33: =DataSerch!$J$5 -> 0 | AS33: =AS32+1 -> 2 | AT33: 0.0004975106408 | AU33: 0.001213655498 | AV33: =( $AP$6*AU33 + $AP$7*AU32 + $AP$9*AV32 )/$AP$8 -> 7.879210862e-06
A34: 4 | B34: 20 | C34: 0.3 | D34: 225 | E34: 2941.995 | F34: 225 | G34: 0.2987009382 | H34: 383.5358523 | O34: 4 | P34: RCP4-RA5C | Q34: RCP6-WSA16R | R34: RCP6 | S34: 30 | T34: 200 | AS34: 3 | AT34: 0.0007462659612 | AU34: 0.002730724871 | AV34: 2.490723237e-05
A35: 5 | B35: 20 | C35: 0.5 | D35: 200 | E35: 4903.325 | F35: 200 | G35: 0.2907886485 | H35: 495.1426562 | O35: 5 | P35: RCP4-RA6C | Q35: RCP6-RA8C | S35: - - - | T35: 250 | U35: ﾘｰﾄﾞ総数 | W35: リードデータレコード | AS35: 4 | AT35: 0.0009950212816 | AU35: 0.004854621993 | AV35: 5.756886524e-05
A36: 6 | B36: 25 | C36: 1 | D36: 175 | E36: 9806.65 | F36: 175 | G36: 0.3035593194 | H36: 700.2374597 | O36: 6 | P36: ERC3-SA5 | Q36: RCP6-RA8R | S36: - - - | T36: 300 | U36: 4 | W36: リスト№ | X36: =DataSerch!$F$24 -> ﾘｰﾄﾞ長 | Y36: =DataSerch!$G$24 -> 0 | Z36: =DataSerch!$H$24 -> 水平定格加速度 | AA36: =DataSerch!$I$24 -> 垂直定格加速度 | AB36: =DataSerch!$J$24 -> 水平最大加速度 | AC36: =DataSerch!$K$24 -> 垂直最大加速度 | AD36: =DataSerch!$L$24 -> 0 | AE36: =DataSerch!$M$24 -> 0 | AF36: =DataSerch!$N$24 -> 0 | AG36: =DataSerch!$O$24 -> ｷﾞｱ比分子 | AH36: =DataSerch!$P$24 -> ｷﾞｱ比分母 | AI36: =DataSerch!$Q$24 -> 0 | AJ36: =DataSerch!$R$24 -> ｽﾄﾛｰｸ刻み | AK36: =DataSerch!$S$24 -> 位置決め幅 初期値 | AS36: 5 | AT36: 0.001243776602 | AU36: 0.007585346864 | AV36: 0.0001109889938
A37: 7 | B37: 30 | C37: 0.7 | D37: 175 | E37: 6864.655 | F37: 175 | G37: 0.311207191 | H37: 585.8606916 | O37: 7 | P37: ERC3-SA7 | Q37: RCP6-RRA8C | S37: - - - | T37: 350 | AS37: 6 | AT37: 0.001492531922 | AU37: 0.01092289948 | AV37: 0.0001902480763
A38: 8 | B38: 40 | C38: 0.5 | D38: 175 | E38: 4903.325 | F38: 175 | G38: 0.3214043532 | H38: 495.1426562 | O38: 8 | P38: ERC3-RA4 | Q38: RCP6-RRA8R | S38: - - - | T38: 400 | U38: ｽﾄﾛｰｸ総数 | W38: =DataSerch!$D$35 -> 1 | X38: =DataSerch!$F$25 -> [mm] | Y38: =DataSerch!$G$25 -> [kgm^2] | Z38: =DataSerch!$H$25 -> [m/s^2] | AA38: =DataSerch!$I$25 -> [m/s^2] | AB38: =DataSerch!$J$25 -> [m/s^2] | AC38: =DataSerch!$K$25 -> [m/s^2] | AD38: =DataSerch!$L$25 -> [Nm] | AE38: =DataSerch!$M$25 -> [Nms] | AF38: =DataSerch!$N$25 -> [Nm] | AG38: =DataSerch!$O$25 -> 0 | AH38: =DataSerch!$P$25 -> 0 | AI38: =DataSerch!$Q$25 -> 0 | AJ38: =DataSerch!$R$25 -> [mm] | AK38: =DataSerch!$S$25 -> [mm] | AS38: 7 | AT38: 0.001741287243 | AU38: 0.01486727985 | AV38: 0.0003003825299
A39: 9 | B39: 50 | C39: 0.3 | D39: 200 | E39: 2941.995 | F39: 200 | G39: 0.3179810809 | H39: 383.5358523 | O39: 9 | P39: ERC3-RA6 | Q39: RCP6-WRA16C | T39: 450 | U39: 22 | X39: =LOOKUP(W38,DataSerch!$B$26:$B$33,DataSerch!$F$26:$F$33) -> 5 | Y39: =LOOKUP(W38,DataSerch!$B$26:$B$33,DataSerch!$G$26:$G$33) -> 0 | Z39: =LOOKUP(W38,DataSerch!$B$26:$B$33,DataSerch!$H$26:$H$33) -> 2.941995 | AA39: =LOOKUP(W38,DataSerch!$B$26:$B$33,DataSerch!$I$26:$I$33) -> 2.941995 | AB39: =LOOKUP(W38,DataSerch!$B$26:$B$33,DataSerch!$J$26:$J$33) -> 9.80665 | AC39: =LOOKUP(W38,DataSerch!$B$26:$B$33,DataSerch!$K$26:$K$33) -> 4.903325 | AG39: =LOOKUP(W38,DataSerch!$B$26:$B$33,DataSerch!$O$26:$O$33) -> 1 | AH39: =LOOKUP(W38,DataSerch!$B$26:$B$33,DataSerch!$P$26:$P$33) -> 1 | AJ39: =LOOKUP(W38,DataSerch!$B$26:$B$33,DataSerch!$R$26:$R$33) -> 50 | AK39: =LOOKUP(W38,DataSerch!$B$26:$B$33,DataSerch!$S$26:$S$33) -> 0.1 | AS39: 8 | AT39: 0.001990042563 | AU39: 0.01941848797 | AV39: 0.0004463851128
A40: 10 | B40: 70 | C40: 0.3 | D40: 175 | E40: 2941.995 | F40: 175 | G40: 0.3451977315 | H40: 383.5358523 | O40: 10 | P40: RCP4-SA5R | Q40: RCP6-WRA16R | T40: 500 | AS40: 9 | AT40: 0.002238797884 | AU40: 0.02457652384 | AV40: 0.0006332053022
A41: 11 | B41: 70 | C41: 1 | D41: 125 | E41: 9806.65 | F41: 125 | G41: 0.4127464527 | H41: 700.2374597 | O41: 11 | P41: RCP4-SA6R | Q41: RCP6-SA4C | T41: 550 | W41: ストロークデータレコード | AS41: 10 | AT41: 0.002487553204 | AU41: 0.03034138746 | AV41: 0.0008657496702
A42: 12 | B42: 80 | C42: 0.1 | D42: 250 | E42: 980.665 | F42: 221.4345276 | G42: 0.4516007558 | H42: 221.4345276 | O42: 12 | P42: RCP4-SA7R | Q42: RCP6-SA6C | T42: 600 | W42: リスト№ | X42: =DataSerch!$E$58 -> ｽﾄﾛｰｸ長 | Y42: =DataSerch!$G$58 -> 有効ｽﾄﾛｰｸ補正 | Z42: =DataSerch!$H$58 -> 0 | AA42: =DataSerch!$I$58 -> 基準ｹﾞｲﾝ用搬送質量 | AB42: =DataSerch!$J$58 -> 水平可搬質量 | AC42: =DataSerch!$K$58 -> 垂直可搬質量 | AD42: =DataSerch!$L$58 -> 最大速度 | AE42: =DataSerch!$M$58 -> 位置ｹﾞｲﾝ | AF42: =DataSerch!$N$58 -> FFｹﾞｲﾝ | AG42: =DataSerch!$O$58 -> 速度制御帯域 | AH42: =DataSerch!$P$58 -> 0 | AI42: =DataSerch!$Q$58 -> 0 | AJ42: =DataSerch!$R$58 -> 0 | AK42: =DataSerch!$S$58 -> 0 | AL42: =DataSerch!$T$58 -> 0 | AS42: 11 | AT42: 0.002736308524 | AU42: 0.03671307882 | AV42: 0.001148882255
A43: 13 | B43: 80 | C43: 0.5 | D43: 125 | E43: 4903.325 | F43: 125 | G43: 0.4254929053 | H43: 495.1426562 | O43: 13 | P43: RCP4-RA5R | Q43: RCP6-SA7C | T43: 650 | AS43: 12 | AT43: 0.002985063845 | AU43: 0.04369159794 | AV43: 0.001487424929
A44: 14 | B44: 80 | C44: 1 | D44: 100 | E44: 9806.65 | F44: 100 | G44: 0.5101971621 | H44: 700.2374597 | O44: 14 | P44: RCP4-RA6R | Q44: RCP6-SA4R | T44: 700 | W44: =MATCH(C10,DataSerch!$E$60:$E$109,0) -> 1 | X44: =DataSerch!$E$59 -> [mm] | Y44: =DataSerch!$G$59 -> [mm] | Z44: =DataSerch!$H$59 -> [kg/mm] | AA44: =DataSerch!$I$59 -> [kg] | AB44: =DataSerch!$J$59 -> [kg] | AC44: =DataSerch!$K$59 -> [kg] | AD44: =DataSerch!$L$59 -> [mm/s] | AE44: =DataSerch!$M$59 -> [1/s] | AF44: =DataSerch!$N$59 -> [%] | AG44: =DataSerch!$O$59 -> [rad/s] | AH44: =DataSerch!$P$59 -> 0 | AI44: =DataSerch!$Q$59 -> [s] | AJ44: =DataSerch!$R$59 -> 0 | AK44: =DataSerch!$S$59 -> 0 | AL44: =DataSerch!$T$59 -> [Nm/rad] | AS44: 13 | AT44: 0.003233819165 | AU44: 0.0512769448 | AV44: 0.001886157768
A45: 15 | B45: -1 | C45: -1 | D45: -1 | E45: -1 | F45: -1 | G45: -1 | H45: -1 | O45: 15 | P45: ERC3D-SA5 | Q45: RCP6-SA6R | T45: 750 | X45: =LOOKUP(W44,DataSerch!$D$60:$D$109,DataSerch!$E$60:$E$109) -> 50 | Y45: =LOOKUP(W44,DataSerch!$D$60:$D$109,DataSerch!$G$60:$G$109) -> 0 | Z45: =LOOKUP(W44,DataSerch!$D$60:$D$109,DataSerch!$H$60:$H$109) -> 0 | AA45: =LOOKUP(W44,DataSerch!$D$60:$D$109,DataSerch!$I$60:$I$109) -> 80 | AB45: =LOOKUP(W44,DataSerch!$D$60:$D$109,DataSerch!$J$60:$J$109) -> 80 | AC45: =LOOKUP(W44,DataSerch!$D$60:$D$109,DataSerch!$K$60:$K$109) -> 55 | AD45: =LOOKUP(W44,DataSerch!$D$60:$D$109,DataSerch!$L$60:$L$109) -> 250 | AE45: =LOOKUP(W44,DataSerch!$D$60:$D$109,DataSerch!$M$60:$M$109) -> 35 | AF45: =LOOKUP(W44,DataSerch!$D$60:$D$109,DataSerch!$N$60:$N$109) -> 0 | AG45: =LOOKUP(W44,DataSerch!$D$60:$D$109,DataSerch!$O$60:$O$109) -> 170 | AH45: =LOOKUP(W44,DataSerch!$D$60:$D$109,DataSerch!$P$60:$P$109) -> 0 | AI45: =LOOKUP(W44,DataSerch!$D$60:$D$109,DataSerch!$Q$60:$Q$109) -> 0 | AJ45: =LOOKUP(W44,DataSerch!$D$60:$D$109,DataSerch!$R$60:$R$109) -> 0 | AK45: =LOOKUP(W44,DataSerch!$D$60:$D$109,DataSerch!$S$60:$S$109) -> 0 | AL45: =LOOKUP(W44,DataSerch!$D$60:$D$109,DataSerch!$T$60:$T$109) -> 0 | AS45: 14 | AT45: 0.003482574486 | AU45: 0.05946911941 | AV45: 0.002349819407
A46: 16 | B46: -1 | C46: -1 | D46: -1 | E46: -1 | F46: -1 | G46: -1 | H46: -1 | O46: 16 | P46: ERC3D-SA7 | Q46: RCP6-SA7R | T46: 800 | AS46: 15 | AT46: 0.003731329806 | AU46: 0.06826812177 | AV46: 0.002883107407
A47: 17 | B47: -1 | C47: -1 | D47: -1 | E47: -1 | F47: -1 | G47: -1 | H47: -1 | O47: 17 | P47: ERC3CR-SA5 | Q47: RCP6-WSA10C | T47: 850 | AS47: 16 | AT47: 0.003980085126 | AU47: 0.07767395189 | AV47: 0.003490678604
A48: 18 | B48: -1 | C48: -1 | D48: -1 | E48: -1 | F48: -1 | G48: -1 | H48: -1 | O48: 18 | P48: ERC3CR-SA7 | Q48: RCP6-WSA12C | T48: 900 | AS48: 17 | AT48: 0.004228840447 | AU48: 0.08768660975 | AV48: 0.004177149467
A49: 19 | B49: -1 | C49: -1 | D49: -1 | E49: -1 | F49: -1 | G49: -1 | H49: -1 | O49: 19 | P49: RCP5-SA4C | Q49: RCP6-WSA14C | T49: 950 | AS49: 18 | AT49: 0.004477595767 | AU49: 0.09830609536 | AV49: 0.004947096446
A50: 20 | B50: -1 | C50: -1 | D50: -1 | E50: -1 | F50: -1 | G50: -1 | H50: -1 | O50: 20 | P50: RCP5-SA6C | Q50: RCP6-WSA10R | T50: 1000 | U50: リンクリスト総数 | AS50: 19 | AT50: 0.004726351088 | AU50: 0.1095324087 | AV50: 0.005805056319
A51: 21 | B51: -1 | C51: -1 | D51: -1 | E51: -1 | F51: -1 | G51: -1 | H51: -1 | O51: 21 | P51: RCP5-SA7C | Q51: RCP6-WSA12R | T51: 1050 | U51: 14 | AS51: 20 | AT51: 0.004975106408 | AU51: 0.1213655498 | AV51: 0.006755526536
A52: 22 | B52: -1 | C52: -1 | D52: -1 | E52: -1 | F52: -1 | G52: -1 | H52: -1 | O52: 22 | P52: RCP5-RA4C | Q52: RCP6-WSA14R | T52: 1100 | AS52: 21 | AT52: 0.005223861728 | AU52: 0.1338055187 | AV52: 0.007802965561
A53: 23 | B53: -1 | C53: -1 | D53: -1 | E53: -1 | F53: -1 | G53: -1 | H53: -1 | O53: 23 | P53: RCP5-RA6C | Q53: RCP6-RA4C | T53: - - - | AS53: 22 | AT53: 0.005472617049 | AU53: 0.1468523153 | AV53: 0.008951793206
A54: 24 | B54: -1 | C54: -1 | D54: -1 | E54: -1 | F54: -1 | G54: -1 | H54: -1 | O54: 24 | P54: RCP5-RA7C | Q54: RCP6-RA6C | T54: - - - | AS54: 23 | AT54: 0.005721372369 | AU54: 0.1605059396 | AV54: 0.01020639097
A55: 25 | B55: -1 | C55: -1 | D55: -1 | E55: -1 | F55: -1 | G55: -1 | H55: -1 | O55: 25 | P55: RCP4W-RA6C | Q55: RCP6-RA7C | T55: - - - | AS55: 24 | AT55: 0.005970127689 | AU55: 0.1747663917 | AV55: 0.01157110238
A56: 26 | B56: -1 | C56: -1 | D56: -1 | E56: -1 | F56: -1 | G56: -1 | H56: -1 | O56: 26 | P56: RCP4W-RA6C(高推力) | Q56: RCP6-RA4R | T56: - - - | AS56: 25 | AT56: 0.00621888301 | AU56: 0.1896336716 | AV56: 0.01305023329
A57: 27 | B57: -1 | C57: -1 | D57: -1 | E57: -1 | F57: -1 | G57: -1 | H57: -1 | O57: 27 | P57: RCP4W-RA7C | Q57: RCP6-RA6R | T57: - - - | AS57: 26 | AT57: 0.00646763833 | AU57: 0.2051077792 | AV57: 0.01464805224
A58: 28 | B58: -1 | C58: -1 | D58: -1 | E58: -1 | F58: -1 | G58: -1 | H58: -1 | O58: 28 | P58: RCP4W-RA7C(高推力) | Q58: RCP6-RA7R | T58: - - - | AS58: 27 | AT58: 0.006716393651 | AU58: 0.2211887145 | AV58: 0.01636879077
A59: 29 | B59: -1 | C59: -1 | D59: -1 | E59: -1 | F59: -1 | G59: -1 | H59: -1 | O59: 29 | P59: RCP4-SA3C | Q59: RCP6-RRA4C | T59: - - - | AS59: 28 | AT59: 0.006965148971 | AU59: 0.2378764776 | AV59: 0.01821664374
A60: 30 | B60: -1 | C60: -1 | D60: -1 | E60: -1 | F60: -1 | G60: -1 | H60: -1 | O60: 30 | P60: RCP4-RA3C | Q60: RCP6-RRA6C | T60: - - - | AS60: 29 | AT60: 0.007213904291 | AU60: 0.2551710685 | AV60: 0.02019576963
A61: 31 | B61: -1 | C61: -1 | D61: -1 | E61: -1 | F61: -1 | G61: -1 | H61: -1 | O61: 31 | P61: RCP5-RA8C | Q61: RCP6-RRA7C | T61: - - - | AS61: 30 | AT61: 0.007462659612 | AU61: 0.2730724871 | AV61: 0.02231029089
A62: 32 | B62: -1 | C62: -1 | D62: -1 | E62: -1 | F62: -1 | G62: -1 | H62: -1 | O62: 32 | P62: RCP5-RA10C | Q62: RCP6-RRA4R | T62: - - - | AS62: 31 | AT62: 0.007711414932 | AU62: 0.2915807334 | AV62: 0.02456429422
A63: 33 | B63: -1 | C63: -1 | D63: -1 | E63: -1 | F63: -1 | G63: -1 | H63: -1 | O63: 33 | P63: RCP5-RA8R | Q63: RCP6-RRA6R | T63: - - - | AS63: 32 | AT63: 0.007960170253 | AU63: 0.3106958075 | AV63: 0.02696183091
A64: 34 | B64: -1 | C64: -1 | D64: -1 | E64: -1 | F64: -1 | G64: -1 | H64: -1 | O64: 34 | P64: RCP5-RA10R | Q64: RCP6-RRA7R | T64: - - - | AS64: 33 | AT64: 0.008208925573 | AU64: 0.3304177094 | AV64: 0.0295069171
A65: 35 | B65: -1 | C65: -1 | D65: -1 | E65: -1 | F65: -1 | G65: -1 | H65: -1 | O65: 35 | P65: RCP4-SA3R | Q65: RCP6-WRA10C | T65: - - - | AS65: 34 | AT65: 0.008457680893 | AU65: 0.350746439 | AV65: 0.03220353415
A66: 36 | B66: -1 | C66: -1 | D66: -1 | E66: -1 | F66: -1 | G66: -1 | H66: -1 | O66: 36 | P66: RCP4-RA3R | Q66: RCP6-WRA12C | T66: - - - | AS66: 35 | AT66: 0.008706436214 | AU66: 0.3716819963 | AV66: 0.03505562889
A67: 37 | B67: -1 | C67: -1 | D67: -1 | E67: -1 | F67: -1 | G67: -1 | H67: -1 | O67: 37 | P67: RCP4CR-SA3C | Q67: RCP6-WRA14C | T67: - - - | AS67: 36 | AT67: 0.008955191534 | AU67: 0.3932243814 | AV67: 0.03806711393
A68: 38 | B68: -1 | C68: -1 | D68: -1 | E68: -1 | F68: -1 | G68: -1 | H68: -1 | O68: 38 | P68: RCP4CR-SA5C | Q68: RCP6-WRA10R | T68: - - - | AS68: 37 | AT68: 0.009203946855 | AU68: 0.4153735943 | AV68: 0.04124186799
A69: 39 | B69: -1 | C69: -1 | D69: -1 | E69: -1 | F69: -1 | G69: -1 | H69: -1 | O69: 39 | P69: RCP4CR-SA6C | Q69: RCP6-WRA12R | T69: - - - | AS69: 38 | AT69: 0.009452702175 | AU69: 0.4381296349 | AV69: 0.04458373612
A70: 40 | B70: -1 | C70: -1 | D70: -1 | E70: -1 | F70: -1 | G70: -1 | H70: -1 | O70: 40 | P70: RCP4CR-SA7C | Q70: RCP6-WRA14R | T70: - - - | AS70: 39 | AT70: 0.009701457495 | AU70: 0.4614925032 | AV70: 0.04809653009
A71: 41 | B71: -1 | C71: -1 | D71: -1 | E71: -1 | F71: -1 | G71: -1 | H71: -1 | O71: 41 | P71: RCP5CR-SA4C | Q71: RCP6-TA4C(SB) | T71: - - - | AS71: 40 | AT71: 0.009950212816 | AU71: 0.4854621993 | AV71: 0.05178402859
A72: 42 | B72: -1 | C72: -1 | D72: -1 | E72: -1 | F72: -1 | G72: -1 | H72: -1 | O72: 42 | P72: RCP5CR-SA6C | Q72: RCP6-TA6C(SB) | T72: - - - | AS72: 41 | AT72: 0.01019896814 | AU72: 0.5100387071 | AV72: 0.0556499775
A73: 43 | B73: -1 | C73: -1 | D73: -1 | E73: -1 | F73: -1 | G73: -1 | H73: -1 | O73: 43 | P73: RCP5CR-SA7C | Q73: RCP6-TA7C(SB) | T73: - - - | AS73: 42 | AT73: 0.01044772346 | AU73: 0.5349142392 | AV73: 0.0596967561
A74: 44 | B74: -1 | C74: -1 | D74: -1 | E74: -1 | F74: -1 | G74: -1 | H74: -1 | O74: 44 | P74: RCP5-BA4 | Q74: RCP6-TA4R(SB) | T74: - - - | AS74: 43 | AT74: 0.01069647878 | AU74: 0.5597897712 | AV74: 0.0639240929
A75: 45 | B75: -1 | C75: -1 | D75: -1 | E75: -1 | F75: -1 | G75: -1 | H75: -1 | O75: 45 | P75: RCP5-BA6 | Q75: RCP6-TA6R(SB) | T75: - - - | AS75: 44 | AT75: 0.0109452341 | AU75: 0.5846653032 | AV75: 0.0683304227
A76: 46 | B76: -1 | C76: -1 | D76: -1 | E76: -1 | F76: -1 | G76: -1 | H76: -1 | O76: 46 | P76: RCP5-BA7 | Q76: RCP6-TA7R(SB) | T76: - - - | AS76: 45 | AT76: 0.01119398942 | AU76: 0.6095408353 | AV76: 0.07291419387
A77: 47 | B77: -1 | C77: -1 | D77: -1 | E77: -1 | F77: -1 | G77: -1 | H77: -1 | O77: 47 | P77: RCP5-SA4R | Q77: RCP6-TA4C(DB) | T77: - - - | AS77: 46 | AT77: 0.01144274474 | AU77: 0.6344163673 | AV77: 0.07767386821
A78: 48 | B78: -1 | C78: -1 | D78: -1 | E78: -1 | F78: -1 | G78: -1 | H78: -1 | O78: 48 | P78: RCP5-SA6R | Q78: RCP6-TA6C(DB) | T78: - - - | AS78: 47 | AT78: 0.01169150006 | AU78: 0.6592918994 | AV78: 0.08260792087
A79: 49 | B79: -1 | C79: -1 | D79: -1 | E79: -1 | F79: -1 | G79: -1 | H79: -1 | O79: 49 | P79: RCP5-SA7R | Q79: RCP6-TA7C(DB) | T79: - - - | AS79: 48 | AT79: 0.01194025538 | AU79: 0.6841674314 | AV79: 0.08771484023
A80: 50 | B80: -1 | C80: -1 | D80: -1 | E80: -1 | F80: -1 | G80: -1 | H80: -1 | O80: 50 | P80: RCP5-RA4R | Q80: RCP6-TA4R(DB) | T80: - - - | AS80: 49 | AT80: 0.0121890107 | AU80: 0.7090429634 | AV80: 0.09299312775
A81: 51 | B81: -1 | C81: -1 | D81: -1 | E81: -1 | F81: -1 | G81: -1 | H81: -1 | O81: 51 | P81: RCP5-RA6R | Q81: RCP6-TA6R(DB) | AS81: 50 | AT81: 0.01243776602 | AU81: 0.7339184955 | AV81: 0.09844129789
A82: 52 | B82: -1 | C82: -1 | D82: -1 | E82: -1 | F82: -1 | G82: -1 | H82: -1 | O82: 52 | P82: RCP5-RA7R | Q82: RCP6-TA7R(DB) | AS82: 51 | AT82: 0.01268652134 | AU82: 0.7587940275 | AV82: 0.104057878
A83: 53 | B83: -1 | C83: -1 | D83: -1 | E83: -1 | F83: -1 | G83: -1 | H83: -1 | O83: 53 | P83: RCP5W-RA6C | Q83: RCP6CR-SA4C | AS83: 52 | AT83: 0.01293527666 | AU83: 0.7836695596 | AV83: 0.1098414082
A84: 54 | B84: -1 | C84: -1 | D84: -1 | E84: -1 | F84: -1 | G84: -1 | H84: -1 | O84: 54 | P84: RCP5W-RA6C(高推力) | Q84: RCP6CR-SA6C | AS84: 53 | AT84: 0.01318403198 | AU84: 0.8085450916 | AV84: 0.1157904412
A85: 55 | B85: -1 | C85: -1 | D85: -1 | E85: -1 | F85: -1 | G85: -1 | H85: -1 | O85: 55 | P85: RCP5W-RA7C | Q85: RCP6CR-SA7C | AS85: 54 | AT85: 0.0134327873 | AU85: 0.8334206236 | AV85: 0.1219035423
A86: 56 | B86: -1 | C86: -1 | D86: -1 | E86: -1 | F86: -1 | G86: -1 | H86: -1 | O86: 56 | P86: RCP5W-RA7C(高推力) | Q86: RCP6CR-SA8C | AS86: 55 | AT86: 0.01368154262 | AU86: 0.8582961557 | AV86: 0.1281792893
A87: 57 | B87: -1 | C87: -1 | D87: -1 | E87: -1 | F87: -1 | G87: -1 | H87: -1 | O87: 57 | P87: RCP4-RA6C(高推力) | Q87: RCP6CR-WSA10C | AS87: 56 | AT87: 0.01393029794 | AU87: 0.8831716877 | AV87: 0.1346162723
A88: 58 | B88: -1 | C88: -1 | D88: -1 | E88: -1 | F88: -1 | G88: -1 | H88: -1 | O88: 58 | P88: RCP5W-RA8C | Q88: RCP6CR-WSA12C | AS88: 57 | AT88: 0.01417905326 | AU88: 0.9080472198 | AV88: 0.1412130934
A89: 59 | B89: -1 | C89: -1 | D89: -1 | E89: -1 | F89: -1 | G89: -1 | H89: -1 | O89: 59 | P89: RCP5W-RA10C | Q89: RCP6CR-WSA14C | AS89: 58 | AT89: 0.01442780858 | AU89: 0.9329227518 | AV89: 0.1479683673
A90: 60 | B90: -1 | C90: -1 | D90: -1 | E90: -1 | F90: -1 | G90: -1 | H90: -1 | O90: 60 | P90: RCP6-SA8C | Q90: RCP6CR-WSA16C | AS90: 59 | AT90: 0.0146765639 | AU90: 0.9577982838 | AV90: 0.1548807202
A91: 61 | B91: -1 | C91: -1 | D91: -1 | E91: -1 | F91: -1 | G91: -1 | H91: -1 | O91: 61 | P91: RCP6-SA8R | Q91: RCP6-HSA6C | AS91: 60 | AT91: 0.01492531922 | AU91: 0.9826738159 | AV91: 0.1619487905
A92: 62 | B92: -1 | C92: -1 | D92: -1 | E92: -1 | F92: -1 | G92: -1 | H92: -1 | O92: 62 | P92: RCP6-WSA16C | Q92: RCP6-HSA7C | AS92: 61 | AT92: 0.01517407454 | AU92: 1.007549348 | AV92: 0.1691712284
A93: 63 | B93: -1 | C93: -1 | D93: -1 | E93: -1 | F93: -1 | G93: -1 | H93: -1 | O93: 63 | P93: RCP6-WSA16R | Q93: RCP6-HSA6C-W | AS93: 62 | AT93: 0.01542282986 | AU93: 1.03242488 | AV93: 0.1765466956
A94: 64 | B94: -1 | C94: -1 | D94: -1 | E94: -1 | F94: -1 | G94: -1 | H94: -1 | O94: 64 | P94: RCP6-RA8C | Q94: RCP6-HSA7C-W | AS94: 63 | AT94: 0.01567158518 | AU94: 1.057300412 | AV94: 0.1840738656
A95: =A94+1 -> 65 | B95: -1 | C95: -1 | D95: -1 | E95: -1 | F95: -1 | G95: -1 | H95: -1 | O95: 65 | P95: RCP6-RA8R | Q95: - - - | AS95: 64 | AT95: =$AP$18/$N$7*AS95 -> 0.01592034051 | AU95: 1.082175944 | AV95: 0.1917514234
A96: 66 | B96: -1 | C96: -1 | D96: -1 | E96: -1 | F96: -1 | G96: -1 | H96: -1 | O96: 66 | P96: RCP6-RRA8C | Q96: - - - | AS96: 65 | AT96: 0.01616909583 | AU96: =IF(($N$4*AT96^2/2)<=$AP$13,($N$4*AT96^2/2), IF(($AP$13+$N$6*(AT96-$AP$12))<=$AP$17, ($AP$13+$N$6*(AT96-$AP$12)), IF(AU95<$D$14, ($AP$17+($N$6-$N$5*(AT96-$AP$16)/2)*(AT96-$AP$16)), $D$14))) -> 1.107051476 | AV96: 0.1995780652
A97: 67 | B97: -1 | C97: -1 | D97: -1 | E97: -1 | F97: -1 | G97: -1 | H97: -1 | O97: =O96+1 -> 67 | P97: RCP6-RRA8R | Q97: - - - | AS97: =AS96+1 -> 66 | AT97: 0.01641785115 | AU97: 1.131927008 | AV97: =( $AP$6*AU97 + $AP$7*AU96 + $AP$9*AV96 )/$AP$8 -> 0.2075524987
A98: 68 | B98: -1 | C98: -1 | D98: -1 | E98: -1 | F98: -1 | G98: -1 | H98: -1 | O98: 68 | P98: RCP6-WRA16C | Q98: - - - | AS98: 67 | AT98: 0.01666660647 | AU98: 1.15680254 | AV98: 0.2156734428
A99: 69 | B99: -1 | C99: -1 | D99: -1 | E99: -1 | F99: -1 | G99: -1 | H99: -1 | O99: 69 | P99: RCP6-WRA16R | Q99: - - - | AS99: 68 | AT99: 0.01691536179 | AU99: 1.181678072 | AV99: 0.2239396274
A100: 70 | B100: -1 | C100: -1 | D100: -1 | E100: -1 | F100: -1 | G100: -1 | H100: -1 | O100: 70 | P100: RCP6-SA4C | Q100: - - - | AS100: 69 | AT100: 0.01716411711 | AU100: 1.206553604 | AV100: 0.2323497934
A101: 71 | B101: -1 | C101: -1 | D101: -1 | E101: -1 | F101: -1 | G101: -1 | H101: -1 | O101: 71 | P101: RCP6-SA6C | Q101: - - - | AS101: 70 | AT101: 0.01741287243 | AU101: 1.231429136 | AV101: 0.2409026927
A102: 72 | B102: -1 | C102: -1 | D102: -1 | E102: -1 | F102: -1 | G102: -1 | H102: -1 | O102: 72 | P102: RCP6-SA7C | Q102: - - - | AS102: 71 | AT102: 0.01766162775 | AU102: 1.256304668 | AV102: 0.249597088
A103: 73 | B103: -1 | C103: -1 | D103: -1 | E103: -1 | F103: -1 | G103: -1 | H103: -1 | O103: 73 | P103: RCP6-SA4R | Q103: - - - | AS103: 72 | AT103: 0.01791038307 | AU103: 1.2811802 | AV103: 0.2584317528
A104: 74 | B104: -1 | C104: -1 | D104: -1 | E104: -1 | F104: -1 | G104: -1 | H104: -1 | O104: 74 | P104: RCP6-SA6R | Q104: - - - | AS104: 73 | AT104: 0.01815913839 | AU104: 1.306055732 | AV104: 0.2674054709
A105: 75 | B105: -1 | C105: -1 | D105: -1 | E105: -1 | F105: -1 | G105: -1 | H105: -1 | O105: 75 | P105: RCP6-SA7R | Q105: - - - | AS105: 74 | AT105: 0.01840789371 | AU105: 1.330931264 | AV105: 0.2765170372
A106: 76 | B106: -1 | C106: -1 | D106: -1 | E106: -1 | F106: -1 | G106: -1 | H106: -1 | O106: 76 | P106: RCP6-WSA10C | Q106: - - - | AS106: 75 | AT106: 0.01865664903 | AU106: 1.355806796 | AV106: 0.2857652565
A107: 77 | B107: -1 | C107: -1 | D107: -1 | E107: -1 | F107: -1 | G107: -1 | H107: -1 | O107: 77 | P107: RCP6-WSA12C | Q107: - - - | AS107: 76 | AT107: 0.01890540435 | AU107: 1.380682329 | AV107: 0.2951489443
A108: 78 | B108: -1 | C108: -1 | D108: -1 | E108: -1 | F108: -1 | G108: -1 | H108: -1 | O108: 78 | P108: RCP6-WSA14C | Q108: - - - | AS108: 77 | AT108: 0.01915415967 | AU108: 1.405557861 | AV108: 0.3046669262
A109: 79 | B109: -1 | C109: -1 | D109: -1 | E109: -1 | F109: -1 | G109: -1 | H109: -1 | O109: 79 | P109: RCP6-WSA10R | Q109: - - - | AS109: 78 | AT109: 0.01940291499 | AU109: 1.430433393 | AV109: 0.3143180381
A110: 80 | B110: -1 | C110: -1 | D110: -1 | E110: -1 | F110: -1 | G110: -1 | H110: -1 | O110: 80 | P110: RCP6-WSA12R | Q110: - - - | AS110: 79 | AT110: 0.01965167031 | AU110: 1.455308925 | AV110: 0.324101126
A111: 81 | B111: -1 | C111: -1 | D111: -1 | E111: -1 | F111: -1 | G111: -1 | H111: -1 | O111: 81 | P111: RCP6-WSA14R | Q111: - - - | AS111: 80 | AT111: 0.01990042563 | AU111: 1.480184457 | AV111: 0.3340150457
A112: 82 | B112: -1 | C112: -1 | D112: -1 | E112: -1 | F112: -1 | G112: -1 | H112: -1 | O112: 82 | P112: RCP6-RA4C | Q112: - - - | AS112: 81 | AT112: 0.02014918095 | AU112: 1.505059989 | AV112: 0.3440586631
A113: 83 | B113: -1 | C113: -1 | D113: -1 | E113: -1 | F113: -1 | G113: -1 | H113: -1 | O113: 83 | P113: RCP6-RA6C | Q113: - - - | AS113: 82 | AT113: 0.02039793627 | AU113: 1.529935521 | AV113: 0.3542308539
A114: 84 | B114: -1 | C114: -1 | D114: -1 | E114: -1 | F114: -1 | G114: -1 | H114: -1 | O114: 84 | P114: RCP6-RA7C | Q114: - - - | AS114: 83 | AT114: 0.02064669159 | AU114: 1.554811053 | AV114: 0.3645305036
A115: 85 | B115: -1 | C115: -1 | D115: -1 | E115: -1 | F115: -1 | G115: -1 | H115: -1 | O115: 85 | P115: RCP6-RA4R | Q115: - - - | AS115: 84 | AT115: 0.02089544691 | AU115: 1.579686585 | AV115: 0.3749565073
A116: 86 | B116: -1 | C116: -1 | D116: -1 | E116: -1 | F116: -1 | G116: -1 | H116: -1 | O116: 86 | P116: RCP6-RA6R | Q116: - - - | AS116: 85 | AT116: 0.02114420223 | AU116: 1.604562117 | AV116: 0.3855077695
A117: 87 | B117: -1 | C117: -1 | D117: -1 | E117: -1 | F117: -1 | G117: -1 | H117: -1 | O117: 87 | P117: RCP6-RA7R | Q117: - - - | AS117: 86 | AT117: 0.02139295755 | AU117: 1.629437649 | AV117: 0.3961832045
A118: 88 | B118: -1 | C118: -1 | D118: -1 | E118: -1 | F118: -1 | G118: -1 | H118: -1 | O118: 88 | P118: RCP6-RRA4C | Q118: - - - | AS118: 87 | AT118: 0.02164171287 | AU118: 1.654313181 | AV118: 0.4069817359
A119: 89 | B119: -1 | C119: -1 | D119: -1 | E119: -1 | F119: -1 | G119: -1 | H119: -1 | O119: 89 | P119: RCP6-RRA6C | Q119: - - - | AS119: 88 | AT119: 0.02189046819 | AU119: 1.679188713 | AV119: 0.4179022966
A120: 90 | B120: -1 | C120: -1 | D120: -1 | E120: -1 | F120: -1 | G120: -1 | H120: -1 | O120: 90 | P120: RCP6-RRA7C | Q120: - - - | AS120: 89 | AT120: 0.02213922352 | AU120: 1.704064245 | AV120: 0.4289438288
A121: 91 | B121: -1 | C121: -1 | D121: -1 | E121: -1 | F121: -1 | G121: -1 | H121: -1 | O121: 91 | P121: RCP6-RRA4R | Q121: - - - | AS121: 90 | AT121: 0.02238797884 | AU121: 1.728939777 | AV121: 0.4401052837
A122: 92 | B122: -1 | C122: -1 | D122: -1 | E122: -1 | F122: -1 | G122: -1 | H122: -1 | O122: 92 | P122: RCP6-RRA6R | Q122: - - - | AS122: 91 | AT122: 0.02263673416 | AU122: 1.753815309 | AV122: 0.4513856219
A123: 93 | B123: -1 | C123: -1 | D123: -1 | E123: -1 | F123: -1 | G123: -1 | H123: -1 | O123: 93 | P123: RCP6-RRA7R | Q123: - - - | AS123: 92 | AT123: 0.02288548948 | AU123: 1.778690841 | AV123: 0.4627838127
A124: 94 | B124: -1 | C124: -1 | D124: -1 | E124: -1 | F124: -1 | G124: -1 | H124: -1 | O124: 94 | P124: RCP6-WRA10C | Q124: - - - | AS124: 93 | AT124: 0.0231342448 | AU124: 1.803566373 | AV124: 0.4742988345
A125: 95 | B125: -1 | C125: -1 | D125: -1 | E125: -1 | F125: -1 | G125: -1 | H125: -1 | O125: 95 | P125: RCP6-WRA12C | Q125: - - - | AS125: 94 | AT125: 0.02338300012 | AU125: 1.828441905 | AV125: 0.4859296746
A126: 96 | B126: -1 | C126: -1 | D126: -1 | E126: -1 | F126: -1 | G126: -1 | H126: -1 | O126: 96 | P126: RCP6-WRA14C | Q126: - - - | AS126: 95 | AT126: 0.02363175544 | AU126: 1.853317437 | AV126: 0.4976753289
A127: 97 | B127: -1 | C127: -1 | D127: -1 | E127: -1 | F127: -1 | G127: -1 | H127: -1 | O127: 97 | P127: RCP6-WRA10R | Q127: - - - | AS127: 96 | AT127: 0.02388051076 | AU127: 1.878192969 | AV127: 0.5095348022
A128: 98 | B128: -1 | C128: -1 | D128: -1 | E128: -1 | F128: -1 | G128: -1 | H128: -1 | O128: 98 | P128: RCP6-WRA12R | Q128: - - - | AS128: 97 | AT128: 0.02412926608 | AU128: 1.903068501 | AV128: 0.5215071078
A129: 99 | B129: -1 | C129: -1 | D129: -1 | E129: -1 | F129: -1 | G129: -1 | H129: -1 | O129: 99 | P129: RCP6-WRA14R | Q129: - - - | AS129: 98 | AT129: 0.0243780214 | AU129: 1.927944033 | AV129: 0.5335912676
A130: 100 | B130: -1 | C130: -1 | D130: -1 | E130: -1 | F130: -1 | G130: -1 | H130: -1 | O130: 100 | P130: RCP6-TA4C(SB) | Q130: - - - | AS130: 99 | AT130: 0.02462677672 | AU130: 1.952819565 | AV130: 0.5457863119
A131: 101 | B131: -1 | C131: -1 | D131: -1 | E131: -1 | F131: -1 | G131: -1 | H131: -1 | O131: 101 | P131: RCP6-TA6C(SB) | Q131: - - - | AS131: 100 | AT131: 0.02487553204 | AU131: 1.977695097 | AV131: 0.5580912796
A132: 102 | B132: -1 | C132: -1 | D132: -1 | E132: -1 | F132: -1 | G132: -1 | H132: -1 | O132: 102 | P132: RCP6-TA7C(SB) | Q132: - - - | AS132: =AS131+1 -> 101 | AT132: 0.02512428736 | AU132: 2.002570629 | AV132: 0.5705052177
A133: 103 | B133: -1 | C133: -1 | D133: -1 | E133: -1 | F133: -1 | G133: -1 | H133: -1 | O133: 103 | P133: RCP6-TA4R(SB) | Q133: - - - | AS133: 102 | AT133: 0.02537304268 | AU133: 2.027446162 | AV133: 0.5830271816
A134: 104 | B134: -1 | C134: -1 | D134: -1 | E134: -1 | F134: -1 | G134: -1 | H134: -1 | O134: 104 | P134: RCP6-TA6R(SB) | Q134: - - - | AS134: 103 | AT134: 0.025621798 | AU134: 2.052321694 | AV134: 0.5956562349
A135: 105 | B135: -1 | C135: -1 | D135: -1 | E135: -1 | F135: -1 | G135: -1 | H135: -1 | O135: 105 | P135: RCP6-TA7R(SB) | Q135: - - - | AS135: 104 | AT135: 0.02587055332 | AU135: 2.077197226 | AV135: 0.6083914493
A136: 106 | B136: -1 | C136: -1 | D136: -1 | E136: -1 | F136: -1 | G136: -1 | H136: -1 | O136: 106 | P136: RCP6-TA4C(DB) | Q136: - - - | AS136: 105 | AT136: 0.02611930864 | AU136: 2.102072758 | AV136: 0.6212319044
A137: 107 | B137: -1 | C137: -1 | D137: -1 | E137: -1 | F137: -1 | G137: -1 | H137: -1 | O137: 107 | P137: RCP6-TA6C(DB) | Q137: - - - | AS137: 106 | AT137: 0.02636806396 | AU137: 2.12694829 | AV137: 0.634176688
A138: 108 | B138: -1 | C138: -1 | D138: -1 | E138: -1 | F138: -1 | G138: -1 | H138: -1 | O138: 108 | P138: RCP6-TA7C(DB) | Q138: - - - | AS138: 107 | AT138: 0.02661681928 | AU138: 2.151823822 | AV138: 0.6472248957
A139: 109 | B139: -1 | C139: -1 | D139: -1 | E139: -1 | F139: -1 | G139: -1 | H139: -1 | O139: 109 | P139: RCP6-TA4R(DB) | Q139: - - - | AS139: 108 | AT139: 0.0268655746 | AU139: 2.176699354 | AV139: 0.6603756308
A140: 110 | B140: -1 | C140: -1 | D140: -1 | E140: -1 | F140: -1 | G140: -1 | H140: -1 | O140: 110 | P140: RCP6-TA6R(DB) | Q140: - - - | AS140: 109 | AT140: 0.02711432992 | AU140: 2.201574886 | AV140: 0.6736280047
A141: 111 | B141: -1 | C141: -1 | D141: -1 | E141: -1 | F141: -1 | G141: -1 | H141: -1 | O141: 111 | P141: RCP6-TA7R(DB) | Q141: - - - | AS141: 110 | AT141: 0.02736308524 | AU141: 2.226450418 | AV141: 0.6869811363
A142: 112 | B142: -1 | C142: -1 | D142: -1 | E142: -1 | F142: -1 | G142: -1 | H142: -1 | O142: 112 | P142: RCP6CR-SA4C | Q142: - - - | AS142: 111 | AT142: 0.02761184056 | AU142: 2.25132595 | AV142: 0.7004341521
A143: 113 | B143: -1 | C143: -1 | D143: -1 | E143: -1 | F143: -1 | G143: -1 | H143: -1 | O143: 113 | P143: RCP6CR-SA6C | Q143: - - - | AS143: 112 | AT143: 0.02786059588 | AU143: 2.276201482 | AV143: 0.7139861863
A144: 114 | B144: -1 | C144: -1 | D144: -1 | E144: -1 | F144: -1 | G144: -1 | H144: -1 | O144: 114 | P144: RCP6CR-SA7C | Q144: - - - | AS144: 113 | AT144: 0.0281093512 | AU144: 2.301077014 | AV144: 0.7276363805
A145: 115 | B145: -1 | C145: -1 | D145: -1 | E145: -1 | F145: -1 | G145: -1 | H145: -1 | O145: 115 | P145: RCP6CR-SA8C | Q145: - - - | AS145: 114 | AT145: 0.02835810653 | AU145: 2.325952546 | AV145: 0.7413838837
A146: 116 | B146: -1 | C146: -1 | D146: -1 | E146: -1 | F146: -1 | G146: -1 | H146: -1 | O146: 116 | P146: RCP6CR-WSA10C | Q146: - - - | AS146: 115 | AT146: 0.02860686185 | AU146: 2.350828078 | AV146: 0.7552278525
A147: 117 | B147: -1 | C147: -1 | D147: -1 | E147: -1 | F147: -1 | G147: -1 | H147: -1 | O147: 117 | P147: RCP6CR-WSA12C | Q147: - - - | AS147: 116 | AT147: 0.02885561717 | AU147: 2.37570361 | AV147: 0.7691674506
A148: 118 | B148: -1 | C148: -1 | D148: -1 | E148: -1 | F148: -1 | G148: -1 | H148: -1 | O148: 118 | P148: RCP6CR-WSA14C | Q148: - - - | AS148: 117 | AT148: 0.02910437249 | AU148: 2.400579142 | AV148: 0.783201849
A149: 119 | B149: -1 | C149: -1 | D149: -1 | E149: -1 | F149: -1 | G149: -1 | H149: -1 | O149: 119 | P149: RCP6CR-WSA16C | Q149: - - - | AS149: 118 | AT149: 0.02935312781 | AU149: 2.425454674 | AV149: 0.797330226
A150: 120 | B150: -1 | C150: -1 | D150: -1 | E150: -1 | F150: -1 | G150: -1 | H150: -1 | O150: 120 | P150: RCP6-HSA6C | Q150: - - - | AS150: 119 | AT150: 0.02960188313 | AU150: 2.450330206 | AV150: 0.8115517668
A151: 121 | B151: -1 | C151: -1 | D151: -1 | E151: -1 | F151: -1 | G151: -1 | H151: -1 | O151: 121 | P151: RCP6-HSA7C | Q151: - - - | AS151: 120 | AT151: 0.02985063845 | AU151: 2.475205738 | AV151: 0.8258656638
A152: 122 | B152: -1 | C152: -1 | D152: -1 | E152: -1 | F152: -1 | G152: -1 | H152: -1 | O152: 122 | P152: RCP6-HSA6C-W | Q152: - - - | AS152: 121 | AT152: 0.03009939377 | AU152: 2.50008127 | AV152: 0.8402711165
A153: 123 | B153: -1 | C153: -1 | D153: -1 | E153: -1 | F153: -1 | G153: -1 | H153: -1 | O153: 123 | P153: RCP6-HSA7C-W | Q153: - - - | AS153: 122 | AT153: 0.03034814909 | AU153: 2.524956802 | AV153: 0.8547673312
A154: 124 | B154: -1 | C154: -1 | D154: -1 | E154: -1 | F154: -1 | G154: -1 | H154: -1 | AS154: 123 | AT154: 0.03059690441 | AU154: 2.549832334 | AV154: 0.869353521
A155: 125 | B155: -1 | C155: -1 | D155: -1 | E155: -1 | F155: -1 | G155: -1 | H155: -1 | AS155: 124 | AT155: 0.03084565973 | AU155: 2.574707866 | AV155: 0.8840289061
A156: 126 | B156: -1 | C156: -1 | D156: -1 | E156: -1 | F156: -1 | G156: -1 | H156: -1 | AS156: 125 | AT156: 0.03109441505 | AU156: 2.599583398 | AV156: 0.8987927131
A157: 127 | B157: -1 | C157: -1 | D157: -1 | E157: -1 | F157: -1 | G157: -1 | H157: -1 | AS157: 126 | AT157: 0.03134317037 | AU157: 2.62445893 | AV157: 0.9136441757
A158: 128 | B158: -1 | C158: -1 | D158: -1 | E158: -1 | F158: -1 | G158: -1 | H158: -1 | AS158: 127 | AT158: 0.03159192569 | AU158: 2.649334463 | AV158: 0.9285825339
A159: =A158+1 -> 129 | B159: -1 | C159: -1 | D159: -1 | E159: -1 | F159: -1 | G159: -1 | H159: -1 | AS159: 128 | AT159: =$AP$18/$N$7*AS159 -> 0.03184068101 | AU159: 2.674209995 | AV159: 0.9436070345
A160: 130 | B160: -1 | C160: -1 | D160: -1 | E160: -1 | F160: -1 | G160: -1 | H160: -1 | AS160: 129 | AT160: 0.03208943633 | AU160: =IF(($N$4*AT160^2/2)<=$AP$13,($N$4*AT160^2/2), IF(($AP$13+$N$6*(AT160-$AP$12))<=$AP$17, ($AP$13+$N$6*(AT160-$AP$12)), IF(AU159<$D$14, ($AP$17+($N$6-$N$5*(AT160-$AP$16)/2)*(AT160-$AP$16)), $D$14))) -> 2.699085527 | AV160: 0.9587169308
A161: 131 | B161: -1 | C161: -1 | D161: -1 | E161: -1 | F161: -1 | G161: -1 | H161: -1 | AS161: 130 | AT161: 0.03233819165 | AU161: 2.723961059 | AV161: =( $AP$6*AU161 + $AP$7*AU160 + $AP$9*AV160 )/$AP$8 -> 0.9739114824
A162: 132 | B162: -1 | C162: -1 | D162: -1 | E162: -1 | F162: -1 | G162: -1 | H162: -1 | AS162: 131 | AT162: 0.03258694697 | AU162: 2.748836591 | AV162: 0.9891899554
A163: 133 | B163: -1 | C163: -1 | D163: -1 | E163: -1 | F163: -1 | G163: -1 | H163: -1 | AS163: 132 | AT163: 0.03283570229 | AU163: 2.773712123 | AV163: 1.004551623
A164: 134 | B164: -1 | C164: -1 | D164: -1 | E164: -1 | F164: -1 | G164: -1 | H164: -1 | AS164: 133 | AT164: 0.03308445761 | AU164: 2.798587655 | AV164: 1.019995763
A165: 135 | B165: -1 | C165: -1 | D165: -1 | E165: -1 | F165: -1 | G165: -1 | H165: -1 | AS165: 134 | AT165: 0.03333321293 | AU165: 2.823463187 | AV165: 1.03552166
A166: 136 | B166: -1 | C166: -1 | D166: -1 | E166: -1 | F166: -1 | G166: -1 | H166: -1 | AS166: 135 | AT166: 0.03358196825 | AU166: 2.848338719 | AV166: 1.051128607
A167: 137 | B167: -1 | C167: -1 | D167: -1 | E167: -1 | F167: -1 | G167: -1 | H167: -1 | AS167: 136 | AT167: 0.03383072357 | AU167: 2.873214251 | AV167: 1.066815901
A168: 138 | B168: -1 | C168: -1 | D168: -1 | E168: -1 | F168: -1 | G168: -1 | H168: -1 | AS168: 137 | AT168: 0.03407947889 | AU168: 2.898089783 | AV168: 1.082582845
A169: 139 | B169: -1 | C169: -1 | D169: -1 | E169: -1 | F169: -1 | G169: -1 | H169: -1 | AS169: 138 | AT169: 0.03432823421 | AU169: 2.922965315 | AV169: 1.098428748
A170: 140 | B170: -1 | C170: -1 | D170: -1 | E170: -1 | F170: -1 | G170: -1 | H170: -1 | AS170: 139 | AT170: 0.03457698953 | AU170: 2.947840847 | AV170: 1.114352926
A171: 141 | B171: -1 | C171: -1 | D171: -1 | E171: -1 | F171: -1 | G171: -1 | H171: -1 | AS171: 140 | AT171: 0.03482574486 | AU171: 2.972716379 | AV171: 1.130354701
A172: 142 | B172: -1 | C172: -1 | D172: -1 | E172: -1 | F172: -1 | G172: -1 | H172: -1 | AS172: 141 | AT172: 0.03507450018 | AU172: 2.997591911 | AV172: 1.1464334
A173: 143 | B173: -1 | C173: -1 | D173: -1 | E173: -1 | F173: -1 | G173: -1 | H173: -1 | AS173: 142 | AT173: 0.0353232555 | AU173: 3.022467443 | AV173: 1.162588356
A174: 144 | B174: -1 | C174: -1 | D174: -1 | E174: -1 | F174: -1 | G174: -1 | H174: -1 | AS174: 143 | AT174: 0.03557201082 | AU174: 3.047342975 | AV174: 1.178818909
A175: 145 | B175: -1 | C175: -1 | D175: -1 | E175: -1 | F175: -1 | G175: -1 | H175: -1 | AS175: 144 | AT175: 0.03582076614 | AU175: 3.072218507 | AV175: 1.195124401
A176: 146 | B176: -1 | C176: -1 | D176: -1 | E176: -1 | F176: -1 | G176: -1 | H176: -1 | AS176: 145 | AT176: 0.03606952146 | AU176: 3.097094039 | AV176: 1.211504185
A177: 147 | B177: -1 | C177: -1 | D177: -1 | E177: -1 | F177: -1 | G177: -1 | H177: -1 | AS177: 146 | AT177: 0.03631827678 | AU177: 3.121969571 | AV177: 1.227957616
A178: 148 | B178: -1 | C178: -1 | D178: -1 | E178: -1 | F178: -1 | G178: -1 | H178: -1 | AS178: 147 | AT178: 0.0365670321 | AU178: 3.146845103 | AV178: 1.244484056
A179: 149 | B179: -1 | C179: -1 | D179: -1 | E179: -1 | F179: -1 | G179: -1 | H179: -1 | AS179: 148 | AT179: 0.03681578742 | AU179: 3.171720635 | AV179: 1.261082872
A180: 150 | B180: -1 | C180: -1 | D180: -1 | E180: -1 | F180: -1 | G180: -1 | H180: -1 | AS180: 149 | AT180: 0.03706454274 | AU180: 3.196596167 | AV180: 1.277753435
A181: 151 | B181: -1 | C181: -1 | D181: -1 | E181: -1 | F181: -1 | G181: -1 | H181: -1 | AS181: 150 | AT181: 0.03731329806 | AU181: 3.221471699 | AV181: 1.294495126
A182: 152 | B182: -1 | C182: -1 | D182: -1 | E182: -1 | F182: -1 | G182: -1 | H182: -1 | AS182: 151 | AT182: 0.03756205338 | AU182: 3.246347231 | AV182: 1.311307326
A183: 153 | B183: -1 | C183: -1 | D183: -1 | E183: -1 | F183: -1 | G183: -1 | H183: -1 | AS183: =AS182+1 -> 152 | AT183: 0.0378108087 | AU183: 3.271222764 | AV183: 1.328189424
A184: 154 | B184: -1 | C184: -1 | D184: -1 | E184: -1 | F184: -1 | G184: -1 | H184: -1 | AS184: 153 | AT184: 0.03805956402 | AU184: 3.296098296 | AV184: 1.345140816
A185: 155 | B185: -1 | C185: -1 | D185: -1 | E185: -1 | F185: -1 | G185: -1 | H185: -1 | AS185: 154 | AT185: 0.03830831934 | AU185: 3.320973828 | AV185: 1.362160899
A186: 156 | B186: -1 | C186: -1 | D186: -1 | E186: -1 | F186: -1 | G186: -1 | H186: -1 | AS186: 155 | AT186: 0.03855707466 | AU186: 3.34584936 | AV186: 1.379249079
A187: 157 | B187: -1 | C187: -1 | D187: -1 | E187: -1 | F187: -1 | G187: -1 | H187: -1 | AS187: 156 | AT187: 0.03880582998 | AU187: 3.370724892 | AV187: 1.396404765
A188: 158 | B188: -1 | C188: -1 | D188: -1 | E188: -1 | F188: -1 | G188: -1 | H188: -1 | AS188: 157 | AT188: 0.0390545853 | AU188: 3.395600424 | AV188: 1.413627372
A189: 159 | B189: -1 | C189: -1 | D189: -1 | E189: -1 | F189: -1 | G189: -1 | H189: -1 | AS189: 158 | AT189: 0.03930334062 | AU189: 3.420475956 | AV189: 1.43091632
A190: 160 | B190: -1 | C190: -1 | D190: -1 | E190: -1 | F190: -1 | G190: -1 | H190: -1 | AS190: 159 | AT190: 0.03955209594 | AU190: 3.445351488 | AV190: 1.448271034
A191: 161 | B191: -1 | C191: -1 | D191: -1 | E191: -1 | F191: -1 | G191: -1 | H191: -1 | AS191: 160 | AT191: 0.03980085126 | AU191: 3.47022702 | AV191: 1.465690943
A192: 162 | B192: -1 | C192: -1 | D192: -1 | E192: -1 | F192: -1 | G192: -1 | H192: -1 | AS192: 161 | AT192: 0.04004960658 | AU192: 3.495102552 | AV192: 1.483175484
A193: 163 | B193: -1 | C193: -1 | D193: -1 | E193: -1 | F193: -1 | G193: -1 | H193: -1 | AS193: 162 | AT193: 0.0402983619 | AU193: 3.519978084 | AV193: 1.500724094
A194: 164 | B194: -1 | C194: -1 | D194: -1 | E194: -1 | F194: -1 | G194: -1 | H194: -1 | AS194: 163 | AT194: 0.04054711722 | AU194: 3.544853616 | AV194: 1.518336219
A195: 165 | B195: -1 | C195: -1 | D195: -1 | E195: -1 | F195: -1 | G195: -1 | H195: -1 | AS195: 164 | AT195: 0.04079587254 | AU195: 3.569729148 | AV195: 1.536011309
A196: 166 | B196: -1 | C196: -1 | D196: -1 | E196: -1 | F196: -1 | G196: -1 | H196: -1 | AS196: 165 | AT196: 0.04104462787 | AU196: 3.59460468 | AV196: 1.553748817
A197: 167 | B197: -1 | C197: -1 | D197: -1 | E197: -1 | F197: -1 | G197: -1 | H197: -1 | AS197: 166 | AT197: 0.04129338319 | AU197: 3.619480212 | AV197: 1.571548202
A198: 168 | B198: -1 | C198: -1 | D198: -1 | E198: -1 | F198: -1 | G198: -1 | H198: -1 | AS198: 167 | AT198: 0.04154213851 | AU198: 3.644355744 | AV198: 1.589408929
A199: 169 | B199: -1 | C199: -1 | D199: -1 | E199: -1 | F199: -1 | G199: -1 | H199: -1 | AS199: 168 | AT199: 0.04179089383 | AU199: 3.669231276 | AV199: 1.607330464
A200: 170 | B200: -1 | C200: -1 | D200: -1 | E200: -1 | F200: -1 | G200: -1 | H200: -1 | AS200: 169 | AT200: 0.04203964915 | AU200: 3.694106808 | AV200: 1.625312282
A201: 171 | B201: -1 | C201: -1 | D201: -1 | E201: -1 | F201: -1 | G201: -1 | H201: -1 | AS201: 170 | AT201: 0.04228840447 | AU201: 3.71898234 | AV201: 1.643353859
A202: 172 | B202: -1 | C202: -1 | D202: -1 | E202: -1 | F202: -1 | G202: -1 | H202: -1 | AS202: 171 | AT202: 0.04253715979 | AU202: 3.743857872 | AV202: 1.661454678
A203: 173 | B203: -1 | C203: -1 | D203: -1 | E203: -1 | F203: -1 | G203: -1 | H203: -1 | AS203: 172 | AT203: 0.04278591511 | AU203: 3.768733404 | AV203: 1.679614225
... 922 more rows

Sheet DataSerch (hidden)
A1: 選択型式 | B1: メカ機種データレコード | M1: :$126 | N1: ：「メカ機種データ」範囲検索
A2: =CycleTime!C6 -> RCP6-SA8C | B2: № | C2: =ModelData!$B$2 -> ｱｸﾁｭｴｰﾀ型式 | H2: =ModelData!$C$2 -> 最小ｽﾄﾛｰｸ | I2: =ModelData!$D$2 -> 最大ｽﾄﾛｰｸ | J2: =ModelData!$E$2 -> 動作種別 | M2: :$43 | N2: ：「モータ機種データ」範囲検索
B3: =MATCH(A2,ModelData!$B$4:$B$126,0) -> 60 | C3: =LOOKUP(B3,ModelData!$A$4:$A$126,ModelData!$B$4:$B$126) -> RCP6-SA8C | H3: =LOOKUP(B3,ModelData!$A$4:$A$126,ModelData!$C$4:$C$126) -> 50 | I3: =LOOKUP(B3,ModelData!$A$4:$A$126,ModelData!$D$4:$D$126) -> 1100 | J3: =LOOKUP(B3,ModelData!$A$4:$A$126,ModelData!$E$4:$E$126) -> 0 | M3: :$375 | N3: ：「リードデータ」範囲検索
A4: リード | E4: [kg] | F4: [mm] | G4: [mm] | H4: [mm] | I4: [mm] | J4: 0/1 | K4: [K] | M4: :$1078 | N4: ：「ストロークデータ」範囲検索
A5: =CycleTime!C8 -> 5 | E5: =E3/10 -> 0 | F5: =F3/10 -> 0 | G5: =G3 -> 0 | H5: =H3 -> 50 | I5: =I3 -> 1100 | J5: =J3 -> 0 | M5: :$3600 | N5: ：「搬送負荷データ」範囲検索
M6: :$4253 | N6: ：「加減速・速度データ」範囲検索
A7: ストローク | B7: モータ機種レコード
A8: =CycleTime!C10 -> 50
A10: 設置姿勢 | D10: [Nm/A] | E10: [A] | F10: [kgm^2] | G10: [Nm] | H10: [Nm] | I10: [rad/s] | J10: [rad/s] | K10: [rad/s] | L10: [Nm/(rad/s)] | M10: [K] | N10: [K] | O10: [s]
A11: =IF(CycleTime!C12=CycleTime!AE20,0,1) -> 0 | D11: =D9/10000 -> 0 | E11: =E9/1000 -> 0 | F11: =F9*0.000000001 -> 0 | G11: =G9/1000 -> 0 | H11: =H9/1000 -> 0 | I11: =I9/1000 -> 0 | J11: =J9/1000 -> 0 | K11: =K9/1000 -> 0 | L11: =L9*0.000001 -> 0 | M11: =M9/10 -> 0 | N11: =N9/10 -> 0 | O11: =O9/100 -> 0
A13: 搬送負荷質量 | B13: リレーション | F13: リードデータレコード | I13: =LOOKUP(C15,LeadData!$A$4:$A$375,LeadData!$J$4:$J$375) -> 0.1
A14: =CycleTime!B31 -> 5 | C14: ﾘｰﾄﾞ№ | D14: ｽﾄﾛｰｸ№ | E14: 負荷№ | F14: =LeadData!$B$2 -> ﾘｰﾄﾞ長 | H14: =LeadData!$C$2 -> 水平定格加速度 | I14: =LeadData!$D$2 -> 垂直定格加速度 | J14: =LeadData!$E$2 -> 水平最大加速度 | K14: =LeadData!$F$2 -> 垂直最大加速度 | O14: =LeadData!$G$2 -> ｷﾞｱ比分子 | P14: =LeadData!$H$2 -> ｷﾞｱ比分母 | R14: =LeadData!$I$2 -> ｽﾄﾛｰｸ刻み | S14: =LeadData!$J$2 -> 位置決め幅 初期値
B15: =ModelData!$F$2 -> リンク[0] | C15: =LOOKUP(B3,ModelData!$A$4:$A$126,ModelData!$F$4:$F$126) -> 165 | D15: =LOOKUP(B3,ModelData!$A$4:$A$126,ModelData!$G$4:$G$126) -> 471 | E15: =LOOKUP(B3,ModelData!$A$4:$A$126,ModelData!$H$4:$H$126) -> 1402 | F15: =LOOKUP(C15,LeadData!$A$4:$A$375,LeadData!$B$4:$B$375) -> 5000 | H15: =LOOKUP(C15,LeadData!$A$4:$A$375,LeadData!$C$4:$C$375) -> 2941995 | I15: =LOOKUP(C15,LeadData!$A$4:$A$375,LeadData!$D$4:$D$375) -> 2941995 | J15: =LOOKUP(C15,LeadData!$A$4:$A$375,LeadData!$E$4:$E$375) -> 9806650 | K15: =LOOKUP(C15,LeadData!$A$4:$A$375,LeadData!$F$4:$F$375) -> 4903325 | O15: =LOOKUP(C15,LeadData!$A$4:$A$375,LeadData!$G$4:$G$375) -> 1 | P15: =LOOKUP(C15,LeadData!$A$4:$A$375,LeadData!$H$4:$H$375) -> 1 | R15: =LOOKUP(C15,LeadData!$A$4:$A$375,LeadData!$I$4:$I$375) -> 50 | S15: =LOOKUP(C15,LeadData!$A$4:$A$375,LeadData!$J$4:$J$375) -> 0.1
B16: =ModelData!$I$2 -> リンク[1] | C16: =LOOKUP(B3,ModelData!$A$4:$A$126,ModelData!$I$4:$I$126) -> 166 | D16: =LOOKUP(B3,ModelData!$A$4:$A$126,ModelData!$J$4:$J$126) -> 481 | E16: =LOOKUP(B3,ModelData!$A$4:$A$126,ModelData!$K$4:$K$126) -> 1421 | F16: =LOOKUP(C16,LeadData!$A$4:$A$375,LeadData!$B$4:$B$375) -> 10000 | H16: =LOOKUP(C16,LeadData!$A$4:$A$375,LeadData!$C$4:$C$375) -> 2941995 | I16: =LOOKUP(C16,LeadData!$A$4:$A$375,LeadData!$D$4:$D$375) -> 2941995 | J16: =LOOKUP(C16,LeadData!$A$4:$A$375,LeadData!$E$4:$E$375) -> 9806650 | K16: =LOOKUP(C16,LeadData!$A$4:$A$375,LeadData!$F$4:$F$375) -> 4903325 | O16: =LOOKUP(C16,LeadData!$A$4:$A$375,LeadData!$G$4:$G$375) -> 1 | P16: =LOOKUP(C16,LeadData!$A$4:$A$375,LeadData!$H$4:$H$375) -> 1 | R16: =LOOKUP(C16,LeadData!$A$4:$A$375,LeadData!$I$4:$I$375) -> 50 | S16: =LOOKUP(C16,LeadData!$A$4:$A$375,LeadData!$J$4:$J$375) -> 0.1
B17: =ModelData!$L$2 -> リンク[2] | C17: =LOOKUP(B3,ModelData!$A$4:$A$126,ModelData!$L$4:$L$126) -> 167 | D17: =LOOKUP(B3,ModelData!$A$4:$A$126,ModelData!$M$4:$M$126) -> 491 | E17: =LOOKUP(B3,ModelData!$A$4:$A$126,ModelData!$N$4:$N$126) -> 1444 | F17: =LOOKUP(C17,LeadData!$A$4:$A$375,LeadData!$B$4:$B$375) -> 20000 | H17: =LOOKUP(C17,LeadData!$A$4:$A$375,LeadData!$C$4:$C$375) -> 2941995 | I17: =LOOKUP(C17,LeadData!$A$4:$A$375,LeadData!$D$4:$D$375) -> 2941995 | J17: =LOOKUP(C17,LeadData!$A$4:$A$375,LeadData!$E$4:$E$375) -> 9806650 | K17: =LOOKUP(C17,LeadData!$A$4:$A$375,LeadData!$F$4:$F$375) -> 4903325 | O17: =LOOKUP(C17,LeadData!$A$4:$A$375,LeadData!$G$4:$G$375) -> 1 | P17: =LOOKUP(C17,LeadData!$A$4:$A$375,LeadData!$H$4:$H$375) -> 1 | R17: =LOOKUP(C17,LeadData!$A$4:$A$375,LeadData!$I$4:$I$375) -> 50 | S17: =LOOKUP(C17,LeadData!$A$4:$A$375,LeadData!$J$4:$J$375) -> 0.1
B18: =ModelData!$O$2 -> リンク[3] | C18: =LOOKUP(B3,ModelData!$A$4:$A$126,ModelData!$O$4:$O$126) -> 168 | D18: =LOOKUP(B3,ModelData!$A$4:$A$126,ModelData!$P$4:$P$126) -> 501 | E18: =LOOKUP(B3,ModelData!$A$4:$A$126,ModelData!$Q$4:$Q$126) -> 1470 | F18: =LOOKUP(C18,LeadData!$A$4:$A$375,LeadData!$B$4:$B$375) -> 30000 | H18: =LOOKUP(C18,LeadData!$A$4:$A$375,LeadData!$C$4:$C$375) -> 2941995 | I18: =LOOKUP(C18,LeadData!$A$4:$A$375,LeadData!$D$4:$D$375) -> 2941995 | J18: =LOOKUP(C18,LeadData!$A$4:$A$375,LeadData!$E$4:$E$375) -> 9806650 | K18: =LOOKUP(C18,LeadData!$A$4:$A$375,LeadData!$F$4:$F$375) -> 4903325 | O18: =LOOKUP(C18,LeadData!$A$4:$A$375,LeadData!$G$4:$G$375) -> 1 | P18: =LOOKUP(C18,LeadData!$A$4:$A$375,LeadData!$H$4:$H$375) -> 1 | R18: =LOOKUP(C18,LeadData!$A$4:$A$375,LeadData!$I$4:$I$375) -> 50 | S18: =LOOKUP(C18,LeadData!$A$4:$A$375,LeadData!$J$4:$J$375) -> 0.1
B19: =ModelData!$R$2 -> リンク[4] | C19: =LOOKUP(B3,ModelData!$A$4:$A$126,ModelData!$R$4:$R$126) -> -1 | D19: =LOOKUP(B3,ModelData!$A$4:$A$126,ModelData!$S$4:$S$126) -> -1 | E19: =LOOKUP(B3,ModelData!$A$4:$A$126,ModelData!$T$4:$T$126) -> -1 | F19: =LOOKUP(C19,LeadData!$A$4:$A$375,LeadData!$B$4:$B$375) ->  | H19: =LOOKUP(C19,LeadData!$A$4:$A$375,LeadData!$C$4:$C$375) ->  | I19: =LOOKUP(C19,LeadData!$A$4:$A$375,LeadData!$D$4:$D$375) ->  | J19: =LOOKUP(C19,LeadData!$A$4:$A$375,LeadData!$E$4:$E$375) ->  | K19: =LOOKUP(C19,LeadData!$A$4:$A$375,LeadData!$F$4:$F$375) ->  | O19: =LOOKUP(C19,LeadData!$A$4:$A$375,LeadData!$G$4:$G$375) ->  | P19: =LOOKUP(C19,LeadData!$A$4:$A$375,LeadData!$H$4:$H$375) ->  | R19: =LOOKUP(C19,LeadData!$A$4:$A$375,LeadData!$I$4:$I$375) ->  | S19: =LOOKUP(C19,LeadData!$A$4:$A$375,LeadData!$J$4:$J$375) -> 
B20: =ModelData!$U$2 -> リンク[5] | C20: =LOOKUP(B3,ModelData!$A$4:$A$126,ModelData!$U$4:$U$126) -> -1 | D20: =LOOKUP(B3,ModelData!$A$4:$A$126,ModelData!$V$4:$V$126) -> -1 | E20: =LOOKUP(B3,ModelData!$A$4:$A$126,ModelData!$W$4:$W$126) -> -1 | F20: =LOOKUP(C20,LeadData!$A$4:$A$375,LeadData!$B$4:$B$375) ->  | H20: =LOOKUP(C20,LeadData!$A$4:$A$375,LeadData!$C$4:$C$375) ->  | I20: =LOOKUP(C20,LeadData!$A$4:$A$375,LeadData!$D$4:$D$375) ->  | J20: =LOOKUP(C20,LeadData!$A$4:$A$375,LeadData!$E$4:$E$375) ->  | K20: =LOOKUP(C20,LeadData!$A$4:$A$375,LeadData!$F$4:$F$375) ->  | O20: =LOOKUP(C20,LeadData!$A$4:$A$375,LeadData!$G$4:$G$375) ->  | P20: =LOOKUP(C20,LeadData!$A$4:$A$375,LeadData!$H$4:$H$375) ->  | R20: =LOOKUP(C20,LeadData!$A$4:$A$375,LeadData!$I$4:$I$375) ->  | S20: =LOOKUP(C20,LeadData!$A$4:$A$375,LeadData!$J$4:$J$375) -> 
B21: =ModelData!$X$2 -> リンク[6] | C21: =LOOKUP(B3,ModelData!$A$4:$A$126,ModelData!$X$4:$X$126) -> -1 | D21: =LOOKUP(B3,ModelData!$A$4:$A$126,ModelData!$Y$4:$Y$126) -> -1 | E21: =LOOKUP(B3,ModelData!$A$4:$A$126,ModelData!$Z$4:$Z$126) -> -1 | F21: =LOOKUP(C21,LeadData!$A$4:$A$375,LeadData!$B$4:$B$375) ->  | H21: =LOOKUP(C21,LeadData!$A$4:$A$375,LeadData!$C$4:$C$375) ->  | I21: =LOOKUP(C21,LeadData!$A$4:$A$375,LeadData!$D$4:$D$375) ->  | J21: =LOOKUP(C21,LeadData!$A$4:$A$375,LeadData!$E$4:$E$375) ->  | K21: =LOOKUP(C21,LeadData!$A$4:$A$375,LeadData!$F$4:$F$375) ->  | O21: =LOOKUP(C21,LeadData!$A$4:$A$375,LeadData!$G$4:$G$375) ->  | P21: =LOOKUP(C21,LeadData!$A$4:$A$375,LeadData!$H$4:$H$375) ->  | R21: =LOOKUP(C21,LeadData!$A$4:$A$375,LeadData!$I$4:$I$375) ->  | S21: =LOOKUP(C21,LeadData!$A$4:$A$375,LeadData!$J$4:$J$375) -> 
B22: =ModelData!$AA$2 -> リンク[7] | C22: =LOOKUP(B3,ModelData!$A$4:$A$126,ModelData!$AA$4:$AA$126) -> -1 | D22: =LOOKUP(B3,ModelData!$A$4:$A$126,ModelData!$AB$4:$AB$126) -> -1 | E22: =LOOKUP(B3,ModelData!$A$4:$A$126,ModelData!$AC$4:$AC$126) -> -1 | F22: =LOOKUP(C22,LeadData!$A$4:$A$375,LeadData!$B$4:$B$375) ->  | H22: =LOOKUP(C22,LeadData!$A$4:$A$375,LeadData!$C$4:$C$375) ->  | I22: =LOOKUP(C22,LeadData!$A$4:$A$375,LeadData!$D$4:$D$375) ->  | J22: =LOOKUP(C22,LeadData!$A$4:$A$375,LeadData!$E$4:$E$375) ->  | K22: =LOOKUP(C22,LeadData!$A$4:$A$375,LeadData!$F$4:$F$375) ->  | O22: =LOOKUP(C22,LeadData!$A$4:$A$375,LeadData!$G$4:$G$375) ->  | P22: =LOOKUP(C22,LeadData!$A$4:$A$375,LeadData!$H$4:$H$375) ->  | R22: =LOOKUP(C22,LeadData!$A$4:$A$375,LeadData!$I$4:$I$375) ->  | S22: =LOOKUP(C22,LeadData!$A$4:$A$375,LeadData!$J$4:$J$375) -> 
B23: リードリストとリレーション | F23: リードデータレコードの物理量変換
B24: ﾘｰﾄﾞﾘｽﾄ | D24: リンク | F24: =LeadData!$B$2 -> ﾘｰﾄﾞ長 | H24: =LeadData!$C$2 -> 水平定格加速度 | I24: =LeadData!$D$2 -> 垂直定格加速度 | J24: =LeadData!$E$2 -> 水平最大加速度 | K24: =LeadData!$F$2 -> 垂直最大加速度 | O24: =LeadData!$G$2 -> ｷﾞｱ比分子 | P24: =LeadData!$H$2 -> ｷﾞｱ比分母 | R24: =LeadData!$I$2 -> ｽﾄﾛｰｸ刻み | S24: =LeadData!$J$2 -> 位置決め幅 初期値
B25: № | C25: ﾃﾞｰﾀ | D25: =D14 -> ｽﾄﾛｰｸ№ | E25: =E14 -> 負荷№ | F25: [mm] | G25: [kgm^2] | H25: [m/s^2] | I25: [m/s^2] | J25: [m/s^2] | K25: [m/s^2] | L25: [Nm] | M25: [Nms] | N25: [Nm] | R25: [mm] | S25: [mm]
B26: 1 | C26: =IF(C15=-1,"- - -",IF(F26<=0,P26/O26,F26)) -> 5 | D26: =D15 -> 471 | E26: 1402 | F26: =F15/1000 -> 5 | G26: =G15*0.000000001 -> 0 | H26: =H15*0.000001 -> 2.941995 | I26: 2.941995 | J26: 9.80665 | K26: 4.903325 | O26: =O15 -> 1 | P26: =P15 -> 1 | R26: =R15 -> 50 | S26: =S15 -> 0.1
B27: =B26+1 -> 2 | C27: 10 | D27: 481 | E27: 1421 | F27: 10 | G27: 0 | H27: 2.941995 | I27: 2.941995 | J27: 9.80665 | K27: 4.903325 | O27: =O16 -> 1 | P27: 1 | R27: =R16 -> 50 | S27: =S16 -> 0.1
B28: =B27+1 -> 3 | C28: 20 | D28: 491 | E28: 1444 | F28: 20 | G28: 0 | H28: 2.941995 | I28: 2.941995 | J28: 9.80665 | K28: 4.903325 | O28: 1 | P28: 1 | R28: 50 | S28: =S17 -> 0.1
B29: 4 | C29: 30 | D29: 501 | E29: 1470 | F29: 30 | G29: 0 | H29: 2.941995 | I29: 2.941995 | J29: 9.80665 | K29: 4.903325 | O29: 1 | P29: 1 | R29: 50 | S29: =S18 -> 0.1
B30: 5 | C30: - - - | D30: -1 | E30: -1 | G30: 0
B31: 6 | C31: - - - | D31: -1 | E31: -1 | G31: 0
B32: 7 | C32: - - - | D32: -1 | E32: -1 | G32: 0
B33: 8 | C33: - - - | D33: -1 | E33: -1 | G33: 0
B35: リードリスト選択№ | D35: =MATCH(A5,C26:C33,0) -> 1 | E35: ストロークデータレコード | H35: =LOOKUP(C37,StrokeData!$A$4:$A$1078,StrokeData!$M$4:$M$1078) -> RCP6-SA8C-5
B36: № | C36: stﾚｺｰﾄﾞ№ | D36: =StrokeData!$B$2 -> ｽﾄﾛｰｸ長 | E36: =StrokeData!$C$2 -> 有効ｽﾄﾛｰｸ補正 | G36: =StrokeData!$D$2 -> 基準ｹﾞｲﾝ用搬送質量 | H36: =StrokeData!$E$2 -> 水平可搬質量 | I36: =StrokeData!$F$2 -> 垂直可搬質量 | J36: =StrokeData!$G$2 -> 最大速度 | K36: =StrokeData!$H$2 -> 位置ｹﾞｲﾝ | L36: =StrokeData!$I$2 -> FFｹﾞｲﾝ | M36: =StrokeData!$J$2 -> 速度制御帯域 | S36: =StrokeData!$K$2 -> 前ﾃﾞｰﾀ№ | T36: =StrokeData!$L$2 -> 次ﾃﾞｰﾀ№
B37: 1 | C37: =LOOKUP(D35,B26:B33,D26:D33) -> 471 | D37: =LOOKUP(C37,StrokeData!$A$4:$A$1078,StrokeData!$B$4:$B$1078) -> 650 | E37: =LOOKUP(C37,StrokeData!$A$4:$A$1078,StrokeData!$C$4:$C$1078) -> 0 | G37: =LOOKUP(C37,StrokeData!$A$4:$A$1078,StrokeData!$D$4:$D$1078) -> 80000 | H37: =LOOKUP(C37,StrokeData!$A$4:$A$1078,StrokeData!$E$4:$E$1078) -> 80000 | I37: =LOOKUP(C37,StrokeData!$A$4:$A$1078,StrokeData!$F$4:$F$1078) -> 55000 | J37: =LOOKUP(C37,StrokeData!$A$4:$A$1078,StrokeData!$G$4:$G$1078) -> 250 | K37: =LOOKUP(C37,StrokeData!$A$4:$A$1078,StrokeData!$H$4:$H$1078) -> 35 | L37: =LOOKUP(C37,StrokeData!$A$4:$A$1078,StrokeData!$I$4:$I$1078) -> 0 | M37: =LOOKUP(C37,StrokeData!$A$4:$A$1078,StrokeData!$J$4:$J$1078) -> 170 | S37: =LOOKUP(C37,StrokeData!$A$4:$A$1078,StrokeData!$K$4:$K$1078) -> -1 | T37: =LOOKUP(C37,StrokeData!$A$4:$A$1078,StrokeData!$L$4:$L$1078) -> 472
B38: =B37+1 -> 2 | C38: =IF(C37=-1,-1,LOOKUP(C37,StrokeData!$A$4:$A$1078,StrokeData!$L$4:$L$1078)) -> 472 | D38: =LOOKUP(C38,StrokeData!$A$4:$A$1078,StrokeData!$B$4:$B$1078) -> 700 | E38: =LOOKUP(C38,StrokeData!$A$4:$A$1078,StrokeData!$C$4:$C$1078) -> 0 | G38: =LOOKUP(C38,StrokeData!$A$4:$A$1078,StrokeData!$D$4:$D$1078) -> 80000 | H38: =LOOKUP(C38,StrokeData!$A$4:$A$1078,StrokeData!$E$4:$E$1078) -> 80000 | I38: =LOOKUP(C38,StrokeData!$A$4:$A$1078,StrokeData!$F$4:$F$1078) -> 55000 | J38: =LOOKUP(C38,StrokeData!$A$4:$A$1078,StrokeData!$G$4:$G$1078) -> 240 | K38: =LOOKUP(C38,StrokeData!$A$4:$A$1078,StrokeData!$H$4:$H$1078) -> 35 | L38: =LOOKUP(C38,StrokeData!$A$4:$A$1078,StrokeData!$I$4:$I$1078) -> 0 | M38: =LOOKUP(C38,StrokeData!$A$4:$A$1078,StrokeData!$J$4:$J$1078) -> 170 | S38: =LOOKUP(C38,StrokeData!$A$4:$A$1078,StrokeData!$K$4:$K$1078) -> 471 | T38: =LOOKUP(C38,StrokeData!$A$4:$A$1078,StrokeData!$L$4:$L$1078) -> 473
B39: =B38+1 -> 3 | C39: =IF(C38=-1,-1,LOOKUP(C38,StrokeData!$A$4:$A$1078,StrokeData!$L$4:$L$1078)) -> 473 | D39: =LOOKUP(C39,StrokeData!$A$4:$A$1078,StrokeData!$B$4:$B$1078) -> 750 | E39: =LOOKUP(C39,StrokeData!$A$4:$A$1078,StrokeData!$C$4:$C$1078) -> 0 | G39: =LOOKUP(C39,StrokeData!$A$4:$A$1078,StrokeData!$D$4:$D$1078) -> 80000 | H39: =LOOKUP(C39,StrokeData!$A$4:$A$1078,StrokeData!$E$4:$E$1078) -> 80000 | I39: =LOOKUP(C39,StrokeData!$A$4:$A$1078,StrokeData!$F$4:$F$1078) -> 55000 | J39: =LOOKUP(C39,StrokeData!$A$4:$A$1078,StrokeData!$G$4:$G$1078) -> 215 | K39: =LOOKUP(C39,StrokeData!$A$4:$A$1078,StrokeData!$H$4:$H$1078) -> 35 | L39: =LOOKUP(C39,StrokeData!$A$4:$A$1078,StrokeData!$I$4:$I$1078) -> 0 | M39: =LOOKUP(C39,StrokeData!$A$4:$A$1078,StrokeData!$J$4:$J$1078) -> 170 | S39: =LOOKUP(C39,StrokeData!$A$4:$A$1078,StrokeData!$K$4:$K$1078) -> 472 | T39: =LOOKUP(C39,StrokeData!$A$4:$A$1078,StrokeData!$L$4:$L$1078) -> 474
B40: 4 | C40: =IF(C39=-1,-1,LOOKUP(C39,StrokeData!$A$4:$A$1078,StrokeData!$L$4:$L$1078)) -> 474 | D40: =LOOKUP(C40,StrokeData!$A$4:$A$1078,StrokeData!$B$4:$B$1078) -> 800 | E40: =LOOKUP(C40,StrokeData!$A$4:$A$1078,StrokeData!$C$4:$C$1078) -> 0 | G40: =LOOKUP(C40,StrokeData!$A$4:$A$1078,StrokeData!$D$4:$D$1078) -> 80000 | H40: =LOOKUP(C40,StrokeData!$A$4:$A$1078,StrokeData!$E$4:$E$1078) -> 80000 | I40: =LOOKUP(C40,StrokeData!$A$4:$A$1078,StrokeData!$F$4:$F$1078) -> 55000 | J40: =LOOKUP(C40,StrokeData!$A$4:$A$1078,StrokeData!$G$4:$G$1078) -> 190 | K40: =LOOKUP(C40,StrokeData!$A$4:$A$1078,StrokeData!$H$4:$H$1078) -> 35 | L40: =LOOKUP(C40,StrokeData!$A$4:$A$1078,StrokeData!$I$4:$I$1078) -> 0 | M40: =LOOKUP(C40,StrokeData!$A$4:$A$1078,StrokeData!$J$4:$J$1078) -> 170 | S40: =LOOKUP(C40,StrokeData!$A$4:$A$1078,StrokeData!$K$4:$K$1078) -> 473 | T40: =LOOKUP(C40,StrokeData!$A$4:$A$1078,StrokeData!$L$4:$L$1078) -> 475
B41: 5 | C41: =IF(C40=-1,-1,LOOKUP(C40,StrokeData!$A$4:$A$1078,StrokeData!$L$4:$L$1078)) -> 475 | D41: =LOOKUP(C41,StrokeData!$A$4:$A$1078,StrokeData!$B$4:$B$1078) -> 850 | E41: =LOOKUP(C41,StrokeData!$A$4:$A$1078,StrokeData!$C$4:$C$1078) -> 0 | G41: =LOOKUP(C41,StrokeData!$A$4:$A$1078,StrokeData!$D$4:$D$1078) -> 80000 | H41: =LOOKUP(C41,StrokeData!$A$4:$A$1078,StrokeData!$E$4:$E$1078) -> 80000 | I41: =LOOKUP(C41,StrokeData!$A$4:$A$1078,StrokeData!$F$4:$F$1078) -> 55000 | J41: =LOOKUP(C41,StrokeData!$A$4:$A$1078,StrokeData!$G$4:$G$1078) -> 175 | K41: =LOOKUP(C41,StrokeData!$A$4:$A$1078,StrokeData!$H$4:$H$1078) -> 35 | L41: =LOOKUP(C41,StrokeData!$A$4:$A$1078,StrokeData!$I$4:$I$1078) -> 0 | M41: =LOOKUP(C41,StrokeData!$A$4:$A$1078,StrokeData!$J$4:$J$1078) -> 170 | S41: =LOOKUP(C41,StrokeData!$A$4:$A$1078,StrokeData!$K$4:$K$1078) -> 474 | T41: =LOOKUP(C41,StrokeData!$A$4:$A$1078,StrokeData!$L$4:$L$1078) -> 476
B42: 6 | C42: =IF(C41=-1,-1,LOOKUP(C41,StrokeData!$A$4:$A$1078,StrokeData!$L$4:$L$1078)) -> 476 | D42: =LOOKUP(C42,StrokeData!$A$4:$A$1078,StrokeData!$B$4:$B$1078) -> 900 | E42: =LOOKUP(C42,StrokeData!$A$4:$A$1078,StrokeData!$C$4:$C$1078) -> 0 | G42: =LOOKUP(C42,StrokeData!$A$4:$A$1078,StrokeData!$D$4:$D$1078) -> 80000 | H42: =LOOKUP(C42,StrokeData!$A$4:$A$1078,StrokeData!$E$4:$E$1078) -> 80000 | I42: =LOOKUP(C42,StrokeData!$A$4:$A$1078,StrokeData!$F$4:$F$1078) -> 55000 | J42: =LOOKUP(C42,StrokeData!$A$4:$A$1078,StrokeData!$G$4:$G$1078) -> 155 | K42: =LOOKUP(C42,StrokeData!$A$4:$A$1078,StrokeData!$H$4:$H$1078) -> 35 | L42: =LOOKUP(C42,StrokeData!$A$4:$A$1078,StrokeData!$I$4:$I$1078) -> 0 | M42: =LOOKUP(C42,StrokeData!$A$4:$A$1078,StrokeData!$J$4:$J$1078) -> 170 | S42: =LOOKUP(C42,StrokeData!$A$4:$A$1078,StrokeData!$K$4:$K$1078) -> 475 | T42: =LOOKUP(C42,StrokeData!$A$4:$A$1078,StrokeData!$L$4:$L$1078) -> 477
B43: 7 | C43: =IF(C42=-1,-1,LOOKUP(C42,StrokeData!$A$4:$A$1078,StrokeData!$L$4:$L$1078)) -> 477 | D43: =LOOKUP(C43,StrokeData!$A$4:$A$1078,StrokeData!$B$4:$B$1078) -> 950 | E43: =LOOKUP(C43,StrokeData!$A$4:$A$1078,StrokeData!$C$4:$C$1078) -> 0 | G43: =LOOKUP(C43,StrokeData!$A$4:$A$1078,StrokeData!$D$4:$D$1078) -> 80000 | H43: =LOOKUP(C43,StrokeData!$A$4:$A$1078,StrokeData!$E$4:$E$1078) -> 80000 | I43: =LOOKUP(C43,StrokeData!$A$4:$A$1078,StrokeData!$F$4:$F$1078) -> 55000 | J43: =LOOKUP(C43,StrokeData!$A$4:$A$1078,StrokeData!$G$4:$G$1078) -> 140 | K43: =LOOKUP(C43,StrokeData!$A$4:$A$1078,StrokeData!$H$4:$H$1078) -> 35 | L43: =LOOKUP(C43,StrokeData!$A$4:$A$1078,StrokeData!$I$4:$I$1078) -> 0 | M43: =LOOKUP(C43,StrokeData!$A$4:$A$1078,StrokeData!$J$4:$J$1078) -> 170 | S43: =LOOKUP(C43,StrokeData!$A$4:$A$1078,StrokeData!$K$4:$K$1078) -> 476 | T43: =LOOKUP(C43,StrokeData!$A$4:$A$1078,StrokeData!$L$4:$L$1078) -> 478
B44: 8 | C44: =IF(C43=-1,-1,LOOKUP(C43,StrokeData!$A$4:$A$1078,StrokeData!$L$4:$L$1078)) -> 478 | D44: =LOOKUP(C44,StrokeData!$A$4:$A$1078,StrokeData!$B$4:$B$1078) -> 1000 | E44: =LOOKUP(C44,StrokeData!$A$4:$A$1078,StrokeData!$C$4:$C$1078) -> 0 | G44: =LOOKUP(C44,StrokeData!$A$4:$A$1078,StrokeData!$D$4:$D$1078) -> 80000 | H44: =LOOKUP(C44,StrokeData!$A$4:$A$1078,StrokeData!$E$4:$E$1078) -> 80000 | I44: =LOOKUP(C44,StrokeData!$A$4:$A$1078,StrokeData!$F$4:$F$1078) -> 55000 | J44: =LOOKUP(C44,StrokeData!$A$4:$A$1078,StrokeData!$G$4:$G$1078) -> 130 | K44: =LOOKUP(C44,StrokeData!$A$4:$A$1078,StrokeData!$H$4:$H$1078) -> 35 | L44: =LOOKUP(C44,StrokeData!$A$4:$A$1078,StrokeData!$I$4:$I$1078) -> 0 | M44: =LOOKUP(C44,StrokeData!$A$4:$A$1078,StrokeData!$J$4:$J$1078) -> 170 | S44: =LOOKUP(C44,StrokeData!$A$4:$A$1078,StrokeData!$K$4:$K$1078) -> 477 | T44: =LOOKUP(C44,StrokeData!$A$4:$A$1078,StrokeData!$L$4:$L$1078) -> 479
B45: 9 | C45: =IF(C44=-1,-1,LOOKUP(C44,StrokeData!$A$4:$A$1078,StrokeData!$L$4:$L$1078)) -> 479 | D45: =LOOKUP(C45,StrokeData!$A$4:$A$1078,StrokeData!$B$4:$B$1078) -> 1050 | E45: =LOOKUP(C45,StrokeData!$A$4:$A$1078,StrokeData!$C$4:$C$1078) -> 0 | G45: =LOOKUP(C45,StrokeData!$A$4:$A$1078,StrokeData!$D$4:$D$1078) -> 80000 | H45: =LOOKUP(C45,StrokeData!$A$4:$A$1078,StrokeData!$E$4:$E$1078) -> 80000 | I45: =LOOKUP(C45,StrokeData!$A$4:$A$1078,StrokeData!$F$4:$F$1078) -> 55000 | J45: =LOOKUP(C45,StrokeData!$A$4:$A$1078,StrokeData!$G$4:$G$1078) -> 120 | K45: =LOOKUP(C45,StrokeData!$A$4:$A$1078,StrokeData!$H$4:$H$1078) -> 35 | L45: =LOOKUP(C45,StrokeData!$A$4:$A$1078,StrokeData!$I$4:$I$1078) -> 0 | M45: =LOOKUP(C45,StrokeData!$A$4:$A$1078,StrokeData!$J$4:$J$1078) -> 170 | S45: =LOOKUP(C45,StrokeData!$A$4:$A$1078,StrokeData!$K$4:$K$1078) -> 478 | T45: =LOOKUP(C45,StrokeData!$A$4:$A$1078,StrokeData!$L$4:$L$1078) -> 480
B46: 10 | C46: =IF(C45=-1,-1,LOOKUP(C45,StrokeData!$A$4:$A$1078,StrokeData!$L$4:$L$1078)) -> 480 | D46: =LOOKUP(C46,StrokeData!$A$4:$A$1078,StrokeData!$B$4:$B$1078) -> 1100 | E46: =LOOKUP(C46,StrokeData!$A$4:$A$1078,StrokeData!$C$4:$C$1078) -> 0 | G46: =LOOKUP(C46,StrokeData!$A$4:$A$1078,StrokeData!$D$4:$D$1078) -> 80000 | H46: =LOOKUP(C46,StrokeData!$A$4:$A$1078,StrokeData!$E$4:$E$1078) -> 80000 | I46: =LOOKUP(C46,StrokeData!$A$4:$A$1078,StrokeData!$F$4:$F$1078) -> 55000 | J46: =LOOKUP(C46,StrokeData!$A$4:$A$1078,StrokeData!$G$4:$G$1078) -> 110 | K46: =LOOKUP(C46,StrokeData!$A$4:$A$1078,StrokeData!$H$4:$H$1078) -> 35 | L46: =LOOKUP(C46,StrokeData!$A$4:$A$1078,StrokeData!$I$4:$I$1078) -> 0 | M46: =LOOKUP(C46,StrokeData!$A$4:$A$1078,StrokeData!$J$4:$J$1078) -> 170 | S46: =LOOKUP(C46,StrokeData!$A$4:$A$1078,StrokeData!$K$4:$K$1078) -> 479 | T46: =LOOKUP(C46,StrokeData!$A$4:$A$1078,StrokeData!$L$4:$L$1078) -> -1
B47: 11 | C47: =IF(C46=-1,-1,LOOKUP(C46,StrokeData!$A$4:$A$1078,StrokeData!$L$4:$L$1078)) -> -1 | D47: =LOOKUP(C47,StrokeData!$A$4:$A$1078,StrokeData!$B$4:$B$1078) ->  | E47: =LOOKUP(C47,StrokeData!$A$4:$A$1078,StrokeData!$C$4:$C$1078) ->  | G47: =LOOKUP(C47,StrokeData!$A$4:$A$1078,StrokeData!$D$4:$D$1078) ->  | H47: =LOOKUP(C47,StrokeData!$A$4:$A$1078,StrokeData!$E$4:$E$1078) ->  | I47: =LOOKUP(C47,StrokeData!$A$4:$A$1078,StrokeData!$F$4:$F$1078) ->  | J47: =LOOKUP(C47,StrokeData!$A$4:$A$1078,StrokeData!$G$4:$G$1078) ->  | K47: =LOOKUP(C47,StrokeData!$A$4:$A$1078,StrokeData!$H$4:$H$1078) ->  | L47: =LOOKUP(C47,StrokeData!$A$4:$A$1078,StrokeData!$I$4:$I$1078) ->  | M47: =LOOKUP(C47,StrokeData!$A$4:$A$1078,StrokeData!$J$4:$J$1078) ->  | S47: =LOOKUP(C47,StrokeData!$A$4:$A$1078,StrokeData!$K$4:$K$1078) ->  | T47: =LOOKUP(C47,StrokeData!$A$4:$A$1078,StrokeData!$L$4:$L$1078) -> 
B48: 12 | C48: =IF(C47=-1,-1,LOOKUP(C47,StrokeData!$A$4:$A$1078,StrokeData!$L$4:$L$1078)) -> -1 | D48: =LOOKUP(C48,StrokeData!$A$4:$A$1078,StrokeData!$B$4:$B$1078) ->  | E48: =LOOKUP(C48,StrokeData!$A$4:$A$1078,StrokeData!$C$4:$C$1078) ->  | G48: =LOOKUP(C48,StrokeData!$A$4:$A$1078,StrokeData!$D$4:$D$1078) ->  | H48: =LOOKUP(C48,StrokeData!$A$4:$A$1078,StrokeData!$E$4:$E$1078) ->  | I48: =LOOKUP(C48,StrokeData!$A$4:$A$1078,StrokeData!$F$4:$F$1078) ->  | J48: =LOOKUP(C48,StrokeData!$A$4:$A$1078,StrokeData!$G$4:$G$1078) ->  | K48: =LOOKUP(C48,StrokeData!$A$4:$A$1078,StrokeData!$H$4:$H$1078) ->  | L48: =LOOKUP(C48,StrokeData!$A$4:$A$1078,StrokeData!$I$4:$I$1078) ->  | M48: =LOOKUP(C48,StrokeData!$A$4:$A$1078,StrokeData!$J$4:$J$1078) ->  | S48: =LOOKUP(C48,StrokeData!$A$4:$A$1078,StrokeData!$K$4:$K$1078) ->  | T48: =LOOKUP(C48,StrokeData!$A$4:$A$1078,StrokeData!$L$4:$L$1078) -> 
B49: 13 | C49: =IF(C48=-1,-1,LOOKUP(C48,StrokeData!$A$4:$A$1078,StrokeData!$L$4:$L$1078)) -> -1 | D49: =LOOKUP(C49,StrokeData!$A$4:$A$1078,StrokeData!$B$4:$B$1078) ->  | E49: =LOOKUP(C49,StrokeData!$A$4:$A$1078,StrokeData!$C$4:$C$1078) ->  | G49: =LOOKUP(C49,StrokeData!$A$4:$A$1078,StrokeData!$D$4:$D$1078) ->  | H49: =LOOKUP(C49,StrokeData!$A$4:$A$1078,StrokeData!$E$4:$E$1078) ->  | I49: =LOOKUP(C49,StrokeData!$A$4:$A$1078,StrokeData!$F$4:$F$1078) ->  | J49: =LOOKUP(C49,StrokeData!$A$4:$A$1078,StrokeData!$G$4:$G$1078) ->  | K49: =LOOKUP(C49,StrokeData!$A$4:$A$1078,StrokeData!$H$4:$H$1078) ->  | L49: =LOOKUP(C49,StrokeData!$A$4:$A$1078,StrokeData!$I$4:$I$1078) ->  | M49: =LOOKUP(C49,StrokeData!$A$4:$A$1078,StrokeData!$J$4:$J$1078) ->  | S49: =LOOKUP(C49,StrokeData!$A$4:$A$1078,StrokeData!$K$4:$K$1078) ->  | T49: =LOOKUP(C49,StrokeData!$A$4:$A$1078,StrokeData!$L$4:$L$1078) -> 
B50: 14 | C50: =IF(C49=-1,-1,LOOKUP(C49,StrokeData!$A$4:$A$1078,StrokeData!$L$4:$L$1078)) -> -1 | D50: =LOOKUP(C50,StrokeData!$A$4:$A$1078,StrokeData!$B$4:$B$1078) ->  | E50: =LOOKUP(C50,StrokeData!$A$4:$A$1078,StrokeData!$C$4:$C$1078) ->  | G50: =LOOKUP(C50,StrokeData!$A$4:$A$1078,StrokeData!$D$4:$D$1078) ->  | H50: =LOOKUP(C50,StrokeData!$A$4:$A$1078,StrokeData!$E$4:$E$1078) ->  | I50: =LOOKUP(C50,StrokeData!$A$4:$A$1078,StrokeData!$F$4:$F$1078) ->  | J50: =LOOKUP(C50,StrokeData!$A$4:$A$1078,StrokeData!$G$4:$G$1078) ->  | K50: =LOOKUP(C50,StrokeData!$A$4:$A$1078,StrokeData!$H$4:$H$1078) ->  | L50: =LOOKUP(C50,StrokeData!$A$4:$A$1078,StrokeData!$I$4:$I$1078) ->  | M50: =LOOKUP(C50,StrokeData!$A$4:$A$1078,StrokeData!$J$4:$J$1078) ->  | S50: =LOOKUP(C50,StrokeData!$A$4:$A$1078,StrokeData!$K$4:$K$1078) ->  | T50: =LOOKUP(C50,StrokeData!$A$4:$A$1078,StrokeData!$L$4:$L$1078) -> 
B51: 15 | C51: =IF(C50=-1,-1,LOOKUP(C50,StrokeData!$A$4:$A$1078,StrokeData!$L$4:$L$1078)) -> -1 | D51: =LOOKUP(C51,StrokeData!$A$4:$A$1078,StrokeData!$B$4:$B$1078) ->  | E51: =LOOKUP(C51,StrokeData!$A$4:$A$1078,StrokeData!$C$4:$C$1078) ->  | G51: =LOOKUP(C51,StrokeData!$A$4:$A$1078,StrokeData!$D$4:$D$1078) ->  | H51: =LOOKUP(C51,StrokeData!$A$4:$A$1078,StrokeData!$E$4:$E$1078) ->  | I51: =LOOKUP(C51,StrokeData!$A$4:$A$1078,StrokeData!$F$4:$F$1078) ->  | J51: =LOOKUP(C51,StrokeData!$A$4:$A$1078,StrokeData!$G$4:$G$1078) ->  | K51: =LOOKUP(C51,StrokeData!$A$4:$A$1078,StrokeData!$H$4:$H$1078) ->  | L51: =LOOKUP(C51,StrokeData!$A$4:$A$1078,StrokeData!$I$4:$I$1078) ->  | M51: =LOOKUP(C51,StrokeData!$A$4:$A$1078,StrokeData!$J$4:$J$1078) ->  | S51: =LOOKUP(C51,StrokeData!$A$4:$A$1078,StrokeData!$K$4:$K$1078) ->  | T51: =LOOKUP(C51,StrokeData!$A$4:$A$1078,StrokeData!$L$4:$L$1078) -> 
B52: 16 | C52: =IF(C51=-1,-1,LOOKUP(C51,StrokeData!$A$4:$A$1078,StrokeData!$L$4:$L$1078)) -> -1 | D52: =LOOKUP(C52,StrokeData!$A$4:$A$1078,StrokeData!$B$4:$B$1078) ->  | E52: =LOOKUP(C52,StrokeData!$A$4:$A$1078,StrokeData!$C$4:$C$1078) ->  | G52: =LOOKUP(C52,StrokeData!$A$4:$A$1078,StrokeData!$D$4:$D$1078) ->  | H52: =LOOKUP(C52,StrokeData!$A$4:$A$1078,StrokeData!$E$4:$E$1078) ->  | I52: =LOOKUP(C52,StrokeData!$A$4:$A$1078,StrokeData!$F$4:$F$1078) ->  | J52: =LOOKUP(C52,StrokeData!$A$4:$A$1078,StrokeData!$G$4:$G$1078) ->  | K52: =LOOKUP(C52,StrokeData!$A$4:$A$1078,StrokeData!$H$4:$H$1078) ->  | L52: =LOOKUP(C52,StrokeData!$A$4:$A$1078,StrokeData!$I$4:$I$1078) ->  | M52: =LOOKUP(C52,StrokeData!$A$4:$A$1078,StrokeData!$J$4:$J$1078) ->  | S52: =LOOKUP(C52,StrokeData!$A$4:$A$1078,StrokeData!$K$4:$K$1078) ->  | T52: =LOOKUP(C52,StrokeData!$A$4:$A$1078,StrokeData!$L$4:$L$1078) -> 
B53: 17 | C53: =IF(C52=-1,-1,LOOKUP(C52,StrokeData!$A$4:$A$1078,StrokeData!$L$4:$L$1078)) -> -1 | D53: =LOOKUP(C53,StrokeData!$A$4:$A$1078,StrokeData!$B$4:$B$1078) ->  | E53: =LOOKUP(C53,StrokeData!$A$4:$A$1078,StrokeData!$C$4:$C$1078) ->  | G53: =LOOKUP(C53,StrokeData!$A$4:$A$1078,StrokeData!$D$4:$D$1078) ->  | H53: =LOOKUP(C53,StrokeData!$A$4:$A$1078,StrokeData!$E$4:$E$1078) ->  | I53: =LOOKUP(C53,StrokeData!$A$4:$A$1078,StrokeData!$F$4:$F$1078) ->  | J53: =LOOKUP(C53,StrokeData!$A$4:$A$1078,StrokeData!$G$4:$G$1078) ->  | K53: =LOOKUP(C53,StrokeData!$A$4:$A$1078,StrokeData!$H$4:$H$1078) ->  | L53: =LOOKUP(C53,StrokeData!$A$4:$A$1078,StrokeData!$I$4:$I$1078) ->  | M53: =LOOKUP(C53,StrokeData!$A$4:$A$1078,StrokeData!$J$4:$J$1078) ->  | S53: =LOOKUP(C53,StrokeData!$A$4:$A$1078,StrokeData!$K$4:$K$1078) ->  | T53: =LOOKUP(C53,StrokeData!$A$4:$A$1078,StrokeData!$L$4:$L$1078) -> 
B54: 18 | C54: =IF(C53=-1,-1,LOOKUP(C53,StrokeData!$A$4:$A$1078,StrokeData!$L$4:$L$1078)) -> -1 | D54: =LOOKUP(C54,StrokeData!$A$4:$A$1078,StrokeData!$B$4:$B$1078) ->  | E54: =LOOKUP(C54,StrokeData!$A$4:$A$1078,StrokeData!$C$4:$C$1078) ->  | G54: =LOOKUP(C54,StrokeData!$A$4:$A$1078,StrokeData!$D$4:$D$1078) ->  | H54: =LOOKUP(C54,StrokeData!$A$4:$A$1078,StrokeData!$E$4:$E$1078) ->  | I54: =LOOKUP(C54,StrokeData!$A$4:$A$1078,StrokeData!$F$4:$F$1078) ->  | J54: =LOOKUP(C54,StrokeData!$A$4:$A$1078,StrokeData!$G$4:$G$1078) ->  | K54: =LOOKUP(C54,StrokeData!$A$4:$A$1078,StrokeData!$H$4:$H$1078) ->  | L54: =LOOKUP(C54,StrokeData!$A$4:$A$1078,StrokeData!$I$4:$I$1078) ->  | M54: =LOOKUP(C54,StrokeData!$A$4:$A$1078,StrokeData!$J$4:$J$1078) ->  | S54: =LOOKUP(C54,StrokeData!$A$4:$A$1078,StrokeData!$K$4:$K$1078) ->  | T54: =LOOKUP(C54,StrokeData!$A$4:$A$1078,StrokeData!$L$4:$L$1078) -> 
B55: 19 | C55: =IF(C54=-1,-1,LOOKUP(C54,StrokeData!$A$4:$A$1078,StrokeData!$L$4:$L$1078)) -> -1 | D55: =LOOKUP(C55,StrokeData!$A$4:$A$1078,StrokeData!$B$4:$B$1078) ->  | E55: =LOOKUP(C55,StrokeData!$A$4:$A$1078,StrokeData!$C$4:$C$1078) ->  | G55: =LOOKUP(C55,StrokeData!$A$4:$A$1078,StrokeData!$D$4:$D$1078) ->  | H55: =LOOKUP(C55,StrokeData!$A$4:$A$1078,StrokeData!$E$4:$E$1078) ->  | I55: =LOOKUP(C55,StrokeData!$A$4:$A$1078,StrokeData!$F$4:$F$1078) ->  | J55: =LOOKUP(C55,StrokeData!$A$4:$A$1078,StrokeData!$G$4:$G$1078) ->  | K55: =LOOKUP(C55,StrokeData!$A$4:$A$1078,StrokeData!$H$4:$H$1078) ->  | L55: =LOOKUP(C55,StrokeData!$A$4:$A$1078,StrokeData!$I$4:$I$1078) ->  | M55: =LOOKUP(C55,StrokeData!$A$4:$A$1078,StrokeData!$J$4:$J$1078) ->  | S55: =LOOKUP(C55,StrokeData!$A$4:$A$1078,StrokeData!$K$4:$K$1078) ->  | T55: =LOOKUP(C55,StrokeData!$A$4:$A$1078,StrokeData!$L$4:$L$1078) -> 
B56: 20 | C56: =IF(C55=-1,-1,LOOKUP(C55,StrokeData!$A$4:$A$1078,StrokeData!$L$4:$L$1078)) -> -1 | D56: =LOOKUP(C56,StrokeData!$A$4:$A$1078,StrokeData!$B$4:$B$1078) ->  | E56: =LOOKUP(C56,StrokeData!$A$4:$A$1078,StrokeData!$C$4:$C$1078) ->  | G56: =LOOKUP(C56,StrokeData!$A$4:$A$1078,StrokeData!$D$4:$D$1078) ->  | H56: =LOOKUP(C56,StrokeData!$A$4:$A$1078,StrokeData!$E$4:$E$1078) ->  | I56: =LOOKUP(C56,StrokeData!$A$4:$A$1078,StrokeData!$F$4:$F$1078) ->  | J56: =LOOKUP(C56,StrokeData!$A$4:$A$1078,StrokeData!$G$4:$G$1078) ->  | K56: =LOOKUP(C56,StrokeData!$A$4:$A$1078,StrokeData!$H$4:$H$1078) ->  | L56: =LOOKUP(C56,StrokeData!$A$4:$A$1078,StrokeData!$I$4:$I$1078) ->  | M56: =LOOKUP(C56,StrokeData!$A$4:$A$1078,StrokeData!$J$4:$J$1078) ->  | S56: =LOOKUP(C56,StrokeData!$A$4:$A$1078,StrokeData!$K$4:$K$1078) ->  | T56: =LOOKUP(C56,StrokeData!$A$4:$A$1078,StrokeData!$L$4:$L$1078) -> 
D57: ストローク | E57: =H5 -> 50 | F57: mm | G57: ～ | H57: =I5 -> 1100 | I57: mm | K57: 刻み | L57: =LOOKUP(D35,B26:B33,R26:R33) -> 50 | M57: mm | O57: 慣性係数 | P57: =IF($J$5=1,0.000001,0.001) -> 0.001 | Q57: 有効桁数 | R57: =IF($J$5=1,6,3) -> 3
B58: stﾘｽﾄ検索用(降順) | D58: № | E58: =StrokeData!$B$2 -> ｽﾄﾛｰｸ長 | F58: stﾘｽﾄ№ | G58: =StrokeData!$C$2 -> 有効ｽﾄﾛｰｸ補正 | I58: =StrokeData!$D$2 -> 基準ｹﾞｲﾝ用搬送質量 | J58: =StrokeData!$E$2 -> 水平可搬質量 | K58: =StrokeData!$F$2 -> 垂直可搬質量 | L58: =StrokeData!$G$2 -> 最大速度 | M58: =StrokeData!$H$2 -> 位置ｹﾞｲﾝ | N58: =StrokeData!$I$2 -> FFｹﾞｲﾝ | O58: =StrokeData!$J$2 -> 速度制御帯域
B59: =B36 -> № | C59: =D36 -> ｽﾄﾛｰｸ長 | D59: 0 | E59: =H4 -> [mm] | G59: [mm] | H59: [kg/mm] | I59: =IF(J5=1,"[kgm^2]","[kg]") -> [kg] | J59: =IF(J5=1,"[kgm^2]","[kg]") -> [kg] | K59: =IF(J5=1,"[kgm^2]","[kg]") -> [kg] | L59: [mm/s] | M59: [1/s] | N59: [%] | O59: [rad/s] | Q59: [s] | T59: [Nm/rad]
B60: =B56 -> 20 | C60: =D56 ->  | D60: 1 | E60: =IF( (E57+L57*D59)<=H57,(E57+L57*D59),"- - -") -> 50 | F60: =(B60+1)-MATCH(E60,C60:C79,-1) -> 1 | G60: =LOOKUP(F60,B37:B56,E37:E56) -> 0 | H60: =LOOKUP(F60,$B$37:$B$56,$F$37:$F$56)*0.001 -> 0 | I60: =LOOKUP(F60,B37:B56,G37:G56)*$P$57 -> 80 | J60: =LOOKUP(F60,B37:B56,H37:H56)*$P$57 -> 80 | K60: =LOOKUP(F60,B37:B56,I37:I56)*$P$57 -> 55 | L60: =LOOKUP(F60,B37:B56,J37:J56) -> 250 | M60: =LOOKUP(F60,B37:B56,K37:K56) -> 35 | N60: =LOOKUP(F60,B37:B56,L37:L56) -> 0 | O60: =LOOKUP(F60,B37:B56,M37:M56) -> 170 | P60: =LOOKUP(F60,$B$37:$B$56,$N$37:$N$56) -> 0 | Q60: =LOOKUP(F60,$B$37:$B$56,$O$37:$O$56) -> 0 | R60: =LOOKUP(F60,$B$37:$B$56,$P$37:$P$56) -> 0 | S60: =LOOKUP(F60,$B$37:$B$56,$Q$37:$Q$56) -> 0 | T60: =LOOKUP(F60,$B$37:$B$56,$R$37:$R$56) -> 0
B61: =B55 -> 19 | C61: =D55 ->  | D61: =D60+1 -> 2 | E61: =IF( (E57+L57*D60)<=H57,(E57+L57*D60),"- - -") -> 100 | F61: =(B60+1)-MATCH(E61,C60:C79,-1) -> 1 | G61: =LOOKUP(F61,B37:B56,E37:E56) -> 0 | H61: 0 | I61: =LOOKUP(F61,B37:B56,G37:G56)*$P$57 -> 80 | J61: =LOOKUP(F61,B37:B56,H37:H56)*$P$57 -> 80 | K61: =LOOKUP(F61,B37:B56,I37:I56)*$P$57 -> 55 | L61: =LOOKUP(F61,B37:B56,J37:J56) -> 250 | M61: =LOOKUP(F61,B37:B56,K37:K56) -> 35 | N61: =LOOKUP(F61,B37:B56,L37:L56) -> 0 | O61: =LOOKUP(F61,B37:B56,M37:M56) -> 170 | P61: 0 | Q61: 0 | R61: 0 | S61: 0 | T61: 0
B62: =B54 -> 18 | C62: =D54 ->  | D62: =D61+1 -> 3 | E62: =IF( (E57+L57*D61)<=H57,(E57+L57*D61),"- - -") -> 150 | F62: =(B60+1)-MATCH(E62,C60:C79,-1) -> 1 | G62: =LOOKUP(F62,B37:B56,E37:E56) -> 0 | H62: 0 | I62: =LOOKUP(F62,B37:B56,G37:G56)*$P$57 -> 80 | J62: =LOOKUP(F62,B37:B56,H37:H56)*$P$57 -> 80 | K62: =LOOKUP(F62,B37:B56,I37:I56)*$P$57 -> 55 | L62: =LOOKUP(F62,B37:B56,J37:J56) -> 250 | M62: =LOOKUP(F62,B37:B56,K37:K56) -> 35 | N62: =LOOKUP(F62,B37:B56,L37:L56) -> 0 | O62: =LOOKUP(F62,B37:B56,M37:M56) -> 170 | P62: 0 | Q62: 0 | R62: 0 | S62: 0 | T62: 0
B63: =B53 -> 17 | C63: =D53 ->  | D63: 4 | E63: =IF( (E57+L57*D62)<=H57,(E57+L57*D62),"- - -") -> 200 | F63: =(B60+1)-MATCH(E63,C60:C79,-1) -> 1 | G63: =LOOKUP(F63,B37:B56,E37:E56) -> 0 | H63: 0 | I63: =LOOKUP(F63,B37:B56,G37:G56)*$P$57 -> 80 | J63: =LOOKUP(F63,B37:B56,H37:H56)*$P$57 -> 80 | K63: =LOOKUP(F63,B37:B56,I37:I56)*$P$57 -> 55 | L63: =LOOKUP(F63,B37:B56,J37:J56) -> 250 | M63: =LOOKUP(F63,B37:B56,K37:K56) -> 35 | N63: =LOOKUP(F63,B37:B56,L37:L56) -> 0 | O63: =LOOKUP(F63,B37:B56,M37:M56) -> 170 | P63: 0 | Q63: 0 | R63: 0 | S63: 0 | T63: 0
B64: =B52 -> 16 | C64: =D52 ->  | D64: 5 | E64: =IF( (E57+L57*D63)<=H57,(E57+L57*D63),"- - -") -> 250 | F64: =(B60+1)-MATCH(E64,C60:C79,-1) -> 1 | G64: =LOOKUP(F64,B37:B56,E37:E56) -> 0 | H64: 0 | I64: =LOOKUP(F64,B37:B56,G37:G56)*$P$57 -> 80 | J64: =LOOKUP(F64,B37:B56,H37:H56)*$P$57 -> 80 | K64: =LOOKUP(F64,B37:B56,I37:I56)*$P$57 -> 55 | L64: =LOOKUP(F64,B37:B56,J37:J56) -> 250 | M64: =LOOKUP(F64,B37:B56,K37:K56) -> 35 | N64: =LOOKUP(F64,B37:B56,L37:L56) -> 0 | O64: =LOOKUP(F64,B37:B56,M37:M56) -> 170 | P64: 0 | Q64: 0 | R64: 0 | S64: 0 | T64: 0
B65: =B51 -> 15 | C65: =D51 ->  | D65: 6 | E65: =IF( (E57+L57*D64)<=H57,(E57+L57*D64),"- - -") -> 300 | F65: =(B60+1)-MATCH(E65,C60:C79,-1) -> 1 | G65: =LOOKUP(F65,B37:B56,E37:E56) -> 0 | H65: 0 | I65: =LOOKUP(F65,B37:B56,G37:G56)*$P$57 -> 80 | J65: =LOOKUP(F65,B37:B56,H37:H56)*$P$57 -> 80 | K65: =LOOKUP(F65,B37:B56,I37:I56)*$P$57 -> 55 | L65: =LOOKUP(F65,B37:B56,J37:J56) -> 250 | M65: =LOOKUP(F65,B37:B56,K37:K56) -> 35 | N65: =LOOKUP(F65,B37:B56,L37:L56) -> 0 | O65: =LOOKUP(F65,B37:B56,M37:M56) -> 170 | P65: 0 | Q65: 0 | R65: 0 | S65: 0 | T65: 0
B66: =B50 -> 14 | C66: =D50 ->  | D66: 7 | E66: =IF( (E57+L57*D65)<=H57,(E57+L57*D65),"- - -") -> 350 | F66: =(B60+1)-MATCH(E66,C60:C79,-1) -> 1 | G66: =LOOKUP(F66,B37:B56,E37:E56) -> 0 | H66: 0 | I66: =LOOKUP(F66,B37:B56,G37:G56)*$P$57 -> 80 | J66: =LOOKUP(F66,B37:B56,H37:H56)*$P$57 -> 80 | K66: =LOOKUP(F66,B37:B56,I37:I56)*$P$57 -> 55 | L66: =LOOKUP(F66,B37:B56,J37:J56) -> 250 | M66: =LOOKUP(F66,B37:B56,K37:K56) -> 35 | N66: =LOOKUP(F66,B37:B56,L37:L56) -> 0 | O66: =LOOKUP(F66,B37:B56,M37:M56) -> 170 | P66: 0 | Q66: 0 | R66: 0 | S66: 0 | T66: 0
B67: =B49 -> 13 | C67: =D49 ->  | D67: 8 | E67: =IF( (E57+L57*D66)<=H57,(E57+L57*D66),"- - -") -> 400 | F67: =(B60+1)-MATCH(E67,C60:C79,-1) -> 1 | G67: =LOOKUP(F67,B37:B56,E37:E56) -> 0 | H67: 0 | I67: =LOOKUP(F67,B37:B56,G37:G56)*$P$57 -> 80 | J67: =LOOKUP(F67,B37:B56,H37:H56)*$P$57 -> 80 | K67: =LOOKUP(F67,B37:B56,I37:I56)*$P$57 -> 55 | L67: =LOOKUP(F67,B37:B56,J37:J56) -> 250 | M67: =LOOKUP(F67,B37:B56,K37:K56) -> 35 | N67: =LOOKUP(F67,B37:B56,L37:L56) -> 0 | O67: =LOOKUP(F67,B37:B56,M37:M56) -> 170 | P67: 0 | Q67: 0 | R67: 0 | S67: 0 | T67: 0
B68: =B48 -> 12 | C68: =D48 ->  | D68: 9 | E68: =IF( (E57+L57*D67)<=H57,(E57+L57*D67),"- - -") -> 450 | F68: =(B60+1)-MATCH(E68,C60:C79,-1) -> 1 | G68: =LOOKUP(F68,B37:B56,E37:E56) -> 0 | H68: 0 | I68: =LOOKUP(F68,B37:B56,G37:G56)*$P$57 -> 80 | J68: =LOOKUP(F68,B37:B56,H37:H56)*$P$57 -> 80 | K68: =LOOKUP(F68,B37:B56,I37:I56)*$P$57 -> 55 | L68: =LOOKUP(F68,B37:B56,J37:J56) -> 250 | M68: =LOOKUP(F68,B37:B56,K37:K56) -> 35 | N68: =LOOKUP(F68,B37:B56,L37:L56) -> 0 | O68: =LOOKUP(F68,B37:B56,M37:M56) -> 170 | P68: 0 | Q68: 0 | R68: 0 | S68: 0 | T68: 0
B69: =B47 -> 11 | C69: =D47 ->  | D69: 10 | E69: =IF( (E57+L57*D68)<=H57,(E57+L57*D68),"- - -") -> 500 | F69: =(B60+1)-MATCH(E69,C60:C79,-1) -> 1 | G69: =LOOKUP(F69,B37:B56,E37:E56) -> 0 | H69: 0 | I69: =LOOKUP(F69,B37:B56,G37:G56)*$P$57 -> 80 | J69: =LOOKUP(F69,B37:B56,H37:H56)*$P$57 -> 80 | K69: =LOOKUP(F69,B37:B56,I37:I56)*$P$57 -> 55 | L69: =LOOKUP(F69,B37:B56,J37:J56) -> 250 | M69: =LOOKUP(F69,B37:B56,K37:K56) -> 35 | N69: =LOOKUP(F69,B37:B56,L37:L56) -> 0 | O69: =LOOKUP(F69,B37:B56,M37:M56) -> 170 | P69: 0 | Q69: 0 | R69: 0 | S69: 0 | T69: 0
B70: =B46 -> 10 | C70: =D46 -> 1100 | D70: 11 | E70: =IF( (E57+L57*D69)<=H57,(E57+L57*D69),"- - -") -> 550 | F70: =(B60+1)-MATCH(E70,C60:C79,-1) -> 1 | G70: =LOOKUP(F70,B37:B56,E37:E56) -> 0 | H70: 0 | I70: =LOOKUP(F70,B37:B56,G37:G56)*$P$57 -> 80 | J70: =LOOKUP(F70,B37:B56,H37:H56)*$P$57 -> 80 | K70: =LOOKUP(F70,B37:B56,I37:I56)*$P$57 -> 55 | L70: =LOOKUP(F70,B37:B56,J37:J56) -> 250 | M70: =LOOKUP(F70,B37:B56,K37:K56) -> 35 | N70: =LOOKUP(F70,B37:B56,L37:L56) -> 0 | O70: =LOOKUP(F70,B37:B56,M37:M56) -> 170 | P70: 0 | Q70: 0 | R70: 0 | S70: 0 | T70: 0
B71: =B45 -> 9 | C71: =D45 -> 1050 | D71: 12 | E71: =IF( (E57+L57*D70)<=H57,(E57+L57*D70),"- - -") -> 600 | F71: =(B60+1)-MATCH(E71,C60:C79,-1) -> 1 | G71: =LOOKUP(F71,B37:B56,E37:E56) -> 0 | H71: 0 | I71: =LOOKUP(F71,B37:B56,G37:G56)*$P$57 -> 80 | J71: =LOOKUP(F71,B37:B56,H37:H56)*$P$57 -> 80 | K71: =LOOKUP(F71,B37:B56,I37:I56)*$P$57 -> 55 | L71: =LOOKUP(F71,B37:B56,J37:J56) -> 250 | M71: =LOOKUP(F71,B37:B56,K37:K56) -> 35 | N71: =LOOKUP(F71,B37:B56,L37:L56) -> 0 | O71: =LOOKUP(F71,B37:B56,M37:M56) -> 170 | P71: 0 | Q71: 0 | R71: 0 | S71: 0 | T71: 0
B72: =B44 -> 8 | C72: =D44 -> 1000 | D72: 13 | E72: =IF( (E57+L57*D71)<=H57,(E57+L57*D71),"- - -") -> 650 | F72: =(B60+1)-MATCH(E72,C60:C79,-1) -> 1 | G72: =LOOKUP(F72,B37:B56,E37:E56) -> 0 | H72: 0 | I72: =LOOKUP(F72,B37:B56,G37:G56)*$P$57 -> 80 | J72: =LOOKUP(F72,B37:B56,H37:H56)*$P$57 -> 80 | K72: =LOOKUP(F72,B37:B56,I37:I56)*$P$57 -> 55 | L72: =LOOKUP(F72,B37:B56,J37:J56) -> 250 | M72: =LOOKUP(F72,B37:B56,K37:K56) -> 35 | N72: =LOOKUP(F72,B37:B56,L37:L56) -> 0 | O72: =LOOKUP(F72,B37:B56,M37:M56) -> 170 | P72: 0 | Q72: 0 | R72: 0 | S72: 0 | T72: 0
B73: =B43 -> 7 | C73: =D43 -> 950 | D73: 14 | E73: =IF( (E57+L57*D72)<=H57,(E57+L57*D72),"- - -") -> 700 | F73: =(B60+1)-MATCH(E73,C60:C79,-1) -> 2 | G73: =LOOKUP(F73,B37:B56,E37:E56) -> 0 | H73: 0 | I73: =LOOKUP(F73,B37:B56,G37:G56)*$P$57 -> 80 | J73: =LOOKUP(F73,B37:B56,H37:H56)*$P$57 -> 80 | K73: =LOOKUP(F73,B37:B56,I37:I56)*$P$57 -> 55 | L73: =LOOKUP(F73,B37:B56,J37:J56) -> 240 | M73: =LOOKUP(F73,B37:B56,K37:K56) -> 35 | N73: =LOOKUP(F73,B37:B56,L37:L56) -> 0 | O73: =LOOKUP(F73,B37:B56,M37:M56) -> 170 | P73: 0 | Q73: 0 | R73: 0 | S73: 0 | T73: 0
B74: =B42 -> 6 | C74: =D42 -> 900 | D74: 15 | E74: =IF( (E57+L57*D73)<=H57,(E57+L57*D73),"- - -") -> 750 | F74: =(B60+1)-MATCH(E74,C60:C79,-1) -> 3 | G74: =LOOKUP(F74,B37:B56,E37:E56) -> 0 | H74: 0 | I74: =LOOKUP(F74,B37:B56,G37:G56)*$P$57 -> 80 | J74: =LOOKUP(F74,B37:B56,H37:H56)*$P$57 -> 80 | K74: =LOOKUP(F74,B37:B56,I37:I56)*$P$57 -> 55 | L74: =LOOKUP(F74,B37:B56,J37:J56) -> 215 | M74: =LOOKUP(F74,B37:B56,K37:K56) -> 35 | N74: =LOOKUP(F74,B37:B56,L37:L56) -> 0 | O74: =LOOKUP(F74,B37:B56,M37:M56) -> 170 | P74: 0 | Q74: 0 | R74: 0 | S74: 0 | T74: 0
B75: =B41 -> 5 | C75: =D41 -> 850 | D75: 16 | E75: =IF( (E57+L57*D74)<=H57,(E57+L57*D74),"- - -") -> 800 | F75: =(B60+1)-MATCH(E75,C60:C79,-1) -> 4 | G75: =LOOKUP(F75,B37:B56,E37:E56) -> 0 | H75: 0 | I75: =LOOKUP(F75,B37:B56,G37:G56)*$P$57 -> 80 | J75: =LOOKUP(F75,B37:B56,H37:H56)*$P$57 -> 80 | K75: =LOOKUP(F75,B37:B56,I37:I56)*$P$57 -> 55 | L75: =LOOKUP(F75,B37:B56,J37:J56) -> 190 | M75: =LOOKUP(F75,B37:B56,K37:K56) -> 35 | N75: =LOOKUP(F75,B37:B56,L37:L56) -> 0 | O75: =LOOKUP(F75,B37:B56,M37:M56) -> 170 | P75: 0 | Q75: 0 | R75: 0 | S75: 0 | T75: 0
B76: =B40 -> 4 | C76: =D40 -> 800 | D76: 17 | E76: =IF( (E57+L57*D75)<=H57,(E57+L57*D75),"- - -") -> 850 | F76: =(B60+1)-MATCH(E76,C60:C79,-1) -> 5 | G76: =LOOKUP(F76,B37:B56,E37:E56) -> 0 | H76: 0 | I76: =LOOKUP(F76,B37:B56,G37:G56)*$P$57 -> 80 | J76: =LOOKUP(F76,B37:B56,H37:H56)*$P$57 -> 80 | K76: =LOOKUP(F76,B37:B56,I37:I56)*$P$57 -> 55 | L76: =LOOKUP(F76,B37:B56,J37:J56) -> 175 | M76: =LOOKUP(F76,B37:B56,K37:K56) -> 35 | N76: =LOOKUP(F76,B37:B56,L37:L56) -> 0 | O76: =LOOKUP(F76,B37:B56,M37:M56) -> 170 | P76: 0 | Q76: 0 | R76: 0 | S76: 0 | T76: 0
B77: =B39 -> 3 | C77: =D39 -> 750 | D77: 18 | E77: =IF( (E57+L57*D76)<=H57,(E57+L57*D76),"- - -") -> 900 | F77: =(B60+1)-MATCH(E77,C60:C79,-1) -> 6 | G77: =LOOKUP(F77,B37:B56,E37:E56) -> 0 | H77: 0 | I77: =LOOKUP(F77,B37:B56,G37:G56)*$P$57 -> 80 | J77: =LOOKUP(F77,B37:B56,H37:H56)*$P$57 -> 80 | K77: =LOOKUP(F77,B37:B56,I37:I56)*$P$57 -> 55 | L77: =LOOKUP(F77,B37:B56,J37:J56) -> 155 | M77: =LOOKUP(F77,B37:B56,K37:K56) -> 35 | N77: =LOOKUP(F77,B37:B56,L37:L56) -> 0 | O77: =LOOKUP(F77,B37:B56,M37:M56) -> 170 | P77: 0 | Q77: 0 | R77: 0 | S77: 0 | T77: 0
B78: =B38 -> 2 | C78: =D38 -> 700 | D78: 19 | E78: =IF( (E57+L57*D77)<=H57,(E57+L57*D77),"- - -") -> 950 | F78: =(B60+1)-MATCH(E78,C60:C79,-1) -> 7 | G78: =LOOKUP(F78,B37:B56,E37:E56) -> 0 | H78: 0 | I78: =LOOKUP(F78,B37:B56,G37:G56)*$P$57 -> 80 | J78: =LOOKUP(F78,B37:B56,H37:H56)*$P$57 -> 80 | K78: =LOOKUP(F78,B37:B56,I37:I56)*$P$57 -> 55 | L78: =LOOKUP(F78,B37:B56,J37:J56) -> 140 | M78: =LOOKUP(F78,B37:B56,K37:K56) -> 35 | N78: =LOOKUP(F78,B37:B56,L37:L56) -> 0 | O78: =LOOKUP(F78,B37:B56,M37:M56) -> 170 | P78: 0 | Q78: 0 | R78: 0 | S78: 0 | T78: 0
B79: =B37 -> 1 | C79: =D37 -> 650 | D79: 20 | E79: =IF( (E57+L57*D78)<=H57,(E57+L57*D78),"- - -") -> 1000 | F79: =(B60+1)-MATCH(E79,C60:C79,-1) -> 8 | G79: =LOOKUP(F79,B37:B56,E37:E56) -> 0 | H79: 0 | I79: =LOOKUP(F79,B37:B56,G37:G56)*$P$57 -> 80 | J79: =LOOKUP(F79,B37:B56,H37:H56)*$P$57 -> 80 | K79: =LOOKUP(F79,B37:B56,I37:I56)*$P$57 -> 55 | L79: =LOOKUP(F79,B37:B56,J37:J56) -> 130 | M79: =LOOKUP(F79,B37:B56,K37:K56) -> 35 | N79: =LOOKUP(F79,B37:B56,L37:L56) -> 0 | O79: =LOOKUP(F79,B37:B56,M37:M56) -> 170 | P79: 0 | Q79: 0 | R79: 0 | S79: 0 | T79: 0
D80: 21 | E80: =IF( (E57+L57*D79)<=H57,(E57+L57*D79),"- - -") -> 1050 | F80: =(B60+1)-MATCH(E80,C60:C79,-1) -> 9 | G80: =LOOKUP(F80,B37:B56,E37:E56) -> 0 | H80: 0 | I80: =LOOKUP(F80,B37:B56,G37:G56)*$P$57 -> 80 | J80: =LOOKUP(F80,B37:B56,H37:H56)*$P$57 -> 80 | K80: =LOOKUP(F80,B37:B56,I37:I56)*$P$57 -> 55 | L80: =LOOKUP(F80,B37:B56,J37:J56) -> 120 | M80: =LOOKUP(F80,B37:B56,K37:K56) -> 35 | N80: =LOOKUP(F80,B37:B56,L37:L56) -> 0 | O80: =LOOKUP(F80,B37:B56,M37:M56) -> 170 | P80: 0 | Q80: 0 | R80: 0 | S80: 0 | T80: 0
D81: 22 | E81: =IF( (E57+L57*D80)<=H57,(E57+L57*D80),"- - -") -> 1100 | F81: =(B60+1)-MATCH(E81,C60:C79,-1) -> 10 | G81: =LOOKUP(F81,B37:B56,E37:E56) -> 0 | H81: 0 | I81: =LOOKUP(F81,B37:B56,G37:G56)*$P$57 -> 80 | J81: =LOOKUP(F81,B37:B56,H37:H56)*$P$57 -> 80 | K81: =LOOKUP(F81,B37:B56,I37:I56)*$P$57 -> 55 | L81: =LOOKUP(F81,B37:B56,J37:J56) -> 110 | M81: =LOOKUP(F81,B37:B56,K37:K56) -> 35 | N81: =LOOKUP(F81,B37:B56,L37:L56) -> 0 | O81: =LOOKUP(F81,B37:B56,M37:M56) -> 170 | P81: 0 | Q81: 0 | R81: 0 | S81: 0 | T81: 0
D82: 23 | E82: =IF( (E57+L57*D81)<=H57,(E57+L57*D81),"- - -") -> - - - | F82: =(B60+1)-MATCH(E82,C60:C79,-1) ->  | G82: =LOOKUP(F82,B37:B56,E37:E56) ->  | I82: =LOOKUP(F82,B37:B56,G37:G56)*$P$57 ->  | J82: =LOOKUP(F82,B37:B56,H37:H56)*$P$57 ->  | K82: =LOOKUP(F82,B37:B56,I37:I56)*$P$57 ->  | L82: =LOOKUP(F82,B37:B56,J37:J56) ->  | M82: =LOOKUP(F82,B37:B56,K37:K56) ->  | N82: =LOOKUP(F82,B37:B56,L37:L56) ->  | O82: =LOOKUP(F82,B37:B56,M37:M56) -> 
D83: 24 | E83: =IF( (E57+L57*D82)<=H57,(E57+L57*D82),"- - -") -> - - - | F83: =(B60+1)-MATCH(E83,C60:C79,-1) ->  | G83: =LOOKUP(F83,B37:B56,E37:E56) ->  | I83: =LOOKUP(F83,B37:B56,G37:G56)*$P$57 ->  | J83: =LOOKUP(F83,B37:B56,H37:H56)*$P$57 ->  | K83: =LOOKUP(F83,B37:B56,I37:I56)*$P$57 ->  | L83: =LOOKUP(F83,B37:B56,J37:J56) ->  | M83: =LOOKUP(F83,B37:B56,K37:K56) ->  | N83: =LOOKUP(F83,B37:B56,L37:L56) ->  | O83: =LOOKUP(F83,B37:B56,M37:M56) -> 
D84: 25 | E84: =IF( (E57+L57*D83)<=H57,(E57+L57*D83),"- - -") -> - - - | F84: =(B60+1)-MATCH(E84,C60:C79,-1) ->  | G84: =LOOKUP(F84,B37:B56,E37:E56) ->  | I84: =LOOKUP(F84,B37:B56,G37:G56)*$P$57 ->  | J84: =LOOKUP(F84,B37:B56,H37:H56)*$P$57 ->  | K84: =LOOKUP(F84,B37:B56,I37:I56)*$P$57 ->  | L84: =LOOKUP(F84,B37:B56,J37:J56) ->  | M84: =LOOKUP(F84,B37:B56,K37:K56) ->  | N84: =LOOKUP(F84,B37:B56,L37:L56) ->  | O84: =LOOKUP(F84,B37:B56,M37:M56) -> 
D85: 26 | E85: =IF( (E57+L57*D84)<=H57,(E57+L57*D84),"- - -") -> - - - | F85: =(B60+1)-MATCH(E85,C60:C79,-1) ->  | G85: =LOOKUP(F85,B37:B56,E37:E56) ->  | I85: =LOOKUP(F85,B37:B56,G37:G56)*$P$57 ->  | J85: =LOOKUP(F85,B37:B56,H37:H56)*$P$57 ->  | K85: =LOOKUP(F85,B37:B56,I37:I56)*$P$57 ->  | L85: =LOOKUP(F85,B37:B56,J37:J56) ->  | M85: =LOOKUP(F85,B37:B56,K37:K56) ->  | N85: =LOOKUP(F85,B37:B56,L37:L56) ->  | O85: =LOOKUP(F85,B37:B56,M37:M56) -> 
D86: 27 | E86: =IF( (E57+L57*D85)<=H57,(E57+L57*D85),"- - -") -> - - - | F86: =(B60+1)-MATCH(E86,C60:C79,-1) ->  | G86: =LOOKUP(F86,B37:B56,E37:E56) ->  | I86: =LOOKUP(F86,B37:B56,G37:G56)*$P$57 ->  | J86: =LOOKUP(F86,B37:B56,H37:H56)*$P$57 ->  | K86: =LOOKUP(F86,B37:B56,I37:I56)*$P$57 ->  | L86: =LOOKUP(F86,B37:B56,J37:J56) ->  | M86: =LOOKUP(F86,B37:B56,K37:K56) ->  | N86: =LOOKUP(F86,B37:B56,L37:L56) ->  | O86: =LOOKUP(F86,B37:B56,M37:M56) -> 
D87: 28 | E87: =IF( (E57+L57*D86)<=H57,(E57+L57*D86),"- - -") -> - - - | F87: =(B60+1)-MATCH(E87,C60:C79,-1) ->  | G87: =LOOKUP(F87,B37:B56,E37:E56) ->  | I87: =LOOKUP(F87,B37:B56,G37:G56)*$P$57 ->  | J87: =LOOKUP(F87,B37:B56,H37:H56)*$P$57 ->  | K87: =LOOKUP(F87,B37:B56,I37:I56)*$P$57 ->  | L87: =LOOKUP(F87,B37:B56,J37:J56) ->  | M87: =LOOKUP(F87,B37:B56,K37:K56) ->  | N87: =LOOKUP(F87,B37:B56,L37:L56) ->  | O87: =LOOKUP(F87,B37:B56,M37:M56) -> 
D88: 29 | E88: =IF( (E57+L57*D87)<=H57,(E57+L57*D87),"- - -") -> - - - | F88: =(B60+1)-MATCH(E88,C60:C79,-1) ->  | G88: =LOOKUP(F88,B37:B56,E37:E56) ->  | I88: =LOOKUP(F88,B37:B56,G37:G56)*$P$57 ->  | J88: =LOOKUP(F88,B37:B56,H37:H56)*$P$57 ->  | K88: =LOOKUP(F88,B37:B56,I37:I56)*$P$57 ->  | L88: =LOOKUP(F88,B37:B56,J37:J56) ->  | M88: =LOOKUP(F88,B37:B56,K37:K56) ->  | N88: =LOOKUP(F88,B37:B56,L37:L56) ->  | O88: =LOOKUP(F88,B37:B56,M37:M56) -> 
D89: 30 | E89: =IF( (E57+L57*D88)<=H57,(E57+L57*D88),"- - -") -> - - - | F89: =(B60+1)-MATCH(E89,C60:C79,-1) ->  | G89: =LOOKUP(F89,B37:B56,E37:E56) ->  | I89: =LOOKUP(F89,B37:B56,G37:G56)*$P$57 ->  | J89: =LOOKUP(F89,B37:B56,H37:H56)*$P$57 ->  | K89: =LOOKUP(F89,B37:B56,I37:I56)*$P$57 ->  | L89: =LOOKUP(F89,B37:B56,J37:J56) ->  | M89: =LOOKUP(F89,B37:B56,K37:K56) ->  | N89: =LOOKUP(F89,B37:B56,L37:L56) ->  | O89: =LOOKUP(F89,B37:B56,M37:M56) -> 
D90: =D89+1 -> 31 | E90: =IF( (E57+L57*D89)<=H57,(E57+L57*D89),"- - -") -> - - - | F90: =(B60+1)-MATCH(E90,C60:C79,-1) ->  | G90: =LOOKUP(F90,B37:B56,E37:E56) ->  | I90: =LOOKUP(F90,B37:B56,G37:G56)*$P$57 ->  | J90: =LOOKUP(F90,B37:B56,H37:H56)*$P$57 ->  | K90: =LOOKUP(F90,B37:B56,I37:I56)*$P$57 ->  | L90: =LOOKUP(F90,B37:B56,J37:J56) ->  | M90: =LOOKUP(F90,B37:B56,K37:K56) ->  | N90: =LOOKUP(F90,B37:B56,L37:L56) ->  | O90: =LOOKUP(F90,B37:B56,M37:M56) -> 
D91: 32 | E91: =IF( (E57+L57*D90)<=H57,(E57+L57*D90),"- - -") -> - - - | F91: =(B60+1)-MATCH(E91,C60:C79,-1) ->  | G91: =LOOKUP(F91,B37:B56,E37:E56) ->  | I91: =LOOKUP(F91,B37:B56,G37:G56)*$P$57 ->  | J91: =LOOKUP(F91,B37:B56,H37:H56)*$P$57 ->  | K91: =LOOKUP(F91,B37:B56,I37:I56)*$P$57 ->  | L91: =LOOKUP(F91,B37:B56,J37:J56) ->  | M91: =LOOKUP(F91,B37:B56,K37:K56) ->  | N91: =LOOKUP(F91,B37:B56,L37:L56) ->  | O91: =LOOKUP(F91,B37:B56,M37:M56) -> 
D92: 33 | E92: =IF( (E57+L57*D91)<=H57,(E57+L57*D91),"- - -") -> - - - | F92: =(B60+1)-MATCH(E92,C60:C79,-1) ->  | G92: =LOOKUP(F92,B37:B56,E37:E56) ->  | H92: =LOOKUP(F92,$B$37:$B$56,$F$37:$F$56)*0.001 ->  | I92: =LOOKUP(F92,B37:B56,G37:G56)*$P$57 ->  | J92: =LOOKUP(F92,B37:B56,H37:H56)*$P$57 ->  | K92: =LOOKUP(F92,B37:B56,I37:I56)*$P$57 ->  | L92: =LOOKUP(F92,B37:B56,J37:J56) ->  | M92: =LOOKUP(F92,B37:B56,K37:K56) ->  | N92: =LOOKUP(F92,B37:B56,L37:L56) ->  | O92: =LOOKUP(F92,B37:B56,M37:M56) ->  | P92: =LOOKUP(F92,$B$37:$B$56,$N$37:$N$56) ->  | Q92: =LOOKUP(F92,$B$37:$B$56,$O$37:$O$56) ->  | R92: =LOOKUP(F92,$B$37:$B$56,$P$37:$P$56) ->  | S92: =LOOKUP(F92,$B$37:$B$56,$Q$37:$Q$56) ->  | T92: =LOOKUP(F92,$B$37:$B$56,$R$37:$R$56) -> 
D93: 34 | E93: =IF( (E57+L57*D92)<=H57,(E57+L57*D92),"- - -") -> - - - | F93: =(B60+1)-MATCH(E93,C60:C79,-1) ->  | G93: =LOOKUP(F93,B37:B56,E37:E56) ->  | I93: =LOOKUP(F93,B37:B56,G37:G56)*$P$57 ->  | J93: =LOOKUP(F93,B37:B56,H37:H56)*$P$57 ->  | K93: =LOOKUP(F93,B37:B56,I37:I56)*$P$57 ->  | L93: =LOOKUP(F93,B37:B56,J37:J56) ->  | M93: =LOOKUP(F93,B37:B56,K37:K56) ->  | N93: =LOOKUP(F93,B37:B56,L37:L56) ->  | O93: =LOOKUP(F93,B37:B56,M37:M56) -> 
D94: 35 | E94: =IF( (E57+L57*D93)<=H57,(E57+L57*D93),"- - -") -> - - - | F94: =(B60+1)-MATCH(E94,C60:C79,-1) ->  | G94: =LOOKUP(F94,B37:B56,E37:E56) ->  | I94: =LOOKUP(F94,B37:B56,G37:G56)*$P$57 ->  | J94: =LOOKUP(F94,B37:B56,H37:H56)*$P$57 ->  | K94: =LOOKUP(F94,B37:B56,I37:I56)*$P$57 ->  | L94: =LOOKUP(F94,B37:B56,J37:J56) ->  | M94: =LOOKUP(F94,B37:B56,K37:K56) ->  | N94: =LOOKUP(F94,B37:B56,L37:L56) ->  | O94: =LOOKUP(F94,B37:B56,M37:M56) -> 
D95: 36 | E95: =IF( (E57+L57*D94)<=H57,(E57+L57*D94),"- - -") -> - - - | F95: =(B60+1)-MATCH(E95,C60:C79,-1) ->  | G95: =LOOKUP(F95,B37:B56,E37:E56) ->  | I95: =LOOKUP(F95,B37:B56,G37:G56)*$P$57 ->  | J95: =LOOKUP(F95,B37:B56,H37:H56)*$P$57 ->  | K95: =LOOKUP(F95,B37:B56,I37:I56)*$P$57 ->  | L95: =LOOKUP(F95,B37:B56,J37:J56) ->  | M95: =LOOKUP(F95,B37:B56,K37:K56) ->  | N95: =LOOKUP(F95,B37:B56,L37:L56) ->  | O95: =LOOKUP(F95,B37:B56,M37:M56) -> 
D96: 37 | E96: =IF( (E57+L57*D95)<=H57,(E57+L57*D95),"- - -") -> - - - | F96: =(B60+1)-MATCH(E96,C60:C79,-1) ->  | G96: =LOOKUP(F96,B37:B56,E37:E56) ->  | I96: =LOOKUP(F96,B37:B56,G37:G56)*$P$57 ->  | J96: =LOOKUP(F96,B37:B56,H37:H56)*$P$57 ->  | K96: =LOOKUP(F96,B37:B56,I37:I56)*$P$57 ->  | L96: =LOOKUP(F96,B37:B56,J37:J56) ->  | M96: =LOOKUP(F96,B37:B56,K37:K56) ->  | N96: =LOOKUP(F96,B37:B56,L37:L56) ->  | O96: =LOOKUP(F96,B37:B56,M37:M56) -> 
D97: 38 | E97: =IF( (E57+L57*D96)<=H57,(E57+L57*D96),"- - -") -> - - - | F97: =(B60+1)-MATCH(E97,C60:C79,-1) ->  | G97: =LOOKUP(F97,B37:B56,E37:E56) ->  | I97: =LOOKUP(F97,B37:B56,G37:G56)*$P$57 ->  | J97: =LOOKUP(F97,B37:B56,H37:H56)*$P$57 ->  | K97: =LOOKUP(F97,B37:B56,I37:I56)*$P$57 ->  | L97: =LOOKUP(F97,B37:B56,J37:J56) ->  | M97: =LOOKUP(F97,B37:B56,K37:K56) ->  | N97: =LOOKUP(F97,B37:B56,L37:L56) ->  | O97: =LOOKUP(F97,B37:B56,M37:M56) -> 
D98: 39 | E98: =IF( (E57+L57*D97)<=H57,(E57+L57*D97),"- - -") -> - - - | F98: =(B60+1)-MATCH(E98,C60:C79,-1) ->  | G98: =LOOKUP(F98,B37:B56,E37:E56) ->  | I98: =LOOKUP(F98,B37:B56,G37:G56)*$P$57 ->  | J98: =LOOKUP(F98,B37:B56,H37:H56)*$P$57 ->  | K98: =LOOKUP(F98,B37:B56,I37:I56)*$P$57 ->  | L98: =LOOKUP(F98,B37:B56,J37:J56) ->  | M98: =LOOKUP(F98,B37:B56,K37:K56) ->  | N98: =LOOKUP(F98,B37:B56,L37:L56) ->  | O98: =LOOKUP(F98,B37:B56,M37:M56) -> 
D99: 40 | E99: =IF( (E57+L57*D98)<=H57,(E57+L57*D98),"- - -") -> - - - | F99: =(B60+1)-MATCH(E99,C60:C79,-1) ->  | G99: =LOOKUP(F99,B37:B56,E37:E56) ->  | I99: =LOOKUP(F99,B37:B56,G37:G56)*$P$57 ->  | J99: =LOOKUP(F99,B37:B56,H37:H56)*$P$57 ->  | K99: =LOOKUP(F99,B37:B56,I37:I56)*$P$57 ->  | L99: =LOOKUP(F99,B37:B56,J37:J56) ->  | M99: =LOOKUP(F99,B37:B56,K37:K56) ->  | N99: =LOOKUP(F99,B37:B56,L37:L56) ->  | O99: =LOOKUP(F99,B37:B56,M37:M56) -> 
D100: 41 | E100: =IF( (E57+L57*D99)<=H57,(E57+L57*D99),"- - -") -> - - - | F100: =(B60+1)-MATCH(E100,C60:C79,-1) ->  | G100: =LOOKUP(F100,B37:B56,E37:E56) ->  | I100: =LOOKUP(F100,B37:B56,G37:G56)*$P$57 ->  | J100: =LOOKUP(F100,B37:B56,H37:H56)*$P$57 ->  | K100: =LOOKUP(F100,B37:B56,I37:I56)*$P$57 ->  | L100: =LOOKUP(F100,B37:B56,J37:J56) ->  | M100: =LOOKUP(F100,B37:B56,K37:K56) ->  | N100: =LOOKUP(F100,B37:B56,L37:L56) ->  | O100: =LOOKUP(F100,B37:B56,M37:M56) -> 
D101: 42 | E101: =IF( (E57+L57*D100)<=H57,(E57+L57*D100),"- - -") -> - - - | F101: =(B60+1)-MATCH(E101,C60:C79,-1) ->  | G101: =LOOKUP(F101,B37:B56,E37:E56) ->  | I101: =LOOKUP(F101,B37:B56,G37:G56)*$P$57 ->  | J101: =LOOKUP(F101,B37:B56,H37:H56)*$P$57 ->  | K101: =LOOKUP(F101,B37:B56,I37:I56)*$P$57 ->  | L101: =LOOKUP(F101,B37:B56,J37:J56) ->  | M101: =LOOKUP(F101,B37:B56,K37:K56) ->  | N101: =LOOKUP(F101,B37:B56,L37:L56) ->  | O101: =LOOKUP(F101,B37:B56,M37:M56) -> 
D102: 43 | E102: =IF( (E57+L57*D101)<=H57,(E57+L57*D101),"- - -") -> - - - | F102: =(B60+1)-MATCH(E102,C60:C79,-1) ->  | G102: =LOOKUP(F102,B37:B56,E37:E56) ->  | I102: =LOOKUP(F102,B37:B56,G37:G56)*$P$57 ->  | J102: =LOOKUP(F102,B37:B56,H37:H56)*$P$57 ->  | K102: =LOOKUP(F102,B37:B56,I37:I56)*$P$57 ->  | L102: =LOOKUP(F102,B37:B56,J37:J56) ->  | M102: =LOOKUP(F102,B37:B56,K37:K56) ->  | N102: =LOOKUP(F102,B37:B56,L37:L56) ->  | O102: =LOOKUP(F102,B37:B56,M37:M56) -> 
D103: 44 | E103: =IF( (E57+L57*D102)<=H57,(E57+L57*D102),"- - -") -> - - - | F103: =(B60+1)-MATCH(E103,C60:C79,-1) ->  | G103: =LOOKUP(F103,B37:B56,E37:E56) ->  | I103: =LOOKUP(F103,B37:B56,G37:G56)*$P$57 ->  | J103: =LOOKUP(F103,B37:B56,H37:H56)*$P$57 ->  | K103: =LOOKUP(F103,B37:B56,I37:I56)*$P$57 ->  | L103: =LOOKUP(F103,B37:B56,J37:J56) ->  | M103: =LOOKUP(F103,B37:B56,K37:K56) ->  | N103: =LOOKUP(F103,B37:B56,L37:L56) ->  | O103: =LOOKUP(F103,B37:B56,M37:M56) -> 
D104: 45 | E104: =IF( (E57+L57*D103)<=H57,(E57+L57*D103),"- - -") -> - - - | F104: =(B60+1)-MATCH(E104,C60:C79,-1) ->  | G104: =LOOKUP(F104,B37:B56,E37:E56) ->  | I104: =LOOKUP(F104,B37:B56,G37:G56)*$P$57 ->  | J104: =LOOKUP(F104,B37:B56,H37:H56)*$P$57 ->  | K104: =LOOKUP(F104,B37:B56,I37:I56)*$P$57 ->  | L104: =LOOKUP(F104,B37:B56,J37:J56) ->  | M104: =LOOKUP(F104,B37:B56,K37:K56) ->  | N104: =LOOKUP(F104,B37:B56,L37:L56) ->  | O104: =LOOKUP(F104,B37:B56,M37:M56) -> 
D105: 46 | E105: =IF( (E57+L57*D104)<=H57,(E57+L57*D104),"- - -") -> - - - | F105: =(B60+1)-MATCH(E105,C60:C79,-1) ->  | G105: =LOOKUP(F105,B37:B56,E37:E56) ->  | I105: =LOOKUP(F105,B37:B56,G37:G56)*$P$57 ->  | J105: =LOOKUP(F105,B37:B56,H37:H56)*$P$57 ->  | K105: =LOOKUP(F105,B37:B56,I37:I56)*$P$57 ->  | L105: =LOOKUP(F105,B37:B56,J37:J56) ->  | M105: =LOOKUP(F105,B37:B56,K37:K56) ->  | N105: =LOOKUP(F105,B37:B56,L37:L56) ->  | O105: =LOOKUP(F105,B37:B56,M37:M56) -> 
D106: 47 | E106: =IF( (E57+L57*D105)<=H57,(E57+L57*D105),"- - -") -> - - - | F106: =(B60+1)-MATCH(E106,C60:C79,-1) ->  | G106: =LOOKUP(F106,B37:B56,E37:E56) ->  | I106: =LOOKUP(F106,B37:B56,G37:G56)*$P$57 ->  | J106: =LOOKUP(F106,B37:B56,H37:H56)*$P$57 ->  | K106: =LOOKUP(F106,B37:B56,I37:I56)*$P$57 ->  | L106: =LOOKUP(F106,B37:B56,J37:J56) ->  | M106: =LOOKUP(F106,B37:B56,K37:K56) ->  | N106: =LOOKUP(F106,B37:B56,L37:L56) ->  | O106: =LOOKUP(F106,B37:B56,M37:M56) -> 
D107: 48 | E107: =IF( (E57+L57*D106)<=H57,(E57+L57*D106),"- - -") -> - - - | F107: =(B60+1)-MATCH(E107,C60:C79,-1) ->  | G107: =LOOKUP(F107,B37:B56,E37:E56) ->  | I107: =LOOKUP(F107,B37:B56,G37:G56)*$P$57 ->  | J107: =LOOKUP(F107,B37:B56,H37:H56)*$P$57 ->  | K107: =LOOKUP(F107,B37:B56,I37:I56)*$P$57 ->  | L107: =LOOKUP(F107,B37:B56,J37:J56) ->  | M107: =LOOKUP(F107,B37:B56,K37:K56) ->  | N107: =LOOKUP(F107,B37:B56,L37:L56) ->  | O107: =LOOKUP(F107,B37:B56,M37:M56) -> 
D108: 49 | E108: =IF( (E57+L57*D107)<=H57,(E57+L57*D107),"- - -") -> - - - | F108: =(B60+1)-MATCH(E108,C60:C79,-1) ->  | G108: =LOOKUP(F108,B37:B56,E37:E56) ->  | I108: =LOOKUP(F108,B37:B56,G37:G56)*$P$57 ->  | J108: =LOOKUP(F108,B37:B56,H37:H56)*$P$57 ->  | K108: =LOOKUP(F108,B37:B56,I37:I56)*$P$57 ->  | L108: =LOOKUP(F108,B37:B56,J37:J56) ->  | M108: =LOOKUP(F108,B37:B56,K37:K56) ->  | N108: =LOOKUP(F108,B37:B56,L37:L56) ->  | O108: =LOOKUP(F108,B37:B56,M37:M56) -> 
D109: 50 | E109: =IF( (E57+L57*D108)<=H57,(E57+L57*D108),"- - -") -> - - - | F109: =(B60+1)-MATCH(E109,C60:C79,-1) ->  | G109: =LOOKUP(F109,B37:B56,E37:E56) ->  | I109: =LOOKUP(F109,B37:B56,G37:G56)*$P$57 ->  | J109: =LOOKUP(F109,B37:B56,H37:H56)*$P$57 ->  | K109: =LOOKUP(F109,B37:B56,I37:I56)*$P$57 ->  | L109: =LOOKUP(F109,B37:B56,J37:J56) ->  | M109: =LOOKUP(F109,B37:B56,K37:K56) ->  | N109: =LOOKUP(F109,B37:B56,L37:L56) ->  | O109: =LOOKUP(F109,B37:B56,M37:M56) -> 
B112: 搬送負荷データレコード | E112: =LOOKUP(C114,MassDataLink!$A$4:$A$3600,MassDataLink!$G$4:$G$3600) -> RCP6-SA8C-5-水平 | J112: 設置姿勢で絞込み | L112: - - - | N112: 加減速・速度データレコード
B113: № | C113: Ldﾚｺｰﾄﾞ№ | D113: =MassDataLink!B2 -> ｱｸﾁｭｴｰﾀ姿勢 | E113: =MassDataLink!C2 -> 搬送負荷質量 | F113: =MassDataLink!D2 -> 加減速・速度ﾃﾞｰﾀ | G113: =MassDataLink!E2 -> 前ﾃﾞｰﾀ№ | H113: =MassDataLink!F2 -> 次ﾃﾞｰﾀ№ | J113: № | K113: 搬送負荷質量 | L113: avﾚｺｰﾄﾞ№ | N113: 備考 | O113: =LOOKUP(O115,AccVelDataLink!$A$4:$A$4253,AccVelDataLink!$F$4:$F$4253) -> RCP6-SA8C-5-水平
B114: 1 | C114: =LOOKUP(D35,B26:B33,E26:E33) -> 1402 | D114: =LOOKUP(C114,MassDataLink!$A$4:$A$3600,MassDataLink!$B$4:$B$3600) -> 0 | E114: =LOOKUP(C114,MassDataLink!$A$4:$A$3600,MassDataLink!$C$4:$C$3600) -> 5000 | F114: =LOOKUP(C114,MassDataLink!$A$4:$A$3600,MassDataLink!$D$4:$D$3600) -> 1770 | G114: =LOOKUP(C114,MassDataLink!$A$4:$A$3600,MassDataLink!$E$4:$E$3600) -> -1 | H114: =LOOKUP(C114,MassDataLink!$A$4:$A$3600,MassDataLink!$F$4:$F$3600) -> 1403 | J114: 1 | K114: =IF(C114=-1,$L$112,IF($A$11=D114,ROUND((E114*$P$57),$R$57),$L$112)) -> 5 | L114: =IF(K114=$L$112,$L$112,F114) -> 1770 | N114: № | O114: avﾚｺｰﾄﾞ№ | P114: 加速度 | Q114: 速度 | R114: 前ﾃﾞｰﾀ | S114: 次ﾃﾞｰﾀ
B115: =B114+1 -> 2 | C115: =IF(C114=-1,-1,H114) -> 1403 | D115: =LOOKUP(C115,MassDataLink!$A$4:$A$3600,MassDataLink!$B$4:$B$3600) -> 0 | E115: =LOOKUP(C115,MassDataLink!$A$4:$A$3600,MassDataLink!$C$4:$C$3600) -> 10000 | F115: =LOOKUP(C115,MassDataLink!$A$4:$A$3600,MassDataLink!$D$4:$D$3600) -> 1772 | G115: =LOOKUP(C115,MassDataLink!$A$4:$A$3600,MassDataLink!$E$4:$E$3600) -> 1402 | H115: =LOOKUP(C115,MassDataLink!$A$4:$A$3600,MassDataLink!$F$4:$F$3600) -> 1404 | J115: =J114+1 -> 2 | K115: =IF(C115=-1,$L$112,IF($A$11=D115,ROUND((E115*$P$57),$R$57),$L$112)) -> 10 | L115: =IF(K115=$L$112,$L$112,F115) -> 1772 | N115: 1 | O115: =LOOKUP(A14,K114:K163,L114:L163) -> 1770 | P115: =LOOKUP(O115,AccVelDataLink!$A$4:$A$4253,AccVelDataLink!$B$4:$B$4253) -> 4903325 | Q115: =LOOKUP(O115,AccVelDataLink!$A$4:$A$4253,AccVelDataLink!$C$4:$C$4253) -> 225 | R115: =LOOKUP(O115,AccVelDataLink!$A$4:$A$4253,AccVelDataLink!$D$4:$D$4253) -> -1 | S115: =LOOKUP(O115,AccVelDataLink!$A$4:$A$4253,AccVelDataLink!$E$4:$E$4253) -> 1771
B116: =B115+1 -> 3 | C116: =IF(C115=-1,-1,H115) -> 1404 | D116: =LOOKUP(C116,MassDataLink!$A$4:$A$3600,MassDataLink!$B$4:$B$3600) -> 0 | E116: =LOOKUP(C116,MassDataLink!$A$4:$A$3600,MassDataLink!$C$4:$C$3600) -> 20000 | F116: =LOOKUP(C116,MassDataLink!$A$4:$A$3600,MassDataLink!$D$4:$D$3600) -> 1773 | G116: =LOOKUP(C116,MassDataLink!$A$4:$A$3600,MassDataLink!$E$4:$E$3600) -> 1403 | H116: =LOOKUP(C116,MassDataLink!$A$4:$A$3600,MassDataLink!$F$4:$F$3600) -> 1405 | J116: =J115+1 -> 3 | K116: 20 | L116: 1773 | N116: =N115+1 -> 2 | O116: =IF(O115=-1,-1,S115) -> 1771 | P116: =LOOKUP(O116,AccVelDataLink!$A$4:$A$4253,AccVelDataLink!$B$4:$B$4253) -> 9806650 | Q116: =LOOKUP(O116,AccVelDataLink!$A$4:$A$4253,AccVelDataLink!$C$4:$C$4253) -> 200 | R116: =LOOKUP(O116,AccVelDataLink!$A$4:$A$4253,AccVelDataLink!$D$4:$D$4253) -> 1770 | S116: =LOOKUP(O116,AccVelDataLink!$A$4:$A$4253,AccVelDataLink!$E$4:$E$4253) -> -1
B117: =B116+1 -> 4 | C117: =IF(C116=-1,-1,H116) -> 1405 | D117: =LOOKUP(C117,MassDataLink!$A$4:$A$3600,MassDataLink!$B$4:$B$3600) -> 0 | E117: =LOOKUP(C117,MassDataLink!$A$4:$A$3600,MassDataLink!$C$4:$C$3600) -> 25000 | F117: =LOOKUP(C117,MassDataLink!$A$4:$A$3600,MassDataLink!$D$4:$D$3600) -> 1775 | G117: =LOOKUP(C117,MassDataLink!$A$4:$A$3600,MassDataLink!$E$4:$E$3600) -> 1404 | H117: =LOOKUP(C117,MassDataLink!$A$4:$A$3600,MassDataLink!$F$4:$F$3600) -> 1406 | J117: =J116+1 -> 4 | K117: 25 | L117: 1775 | N117: 3 | O117: =IF(O116=-1,-1,S116) -> -1 | P117: =LOOKUP(O117,AccVelDataLink!$A$4:$A$4253,AccVelDataLink!$B$4:$B$4253) ->  | Q117: =LOOKUP(O117,AccVelDataLink!$A$4:$A$4253,AccVelDataLink!$C$4:$C$4253) ->  | R117: =LOOKUP(O117,AccVelDataLink!$A$4:$A$4253,AccVelDataLink!$D$4:$D$4253) ->  | S117: =LOOKUP(O117,AccVelDataLink!$A$4:$A$4253,AccVelDataLink!$E$4:$E$4253) -> 
B118: =B117+1 -> 5 | C118: =IF(C117=-1,-1,H117) -> 1406 | D118: =LOOKUP(C118,MassDataLink!$A$4:$A$3600,MassDataLink!$B$4:$B$3600) -> 0 | E118: =LOOKUP(C118,MassDataLink!$A$4:$A$3600,MassDataLink!$C$4:$C$3600) -> 30000 | F118: =LOOKUP(C118,MassDataLink!$A$4:$A$3600,MassDataLink!$D$4:$D$3600) -> 1776 | G118: =LOOKUP(C118,MassDataLink!$A$4:$A$3600,MassDataLink!$E$4:$E$3600) -> 1405 | H118: =LOOKUP(C118,MassDataLink!$A$4:$A$3600,MassDataLink!$F$4:$F$3600) -> 1407 | J118: =J117+1 -> 5 | K118: 30 | L118: 1776 | N118: 4 | O118: -1 | P118: =LOOKUP(O118,AccVelDataLink!$A$4:$A$4253,AccVelDataLink!$B$4:$B$4253) ->  | Q118: =LOOKUP(O118,AccVelDataLink!$A$4:$A$4253,AccVelDataLink!$C$4:$C$4253) ->  | R118: =LOOKUP(O118,AccVelDataLink!$A$4:$A$4253,AccVelDataLink!$D$4:$D$4253) ->  | S118: =LOOKUP(O118,AccVelDataLink!$A$4:$A$4253,AccVelDataLink!$E$4:$E$4253) -> 
B119: =B118+1 -> 6 | C119: =IF(C118=-1,-1,H118) -> 1407 | D119: =LOOKUP(C119,MassDataLink!$A$4:$A$3600,MassDataLink!$B$4:$B$3600) -> 0 | E119: =LOOKUP(C119,MassDataLink!$A$4:$A$3600,MassDataLink!$C$4:$C$3600) -> 40000 | F119: =LOOKUP(C119,MassDataLink!$A$4:$A$3600,MassDataLink!$D$4:$D$3600) -> 1777 | G119: =LOOKUP(C119,MassDataLink!$A$4:$A$3600,MassDataLink!$E$4:$E$3600) -> 1406 | H119: =LOOKUP(C119,MassDataLink!$A$4:$A$3600,MassDataLink!$F$4:$F$3600) -> 1408 | J119: =J118+1 -> 6 | K119: 40 | L119: 1777 | N119: 5 | O119: -1 | P119: =LOOKUP(O119,AccVelDataLink!$A$4:$A$4253,AccVelDataLink!$B$4:$B$4253) ->  | Q119: =LOOKUP(O119,AccVelDataLink!$A$4:$A$4253,AccVelDataLink!$C$4:$C$4253) ->  | R119: =LOOKUP(O119,AccVelDataLink!$A$4:$A$4253,AccVelDataLink!$D$4:$D$4253) ->  | S119: =LOOKUP(O119,AccVelDataLink!$A$4:$A$4253,AccVelDataLink!$E$4:$E$4253) -> 
B120: 7 | C120: 1408 | D120: =LOOKUP(C120,MassDataLink!$A$4:$A$3600,MassDataLink!$B$4:$B$3600) -> 0 | E120: =LOOKUP(C120,MassDataLink!$A$4:$A$3600,MassDataLink!$C$4:$C$3600) -> 50000 | F120: =LOOKUP(C120,MassDataLink!$A$4:$A$3600,MassDataLink!$D$4:$D$3600) -> 1778 | G120: =LOOKUP(C120,MassDataLink!$A$4:$A$3600,MassDataLink!$E$4:$E$3600) -> 1407 | H120: =LOOKUP(C120,MassDataLink!$A$4:$A$3600,MassDataLink!$F$4:$F$3600) -> 1409 | J120: 7 | K120: 50 | L120: 1778 | N120: 6 | O120: -1 | P120: =LOOKUP(O120,AccVelDataLink!$A$4:$A$4253,AccVelDataLink!$B$4:$B$4253) ->  | Q120: =LOOKUP(O120,AccVelDataLink!$A$4:$A$4253,AccVelDataLink!$C$4:$C$4253) ->  | R120: =LOOKUP(O120,AccVelDataLink!$A$4:$A$4253,AccVelDataLink!$D$4:$D$4253) ->  | S120: =LOOKUP(O120,AccVelDataLink!$A$4:$A$4253,AccVelDataLink!$E$4:$E$4253) -> 
B121: 8 | C121: 1409 | D121: =LOOKUP(C121,MassDataLink!$A$4:$A$3600,MassDataLink!$B$4:$B$3600) -> 0 | E121: =LOOKUP(C121,MassDataLink!$A$4:$A$3600,MassDataLink!$C$4:$C$3600) -> 70000 | F121: =LOOKUP(C121,MassDataLink!$A$4:$A$3600,MassDataLink!$D$4:$D$3600) -> 1779 | G121: =LOOKUP(C121,MassDataLink!$A$4:$A$3600,MassDataLink!$E$4:$E$3600) -> 1408 | H121: =LOOKUP(C121,MassDataLink!$A$4:$A$3600,MassDataLink!$F$4:$F$3600) -> 1410 | J121: 8 | K121: 70 | L121: 1779 | N121: 7 | O121: -1 | P121: =LOOKUP(O121,AccVelDataLink!$A$4:$A$4253,AccVelDataLink!$B$4:$B$4253) ->  | Q121: =LOOKUP(O121,AccVelDataLink!$A$4:$A$4253,AccVelDataLink!$C$4:$C$4253) ->  | R121: =LOOKUP(O121,AccVelDataLink!$A$4:$A$4253,AccVelDataLink!$D$4:$D$4253) ->  | S121: =LOOKUP(O121,AccVelDataLink!$A$4:$A$4253,AccVelDataLink!$E$4:$E$4253) -> 
B122: 9 | C122: 1410 | D122: =LOOKUP(C122,MassDataLink!$A$4:$A$3600,MassDataLink!$B$4:$B$3600) -> 0 | E122: =LOOKUP(C122,MassDataLink!$A$4:$A$3600,MassDataLink!$C$4:$C$3600) -> 80000 | F122: =LOOKUP(C122,MassDataLink!$A$4:$A$3600,MassDataLink!$D$4:$D$3600) -> 1781 | G122: =LOOKUP(C122,MassDataLink!$A$4:$A$3600,MassDataLink!$E$4:$E$3600) -> 1409 | H122: =LOOKUP(C122,MassDataLink!$A$4:$A$3600,MassDataLink!$F$4:$F$3600) -> 1411 | J122: 9 | K122: 80 | L122: 1781 | N122: 8 | O122: -1 | P122: =LOOKUP(O122,AccVelDataLink!$A$4:$A$4253,AccVelDataLink!$B$4:$B$4253) ->  | Q122: =LOOKUP(O122,AccVelDataLink!$A$4:$A$4253,AccVelDataLink!$C$4:$C$4253) ->  | R122: =LOOKUP(O122,AccVelDataLink!$A$4:$A$4253,AccVelDataLink!$D$4:$D$4253) ->  | S122: =LOOKUP(O122,AccVelDataLink!$A$4:$A$4253,AccVelDataLink!$E$4:$E$4253) -> 
B123: 10 | C123: 1411 | D123: =LOOKUP(C123,MassDataLink!$A$4:$A$3600,MassDataLink!$B$4:$B$3600) -> 1 | E123: =LOOKUP(C123,MassDataLink!$A$4:$A$3600,MassDataLink!$C$4:$C$3600) -> 1000 | F123: =LOOKUP(C123,MassDataLink!$A$4:$A$3600,MassDataLink!$D$4:$D$3600) -> 1784 | G123: =LOOKUP(C123,MassDataLink!$A$4:$A$3600,MassDataLink!$E$4:$E$3600) -> 1410 | H123: =LOOKUP(C123,MassDataLink!$A$4:$A$3600,MassDataLink!$F$4:$F$3600) -> 1412 | J123: 10 | K123: - - - | L123: - - - | N123: 9 | O123: -1 | P123: =LOOKUP(O123,AccVelDataLink!$A$4:$A$4253,AccVelDataLink!$B$4:$B$4253) ->  | Q123: =LOOKUP(O123,AccVelDataLink!$A$4:$A$4253,AccVelDataLink!$C$4:$C$4253) ->  | R123: =LOOKUP(O123,AccVelDataLink!$A$4:$A$4253,AccVelDataLink!$D$4:$D$4253) ->  | S123: =LOOKUP(O123,AccVelDataLink!$A$4:$A$4253,AccVelDataLink!$E$4:$E$4253) -> 
B124: 11 | C124: 1412 | D124: =LOOKUP(C124,MassDataLink!$A$4:$A$3600,MassDataLink!$B$4:$B$3600) -> 1 | E124: =LOOKUP(C124,MassDataLink!$A$4:$A$3600,MassDataLink!$C$4:$C$3600) -> 5000 | F124: =LOOKUP(C124,MassDataLink!$A$4:$A$3600,MassDataLink!$D$4:$D$3600) -> 1785 | G124: =LOOKUP(C124,MassDataLink!$A$4:$A$3600,MassDataLink!$E$4:$E$3600) -> 1411 | H124: =LOOKUP(C124,MassDataLink!$A$4:$A$3600,MassDataLink!$F$4:$F$3600) -> 1413 | J124: 11 | K124: - - - | L124: - - - | N124: 10 | O124: -1 | P124: =LOOKUP(O124,AccVelDataLink!$A$4:$A$4253,AccVelDataLink!$B$4:$B$4253) ->  | Q124: =LOOKUP(O124,AccVelDataLink!$A$4:$A$4253,AccVelDataLink!$C$4:$C$4253) ->  | R124: =LOOKUP(O124,AccVelDataLink!$A$4:$A$4253,AccVelDataLink!$D$4:$D$4253) ->  | S124: =LOOKUP(O124,AccVelDataLink!$A$4:$A$4253,AccVelDataLink!$E$4:$E$4253) -> 
B125: 12 | C125: 1413 | D125: =LOOKUP(C125,MassDataLink!$A$4:$A$3600,MassDataLink!$B$4:$B$3600) -> 1 | E125: =LOOKUP(C125,MassDataLink!$A$4:$A$3600,MassDataLink!$C$4:$C$3600) -> 6000 | F125: =LOOKUP(C125,MassDataLink!$A$4:$A$3600,MassDataLink!$D$4:$D$3600) -> 1787 | G125: =LOOKUP(C125,MassDataLink!$A$4:$A$3600,MassDataLink!$E$4:$E$3600) -> 1412 | H125: =LOOKUP(C125,MassDataLink!$A$4:$A$3600,MassDataLink!$F$4:$F$3600) -> 1414 | J125: 12 | K125: - - - | L125: - - - | O125: 加速度系数 | P125: 1e-06
B126: 13 | C126: 1414 | D126: =LOOKUP(C126,MassDataLink!$A$4:$A$3600,MassDataLink!$B$4:$B$3600) -> 1 | E126: =LOOKUP(C126,MassDataLink!$A$4:$A$3600,MassDataLink!$C$4:$C$3600) -> 7000 | F126: =LOOKUP(C126,MassDataLink!$A$4:$A$3600,MassDataLink!$D$4:$D$3600) -> 1788 | G126: =LOOKUP(C126,MassDataLink!$A$4:$A$3600,MassDataLink!$E$4:$E$3600) -> 1413 | H126: =LOOKUP(C126,MassDataLink!$A$4:$A$3600,MassDataLink!$F$4:$F$3600) -> 1415 | J126: 13 | K126: - - - | L126: - - - | N126: G | O126: № | P126: 加速度 | Q126: 速度
B127: 14 | C127: 1415 | D127: =LOOKUP(C127,MassDataLink!$A$4:$A$3600,MassDataLink!$B$4:$B$3600) -> 1 | E127: =LOOKUP(C127,MassDataLink!$A$4:$A$3600,MassDataLink!$C$4:$C$3600) -> 10000 | F127: =LOOKUP(C127,MassDataLink!$A$4:$A$3600,MassDataLink!$D$4:$D$3600) -> 1789 | G127: =LOOKUP(C127,MassDataLink!$A$4:$A$3600,MassDataLink!$E$4:$E$3600) -> 1414 | H127: =LOOKUP(C127,MassDataLink!$A$4:$A$3600,MassDataLink!$F$4:$F$3600) -> 1416 | J127: 14 | K127: - - - | L127: - - - | N127: =LeadData!A1 -> 9.80665 | O127: 1 | P127: =IF(O115=-1,$L$112,(P115/$N$127)*$P$125) -> 0.5 | Q127: =IF(O115=-1,$L$112,Q115) -> 225
B128: 15 | C128: 1416 | D128: =LOOKUP(C128,MassDataLink!$A$4:$A$3600,MassDataLink!$B$4:$B$3600) -> 1 | E128: =LOOKUP(C128,MassDataLink!$A$4:$A$3600,MassDataLink!$C$4:$C$3600) -> 12000 | F128: =LOOKUP(C128,MassDataLink!$A$4:$A$3600,MassDataLink!$D$4:$D$3600) -> 1791 | G128: =LOOKUP(C128,MassDataLink!$A$4:$A$3600,MassDataLink!$E$4:$E$3600) -> 1415 | H128: =LOOKUP(C128,MassDataLink!$A$4:$A$3600,MassDataLink!$F$4:$F$3600) -> 1417 | J128: 15 | K128: - - - | L128: - - - | O128: =O127+1 -> 2 | P128: =IF(O116=-1,$L$112,(P116/$N$127)*$P$125) -> 1 | Q128: =IF(O116=-1,$L$112,Q116) -> 200
B129: 16 | C129: 1417 | D129: =LOOKUP(C129,MassDataLink!$A$4:$A$3600,MassDataLink!$B$4:$B$3600) -> 1 | E129: =LOOKUP(C129,MassDataLink!$A$4:$A$3600,MassDataLink!$C$4:$C$3600) -> 14000 | F129: =LOOKUP(C129,MassDataLink!$A$4:$A$3600,MassDataLink!$D$4:$D$3600) -> 1792 | G129: =LOOKUP(C129,MassDataLink!$A$4:$A$3600,MassDataLink!$E$4:$E$3600) -> 1416 | H129: =LOOKUP(C129,MassDataLink!$A$4:$A$3600,MassDataLink!$F$4:$F$3600) -> 1418 | J129: 16 | K129: - - - | L129: - - - | O129: 3 | P129: - - - | Q129: - - -
B130: 17 | C130: 1418 | D130: =LOOKUP(C130,MassDataLink!$A$4:$A$3600,MassDataLink!$B$4:$B$3600) -> 1 | E130: =LOOKUP(C130,MassDataLink!$A$4:$A$3600,MassDataLink!$C$4:$C$3600) -> 18000 | F130: =LOOKUP(C130,MassDataLink!$A$4:$A$3600,MassDataLink!$D$4:$D$3600) -> 1793 | G130: =LOOKUP(C130,MassDataLink!$A$4:$A$3600,MassDataLink!$E$4:$E$3600) -> 1417 | H130: =LOOKUP(C130,MassDataLink!$A$4:$A$3600,MassDataLink!$F$4:$F$3600) -> 1419 | J130: 17 | K130: - - - | L130: - - - | O130: 4 | P130: - - - | Q130: - - -
B131: 18 | C131: 1419 | D131: =LOOKUP(C131,MassDataLink!$A$4:$A$3600,MassDataLink!$B$4:$B$3600) -> 1 | E131: =LOOKUP(C131,MassDataLink!$A$4:$A$3600,MassDataLink!$C$4:$C$3600) -> 30000 | F131: =LOOKUP(C131,MassDataLink!$A$4:$A$3600,MassDataLink!$D$4:$D$3600) -> 1794 | G131: =LOOKUP(C131,MassDataLink!$A$4:$A$3600,MassDataLink!$E$4:$E$3600) -> 1418 | H131: =LOOKUP(C131,MassDataLink!$A$4:$A$3600,MassDataLink!$F$4:$F$3600) -> 1420 | J131: 18 | K131: - - - | L131: - - - | O131: 5 | P131: - - - | Q131: - - -
B132: 19 | C132: 1420 | D132: =LOOKUP(C132,MassDataLink!$A$4:$A$3600,MassDataLink!$B$4:$B$3600) -> 1 | E132: =LOOKUP(C132,MassDataLink!$A$4:$A$3600,MassDataLink!$C$4:$C$3600) -> 55000 | F132: =LOOKUP(C132,MassDataLink!$A$4:$A$3600,MassDataLink!$D$4:$D$3600) -> 1795 | G132: =LOOKUP(C132,MassDataLink!$A$4:$A$3600,MassDataLink!$E$4:$E$3600) -> 1419 | H132: =LOOKUP(C132,MassDataLink!$A$4:$A$3600,MassDataLink!$F$4:$F$3600) -> -1 | J132: 19 | K132: - - - | L132: - - - | O132: 6 | P132: - - - | Q132: - - -
B133: 20 | C133: -1 | D133: =LOOKUP(C133,MassDataLink!$A$4:$A$3600,MassDataLink!$B$4:$B$3600) ->  | E133: =LOOKUP(C133,MassDataLink!$A$4:$A$3600,MassDataLink!$C$4:$C$3600) ->  | F133: =LOOKUP(C133,MassDataLink!$A$4:$A$3600,MassDataLink!$D$4:$D$3600) ->  | G133: =LOOKUP(C133,MassDataLink!$A$4:$A$3600,MassDataLink!$E$4:$E$3600) ->  | H133: =LOOKUP(C133,MassDataLink!$A$4:$A$3600,MassDataLink!$F$4:$F$3600) ->  | J133: 20 | K133: - - - | L133: - - - | O133: 7 | P133: - - - | Q133: - - -
B134: 21 | C134: -1 | D134: =LOOKUP(C134,MassDataLink!$A$4:$A$3600,MassDataLink!$B$4:$B$3600) ->  | E134: =LOOKUP(C134,MassDataLink!$A$4:$A$3600,MassDataLink!$C$4:$C$3600) ->  | F134: =LOOKUP(C134,MassDataLink!$A$4:$A$3600,MassDataLink!$D$4:$D$3600) ->  | G134: =LOOKUP(C134,MassDataLink!$A$4:$A$3600,MassDataLink!$E$4:$E$3600) ->  | H134: =LOOKUP(C134,MassDataLink!$A$4:$A$3600,MassDataLink!$F$4:$F$3600) ->  | J134: 21 | K134: - - - | L134: - - - | O134: 8 | P134: - - - | Q134: - - -
B135: 22 | C135: -1 | D135: =LOOKUP(C135,MassDataLink!$A$4:$A$3600,MassDataLink!$B$4:$B$3600) ->  | E135: =LOOKUP(C135,MassDataLink!$A$4:$A$3600,MassDataLink!$C$4:$C$3600) ->  | F135: =LOOKUP(C135,MassDataLink!$A$4:$A$3600,MassDataLink!$D$4:$D$3600) ->  | G135: =LOOKUP(C135,MassDataLink!$A$4:$A$3600,MassDataLink!$E$4:$E$3600) ->  | H135: =LOOKUP(C135,MassDataLink!$A$4:$A$3600,MassDataLink!$F$4:$F$3600) ->  | J135: 22 | K135: - - - | L135: - - - | O135: 9 | P135: - - - | Q135: - - -
B136: 23 | C136: -1 | D136: =LOOKUP(C136,MassDataLink!$A$4:$A$3600,MassDataLink!$B$4:$B$3600) ->  | E136: =LOOKUP(C136,MassDataLink!$A$4:$A$3600,MassDataLink!$C$4:$C$3600) ->  | F136: =LOOKUP(C136,MassDataLink!$A$4:$A$3600,MassDataLink!$D$4:$D$3600) ->  | G136: =LOOKUP(C136,MassDataLink!$A$4:$A$3600,MassDataLink!$E$4:$E$3600) ->  | H136: =LOOKUP(C136,MassDataLink!$A$4:$A$3600,MassDataLink!$F$4:$F$3600) ->  | J136: 23 | K136: - - - | L136: - - - | O136: 10 | P136: - - - | Q136: - - -
B137: =B136+1 -> 24 | C137: =IF(C136=-1,-1,H136) -> -1 | D137: =LOOKUP(C137,MassDataLink!$A$4:$A$3600,MassDataLink!$B$4:$B$3600) ->  | E137: =LOOKUP(C137,MassDataLink!$A$4:$A$3600,MassDataLink!$C$4:$C$3600) ->  | F137: =LOOKUP(C137,MassDataLink!$A$4:$A$3600,MassDataLink!$D$4:$D$3600) ->  | G137: =LOOKUP(C137,MassDataLink!$A$4:$A$3600,MassDataLink!$E$4:$E$3600) ->  | H137: =LOOKUP(C137,MassDataLink!$A$4:$A$3600,MassDataLink!$F$4:$F$3600) ->  | J137: 24 | K137: - - - | L137: - - -
B138: 25 | C138: -1 | D138: =LOOKUP(C138,MassDataLink!$A$4:$A$3600,MassDataLink!$B$4:$B$3600) ->  | E138: =LOOKUP(C138,MassDataLink!$A$4:$A$3600,MassDataLink!$C$4:$C$3600) ->  | F138: =LOOKUP(C138,MassDataLink!$A$4:$A$3600,MassDataLink!$D$4:$D$3600) ->  | G138: =LOOKUP(C138,MassDataLink!$A$4:$A$3600,MassDataLink!$E$4:$E$3600) ->  | H138: =LOOKUP(C138,MassDataLink!$A$4:$A$3600,MassDataLink!$F$4:$F$3600) ->  | J138: 25 | K138: - - - | L138: - - -
B139: 26 | C139: -1 | D139: =LOOKUP(C139,MassDataLink!$A$4:$A$3600,MassDataLink!$B$4:$B$3600) ->  | E139: =LOOKUP(C139,MassDataLink!$A$4:$A$3600,MassDataLink!$C$4:$C$3600) ->  | F139: =LOOKUP(C139,MassDataLink!$A$4:$A$3600,MassDataLink!$D$4:$D$3600) ->  | G139: =LOOKUP(C139,MassDataLink!$A$4:$A$3600,MassDataLink!$E$4:$E$3600) ->  | H139: =LOOKUP(C139,MassDataLink!$A$4:$A$3600,MassDataLink!$F$4:$F$3600) ->  | J139: 26 | K139: - - - | L139: - - -
B140: 27 | C140: -1 | D140: =LOOKUP(C140,MassDataLink!$A$4:$A$3600,MassDataLink!$B$4:$B$3600) ->  | E140: =LOOKUP(C140,MassDataLink!$A$4:$A$3600,MassDataLink!$C$4:$C$3600) ->  | F140: =LOOKUP(C140,MassDataLink!$A$4:$A$3600,MassDataLink!$D$4:$D$3600) ->  | G140: =LOOKUP(C140,MassDataLink!$A$4:$A$3600,MassDataLink!$E$4:$E$3600) ->  | H140: =LOOKUP(C140,MassDataLink!$A$4:$A$3600,MassDataLink!$F$4:$F$3600) ->  | J140: 27 | K140: - - - | L140: - - -
B141: 28 | C141: -1 | D141: =LOOKUP(C141,MassDataLink!$A$4:$A$3600,MassDataLink!$B$4:$B$3600) ->  | E141: =LOOKUP(C141,MassDataLink!$A$4:$A$3600,MassDataLink!$C$4:$C$3600) ->  | F141: =LOOKUP(C141,MassDataLink!$A$4:$A$3600,MassDataLink!$D$4:$D$3600) ->  | G141: =LOOKUP(C141,MassDataLink!$A$4:$A$3600,MassDataLink!$E$4:$E$3600) ->  | H141: =LOOKUP(C141,MassDataLink!$A$4:$A$3600,MassDataLink!$F$4:$F$3600) ->  | J141: 28 | K141: - - - | L141: - - -
B142: 29 | C142: -1 | D142: =LOOKUP(C142,MassDataLink!$A$4:$A$3600,MassDataLink!$B$4:$B$3600) ->  | E142: =LOOKUP(C142,MassDataLink!$A$4:$A$3600,MassDataLink!$C$4:$C$3600) ->  | F142: =LOOKUP(C142,MassDataLink!$A$4:$A$3600,MassDataLink!$D$4:$D$3600) ->  | G142: =LOOKUP(C142,MassDataLink!$A$4:$A$3600,MassDataLink!$E$4:$E$3600) ->  | H142: =LOOKUP(C142,MassDataLink!$A$4:$A$3600,MassDataLink!$F$4:$F$3600) ->  | J142: 29 | K142: - - - | L142: - - -
B143: 30 | C143: -1 | D143: =LOOKUP(C143,MassDataLink!$A$4:$A$3600,MassDataLink!$B$4:$B$3600) ->  | E143: =LOOKUP(C143,MassDataLink!$A$4:$A$3600,MassDataLink!$C$4:$C$3600) ->  | F143: =LOOKUP(C143,MassDataLink!$A$4:$A$3600,MassDataLink!$D$4:$D$3600) ->  | G143: =LOOKUP(C143,MassDataLink!$A$4:$A$3600,MassDataLink!$E$4:$E$3600) ->  | H143: =LOOKUP(C143,MassDataLink!$A$4:$A$3600,MassDataLink!$F$4:$F$3600) ->  | J143: 30 | K143: - - - | L143: - - -
B144: =B143+1 -> 31 | C144: =IF(C143=-1,-1,H143) -> -1 | D144: =LOOKUP(C144,MassDataLink!$A$4:$A$3600,MassDataLink!$B$4:$B$3600) ->  | E144: =LOOKUP(C144,MassDataLink!$A$4:$A$3600,MassDataLink!$C$4:$C$3600) ->  | F144: =LOOKUP(C144,MassDataLink!$A$4:$A$3600,MassDataLink!$D$4:$D$3600) ->  | G144: =LOOKUP(C144,MassDataLink!$A$4:$A$3600,MassDataLink!$E$4:$E$3600) ->  | H144: =LOOKUP(C144,MassDataLink!$A$4:$A$3600,MassDataLink!$F$4:$F$3600) ->  | J144: 31 | K144: - - - | L144: - - -
B145: 32 | C145: -1 | D145: =LOOKUP(C145,MassDataLink!$A$4:$A$3600,MassDataLink!$B$4:$B$3600) ->  | E145: =LOOKUP(C145,MassDataLink!$A$4:$A$3600,MassDataLink!$C$4:$C$3600) ->  | F145: =LOOKUP(C145,MassDataLink!$A$4:$A$3600,MassDataLink!$D$4:$D$3600) ->  | G145: =LOOKUP(C145,MassDataLink!$A$4:$A$3600,MassDataLink!$E$4:$E$3600) ->  | H145: =LOOKUP(C145,MassDataLink!$A$4:$A$3600,MassDataLink!$F$4:$F$3600) ->  | J145: 32 | K145: - - - | L145: - - -
B146: 33 | C146: -1 | D146: =LOOKUP(C146,MassDataLink!$A$4:$A$3600,MassDataLink!$B$4:$B$3600) ->  | E146: =LOOKUP(C146,MassDataLink!$A$4:$A$3600,MassDataLink!$C$4:$C$3600) ->  | F146: =LOOKUP(C146,MassDataLink!$A$4:$A$3600,MassDataLink!$D$4:$D$3600) ->  | G146: =LOOKUP(C146,MassDataLink!$A$4:$A$3600,MassDataLink!$E$4:$E$3600) ->  | H146: =LOOKUP(C146,MassDataLink!$A$4:$A$3600,MassDataLink!$F$4:$F$3600) ->  | J146: 33 | K146: - - - | L146: - - -
B147: 34 | C147: -1 | D147: =LOOKUP(C147,MassDataLink!$A$4:$A$3600,MassDataLink!$B$4:$B$3600) ->  | E147: =LOOKUP(C147,MassDataLink!$A$4:$A$3600,MassDataLink!$C$4:$C$3600) ->  | F147: =LOOKUP(C147,MassDataLink!$A$4:$A$3600,MassDataLink!$D$4:$D$3600) ->  | G147: =LOOKUP(C147,MassDataLink!$A$4:$A$3600,MassDataLink!$E$4:$E$3600) ->  | H147: =LOOKUP(C147,MassDataLink!$A$4:$A$3600,MassDataLink!$F$4:$F$3600) ->  | J147: 34 | K147: - - - | L147: - - -
B148: 35 | C148: -1 | D148: =LOOKUP(C148,MassDataLink!$A$4:$A$3600,MassDataLink!$B$4:$B$3600) ->  | E148: =LOOKUP(C148,MassDataLink!$A$4:$A$3600,MassDataLink!$C$4:$C$3600) ->  | F148: =LOOKUP(C148,MassDataLink!$A$4:$A$3600,MassDataLink!$D$4:$D$3600) ->  | G148: =LOOKUP(C148,MassDataLink!$A$4:$A$3600,MassDataLink!$E$4:$E$3600) ->  | H148: =LOOKUP(C148,MassDataLink!$A$4:$A$3600,MassDataLink!$F$4:$F$3600) ->  | J148: 35 | K148: - - - | L148: - - -
B149: 36 | C149: -1 | D149: =LOOKUP(C149,MassDataLink!$A$4:$A$3600,MassDataLink!$B$4:$B$3600) ->  | E149: =LOOKUP(C149,MassDataLink!$A$4:$A$3600,MassDataLink!$C$4:$C$3600) ->  | F149: =LOOKUP(C149,MassDataLink!$A$4:$A$3600,MassDataLink!$D$4:$D$3600) ->  | G149: =LOOKUP(C149,MassDataLink!$A$4:$A$3600,MassDataLink!$E$4:$E$3600) ->  | H149: =LOOKUP(C149,MassDataLink!$A$4:$A$3600,MassDataLink!$F$4:$F$3600) ->  | J149: 36 | K149: - - - | L149: - - -
B150: 37 | C150: -1 | D150: =LOOKUP(C150,MassDataLink!$A$4:$A$3600,MassDataLink!$B$4:$B$3600) ->  | E150: =LOOKUP(C150,MassDataLink!$A$4:$A$3600,MassDataLink!$C$4:$C$3600) ->  | F150: =LOOKUP(C150,MassDataLink!$A$4:$A$3600,MassDataLink!$D$4:$D$3600) ->  | G150: =LOOKUP(C150,MassDataLink!$A$4:$A$3600,MassDataLink!$E$4:$E$3600) ->  | H150: =LOOKUP(C150,MassDataLink!$A$4:$A$3600,MassDataLink!$F$4:$F$3600) ->  | J150: 37 | K150: - - - | L150: - - -
B151: 38 | C151: -1 | D151: =LOOKUP(C151,MassDataLink!$A$4:$A$3600,MassDataLink!$B$4:$B$3600) ->  | E151: =LOOKUP(C151,MassDataLink!$A$4:$A$3600,MassDataLink!$C$4:$C$3600) ->  | F151: =LOOKUP(C151,MassDataLink!$A$4:$A$3600,MassDataLink!$D$4:$D$3600) ->  | G151: =LOOKUP(C151,MassDataLink!$A$4:$A$3600,MassDataLink!$E$4:$E$3600) ->  | H151: =LOOKUP(C151,MassDataLink!$A$4:$A$3600,MassDataLink!$F$4:$F$3600) ->  | J151: 38 | K151: - - - | L151: - - -
B152: 39 | C152: -1 | D152: =LOOKUP(C152,MassDataLink!$A$4:$A$3600,MassDataLink!$B$4:$B$3600) ->  | E152: =LOOKUP(C152,MassDataLink!$A$4:$A$3600,MassDataLink!$C$4:$C$3600) ->  | F152: =LOOKUP(C152,MassDataLink!$A$4:$A$3600,MassDataLink!$D$4:$D$3600) ->  | G152: =LOOKUP(C152,MassDataLink!$A$4:$A$3600,MassDataLink!$E$4:$E$3600) ->  | H152: =LOOKUP(C152,MassDataLink!$A$4:$A$3600,MassDataLink!$F$4:$F$3600) ->  | J152: 39 | K152: - - - | L152: - - -
B153: 40 | C153: -1 | D153: =LOOKUP(C153,MassDataLink!$A$4:$A$3600,MassDataLink!$B$4:$B$3600) ->  | E153: =LOOKUP(C153,MassDataLink!$A$4:$A$3600,MassDataLink!$C$4:$C$3600) ->  | F153: =LOOKUP(C153,MassDataLink!$A$4:$A$3600,MassDataLink!$D$4:$D$3600) ->  | G153: =LOOKUP(C153,MassDataLink!$A$4:$A$3600,MassDataLink!$E$4:$E$3600) ->  | H153: =LOOKUP(C153,MassDataLink!$A$4:$A$3600,MassDataLink!$F$4:$F$3600) ->  | J153: 40 | K153: - - - | L153: - - -
B154: 41 | C154: -1 | D154: =LOOKUP(C154,MassDataLink!$A$4:$A$3600,MassDataLink!$B$4:$B$3600) ->  | E154: =LOOKUP(C154,MassDataLink!$A$4:$A$3600,MassDataLink!$C$4:$C$3600) ->  | F154: =LOOKUP(C154,MassDataLink!$A$4:$A$3600,MassDataLink!$D$4:$D$3600) ->  | G154: =LOOKUP(C154,MassDataLink!$A$4:$A$3600,MassDataLink!$E$4:$E$3600) ->  | H154: =LOOKUP(C154,MassDataLink!$A$4:$A$3600,MassDataLink!$F$4:$F$3600) ->  | J154: 41 | K154: - - - | L154: - - -
B155: 42 | C155: -1 | D155: =LOOKUP(C155,MassDataLink!$A$4:$A$3600,MassDataLink!$B$4:$B$3600) ->  | E155: =LOOKUP(C155,MassDataLink!$A$4:$A$3600,MassDataLink!$C$4:$C$3600) ->  | F155: =LOOKUP(C155,MassDataLink!$A$4:$A$3600,MassDataLink!$D$4:$D$3600) ->  | G155: =LOOKUP(C155,MassDataLink!$A$4:$A$3600,MassDataLink!$E$4:$E$3600) ->  | H155: =LOOKUP(C155,MassDataLink!$A$4:$A$3600,MassDataLink!$F$4:$F$3600) ->  | J155: 42 | K155: - - - | L155: - - -
B156: 43 | C156: -1 | D156: =LOOKUP(C156,MassDataLink!$A$4:$A$3600,MassDataLink!$B$4:$B$3600) ->  | E156: =LOOKUP(C156,MassDataLink!$A$4:$A$3600,MassDataLink!$C$4:$C$3600) ->  | F156: =LOOKUP(C156,MassDataLink!$A$4:$A$3600,MassDataLink!$D$4:$D$3600) ->  | G156: =LOOKUP(C156,MassDataLink!$A$4:$A$3600,MassDataLink!$E$4:$E$3600) ->  | H156: =LOOKUP(C156,MassDataLink!$A$4:$A$3600,MassDataLink!$F$4:$F$3600) ->  | J156: 43 | K156: - - - | L156: - - -
B157: 44 | C157: -1 | D157: =LOOKUP(C157,MassDataLink!$A$4:$A$3600,MassDataLink!$B$4:$B$3600) ->  | E157: =LOOKUP(C157,MassDataLink!$A$4:$A$3600,MassDataLink!$C$4:$C$3600) ->  | F157: =LOOKUP(C157,MassDataLink!$A$4:$A$3600,MassDataLink!$D$4:$D$3600) ->  | G157: =LOOKUP(C157,MassDataLink!$A$4:$A$3600,MassDataLink!$E$4:$E$3600) ->  | H157: =LOOKUP(C157,MassDataLink!$A$4:$A$3600,MassDataLink!$F$4:$F$3600) ->  | J157: 44 | K157: - - - | L157: - - -
B158: 45 | C158: -1 | D158: =LOOKUP(C158,MassDataLink!$A$4:$A$3600,MassDataLink!$B$4:$B$3600) ->  | E158: =LOOKUP(C158,MassDataLink!$A$4:$A$3600,MassDataLink!$C$4:$C$3600) ->  | F158: =LOOKUP(C158,MassDataLink!$A$4:$A$3600,MassDataLink!$D$4:$D$3600) ->  | G158: =LOOKUP(C158,MassDataLink!$A$4:$A$3600,MassDataLink!$E$4:$E$3600) ->  | H158: =LOOKUP(C158,MassDataLink!$A$4:$A$3600,MassDataLink!$F$4:$F$3600) ->  | J158: 45 | K158: - - - | L158: - - -
B159: 46 | C159: -1 | D159: =LOOKUP(C159,MassDataLink!$A$4:$A$3600,MassDataLink!$B$4:$B$3600) ->  | E159: =LOOKUP(C159,MassDataLink!$A$4:$A$3600,MassDataLink!$C$4:$C$3600) ->  | F159: =LOOKUP(C159,MassDataLink!$A$4:$A$3600,MassDataLink!$D$4:$D$3600) ->  | G159: =LOOKUP(C159,MassDataLink!$A$4:$A$3600,MassDataLink!$E$4:$E$3600) ->  | H159: =LOOKUP(C159,MassDataLink!$A$4:$A$3600,MassDataLink!$F$4:$F$3600) ->  | J159: 46 | K159: - - - | L159: - - -
B160: 47 | C160: -1 | D160: =LOOKUP(C160,MassDataLink!$A$4:$A$3600,MassDataLink!$B$4:$B$3600) ->  | E160: =LOOKUP(C160,MassDataLink!$A$4:$A$3600,MassDataLink!$C$4:$C$3600) ->  | F160: =LOOKUP(C160,MassDataLink!$A$4:$A$3600,MassDataLink!$D$4:$D$3600) ->  | G160: =LOOKUP(C160,MassDataLink!$A$4:$A$3600,MassDataLink!$E$4:$E$3600) ->  | H160: =LOOKUP(C160,MassDataLink!$A$4:$A$3600,MassDataLink!$F$4:$F$3600) ->  | J160: 47 | K160: - - - | L160: - - -
B161: 48 | C161: -1 | D161: =LOOKUP(C161,MassDataLink!$A$4:$A$3600,MassDataLink!$B$4:$B$3600) ->  | E161: =LOOKUP(C161,MassDataLink!$A$4:$A$3600,MassDataLink!$C$4:$C$3600) ->  | F161: =LOOKUP(C161,MassDataLink!$A$4:$A$3600,MassDataLink!$D$4:$D$3600) ->  | G161: =LOOKUP(C161,MassDataLink!$A$4:$A$3600,MassDataLink!$E$4:$E$3600) ->  | H161: =LOOKUP(C161,MassDataLink!$A$4:$A$3600,MassDataLink!$F$4:$F$3600) ->  | J161: 48 | K161: - - - | L161: - - -
B162: 49 | C162: -1 | D162: =LOOKUP(C162,MassDataLink!$A$4:$A$3600,MassDataLink!$B$4:$B$3600) ->  | E162: =LOOKUP(C162,MassDataLink!$A$4:$A$3600,MassDataLink!$C$4:$C$3600) ->  | F162: =LOOKUP(C162,MassDataLink!$A$4:$A$3600,MassDataLink!$D$4:$D$3600) ->  | G162: =LOOKUP(C162,MassDataLink!$A$4:$A$3600,MassDataLink!$E$4:$E$3600) ->  | H162: =LOOKUP(C162,MassDataLink!$A$4:$A$3600,MassDataLink!$F$4:$F$3600) ->  | J162: 49 | K162: - - - | L162: - - -
B163: 50 | C163: -1 | D163: =LOOKUP(C163,MassDataLink!$A$4:$A$3600,MassDataLink!$B$4:$B$3600) ->  | E163: =LOOKUP(C163,MassDataLink!$A$4:$A$3600,MassDataLink!$C$4:$C$3600) ->  | F163: =LOOKUP(C163,MassDataLink!$A$4:$A$3600,MassDataLink!$D$4:$D$3600) ->  | G163: =LOOKUP(C163,MassDataLink!$A$4:$A$3600,MassDataLink!$E$4:$E$3600) ->  | H163: =LOOKUP(C163,MassDataLink!$A$4:$A$3600,MassDataLink!$F$4:$F$3600) ->  | J163: 50 | K163: - - - | L163: - - -
B164: =B163+1 -> 51 | C164: =IF(C163=-1,-1,H163) -> -1 | D164: =LOOKUP(C164,MassDataLink!$A$4:$A$3600,MassDataLink!$B$4:$B$3600) ->  | E164: =LOOKUP(C164,MassDataLink!$A$4:$A$3600,MassDataLink!$C$4:$C$3600) ->  | F164: =LOOKUP(C164,MassDataLink!$A$4:$A$3600,MassDataLink!$D$4:$D$3600) ->  | G164: =LOOKUP(C164,MassDataLink!$A$4:$A$3600,MassDataLink!$E$4:$E$3600) ->  | H164: =LOOKUP(C164,MassDataLink!$A$4:$A$3600,MassDataLink!$F$4:$F$3600) ->  | J164: =J163+1 -> 51 | K164: =IF(C164=-1,$L$112,IF($A$11=D164,ROUND((E164*$P$57),$R$57),$L$112)) -> - - - | L164: =IF(K164=$L$112,$L$112,F164) -> - - -
B165: 52 | C165: -1 | D165: =LOOKUP(C165,MassDataLink!$A$4:$A$3600,MassDataLink!$B$4:$B$3600) ->  | E165: =LOOKUP(C165,MassDataLink!$A$4:$A$3600,MassDataLink!$C$4:$C$3600) ->  | F165: =LOOKUP(C165,MassDataLink!$A$4:$A$3600,MassDataLink!$D$4:$D$3600) ->  | G165: =LOOKUP(C165,MassDataLink!$A$4:$A$3600,MassDataLink!$E$4:$E$3600) ->  | H165: =LOOKUP(C165,MassDataLink!$A$4:$A$3600,MassDataLink!$F$4:$F$3600) ->  | J165: 52 | K165: - - - | L165: - - -
B166: 53 | C166: -1 | D166: =LOOKUP(C166,MassDataLink!$A$4:$A$3600,MassDataLink!$B$4:$B$3600) ->  | E166: =LOOKUP(C166,MassDataLink!$A$4:$A$3600,MassDataLink!$C$4:$C$3600) ->  | F166: =LOOKUP(C166,MassDataLink!$A$4:$A$3600,MassDataLink!$D$4:$D$3600) ->  | G166: =LOOKUP(C166,MassDataLink!$A$4:$A$3600,MassDataLink!$E$4:$E$3600) ->  | H166: =LOOKUP(C166,MassDataLink!$A$4:$A$3600,MassDataLink!$F$4:$F$3600) ->  | J166: 53 | K166: - - - | L166: - - -
B167: 54 | C167: -1 | D167: =LOOKUP(C167,MassDataLink!$A$4:$A$3600,MassDataLink!$B$4:$B$3600) ->  | E167: =LOOKUP(C167,MassDataLink!$A$4:$A$3600,MassDataLink!$C$4:$C$3600) ->  | F167: =LOOKUP(C167,MassDataLink!$A$4:$A$3600,MassDataLink!$D$4:$D$3600) ->  | G167: =LOOKUP(C167,MassDataLink!$A$4:$A$3600,MassDataLink!$E$4:$E$3600) ->  | H167: =LOOKUP(C167,MassDataLink!$A$4:$A$3600,MassDataLink!$F$4:$F$3600) ->  | J167: 54 | K167: - - - | L167: - - -
B168: 55 | C168: -1 | D168: =LOOKUP(C168,MassDataLink!$A$4:$A$3600,MassDataLink!$B$4:$B$3600) ->  | E168: =LOOKUP(C168,MassDataLink!$A$4:$A$3600,MassDataLink!$C$4:$C$3600) ->  | F168: =LOOKUP(C168,MassDataLink!$A$4:$A$3600,MassDataLink!$D$4:$D$3600) ->  | G168: =LOOKUP(C168,MassDataLink!$A$4:$A$3600,MassDataLink!$E$4:$E$3600) ->  | H168: =LOOKUP(C168,MassDataLink!$A$4:$A$3600,MassDataLink!$F$4:$F$3600) ->  | J168: 55 | K168: - - - | L168: - - -
B169: 56 | C169: -1 | D169: =LOOKUP(C169,MassDataLink!$A$4:$A$3600,MassDataLink!$B$4:$B$3600) ->  | E169: =LOOKUP(C169,MassDataLink!$A$4:$A$3600,MassDataLink!$C$4:$C$3600) ->  | F169: =LOOKUP(C169,MassDataLink!$A$4:$A$3600,MassDataLink!$D$4:$D$3600) ->  | G169: =LOOKUP(C169,MassDataLink!$A$4:$A$3600,MassDataLink!$E$4:$E$3600) ->  | H169: =LOOKUP(C169,MassDataLink!$A$4:$A$3600,MassDataLink!$F$4:$F$3600) ->  | J169: 56 | K169: - - - | L169: - - -
B170: 57 | C170: -1 | D170: =LOOKUP(C170,MassDataLink!$A$4:$A$3600,MassDataLink!$B$4:$B$3600) ->  | E170: =LOOKUP(C170,MassDataLink!$A$4:$A$3600,MassDataLink!$C$4:$C$3600) ->  | F170: =LOOKUP(C170,MassDataLink!$A$4:$A$3600,MassDataLink!$D$4:$D$3600) ->  | G170: =LOOKUP(C170,MassDataLink!$A$4:$A$3600,MassDataLink!$E$4:$E$3600) ->  | H170: =LOOKUP(C170,MassDataLink!$A$4:$A$3600,MassDataLink!$F$4:$F$3600) ->  | J170: 57 | K170: - - - | L170: - - -
B171: 58 | C171: -1 | D171: =LOOKUP(C171,MassDataLink!$A$4:$A$3600,MassDataLink!$B$4:$B$3600) ->  | E171: =LOOKUP(C171,MassDataLink!$A$4:$A$3600,MassDataLink!$C$4:$C$3600) ->  | F171: =LOOKUP(C171,MassDataLink!$A$4:$A$3600,MassDataLink!$D$4:$D$3600) ->  | G171: =LOOKUP(C171,MassDataLink!$A$4:$A$3600,MassDataLink!$E$4:$E$3600) ->  | H171: =LOOKUP(C171,MassDataLink!$A$4:$A$3600,MassDataLink!$F$4:$F$3600) ->  | J171: 58 | K171: - - - | L171: - - -
B172: 59 | C172: -1 | D172: =LOOKUP(C172,MassDataLink!$A$4:$A$3600,MassDataLink!$B$4:$B$3600) ->  | E172: =LOOKUP(C172,MassDataLink!$A$4:$A$3600,MassDataLink!$C$4:$C$3600) ->  | F172: =LOOKUP(C172,MassDataLink!$A$4:$A$3600,MassDataLink!$D$4:$D$3600) ->  | G172: =LOOKUP(C172,MassDataLink!$A$4:$A$3600,MassDataLink!$E$4:$E$3600) ->  | H172: =LOOKUP(C172,MassDataLink!$A$4:$A$3600,MassDataLink!$F$4:$F$3600) ->  | J172: 59 | K172: - - - | L172: - - -
B173: 60 | C173: -1 | D173: =LOOKUP(C173,MassDataLink!$A$4:$A$3600,MassDataLink!$B$4:$B$3600) ->  | E173: =LOOKUP(C173,MassDataLink!$A$4:$A$3600,MassDataLink!$C$4:$C$3600) ->  | F173: =LOOKUP(C173,MassDataLink!$A$4:$A$3600,MassDataLink!$D$4:$D$3600) ->  | G173: =LOOKUP(C173,MassDataLink!$A$4:$A$3600,MassDataLink!$E$4:$E$3600) ->  | H173: =LOOKUP(C173,MassDataLink!$A$4:$A$3600,MassDataLink!$F$4:$F$3600) ->  | J173: 60 | K173: - - - | L173: - - -
B174: 61 | C174: -1 | D174: =LOOKUP(C174,MassDataLink!$A$4:$A$3600,MassDataLink!$B$4:$B$3600) ->  | E174: =LOOKUP(C174,MassDataLink!$A$4:$A$3600,MassDataLink!$C$4:$C$3600) ->  | F174: =LOOKUP(C174,MassDataLink!$A$4:$A$3600,MassDataLink!$D$4:$D$3600) ->  | G174: =LOOKUP(C174,MassDataLink!$A$4:$A$3600,MassDataLink!$E$4:$E$3600) ->  | H174: =LOOKUP(C174,MassDataLink!$A$4:$A$3600,MassDataLink!$F$4:$F$3600) ->  | J174: 61 | K174: - - - | L174: - - -
B175: 62 | C175: -1 | D175: =LOOKUP(C175,MassDataLink!$A$4:$A$3600,MassDataLink!$B$4:$B$3600) ->  | E175: =LOOKUP(C175,MassDataLink!$A$4:$A$3600,MassDataLink!$C$4:$C$3600) ->  | F175: =LOOKUP(C175,MassDataLink!$A$4:$A$3600,MassDataLink!$D$4:$D$3600) ->  | G175: =LOOKUP(C175,MassDataLink!$A$4:$A$3600,MassDataLink!$E$4:$E$3600) ->  | H175: =LOOKUP(C175,MassDataLink!$A$4:$A$3600,MassDataLink!$F$4:$F$3600) ->  | J175: 62 | K175: - - - | L175: - - -
B176: 63 | C176: -1 | D176: =LOOKUP(C176,MassDataLink!$A$4:$A$3600,MassDataLink!$B$4:$B$3600) ->  | E176: =LOOKUP(C176,MassDataLink!$A$4:$A$3600,MassDataLink!$C$4:$C$3600) ->  | F176: =LOOKUP(C176,MassDataLink!$A$4:$A$3600,MassDataLink!$D$4:$D$3600) ->  | G176: =LOOKUP(C176,MassDataLink!$A$4:$A$3600,MassDataLink!$E$4:$E$3600) ->  | H176: =LOOKUP(C176,MassDataLink!$A$4:$A$3600,MassDataLink!$F$4:$F$3600) ->  | J176: 63 | K176: - - - | L176: - - -
B177: 64 | C177: -1 | D177: =LOOKUP(C177,MassDataLink!$A$4:$A$3600,MassDataLink!$B$4:$B$3600) ->  | E177: =LOOKUP(C177,MassDataLink!$A$4:$A$3600,MassDataLink!$C$4:$C$3600) ->  | F177: =LOOKUP(C177,MassDataLink!$A$4:$A$3600,MassDataLink!$D$4:$D$3600) ->  | G177: =LOOKUP(C177,MassDataLink!$A$4:$A$3600,MassDataLink!$E$4:$E$3600) ->  | H177: =LOOKUP(C177,MassDataLink!$A$4:$A$3600,MassDataLink!$F$4:$F$3600) ->  | J177: 64 | K177: - - - | L177: - - -
B178: 65 | C178: -1 | D178: =LOOKUP(C178,MassDataLink!$A$4:$A$3600,MassDataLink!$B$4:$B$3600) ->  | E178: =LOOKUP(C178,MassDataLink!$A$4:$A$3600,MassDataLink!$C$4:$C$3600) ->  | F178: =LOOKUP(C178,MassDataLink!$A$4:$A$3600,MassDataLink!$D$4:$D$3600) ->  | G178: =LOOKUP(C178,MassDataLink!$A$4:$A$3600,MassDataLink!$E$4:$E$3600) ->  | H178: =LOOKUP(C178,MassDataLink!$A$4:$A$3600,MassDataLink!$F$4:$F$3600) ->  | J178: 65 | K178: - - - | L178: - - -
B179: 66 | C179: -1 | D179: =LOOKUP(C179,MassDataLink!$A$4:$A$3600,MassDataLink!$B$4:$B$3600) ->  | E179: =LOOKUP(C179,MassDataLink!$A$4:$A$3600,MassDataLink!$C$4:$C$3600) ->  | F179: =LOOKUP(C179,MassDataLink!$A$4:$A$3600,MassDataLink!$D$4:$D$3600) ->  | G179: =LOOKUP(C179,MassDataLink!$A$4:$A$3600,MassDataLink!$E$4:$E$3600) ->  | H179: =LOOKUP(C179,MassDataLink!$A$4:$A$3600,MassDataLink!$F$4:$F$3600) ->  | J179: 66 | K179: - - - | L179: - - -
B180: 67 | C180: -1 | D180: =LOOKUP(C180,MassDataLink!$A$4:$A$3600,MassDataLink!$B$4:$B$3600) ->  | E180: =LOOKUP(C180,MassDataLink!$A$4:$A$3600,MassDataLink!$C$4:$C$3600) ->  | F180: =LOOKUP(C180,MassDataLink!$A$4:$A$3600,MassDataLink!$D$4:$D$3600) ->  | G180: =LOOKUP(C180,MassDataLink!$A$4:$A$3600,MassDataLink!$E$4:$E$3600) ->  | H180: =LOOKUP(C180,MassDataLink!$A$4:$A$3600,MassDataLink!$F$4:$F$3600) ->  | J180: 67 | K180: - - - | L180: - - -
B181: 68 | C181: -1 | D181: =LOOKUP(C181,MassDataLink!$A$4:$A$3600,MassDataLink!$B$4:$B$3600) ->  | E181: =LOOKUP(C181,MassDataLink!$A$4:$A$3600,MassDataLink!$C$4:$C$3600) ->  | F181: =LOOKUP(C181,MassDataLink!$A$4:$A$3600,MassDataLink!$D$4:$D$3600) ->  | G181: =LOOKUP(C181,MassDataLink!$A$4:$A$3600,MassDataLink!$E$4:$E$3600) ->  | H181: =LOOKUP(C181,MassDataLink!$A$4:$A$3600,MassDataLink!$F$4:$F$3600) ->  | J181: 68 | K181: - - - | L181: - - -
B182: 69 | C182: -1 | D182: =LOOKUP(C182,MassDataLink!$A$4:$A$3600,MassDataLink!$B$4:$B$3600) ->  | E182: =LOOKUP(C182,MassDataLink!$A$4:$A$3600,MassDataLink!$C$4:$C$3600) ->  | F182: =LOOKUP(C182,MassDataLink!$A$4:$A$3600,MassDataLink!$D$4:$D$3600) ->  | G182: =LOOKUP(C182,MassDataLink!$A$4:$A$3600,MassDataLink!$E$4:$E$3600) ->  | H182: =LOOKUP(C182,MassDataLink!$A$4:$A$3600,MassDataLink!$F$4:$F$3600) ->  | J182: 69 | K182: - - - | L182: - - -
B183: 70 | C183: -1 | D183: =LOOKUP(C183,MassDataLink!$A$4:$A$3600,MassDataLink!$B$4:$B$3600) ->  | E183: =LOOKUP(C183,MassDataLink!$A$4:$A$3600,MassDataLink!$C$4:$C$3600) ->  | F183: =LOOKUP(C183,MassDataLink!$A$4:$A$3600,MassDataLink!$D$4:$D$3600) ->  | G183: =LOOKUP(C183,MassDataLink!$A$4:$A$3600,MassDataLink!$E$4:$E$3600) ->  | H183: =LOOKUP(C183,MassDataLink!$A$4:$A$3600,MassDataLink!$F$4:$F$3600) ->  | J183: 70 | K183: - - - | L183: - - -
B184: 71 | C184: -1 | D184: =LOOKUP(C184,MassDataLink!$A$4:$A$3600,MassDataLink!$B$4:$B$3600) ->  | E184: =LOOKUP(C184,MassDataLink!$A$4:$A$3600,MassDataLink!$C$4:$C$3600) ->  | F184: =LOOKUP(C184,MassDataLink!$A$4:$A$3600,MassDataLink!$D$4:$D$3600) ->  | G184: =LOOKUP(C184,MassDataLink!$A$4:$A$3600,MassDataLink!$E$4:$E$3600) ->  | H184: =LOOKUP(C184,MassDataLink!$A$4:$A$3600,MassDataLink!$F$4:$F$3600) ->  | J184: 71 | K184: - - - | L184: - - -
B185: 72 | C185: -1 | D185: =LOOKUP(C185,MassDataLink!$A$4:$A$3600,MassDataLink!$B$4:$B$3600) ->  | E185: =LOOKUP(C185,MassDataLink!$A$4:$A$3600,MassDataLink!$C$4:$C$3600) ->  | F185: =LOOKUP(C185,MassDataLink!$A$4:$A$3600,MassDataLink!$D$4:$D$3600) ->  | G185: =LOOKUP(C185,MassDataLink!$A$4:$A$3600,MassDataLink!$E$4:$E$3600) ->  | H185: =LOOKUP(C185,MassDataLink!$A$4:$A$3600,MassDataLink!$F$4:$F$3600) ->  | J185: 72 | K185: - - - | L185: - - -
B186: 73 | C186: -1 | D186: =LOOKUP(C186,MassDataLink!$A$4:$A$3600,MassDataLink!$B$4:$B$3600) ->  | E186: =LOOKUP(C186,MassDataLink!$A$4:$A$3600,MassDataLink!$C$4:$C$3600) ->  | F186: =LOOKUP(C186,MassDataLink!$A$4:$A$3600,MassDataLink!$D$4:$D$3600) ->  | G186: =LOOKUP(C186,MassDataLink!$A$4:$A$3600,MassDataLink!$E$4:$E$3600) ->  | H186: =LOOKUP(C186,MassDataLink!$A$4:$A$3600,MassDataLink!$F$4:$F$3600) ->  | J186: 73 | K186: - - - | L186: - - -
B187: 74 | C187: -1 | D187: =LOOKUP(C187,MassDataLink!$A$4:$A$3600,MassDataLink!$B$4:$B$3600) ->  | E187: =LOOKUP(C187,MassDataLink!$A$4:$A$3600,MassDataLink!$C$4:$C$3600) ->  | F187: =LOOKUP(C187,MassDataLink!$A$4:$A$3600,MassDataLink!$D$4:$D$3600) ->  | G187: =LOOKUP(C187,MassDataLink!$A$4:$A$3600,MassDataLink!$E$4:$E$3600) ->  | H187: =LOOKUP(C187,MassDataLink!$A$4:$A$3600,MassDataLink!$F$4:$F$3600) ->  | J187: 74 | K187: - - - | L187: - - -
B188: 75 | C188: -1 | D188: =LOOKUP(C188,MassDataLink!$A$4:$A$3600,MassDataLink!$B$4:$B$3600) ->  | E188: =LOOKUP(C188,MassDataLink!$A$4:$A$3600,MassDataLink!$C$4:$C$3600) ->  | F188: =LOOKUP(C188,MassDataLink!$A$4:$A$3600,MassDataLink!$D$4:$D$3600) ->  | G188: =LOOKUP(C188,MassDataLink!$A$4:$A$3600,MassDataLink!$E$4:$E$3600) ->  | H188: =LOOKUP(C188,MassDataLink!$A$4:$A$3600,MassDataLink!$F$4:$F$3600) ->  | J188: 75 | K188: - - - | L188: - - -
B189: 76 | C189: -1 | D189: =LOOKUP(C189,MassDataLink!$A$4:$A$3600,MassDataLink!$B$4:$B$3600) ->  | E189: =LOOKUP(C189,MassDataLink!$A$4:$A$3600,MassDataLink!$C$4:$C$3600) ->  | F189: =LOOKUP(C189,MassDataLink!$A$4:$A$3600,MassDataLink!$D$4:$D$3600) ->  | G189: =LOOKUP(C189,MassDataLink!$A$4:$A$3600,MassDataLink!$E$4:$E$3600) ->  | H189: =LOOKUP(C189,MassDataLink!$A$4:$A$3600,MassDataLink!$F$4:$F$3600) ->  | J189: 76 | K189: - - - | L189: - - -
B190: 77 | C190: -1 | D190: =LOOKUP(C190,MassDataLink!$A$4:$A$3600,MassDataLink!$B$4:$B$3600) ->  | E190: =LOOKUP(C190,MassDataLink!$A$4:$A$3600,MassDataLink!$C$4:$C$3600) ->  | F190: =LOOKUP(C190,MassDataLink!$A$4:$A$3600,MassDataLink!$D$4:$D$3600) ->  | G190: =LOOKUP(C190,MassDataLink!$A$4:$A$3600,MassDataLink!$E$4:$E$3600) ->  | H190: =LOOKUP(C190,MassDataLink!$A$4:$A$3600,MassDataLink!$F$4:$F$3600) ->  | J190: 77 | K190: - - - | L190: - - -
B191: 78 | C191: -1 | D191: =LOOKUP(C191,MassDataLink!$A$4:$A$3600,MassDataLink!$B$4:$B$3600) ->  | E191: =LOOKUP(C191,MassDataLink!$A$4:$A$3600,MassDataLink!$C$4:$C$3600) ->  | F191: =LOOKUP(C191,MassDataLink!$A$4:$A$3600,MassDataLink!$D$4:$D$3600) ->  | G191: =LOOKUP(C191,MassDataLink!$A$4:$A$3600,MassDataLink!$E$4:$E$3600) ->  | H191: =LOOKUP(C191,MassDataLink!$A$4:$A$3600,MassDataLink!$F$4:$F$3600) ->  | J191: 78 | K191: - - - | L191: - - -
B192: 79 | C192: -1 | D192: =LOOKUP(C192,MassDataLink!$A$4:$A$3600,MassDataLink!$B$4:$B$3600) ->  | E192: =LOOKUP(C192,MassDataLink!$A$4:$A$3600,MassDataLink!$C$4:$C$3600) ->  | F192: =LOOKUP(C192,MassDataLink!$A$4:$A$3600,MassDataLink!$D$4:$D$3600) ->  | G192: =LOOKUP(C192,MassDataLink!$A$4:$A$3600,MassDataLink!$E$4:$E$3600) ->  | H192: =LOOKUP(C192,MassDataLink!$A$4:$A$3600,MassDataLink!$F$4:$F$3600) ->  | J192: 79 | K192: - - - | L192: - - -
B193: 80 | C193: -1 | D193: =LOOKUP(C193,MassDataLink!$A$4:$A$3600,MassDataLink!$B$4:$B$3600) ->  | E193: =LOOKUP(C193,MassDataLink!$A$4:$A$3600,MassDataLink!$C$4:$C$3600) ->  | F193: =LOOKUP(C193,MassDataLink!$A$4:$A$3600,MassDataLink!$D$4:$D$3600) ->  | G193: =LOOKUP(C193,MassDataLink!$A$4:$A$3600,MassDataLink!$E$4:$E$3600) ->  | H193: =LOOKUP(C193,MassDataLink!$A$4:$A$3600,MassDataLink!$F$4:$F$3600) ->  | J193: 80 | K193: - - - | L193: - - -
B194: 81 | C194: -1 | D194: =LOOKUP(C194,MassDataLink!$A$4:$A$3600,MassDataLink!$B$4:$B$3600) ->  | E194: =LOOKUP(C194,MassDataLink!$A$4:$A$3600,MassDataLink!$C$4:$C$3600) ->  | F194: =LOOKUP(C194,MassDataLink!$A$4:$A$3600,MassDataLink!$D$4:$D$3600) ->  | G194: =LOOKUP(C194,MassDataLink!$A$4:$A$3600,MassDataLink!$E$4:$E$3600) ->  | H194: =LOOKUP(C194,MassDataLink!$A$4:$A$3600,MassDataLink!$F$4:$F$3600) ->  | J194: 81 | K194: - - - | L194: - - -
B195: 82 | C195: -1 | D195: =LOOKUP(C195,MassDataLink!$A$4:$A$3600,MassDataLink!$B$4:$B$3600) ->  | E195: =LOOKUP(C195,MassDataLink!$A$4:$A$3600,MassDataLink!$C$4:$C$3600) ->  | F195: =LOOKUP(C195,MassDataLink!$A$4:$A$3600,MassDataLink!$D$4:$D$3600) ->  | G195: =LOOKUP(C195,MassDataLink!$A$4:$A$3600,MassDataLink!$E$4:$E$3600) ->  | H195: =LOOKUP(C195,MassDataLink!$A$4:$A$3600,MassDataLink!$F$4:$F$3600) ->  | J195: 82 | K195: - - - | L195: - - -
B196: 83 | C196: -1 | D196: =LOOKUP(C196,MassDataLink!$A$4:$A$3600,MassDataLink!$B$4:$B$3600) ->  | E196: =LOOKUP(C196,MassDataLink!$A$4:$A$3600,MassDataLink!$C$4:$C$3600) ->  | F196: =LOOKUP(C196,MassDataLink!$A$4:$A$3600,MassDataLink!$D$4:$D$3600) ->  | G196: =LOOKUP(C196,MassDataLink!$A$4:$A$3600,MassDataLink!$E$4:$E$3600) ->  | H196: =LOOKUP(C196,MassDataLink!$A$4:$A$3600,MassDataLink!$F$4:$F$3600) ->  | J196: 83 | K196: - - - | L196: - - -
B197: 84 | C197: -1 | D197: =LOOKUP(C197,MassDataLink!$A$4:$A$3600,MassDataLink!$B$4:$B$3600) ->  | E197: =LOOKUP(C197,MassDataLink!$A$4:$A$3600,MassDataLink!$C$4:$C$3600) ->  | F197: =LOOKUP(C197,MassDataLink!$A$4:$A$3600,MassDataLink!$D$4:$D$3600) ->  | G197: =LOOKUP(C197,MassDataLink!$A$4:$A$3600,MassDataLink!$E$4:$E$3600) ->  | H197: =LOOKUP(C197,MassDataLink!$A$4:$A$3600,MassDataLink!$F$4:$F$3600) ->  | J197: 84 | K197: - - - | L197: - - -
B198: 85 | C198: -1 | D198: =LOOKUP(C198,MassDataLink!$A$4:$A$3600,MassDataLink!$B$4:$B$3600) ->  | E198: =LOOKUP(C198,MassDataLink!$A$4:$A$3600,MassDataLink!$C$4:$C$3600) ->  | F198: =LOOKUP(C198,MassDataLink!$A$4:$A$3600,MassDataLink!$D$4:$D$3600) ->  | G198: =LOOKUP(C198,MassDataLink!$A$4:$A$3600,MassDataLink!$E$4:$E$3600) ->  | H198: =LOOKUP(C198,MassDataLink!$A$4:$A$3600,MassDataLink!$F$4:$F$3600) ->  | J198: 85 | K198: - - - | L198: - - -
B199: 86 | C199: -1 | D199: =LOOKUP(C199,MassDataLink!$A$4:$A$3600,MassDataLink!$B$4:$B$3600) ->  | E199: =LOOKUP(C199,MassDataLink!$A$4:$A$3600,MassDataLink!$C$4:$C$3600) ->  | F199: =LOOKUP(C199,MassDataLink!$A$4:$A$3600,MassDataLink!$D$4:$D$3600) ->  | G199: =LOOKUP(C199,MassDataLink!$A$4:$A$3600,MassDataLink!$E$4:$E$3600) ->  | H199: =LOOKUP(C199,MassDataLink!$A$4:$A$3600,MassDataLink!$F$4:$F$3600) ->  | J199: 86 | K199: - - - | L199: - - -
B200: 87 | C200: -1 | D200: =LOOKUP(C200,MassDataLink!$A$4:$A$3600,MassDataLink!$B$4:$B$3600) ->  | E200: =LOOKUP(C200,MassDataLink!$A$4:$A$3600,MassDataLink!$C$4:$C$3600) ->  | F200: =LOOKUP(C200,MassDataLink!$A$4:$A$3600,MassDataLink!$D$4:$D$3600) ->  | G200: =LOOKUP(C200,MassDataLink!$A$4:$A$3600,MassDataLink!$E$4:$E$3600) ->  | H200: =LOOKUP(C200,MassDataLink!$A$4:$A$3600,MassDataLink!$F$4:$F$3600) ->  | J200: 87 | K200: - - - | L200: - - -
B201: 88 | C201: -1 | D201: =LOOKUP(C201,MassDataLink!$A$4:$A$3600,MassDataLink!$B$4:$B$3600) ->  | E201: =LOOKUP(C201,MassDataLink!$A$4:$A$3600,MassDataLink!$C$4:$C$3600) ->  | F201: =LOOKUP(C201,MassDataLink!$A$4:$A$3600,MassDataLink!$D$4:$D$3600) ->  | G201: =LOOKUP(C201,MassDataLink!$A$4:$A$3600,MassDataLink!$E$4:$E$3600) ->  | H201: =LOOKUP(C201,MassDataLink!$A$4:$A$3600,MassDataLink!$F$4:$F$3600) ->  | J201: 88 | K201: - - - | L201: - - -
B202: 89 | C202: -1 | D202: =LOOKUP(C202,MassDataLink!$A$4:$A$3600,MassDataLink!$B$4:$B$3600) ->  | E202: =LOOKUP(C202,MassDataLink!$A$4:$A$3600,MassDataLink!$C$4:$C$3600) ->  | F202: =LOOKUP(C202,MassDataLink!$A$4:$A$3600,MassDataLink!$D$4:$D$3600) ->  | G202: =LOOKUP(C202,MassDataLink!$A$4:$A$3600,MassDataLink!$E$4:$E$3600) ->  | H202: =LOOKUP(C202,MassDataLink!$A$4:$A$3600,MassDataLink!$F$4:$F$3600) ->  | J202: 89 | K202: - - - | L202: - - -
B203: 90 | C203: -1 | D203: =LOOKUP(C203,MassDataLink!$A$4:$A$3600,MassDataLink!$B$4:$B$3600) ->  | E203: =LOOKUP(C203,MassDataLink!$A$4:$A$3600,MassDataLink!$C$4:$C$3600) ->  | F203: =LOOKUP(C203,MassDataLink!$A$4:$A$3600,MassDataLink!$D$4:$D$3600) ->  | G203: =LOOKUP(C203,MassDataLink!$A$4:$A$3600,MassDataLink!$E$4:$E$3600) ->  | H203: =LOOKUP(C203,MassDataLink!$A$4:$A$3600,MassDataLink!$F$4:$F$3600) ->  | J203: 90 | K203: - - - | L203: - - -
B204: 91 | C204: -1 | D204: =LOOKUP(C204,MassDataLink!$A$4:$A$3600,MassDataLink!$B$4:$B$3600) ->  | E204: =LOOKUP(C204,MassDataLink!$A$4:$A$3600,MassDataLink!$C$4:$C$3600) ->  | F204: =LOOKUP(C204,MassDataLink!$A$4:$A$3600,MassDataLink!$D$4:$D$3600) ->  | G204: =LOOKUP(C204,MassDataLink!$A$4:$A$3600,MassDataLink!$E$4:$E$3600) ->  | H204: =LOOKUP(C204,MassDataLink!$A$4:$A$3600,MassDataLink!$F$4:$F$3600) ->  | J204: 91 | K204: - - - | L204: - - -
B205: 92 | C205: -1 | D205: =LOOKUP(C205,MassDataLink!$A$4:$A$3600,MassDataLink!$B$4:$B$3600) ->  | E205: =LOOKUP(C205,MassDataLink!$A$4:$A$3600,MassDataLink!$C$4:$C$3600) ->  | F205: =LOOKUP(C205,MassDataLink!$A$4:$A$3600,MassDataLink!$D$4:$D$3600) ->  | G205: =LOOKUP(C205,MassDataLink!$A$4:$A$3600,MassDataLink!$E$4:$E$3600) ->  | H205: =LOOKUP(C205,MassDataLink!$A$4:$A$3600,MassDataLink!$F$4:$F$3600) ->  | J205: 92 | K205: - - - | L205: - - -
... 133 more rows

Sheet ModelData (hidden)
B1: 1 | C1: 6 | D1: 7 | E1: 8 | F1: 10 | G1: 11 | H1: 12 | I1: 13 | J1: 14 | K1: 15 | L1: 16 | M1: 17 | N1: 18 | O1: 19 | P1: 20 | Q1: 21 | R1: 22 | S1: 23 | T1: 24 | U1: 25 | V1: 26 | W1: 27 | X1: 28 | Y1: 29 | Z1: 30 | AA1: 31 | AB1: 32 | AC1: 33
A2: データ№ | B2: ｱｸﾁｭｴｰﾀ型式 | C2: 最小ｽﾄﾛｰｸ | D2: 最大ｽﾄﾛｰｸ | E2: 動作種別 | F2: リンク[0] | I2: リンク[1] | L2: リンク[2] | O2: リンク[3] | R2: リンク[4] | U2: リンク[5] | X2: リンク[6] | AA2: リンク[7]
A3: 0 | C3: ㎜ | D3: ㎜ | E3: 1/0:回/直 | F3: ﾘｰﾄﾞ | G3: ｽﾄﾛｰｸ | H3: 搬送負荷 | I3: ﾘｰﾄﾞ | J3: ｽﾄﾛｰｸ | K3: 搬送負荷 | L3: ﾘｰﾄﾞ | M3: ｽﾄﾛｰｸ | N3: 搬送負荷 | O3: ﾘｰﾄﾞ | P3: ｽﾄﾛｰｸ | Q3: 搬送負荷 | R3: ﾘｰﾄﾞ | S3: ｽﾄﾛｰｸ | T3: 搬送負荷 | U3: ﾘｰﾄﾞ | V3: ｽﾄﾛｰｸ | W3: 搬送負荷 | X3: ﾘｰﾄﾞ | Y3: ｽﾄﾛｰｸ | Z3: 搬送負荷 | AA3: ﾘｰﾄﾞ | AB3: ｽﾄﾛｰｸ | AC3: 搬送負荷
A4: =A3+1 -> 1 | B4: RCP4-SA5C | C4: 50 | D4: 800 | E4: 0 | F4: =LeadData!A4 -> 1 | G4: =StrokeData!A4 -> 1 | H4: =MassDataLink!A4 -> 1 | I4: =LeadData!A5 -> 2 | J4: =StrokeData!A10 -> 7 | K4: =MassDataLink!A20 -> 17 | L4: =LeadData!A6 -> 3 | M4: =StrokeData!A16 -> 13 | N4: =MassDataLink!A34 -> 31 | O4: =LeadData!A7 -> 4 | P4: =StrokeData!A22 -> 19 | Q4: =MassDataLink!A47 -> 44 | R4: -1 | S4: -1 | T4: -1 | U4: -1 | V4: -1 | W4: -1 | X4: -1 | Y4: -1 | Z4: -1 | AA4: -1 | AB4: -1 | AC4: -1
A5: =A4+1 -> 2 | B5: RCP4-SA6C | C5: 50 | D5: 800 | E5: 0 | F5: =LeadData!A8 -> 5 | G5: =StrokeData!A27 -> 24 | H5: =MassDataLink!A57 -> 54 | I5: =LeadData!A9 -> 6 | J5: =StrokeData!A33 -> 30 | K5: =MassDataLink!A74 -> 71 | L5: =LeadData!A10 -> 7 | M5: =StrokeData!A39 -> 36 | N5: =MassDataLink!A88 -> 85 | O5: =LeadData!A11 -> 8 | P5: =StrokeData!A45 -> 42 | Q5: =MassDataLink!A101 -> 98 | R5: -1 | S5: -1 | T5: -1 | U5: -1 | V5: -1 | W5: -1 | X5: -1 | Y5: -1 | Z5: -1 | AA5: -1 | AB5: -1 | AC5: -1
A6: =A5+1 -> 3 | B6: RCP4-SA7C | C6: 50 | D6: 800 | E6: 0 | F6: =LeadData!A12 -> 9 | G6: =StrokeData!A50 -> 47 | H6: =MassDataLink!A109 -> 106 | I6: =LeadData!A13 -> 10 | J6: =StrokeData!A52 -> 49 | K6: =MassDataLink!A113 -> 110 | L6: =LeadData!A14 -> 11 | M6: =StrokeData!A54 -> 51 | N6: =MassDataLink!A120 -> 117 | O6: =LeadData!A15 -> 12 | P6: =StrokeData!A56 -> 53 | Q6: =MassDataLink!A128 -> 125 | R6: -1 | S6: -1 | T6: -1 | U6: -1 | V6: -1 | W6: -1 | X6: -1 | Y6: -1 | Z6: -1 | AA6: -1 | AB6: -1 | AC6: -1
A7: 4 | B7: RCP4-RA5C | C7: 50 | D7: 400 | E7: 0 | F7: =LeadData!A16 -> 13 | G7: =StrokeData!A59 -> 56 | H7: =MassDataLink!A135 -> 132 | I7: =LeadData!A17 -> 14 | J7: =StrokeData!A60 -> 57 | K7: =MassDataLink!A141 -> 138 | L7: =LeadData!A18 -> 15 | M7: =StrokeData!A61 -> 58 | N7: =MassDataLink!A148 -> 145 | O7: =LeadData!A19 -> 16 | P7: =StrokeData!A62 -> 59 | Q7: =MassDataLink!A156 -> 153 | R7: -1 | S7: -1 | T7: -1 | U7: -1 | V7: -1 | W7: -1 | X7: -1 | Y7: -1 | Z7: -1 | AA7: -1 | AB7: -1 | AC7: -1
A8: =A7+1 -> 5 | B8: RCP4-RA6C | C8: 50 | D8: 500 | E8: 0 | F8: =LeadData!A20 -> 17 | G8: =StrokeData!A63 -> 60 | H8: =MassDataLink!A162 -> 159 | I8: =LeadData!A21 -> 18 | J8: =StrokeData!A64 -> 61 | K8: =MassDataLink!A168 -> 165 | L8: =LeadData!A22 -> 19 | M8: =StrokeData!A65 -> 62 | N8: =MassDataLink!A173 -> 170 | O8: =LeadData!A23 -> 20 | P8: =StrokeData!A66 -> 63 | Q8: =MassDataLink!A179 -> 176 | R8: -1 | S8: -1 | T8: -1 | U8: -1 | V8: -1 | W8: -1 | X8: -1 | Y8: -1 | Z8: -1 | AA8: -1 | AB8: -1 | AC8: -1
A9: 6 | B9: ERC3-SA5 | C9: 50 | D9: 800 | E9: 0 | F9: =LeadData!A24 -> 21 | G9: =StrokeData!A67 -> 64 | H9: =MassDataLink!A184 -> 181 | I9: =LeadData!A25 -> 22 | J9: =StrokeData!A73 -> 70 | K9: =MassDataLink!A187 -> 184 | L9: =LeadData!A26 -> 23 | M9: =StrokeData!A79 -> 76 | N9: =MassDataLink!A190 -> 187 | O9: =LeadData!A27 -> 24 | P9: =StrokeData!A85 -> 82 | Q9: =MassDataLink!A194 -> 191 | R9: -1 | S9: -1 | T9: -1 | U9: -1 | V9: -1 | W9: -1 | X9: -1 | Y9: -1 | Z9: -1 | AA9: -1 | AB9: -1 | AC9: -1
A10: 7 | B10: ERC3-SA7 | C10: 50 | D10: 800 | E10: 0 | F10: =LeadData!A28 -> 25 | G10: =StrokeData!A91 -> 88 | H10: =MassDataLink!A198 -> 195 | I10: =LeadData!A29 -> 26 | J10: =StrokeData!A93 -> 90 | K10: =MassDataLink!A201 -> 198 | L10: =LeadData!A30 -> 27 | M10: =StrokeData!A95 -> 92 | N10: =MassDataLink!A206 -> 203 | O10: =LeadData!A31 -> 28 | P10: =StrokeData!A96 -> 93 | Q10: =MassDataLink!A210 -> 207 | R10: -1 | S10: -1 | T10: -1 | U10: -1 | V10: -1 | W10: -1 | X10: -1 | Y10: -1 | Z10: -1 | AA10: -1 | AB10: -1 | AC10: -1
A11: 8 | B11: ERC3-RA4 | C11: 50 | D11: 300 | E11: 0 | F11: =LeadData!A32 -> 29 | G11: =StrokeData!A97 -> 94 | H11: =MassDataLink!A214 -> 211 | I11: =LeadData!A33 -> 30 | J11: =StrokeData!A99 -> 96 | K11: =MassDataLink!A217 -> 214 | L11: =LeadData!A34 -> 31 | M11: =StrokeData!A101 -> 98 | N11: =MassDataLink!A221 -> 218 | O11: =LeadData!A35 -> 32 | P11: =StrokeData!A103 -> 100 | Q11: =MassDataLink!A226 -> 223 | R11: -1 | S11: -1 | T11: -1 | U11: -1 | V11: -1 | W11: -1 | X11: -1 | Y11: -1 | Z11: -1 | AA11: -1 | AB11: -1 | AC11: -1
A12: 9 | B12: ERC3-RA6 | C12: 50 | D12: 300 | E12: 0 | F12: =LeadData!A36 -> 33 | G12: =StrokeData!A104 -> 101 | H12: =MassDataLink!A231 -> 228 | I12: =LeadData!A37 -> 34 | J12: =StrokeData!A105 -> 102 | K12: =MassDataLink!A235 -> 232 | L12: =LeadData!A38 -> 35 | M12: =StrokeData!A106 -> 103 | N12: =MassDataLink!A239 -> 236 | O12: =LeadData!A39 -> 36 | P12: =StrokeData!A107 -> 104 | Q12: =MassDataLink!A243 -> 240 | R12: -1 | S12: -1 | T12: -1 | U12: -1 | V12: -1 | W12: -1 | X12: -1 | Y12: -1 | Z12: -1 | AA12: -1 | AB12: -1 | AC12: -1
A13: 10 | B13: RCP4-SA5R | C13: 50 | D13: 800 | E13: 0 | F13: =LeadData!A40 -> 37 | G13: =StrokeData!A108 -> 105 | H13: =MassDataLink!A248 -> 245 | I13: =LeadData!A41 -> 38 | J13: =StrokeData!A114 -> 111 | K13: =MassDataLink!A264 -> 261 | L13: =LeadData!A42 -> 39 | M13: =StrokeData!A120 -> 117 | N13: =MassDataLink!A279 -> 276 | O13: =LeadData!A43 -> 40 | P13: =StrokeData!A126 -> 123 | Q13: =MassDataLink!A292 -> 289 | R13: -1 | S13: -1 | T13: -1 | U13: -1 | V13: -1 | W13: -1 | X13: -1 | Y13: -1 | Z13: -1 | AA13: -1 | AB13: -1 | AC13: -1
A14: 11 | B14: RCP4-SA6R | C14: 50 | D14: 800 | E14: 0 | F14: =LeadData!A44 -> 41 | G14: =StrokeData!A131 -> 128 | H14: =MassDataLink!A302 -> 299 | I14: =LeadData!A45 -> 42 | J14: =StrokeData!A137 -> 134 | K14: =MassDataLink!A319 -> 316 | L14: =LeadData!A46 -> 43 | M14: =StrokeData!A143 -> 140 | N14: =MassDataLink!A334 -> 331 | O14: =LeadData!A47 -> 44 | P14: =StrokeData!A149 -> 146 | Q14: =MassDataLink!A347 -> 344 | R14: -1 | S14: -1 | T14: -1 | U14: -1 | V14: -1 | W14: -1 | X14: -1 | Y14: -1 | Z14: -1 | AA14: -1 | AB14: -1 | AC14: -1
A15: 12 | B15: RCP4-SA7R | C15: 50 | D15: 800 | E15: 0 | F15: =LeadData!A48 -> 45 | G15: =StrokeData!A154 -> 151 | H15: =MassDataLink!A356 -> 353 | I15: =LeadData!A49 -> 46 | J15: =StrokeData!A156 -> 153 | K15: =MassDataLink!A361 -> 358 | L15: =LeadData!A50 -> 47 | M15: =StrokeData!A158 -> 155 | N15: =MassDataLink!A368 -> 365 | O15: =LeadData!A51 -> 48 | P15: =StrokeData!A160 -> 157 | Q15: =MassDataLink!A376 -> 373 | R15: -1 | S15: -1 | T15: -1 | U15: -1 | V15: -1 | W15: -1 | X15: -1 | Y15: -1 | Z15: -1 | AA15: -1 | AB15: -1 | AC15: -1
A16: 13 | B16: RCP4-RA5R | C16: 50 | D16: 400 | E16: 0 | F16: =LeadData!A52 -> 49 | G16: =StrokeData!A162 -> 159 | H16: =MassDataLink!A381 -> 378 | I16: =LeadData!A53 -> 50 | J16: =StrokeData!A163 -> 160 | K16: =MassDataLink!A387 -> 384 | L16: =LeadData!A54 -> 51 | M16: =StrokeData!A164 -> 161 | N16: =MassDataLink!A394 -> 391 | O16: =LeadData!A55 -> 52 | P16: =StrokeData!A165 -> 162 | Q16: =MassDataLink!A402 -> 399 | R16: -1 | S16: -1 | T16: -1 | U16: -1 | V16: -1 | W16: -1 | X16: -1 | Y16: -1 | Z16: -1 | AA16: -1 | AB16: -1 | AC16: -1
A17: 14 | B17: RCP4-RA6R | C17: 50 | D17: 500 | E17: 0 | F17: =LeadData!A56 -> 53 | G17: =StrokeData!A166 -> 163 | H17: =MassDataLink!A408 -> 405 | I17: =LeadData!A57 -> 54 | J17: =StrokeData!A167 -> 164 | K17: =MassDataLink!A414 -> 411 | L17: =LeadData!A58 -> 55 | M17: =StrokeData!A168 -> 165 | N17: =MassDataLink!A419 -> 416 | O17: =LeadData!A59 -> 56 | P17: =StrokeData!A169 -> 166 | Q17: =MassDataLink!A425 -> 422 | R17: -1 | S17: -1 | T17: -1 | U17: -1 | V17: -1 | W17: -1 | X17: -1 | Y17: -1 | Z17: -1 | AA17: -1 | AB17: -1 | AC17: -1
A18: 15 | B18: ERC3D-SA5 | C18: 50 | D18: 800 | E18: 0 | F18: =LeadData!A60 -> 57 | G18: =StrokeData!A170 -> 167 | H18: =MassDataLink!A430 -> 427 | I18: =LeadData!A61 -> 58 | J18: =StrokeData!A176 -> 173 | K18: =MassDataLink!A433 -> 430 | L18: =LeadData!A62 -> 59 | M18: =StrokeData!A182 -> 179 | N18: =MassDataLink!A436 -> 433 | O18: =LeadData!A63 -> 60 | P18: =StrokeData!A188 -> 185 | Q18: =MassDataLink!A440 -> 437 | R18: -1 | S18: -1 | T18: -1 | U18: -1 | V18: -1 | W18: -1 | X18: -1 | Y18: -1 | Z18: -1 | AA18: -1 | AB18: -1 | AC18: -1
A19: 16 | B19: ERC3D-SA7 | C19: 50 | D19: 800 | E19: 0 | F19: =LeadData!A64 -> 61 | G19: =StrokeData!A193 -> 190 | H19: =MassDataLink!A444 -> 441 | I19: =LeadData!A65 -> 62 | J19: =StrokeData!A194 -> 191 | K19: =MassDataLink!A447 -> 444 | L19: =LeadData!A66 -> 63 | M19: =StrokeData!A195 -> 192 | N19: =MassDataLink!A452 -> 449 | O19: =LeadData!A67 -> 64 | P19: =StrokeData!A197 -> 194 | Q19: =MassDataLink!A456 -> 453 | R19: -1 | S19: -1 | T19: -1 | U19: -1 | V19: -1 | W19: -1 | X19: -1 | Y19: -1 | Z19: -1 | AA19: -1 | AB19: -1 | AC19: -1
A20: 17 | B20: ERC3CR-SA5 | C20: 50 | D20: 800 | E20: 0 | F20: =LeadData!A68 -> 65 | G20: =StrokeData!A199 -> 196 | H20: =MassDataLink!A460 -> 457 | I20: =LeadData!A69 -> 66 | J20: =StrokeData!A205 -> 202 | K20: =MassDataLink!A463 -> 460 | L20: =LeadData!A70 -> 67 | M20: =StrokeData!A211 -> 208 | N20: =MassDataLink!A466 -> 463 | O20: =LeadData!A71 -> 68 | P20: =StrokeData!A217 -> 214 | Q20: =MassDataLink!A470 -> 467 | R20: -1 | S20: -1 | T20: -1 | U20: -1 | V20: -1 | W20: -1 | X20: -1 | Y20: -1 | Z20: -1 | AA20: -1 | AB20: -1 | AC20: -1
A21: 18 | B21: ERC3CR-SA7 | C21: 50 | D21: 800 | E21: 0 | F21: =LeadData!A72 -> 69 | G21: =StrokeData!A222 -> 219 | H21: =MassDataLink!A474 -> 471 | I21: =LeadData!A73 -> 70 | J21: =StrokeData!A223 -> 220 | K21: =MassDataLink!A477 -> 474 | L21: =LeadData!A74 -> 71 | M21: =StrokeData!A224 -> 221 | N21: =MassDataLink!A482 -> 479 | O21: =LeadData!A75 -> 72 | P21: =StrokeData!A226 -> 223 | Q21: =MassDataLink!A486 -> 483 | R21: -1 | S21: -1 | T21: -1 | U21: -1 | V21: -1 | W21: -1 | X21: -1 | Y21: -1 | Z21: -1 | AA21: -1 | AB21: -1 | AC21: -1
A22: 19 | B22: RCP5-SA4C | C22: 50 | D22: 500 | E22: 0 | F22: =LeadData!A76 -> 73 | G22: =StrokeData!A228 -> 225 | H22: =MassDataLink!A490 -> 487 | I22: =LeadData!A77 -> 74 | J22: =StrokeData!A229 -> 226 | K22: =MassDataLink!A498 -> 495 | L22: =LeadData!A78 -> 75 | M22: =StrokeData!A230 -> 227 | N22: =MassDataLink!A509 -> 506 | O22: =LeadData!A79 -> 76 | P22: =StrokeData!A231 -> 228 | Q22: =MassDataLink!A521 -> 518 | R22: -1 | S22: -1 | T22: -1 | U22: -1 | V22: -1 | W22: -1 | X22: -1 | Y22: -1 | Z22: -1 | AA22: -1 | AB22: -1 | AC22: -1
A23: 20 | B23: RCP5-SA6C | C23: 50 | D23: 800 | E23: 0 | F23: =LeadData!A80 -> 77 | G23: =StrokeData!A232 -> 229 | H23: =MassDataLink!A530 -> 527 | I23: =LeadData!A81 -> 78 | J23: =StrokeData!A238 -> 235 | K23: =MassDataLink!A547 -> 544 | L23: =LeadData!A82 -> 79 | M23: =StrokeData!A244 -> 241 | N23: =MassDataLink!A561 -> 558 | O23: =LeadData!A83 -> 80 | P23: =StrokeData!A250 -> 247 | Q23: =MassDataLink!A574 -> 571 | R23: -1 | S23: -1 | T23: -1 | U23: -1 | V23: -1 | W23: -1 | X23: -1 | Y23: -1 | Z23: -1 | AA23: -1 | AB23: -1 | AC23: -1
A24: 21 | B24: RCP5-SA7C | C24: 50 | D24: 800 | E24: 0 | F24: =LeadData!A84 -> 81 | G24: =StrokeData!A255 -> 252 | H24: =MassDataLink!A582 -> 579 | I24: =LeadData!A85 -> 82 | J24: =StrokeData!A257 -> 254 | K24: =MassDataLink!A586 -> 583 | L24: =LeadData!A86 -> 83 | M24: =StrokeData!A259 -> 256 | N24: =MassDataLink!A593 -> 590 | O24: =LeadData!A87 -> 84 | P24: =StrokeData!A261 -> 258 | Q24: =MassDataLink!A601 -> 598 | R24: -1 | S24: -1 | T24: -1 | U24: -1 | V24: -1 | W24: -1 | X24: -1 | Y24: -1 | Z24: -1 | AA24: -1 | AB24: -1 | AC24: -1
A25: 22 | B25: RCP5-RA4C | C25: 60 | D25: 410 | E25: 0 | F25: =LeadData!A88 -> 85 | G25: =StrokeData!A263 -> 260 | H25: =MassDataLink!A607 -> 604 | I25: =LeadData!A89 -> 86 | J25: =StrokeData!A265 -> 262 | K25: =MassDataLink!A621 -> 618 | L25: =LeadData!A90 -> 87 | M25: =StrokeData!A267 -> 264 | N25: =MassDataLink!A640 -> 637 | O25: =LeadData!A91 -> 88 | P25: =StrokeData!A269 -> 266 | Q25: =MassDataLink!A659 -> 656 | R25: -1 | S25: -1 | T25: -1 | U25: -1 | V25: -1 | W25: -1 | X25: -1 | Y25: -1 | Z25: -1 | AA25: -1 | AB25: -1 | AC25: -1
A26: 23 | B26: RCP5-RA6C | C26: 65 | D26: 415 | E26: 0 | F26: =LeadData!A92 -> 89 | G26: =StrokeData!A270 -> 267 | H26: =MassDataLink!A672 -> 669 | I26: =LeadData!A93 -> 90 | J26: =StrokeData!A271 -> 268 | K26: =MassDataLink!A678 -> 675 | L26: =LeadData!A94 -> 91 | M26: =StrokeData!A272 -> 269 | N26: =MassDataLink!A685 -> 682 | O26: =LeadData!A95 -> 92 | P26: =StrokeData!A273 -> 270 | Q26: =MassDataLink!A693 -> 690 | R26: -1 | S26: -1 | T26: -1 | U26: -1 | V26: -1 | W26: -1 | X26: -1 | Y26: -1 | Z26: -1 | AA26: -1 | AB26: -1 | AC26: -1
A27: 24 | B27: RCP5-RA7C | C27: 70 | D27: 520 | E27: 0 | F27: =LeadData!A96 -> 93 | G27: =StrokeData!A274 -> 271 | H27: =MassDataLink!A699 -> 696 | I27: =LeadData!A97 -> 94 | J27: =StrokeData!A275 -> 272 | K27: =MassDataLink!A705 -> 702 | L27: =LeadData!A98 -> 95 | M27: =StrokeData!A276 -> 273 | N27: =MassDataLink!A710 -> 707 | O27: =LeadData!A99 -> 96 | P27: =StrokeData!A277 -> 274 | Q27: =MassDataLink!A716 -> 713 | R27: -1 | S27: -1 | T27: -1 | U27: -1 | V27: -1 | W27: -1 | X27: -1 | Y27: -1 | Z27: -1 | AA27: -1 | AB27: -1 | AC27: -1
A28: =A27+1 -> 25 | B28: RCP4W-RA6C | C28: 50 | D28: 400 | E28: 0 | F28: =LeadData!A100 -> 97 | G28: =StrokeData!A278 -> 275 | H28: =MassDataLink!A721 -> 718 | I28: =LeadData!A101 -> 98 | J28: =StrokeData!A279 -> 276 | K28: =MassDataLink!A724 -> 721 | L28: =LeadData!A102 -> 99 | M28: =StrokeData!A281 -> 278 | N28: =MassDataLink!A728 -> 725 | O28: -1 | P28: -1 | Q28: -1 | R28: -1 | S28: -1 | T28: -1 | U28: -1 | V28: -1 | W28: -1 | X28: -1 | Y28: -1 | Z28: -1 | AA28: -1 | AB28: -1 | AC28: -1
A29: 26 | B29: RCP4W-RA6C(高推力) | C29: 50 | D29: 400 | E29: 0 | F29: =LeadData!A103 -> 100 | G29: =StrokeData!A282 -> 279 | H29: =MassDataLink!A732 -> 729 | I29: -1 | J29: -1 | K29: -1 | L29: -1 | M29: -1 | N29: -1 | O29: -1 | P29: -1 | Q29: -1 | R29: -1 | S29: -1 | T29: -1 | U29: -1 | V29: -1 | W29: -1 | X29: -1 | Y29: -1 | Z29: -1 | AA29: -1 | AB29: -1 | AC29: -1
A30: 27 | B30: RCP4W-RA7C | C30: 50 | D30: 500 | E30: 0 | F30: =LeadData!A104 -> 101 | G30: =StrokeData!A283 -> 280 | H30: =MassDataLink!A734 -> 731 | I30: =LeadData!A105 -> 102 | J30: =StrokeData!A284 -> 281 | K30: =MassDataLink!A739 -> 736 | L30: =LeadData!A106 -> 103 | M30: =StrokeData!A285 -> 282 | N30: =MassDataLink!A744 -> 741 | O30: -1 | P30: -1 | Q30: -1 | R30: -1 | S30: -1 | T30: -1 | U30: -1 | V30: -1 | W30: -1 | X30: -1 | Y30: -1 | Z30: -1 | AA30: -1 | AB30: -1 | AC30: -1
A31: 28 | B31: RCP4W-RA7C(高推力) | C31: 50 | D31: 500 | E31: 0 | F31: =LeadData!A107 -> 104 | G31: =StrokeData!A286 -> 283 | H31: =MassDataLink!A748 -> 745 | I31: -1 | J31: -1 | K31: -1 | L31: -1 | M31: -1 | N31: -1 | O31: -1 | P31: -1 | Q31: -1 | R31: -1 | S31: -1 | T31: -1 | U31: -1 | V31: -1 | W31: -1 | X31: -1 | Y31: -1 | Z31: -1 | AA31: -1 | AB31: -1 | AC31: -1
A32: 29 | B32: RCP4-SA3C | C32: 25 | D32: 300 | E32: 0 | F32: =LeadData!A108 -> 105 | G32: =StrokeData!A287 -> 284 | H32: =MassDataLink!A750 -> 747 | I32: =LeadData!A109 -> 106 | J32: =StrokeData!A288 -> 285 | K32: =MassDataLink!A767 -> 764 | L32: =LeadData!A110 -> 107 | M32: =StrokeData!A289 -> 286 | N32: =MassDataLink!A779 -> 776 | O32: -1 | P32: -1 | Q32: -1 | R32: -1 | S32: -1 | T32: -1 | U32: -1 | V32: -1 | W32: -1 | X32: -1 | Y32: -1 | Z32: -1 | AA32: -1 | AB32: -1 | AC32: -1
A33: 30 | B33: RCP4-RA3C | C33: 25 | D33: 300 | E33: 0 | F33: =LeadData!A111 -> 108 | G33: =StrokeData!A290 -> 287 | H33: =MassDataLink!A787 -> 784 | I33: =LeadData!A112 -> 109 | J33: =StrokeData!A291 -> 288 | K33: =MassDataLink!A805 -> 802 | L33: =LeadData!A113 -> 110 | M33: =StrokeData!A292 -> 289 | N33: =MassDataLink!A823 -> 820 | O33: =LeadData!A114 -> 111 | P33: =StrokeData!A293 -> 290 | Q33: =MassDataLink!A842 -> 839 | R33: -1 | S33: -1 | T33: -1 | U33: -1 | V33: -1 | W33: -1 | X33: -1 | Y33: -1 | Z33: -1 | AA33: -1 | AB33: -1 | AC33: -1
A34: 31 | B34: RCP5-RA8C | C34: 50 | D34: 700 | E34: 0 | F34: =LeadData!A115 -> 112 | G34: =StrokeData!A294 -> 291 | H34: =MassDataLink!A855 -> 852 | I34: =LeadData!A116 -> 113 | J34: =StrokeData!A302 -> 299 | K34: =MassDataLink!A867 -> 864 | L34: =LeadData!A117 -> 114 | M34: =StrokeData!A310 -> 307 | N34: =MassDataLink!A885 -> 882 | O34: -1 | P34: -1 | Q34: -1 | R34: -1 | S34: -1 | T34: -1 | U34: -1 | V34: -1 | W34: -1 | X34: -1 | Y34: -1 | Z34: -1 | AA34: -1 | AB34: -1 | AC34: -1
A35: 32 | B35: RCP5-RA10C | C35: 50 | D35: 800 | E35: 0 | F35: =LeadData!A118 -> 115 | G35: =StrokeData!A318 -> 315 | H35: =MassDataLink!A897 -> 894 | I35: =LeadData!A119 -> 116 | J35: =StrokeData!A325 -> 322 | K35: =MassDataLink!A905 -> 902 | L35: =LeadData!A120 -> 117 | M35: =StrokeData!A334 -> 331 | N35: =MassDataLink!A921 -> 918 | O35: -1 | P35: -1 | Q35: -1 | R35: -1 | S35: -1 | T35: -1 | U35: -1 | V35: -1 | W35: -1 | X35: -1 | Y35: -1 | Z35: -1 | AA35: -1 | AB35: -1 | AC35: -1
A36: 33 | B36: RCP5-RA8R | C36: 50 | D36: 700 | E36: 0 | F36: =LeadData!A121 -> 118 | G36: =StrokeData!A341 -> 338 | H36: =MassDataLink!A935 -> 932 | I36: =LeadData!A122 -> 119 | J36: =StrokeData!A347 -> 344 | K36: =MassDataLink!A943 -> 940 | L36: =LeadData!A123 -> 120 | M36: =StrokeData!A353 -> 350 | N36: =MassDataLink!A961 -> 958 | O36: -1 | P36: -1 | Q36: -1 | R36: -1 | S36: -1 | T36: -1 | U36: -1 | V36: -1 | W36: -1 | X36: -1 | Y36: -1 | Z36: -1 | AA36: -1 | AB36: -1 | AC36: -1
A37: =A36+1 -> 34 | B37: RCP5-RA10R | C37: 50 | D37: 800 | E37: 0 | F37: =LeadData!A124 -> 121 | G37: =StrokeData!A359 -> 356 | H37: =MassDataLink!A968 -> 965 | I37: =LeadData!A125 -> 122 | J37: =StrokeData!A364 -> 361 | K37: =MassDataLink!A974 -> 971 | L37: =LeadData!A126 -> 123 | M37: =StrokeData!A372 -> 369 | N37: =MassDataLink!A988 -> 985 | O37: -1 | P37: -1 | Q37: -1 | R37: -1 | S37: -1 | T37: -1 | U37: -1 | V37: -1 | W37: -1 | X37: -1 | Y37: -1 | Z37: -1 | AA37: -1 | AB37: -1 | AC37: -1
A38: 35 | B38: RCP4-SA3R | C38: 25 | D38: 300 | E38: 0 | F38: =LeadData!A127 -> 124 | G38: =StrokeData!A377 -> 374 | H38: =MassDataLink!A997 -> 994 | I38: =LeadData!A128 -> 125 | J38: =StrokeData!A378 -> 375 | K38: =MassDataLink!A1014 -> 1011 | L38: =LeadData!A129 -> 126 | M38: =StrokeData!A379 -> 376 | N38: =MassDataLink!A1026 -> 1023 | O38: -1 | P38: -1 | Q38: -1 | R38: -1 | S38: -1 | T38: -1 | U38: -1 | V38: -1 | W38: -1 | X38: -1 | Y38: -1 | Z38: -1 | AA38: -1 | AB38: -1 | AC38: -1
A39: =A38+1 -> 36 | B39: RCP4-RA3R | C39: 25 | D39: 300 | E39: 0 | F39: =LeadData!A130 -> 127 | G39: =StrokeData!A380 -> 377 | H39: =MassDataLink!A1033 -> 1030 | I39: =LeadData!A131 -> 128 | J39: =StrokeData!A381 -> 378 | K39: =MassDataLink!A1051 -> 1048 | L39: =LeadData!A132 -> 129 | M39: =StrokeData!A382 -> 379 | N39: =MassDataLink!A1069 -> 1066 | O39: =LeadData!A133 -> 130 | P39: =StrokeData!A383 -> 380 | Q39: =MassDataLink!A1086 -> 1083 | R39: -1 | S39: -1 | T39: -1 | U39: -1 | V39: -1 | W39: -1 | X39: -1 | Y39: -1 | Z39: -1 | AA39: -1 | AB39: -1 | AC39: -1
A40: =A39+1 -> 37 | B40: RCP4CR-SA3C | C40: =C32 -> 25 | D40: 300 | E40: 0 | F40: 105 | G40: 284 | H40: 747 | I40: 106 | J40: 285 | K40: 764 | L40: 107 | M40: 286 | N40: 776 | O40: -1 | P40: -1 | Q40: -1 | R40: -1 | S40: -1 | T40: -1 | U40: -1 | V40: -1 | W40: -1 | X40: -1 | Y40: -1 | Z40: -1 | AA40: -1 | AB40: -1 | AC40: -1
A41: 38 | B41: RCP4CR-SA5C | C41: =C4 -> 50 | D41: 800 | E41: 0 | F41: 1 | G41: 1 | H41: 1 | I41: 2 | J41: 7 | K41: 17 | L41: 3 | M41: 13 | N41: 31 | O41: 4 | P41: 19 | Q41: 44 | R41: -1 | S41: -1 | T41: -1 | U41: -1 | V41: -1 | W41: -1 | X41: -1 | Y41: -1 | Z41: -1 | AA41: -1 | AB41: -1 | AC41: -1
A42: 39 | B42: RCP4CR-SA6C | C42: =C5 -> 50 | D42: 800 | E42: 0 | F42: 5 | G42: 24 | H42: 54 | I42: 6 | J42: 30 | K42: 71 | L42: 7 | M42: 36 | N42: 85 | O42: 8 | P42: 42 | Q42: 98 | R42: -1 | S42: -1 | T42: -1 | U42: -1 | V42: -1 | W42: -1 | X42: -1 | Y42: -1 | Z42: -1 | AA42: -1 | AB42: -1 | AC42: -1
A43: 40 | B43: RCP4CR-SA7C | C43: =C6 -> 50 | D43: 800 | E43: 0 | F43: 9 | G43: 47 | H43: 106 | I43: 10 | J43: 49 | K43: 110 | L43: 11 | M43: 51 | N43: 117 | O43: 12 | P43: 53 | Q43: 125 | R43: -1 | S43: -1 | T43: -1 | U43: -1 | V43: -1 | W43: -1 | X43: -1 | Y43: -1 | Z43: -1 | AA43: -1 | AB43: -1 | AC43: -1
A44: 41 | B44: RCP5CR-SA4C | C44: =C22 -> 50 | D44: 500 | E44: 0 | F44: 73 | G44: 225 | H44: 487 | I44: 74 | J44: 226 | K44: 495 | L44: 75 | M44: 227 | N44: 506 | O44: 76 | P44: 228 | Q44: 518 | R44: -1 | S44: -1 | T44: -1 | U44: -1 | V44: -1 | W44: -1 | X44: -1 | Y44: -1 | Z44: -1 | AA44: -1 | AB44: -1 | AC44: -1
A45: 42 | B45: RCP5CR-SA6C | C45: =C23 -> 50 | D45: 800 | E45: 0 | F45: 77 | G45: 229 | H45: 527 | I45: 78 | J45: 235 | K45: 544 | L45: 79 | M45: 241 | N45: 558 | O45: 80 | P45: 247 | Q45: 571 | R45: -1 | S45: -1 | T45: -1 | U45: -1 | V45: -1 | W45: -1 | X45: -1 | Y45: -1 | Z45: -1 | AA45: -1 | AB45: -1 | AC45: -1
A46: =A45+1 -> 43 | B46: RCP5CR-SA7C | C46: =C24 -> 50 | D46: 800 | E46: 0 | F46: 81 | G46: 252 | H46: 579 | I46: 82 | J46: 254 | K46: 583 | L46: 83 | M46: 256 | N46: 590 | O46: 84 | P46: 258 | Q46: 598 | R46: -1 | S46: -1 | T46: -1 | U46: -1 | V46: -1 | W46: -1 | X46: -1 | Y46: -1 | Z46: -1 | AA46: -1 | AB46: -1 | AC46: -1
A47: =A46+1 -> 44 | B47: RCP5-BA4 | C47: 300 | D47: 1200 | E47: 0 | F47: =LeadData!A134 -> 131 | G47: =StrokeData!A384 -> 381 | H47: =MassDataLink!A1097 -> 1094 | I47: -1 | J47: -1 | K47: -1 | L47: -1 | M47: -1 | N47: -1 | O47: -1 | P47: -1 | Q47: -1 | R47: -1 | S47: -1 | T47: -1 | U47: -1 | V47: -1 | W47: -1 | X47: -1 | Y47: -1 | Z47: -1 | AA47: -1 | AB47: -1 | AC47: -1
A48: =A47+1 -> 45 | B48: RCP5-BA6 | C48: 300 | D48: 2200 | E48: 0 | F48: =LeadData!A135 -> 132 | G48: =StrokeData!A385 -> 382 | H48: =MassDataLink!A1099 -> 1096 | I48: -1 | J48: -1 | K48: -1 | L48: -1 | M48: -1 | N48: -1 | O48: -1 | P48: -1 | Q48: -1 | R48: -1 | S48: -1 | T48: -1 | U48: -1 | V48: -1 | W48: -1 | X48: -1 | Y48: -1 | Z48: -1 | AA48: -1 | AB48: -1 | AC48: -1
A49: =A48+1 -> 46 | B49: RCP5-BA7 | C49: 300 | D49: 2600 | E49: 0 | F49: =LeadData!A136 -> 133 | G49: =StrokeData!A386 -> 383 | H49: =MassDataLink!A1101 -> 1098 | I49: -1 | J49: -1 | K49: -1 | L49: -1 | M49: -1 | N49: -1 | O49: -1 | P49: -1 | Q49: -1 | R49: -1 | S49: -1 | T49: -1 | U49: -1 | V49: -1 | W49: -1 | X49: -1 | Y49: -1 | Z49: -1 | AA49: -1 | AB49: -1 | AC49: -1
A50: =A49+1 -> 47 | B50: RCP5-SA4R | C50: 50 | D50: 500 | E50: 0 | F50: =LeadData!A137 -> 134 | G50: =StrokeData!A387 -> 384 | H50: =MassDataLink!A1108 -> 1105 | I50: =LeadData!A138 -> 135 | J50: =StrokeData!A388 -> 385 | K50: =MassDataLink!A1116 -> 1113 | L50: =LeadData!A139 -> 136 | M50: =StrokeData!A389 -> 386 | N50: =MassDataLink!A1127 -> 1124 | O50: =LeadData!A140 -> 137 | P50: =StrokeData!A390 -> 387 | Q50: =MassDataLink!A1139 -> 1136 | R50: -1 | S50: -1 | T50: -1 | U50: -1 | V50: -1 | W50: -1 | X50: -1 | Y50: -1 | Z50: -1 | AA50: -1 | AB50: -1 | AC50: -1
A51: =A50+1 -> 48 | B51: RCP5-SA6R | C51: 50 | D51: 800 | E51: 0 | F51: =LeadData!A141 -> 138 | G51: =StrokeData!A391 -> 388 | H51: =MassDataLink!A1148 -> 1145 | I51: =LeadData!A142 -> 139 | J51: =StrokeData!A397 -> 394 | K51: =MassDataLink!A1165 -> 1162 | L51: =LeadData!A143 -> 140 | M51: =StrokeData!A403 -> 400 | N51: =MassDataLink!A1180 -> 1177 | O51: =LeadData!A144 -> 141 | P51: =StrokeData!A409 -> 406 | Q51: =MassDataLink!A1193 -> 1190 | R51: -1 | S51: -1 | T51: -1 | U51: -1 | V51: -1 | W51: -1 | X51: -1 | Y51: -1 | Z51: -1 | AA51: -1 | AB51: -1 | AC51: -1
A52: 49 | B52: RCP5-SA7R | C52: 50 | D52: 800 | E52: 0 | F52: =LeadData!A145 -> 142 | G52: =StrokeData!A414 -> 411 | H52: =MassDataLink!A1202 -> 1199 | I52: =LeadData!A146 -> 143 | J52: =StrokeData!A416 -> 413 | K52: =MassDataLink!A1207 -> 1204 | L52: =LeadData!A147 -> 144 | M52: =StrokeData!A418 -> 415 | N52: =MassDataLink!A1214 -> 1211 | O52: =LeadData!A148 -> 145 | P52: =StrokeData!A420 -> 417 | Q52: =MassDataLink!A1222 -> 1219 | R52: -1 | S52: -1 | T52: -1 | U52: -1 | V52: -1 | W52: -1 | X52: -1 | Y52: -1 | Z52: -1 | AA52: -1 | AB52: -1 | AC52: -1
A53: 50 | B53: RCP5-RA4R | C53: 60 | D53: 410 | E53: 0 | F53: =LeadData!A149 -> 146 | G53: =StrokeData!A422 -> 419 | H53: =MassDataLink!A1227 -> 1224 | I53: =LeadData!A150 -> 147 | J53: =StrokeData!A423 -> 420 | K53: =MassDataLink!A1240 -> 1237 | L53: =LeadData!A151 -> 148 | M53: =StrokeData!A424 -> 421 | N53: =MassDataLink!A1253 -> 1250 | O53: =LeadData!A152 -> 149 | P53: =StrokeData!A425 -> 422 | Q53: =MassDataLink!A1266 -> 1263 | R53: -1 | S53: -1 | T53: -1 | U53: -1 | V53: -1 | W53: -1 | X53: -1 | Y53: -1 | Z53: -1 | AA53: -1 | AB53: -1 | AC53: -1
A54: 51 | B54: RCP5-RA6R | C54: 65 | D54: 415 | E54: 0 | F54: =LeadData!A153 -> 150 | G54: =StrokeData!A426 -> 423 | H54: =MassDataLink!A1274 -> 1271 | I54: =LeadData!A154 -> 151 | J54: =StrokeData!A427 -> 424 | K54: =MassDataLink!A1280 -> 1277 | L54: =LeadData!A155 -> 152 | M54: =StrokeData!A428 -> 425 | N54: =MassDataLink!A1287 -> 1284 | O54: =LeadData!A156 -> 153 | P54: =StrokeData!A429 -> 426 | Q54: =MassDataLink!A1295 -> 1292 | R54: -1 | S54: -1 | T54: -1 | U54: -1 | V54: -1 | W54: -1 | X54: -1 | Y54: -1 | Z54: -1 | AA54: -1 | AB54: -1 | AC54: -1
A55: 52 | B55: RCP5-RA7R | C55: 70 | D55: 520 | E55: 0 | F55: =LeadData!A157 -> 154 | G55: =StrokeData!A430 -> 427 | H55: =MassDataLink!A1301 -> 1298 | I55: =LeadData!A158 -> 155 | J55: =StrokeData!A431 -> 428 | K55: =MassDataLink!A1307 -> 1304 | L55: =LeadData!A159 -> 156 | M55: =StrokeData!A432 -> 429 | N55: =MassDataLink!A1312 -> 1309 | O55: =LeadData!A160 -> 157 | P55: =StrokeData!A433 -> 430 | Q55: =MassDataLink!A1318 -> 1315 | R55: -1 | S55: -1 | T55: -1 | U55: -1 | V55: -1 | W55: -1 | X55: -1 | Y55: -1 | Z55: -1 | AA55: -1 | AB55: -1 | AC55: -1
A56: 53 | B56: RCP5W-RA6C | C56: =C28 -> 50 | D56: 400 | E56: 0 | F56: 97 | G56: 275 | H56: 718 | I56: 98 | J56: 276 | K56: 721 | L56: 99 | M56: 278 | N56: 725 | O56: -1 | P56: -1 | Q56: -1 | R56: -1 | S56: -1 | T56: -1 | U56: -1 | V56: -1 | W56: -1 | X56: -1 | Y56: -1 | Z56: -1 | AA56: -1 | AB56: -1 | AC56: -1
A57: 54 | B57: RCP5W-RA6C(高推力) | C57: =C29 -> 50 | D57: 400 | E57: 0 | F57: 100 | G57: 279 | H57: 729 | I57: -1 | J57: -1 | K57: -1 | L57: -1 | M57: -1 | N57: -1 | O57: -1 | P57: -1 | Q57: -1 | R57: -1 | S57: -1 | T57: -1 | U57: -1 | V57: -1 | W57: -1 | X57: -1 | Y57: -1 | Z57: -1 | AA57: -1 | AB57: -1 | AC57: -1
A58: 55 | B58: RCP5W-RA7C | C58: =C30 -> 50 | D58: 500 | E58: 0 | F58: 101 | G58: 280 | H58: 731 | I58: 102 | J58: 281 | K58: 736 | L58: 103 | M58: 282 | N58: 741 | O58: -1 | P58: -1 | Q58: -1 | R58: -1 | S58: -1 | T58: -1 | U58: -1 | V58: -1 | W58: -1 | X58: -1 | Y58: -1 | Z58: -1 | AA58: -1 | AB58: -1 | AC58: -1
A59: 56 | B59: RCP5W-RA7C(高推力) | C59: =C31 -> 50 | D59: 500 | E59: 0 | F59: 104 | G59: 283 | H59: 745 | I59: -1 | J59: -1 | K59: -1 | L59: -1 | M59: -1 | N59: -1 | O59: -1 | P59: -1 | Q59: -1 | R59: -1 | S59: -1 | T59: -1 | U59: -1 | V59: -1 | W59: -1 | X59: -1 | Y59: -1 | Z59: -1 | AA59: -1 | AB59: -1 | AC59: -1
A60: 57 | B60: RCP4-RA6C(高推力) | C60: 50 | D60: 500 | E60: 0 | F60: =LeadData!A161 -> 158 | G60: =StrokeData!A434 -> 431 | H60: =MassDataLink!A1323 -> 1320 | I60: -1 | J60: -1 | K60: -1 | L60: -1 | M60: -1 | N60: -1 | O60: -1 | P60: -1 | Q60: -1 | R60: -1 | S60: -1 | T60: -1 | U60: -1 | V60: -1 | W60: -1 | X60: -1 | Y60: -1 | Z60: -1 | AA60: -1 | AB60: -1 | AC60: -1
A61: 58 | B61: RCP5W-RA8C | C61: 50 | D61: 700 | E61: 0 | F61: =LeadData!A162 -> 159 | G61: =StrokeData!A435 -> 432 | H61: =MassDataLink!A1327 -> 1324 | I61: =LeadData!A163 -> 160 | J61: =StrokeData!A442 -> 439 | K61: =MassDataLink!A1338 -> 1335 | L61: =LeadData!A164 -> 161 | M61: =StrokeData!A449 -> 446 | N61: =MassDataLink!A1356 -> 1353 | O61: -1 | P61: -1 | Q61: -1 | R61: -1 | S61: -1 | T61: -1 | U61: -1 | V61: -1 | W61: -1 | X61: -1 | Y61: -1 | Z61: -1 | AA61: -1 | AB61: -1 | AC61: -1
A62: =A61+1 -> 59 | B62: RCP5W-RA10C | C62: 50 | D62: 800 | E62: 0 | F62: =LeadData!A165 -> 162 | G62: =StrokeData!A456 -> 453 | H62: =MassDataLink!A1367 -> 1364 | I62: =LeadData!A166 -> 163 | J62: =StrokeData!A461 -> 458 | K62: =MassDataLink!A1375 -> 1372 | L62: =LeadData!A167 -> 164 | M62: =StrokeData!A469 -> 466 | N62: =MassDataLink!A1391 -> 1388 | O62: -1 | P62: -1 | Q62: -1 | R62: -1 | S62: -1 | T62: -1 | U62: -1 | V62: -1 | W62: -1 | X62: -1 | Y62: -1 | Z62: -1 | AA62: -1 | AB62: -1 | AC62: -1
A63: 60 | B63: RCP6-SA8C | C63: 50 | D63: 1100 | E63: 0 | F63: =LeadData!A168 -> 165 | G63: =StrokeData!A474 -> 471 | H63: =MassDataLink!A1405 -> 1402 | I63: =LeadData!A169 -> 166 | J63: =StrokeData!A484 -> 481 | K63: =MassDataLink!A1424 -> 1421 | L63: =LeadData!A170 -> 167 | M63: =StrokeData!A494 -> 491 | N63: =MassDataLink!A1447 -> 1444 | O63: =LeadData!A171 -> 168 | P63: =StrokeData!A504 -> 501 | Q63: =MassDataLink!A1473 -> 1470 | R63: -1 | S63: -1 | T63: -1 | U63: -1 | V63: -1 | W63: -1 | X63: -1 | Y63: -1 | Z63: -1 | AA63: -1 | AB63: -1 | AC63: -1
A64: 61 | B64: RCP6-SA8R | C64: 50 | D64: 1100 | E64: 0 | F64: =LeadData!A172 -> 169 | G64: =StrokeData!A512 -> 509 | H64: =MassDataLink!A1499 -> 1496 | I64: =LeadData!A173 -> 170 | J64: =StrokeData!A522 -> 519 | K64: =MassDataLink!A1521 -> 1518 | L64: =LeadData!A174 -> 171 | M64: =StrokeData!A532 -> 529 | N64: =MassDataLink!A1544 -> 1541 | O64: =LeadData!A175 -> 172 | P64: =StrokeData!A542 -> 539 | Q64: =MassDataLink!A1569 -> 1566 | R64: -1 | S64: -1 | T64: -1 | U64: -1 | V64: -1 | W64: -1 | X64: -1 | Y64: -1 | Z64: -1 | AA64: -1 | AB64: -1 | AC64: -1
A65: 62 | B65: RCP6-WSA16C | C65: 50 | D65: 1100 | E65: 0 | F65: =LeadData!A176 -> 173 | G65: =StrokeData!A550 -> 547 | H65: =MassDataLink!A1593 -> 1590 | I65: =LeadData!A177 -> 174 | J65: =StrokeData!A558 -> 555 | K65: =MassDataLink!A1612 -> 1609 | L65: =LeadData!A178 -> 175 | M65: =StrokeData!A568 -> 565 | N65: =MassDataLink!A1629 -> 1626 | O65: -1 | P65: -1 | Q65: -1 | R65: -1 | S65: -1 | T65: -1 | U65: -1 | V65: -1 | W65: -1 | X65: -1 | Y65: -1 | Z65: -1 | AA65: -1 | AB65: -1 | AC65: -1
A66: 63 | B66: RCP6-WSA16R | C66: 50 | D66: 1100 | E66: 0 | F66: =LeadData!A179 -> 176 | G66: =StrokeData!A576 -> 573 | H66: =MassDataLink!A1642 -> 1639 | I66: =LeadData!A180 -> 177 | J66: =StrokeData!A583 -> 580 | K66: =MassDataLink!A1654 -> 1651 | L66: =LeadData!A181 -> 178 | M66: =StrokeData!A591 -> 588 | N66: =MassDataLink!A1672 -> 1669 | O66: -1 | P66: -1 | Q66: -1 | R66: -1 | S66: -1 | T66: -1 | U66: -1 | V66: -1 | W66: -1 | X66: -1 | Y66: -1 | Z66: -1 | AA66: -1 | AB66: -1 | AC66: -1
A67: 64 | B67: RCP6-RA8C | C67: 50 | D67: 300 | E67: 0 | F67: =LeadData!A182 -> 179 | G67: =StrokeData!A597 -> 594 | H67: =MassDataLink!A1682 -> 1679 | I67: =LeadData!A183 -> 180 | J67: =StrokeData!A598 -> 595 | K67: =MassDataLink!A1694 -> 1691 | L67: =LeadData!A184 -> 181 | M67: =StrokeData!A599 -> 596 | N67: =MassDataLink!A1712 -> 1709 | O67: -1 | P67: -1 | Q67: -1 | R67: -1 | S67: -1 | T67: -1 | U67: -1 | V67: -1 | W67: -1 | X67: -1 | Y67: -1 | Z67: -1 | AA67: -1 | AB67: -1 | AC67: -1
A68: 65 | B68: RCP6-RA8R | C68: 50 | D68: 300 | E68: 0 | F68: =LeadData!A185 -> 182 | G68: =StrokeData!A600 -> 597 | H68: =MassDataLink!A1724 -> 1721 | I68: =LeadData!A186 -> 183 | J68: =StrokeData!A601 -> 598 | K68: =MassDataLink!A1732 -> 1729 | L68: =LeadData!A187 -> 184 | M68: =StrokeData!A602 -> 599 | N68: =MassDataLink!A1750 -> 1747 | O68: -1 | P68: -1 | Q68: -1 | R68: -1 | S68: -1 | T68: -1 | U68: -1 | V68: -1 | W68: -1 | X68: -1 | Y68: -1 | Z68: -1 | AA68: -1 | AB68: -1 | AC68: -1
A69: 66 | B69: RCP6-RRA8C | C69: 50 | D69: 700 | E69: 0 | F69: =LeadData!A188 -> 185 | G69: =StrokeData!A603 -> 600 | H69: =MassDataLink!A1757 -> 1754 | I69: =LeadData!A189 -> 186 | J69: =StrokeData!A611 -> 608 | K69: =MassDataLink!A1769 -> 1766 | L69: =LeadData!A190 -> 187 | M69: =StrokeData!A619 -> 616 | N69: =MassDataLink!A1787 -> 1784 | O69: -1 | P69: -1 | Q69: -1 | R69: -1 | S69: -1 | T69: -1 | U69: -1 | V69: -1 | W69: -1 | X69: -1 | Y69: -1 | Z69: -1 | AA69: -1 | AB69: -1 | AC69: -1
A70: 67 | B70: RCP6-RRA8R | C70: 50 | D70: 700 | E70: 0 | F70: =LeadData!A191 -> 188 | G70: =StrokeData!A627 -> 624 | H70: =MassDataLink!A1799 -> 1796 | I70: =LeadData!A192 -> 189 | J70: =StrokeData!A633 -> 630 | K70: =MassDataLink!A1807 -> 1804 | L70: =LeadData!A193 -> 190 | M70: =StrokeData!A639 -> 636 | N70: =MassDataLink!A1825 -> 1822 | O70: -1 | P70: -1 | Q70: -1 | R70: -1 | S70: -1 | T70: -1 | U70: -1 | V70: -1 | W70: -1 | X70: -1 | Y70: -1 | Z70: -1 | AA70: -1 | AB70: -1 | AC70: -1
A71: 68 | B71: RCP6-WRA16C | C71: 50 | D71: 800 | E71: 0 | F71: =LeadData!A194 -> 191 | G71: =StrokeData!A645 -> 642 | H71: =MassDataLink!A1832 -> 1829 | I71: =LeadData!A195 -> 192 | J71: =StrokeData!A654 -> 651 | K71: =MassDataLink!A1841 -> 1838 | L71: =LeadData!A196 -> 193 | M71: =StrokeData!A663 -> 660 | N71: =MassDataLink!A1856 -> 1853 | O71: -1 | P71: -1 | Q71: -1 | R71: -1 | S71: -1 | T71: -1 | U71: -1 | V71: -1 | W71: -1 | X71: -1 | Y71: -1 | Z71: -1 | AA71: -1 | AB71: -1 | AC71: -1
A72: 69 | B72: RCP6-WRA16R | C72: 50 | D72: 800 | E72: 0 | F72: =LeadData!A197 -> 194 | G72: =StrokeData!A671 -> 668 | H72: =MassDataLink!A1860 -> 1857 | I72: =LeadData!A198 -> 195 | J72: =StrokeData!A680 -> 677 | K72: =MassDataLink!A1868 -> 1865 | L72: =LeadData!A199 -> 196 | M72: =StrokeData!A689 -> 686 | N72: =MassDataLink!A1881 -> 1878 | O72: -1 | P72: -1 | Q72: -1 | R72: -1 | S72: -1 | T72: -1 | U72: -1 | V72: -1 | W72: -1 | X72: -1 | Y72: -1 | Z72: -1 | AA72: -1 | AB72: -1 | AC72: -1
A73: =A72+1 -> 70 | B73: RCP6-SA4C | C73: 50 | D73: 500 | E73: 0 | F73: =LeadData!A200 -> 197 | G73: =StrokeData!A697 -> 694 | H73: =MassDataLink!A1884 -> 1881 | I73: =LeadData!A201 -> 198 | J73: =StrokeData!A698 -> 695 | K73: =MassDataLink!A1892 -> 1889 | L73: =LeadData!A202 -> 199 | M73: =StrokeData!A699 -> 696 | N73: =MassDataLink!A1901 -> 1898 | O73: =LeadData!A203 -> 200 | P73: =StrokeData!A700 -> 697 | Q73: =MassDataLink!A1913 -> 1910 | R73: -1 | S73: -1 | T73: -1 | U73: -1 | V73: -1 | W73: -1 | X73: -1 | Y73: -1 | Z73: -1 | AA73: -1 | AB73: -1 | AC73: -1
A74: 71 | B74: RCP6-SA6C | C74: 50 | D74: 800 | E74: 0 | F74: =LeadData!A204 -> 201 | G74: =StrokeData!A701 -> 698 | H74: =MassDataLink!A1922 -> 1919 | I74: =LeadData!A205 -> 202 | J74: =StrokeData!A708 -> 705 | K74: =MassDataLink!A1933 -> 1930 | L74: =LeadData!A206 -> 203 | M74: =StrokeData!A715 -> 712 | N74: =MassDataLink!A1944 -> 1941 | O74: =LeadData!A207 -> 204 | P74: =StrokeData!A722 -> 719 | Q74: =MassDataLink!A1955 -> 1952 | R74: -1 | S74: -1 | T74: -1 | U74: -1 | V74: -1 | W74: -1 | X74: -1 | Y74: -1 | Z74: -1 | AA74: -1 | AB74: -1 | AC74: -1
A75: 72 | B75: RCP6-SA7C | C75: 50 | D75: 800 | E75: 0 | F75: =LeadData!A208 -> 205 | G75: =StrokeData!A727 -> 724 | H75: =MassDataLink!A1965 -> 1962 | I75: =LeadData!A209 -> 206 | J75: =StrokeData!A730 -> 727 | K75: =MassDataLink!A1972 -> 1969 | L75: =LeadData!A210 -> 207 | M75: =StrokeData!A733 -> 730 | N75: =MassDataLink!A1981 -> 1978 | O75: =LeadData!A211 -> 208 | P75: =StrokeData!A735 -> 732 | Q75: =MassDataLink!A1993 -> 1990 | R75: -1 | S75: -1 | T75: -1 | U75: -1 | V75: -1 | W75: -1 | X75: -1 | Y75: -1 | Z75: -1 | AA75: -1 | AB75: -1 | AC75: -1
A76: 73 | B76: RCP6-SA4R | C76: 50 | D76: 500 | E76: 0 | F76: =LeadData!A212 -> 209 | G76: =StrokeData!A737 -> 734 | H76: =MassDataLink!A2001 -> 1998 | I76: =LeadData!A213 -> 210 | J76: =StrokeData!A738 -> 735 | K76: =MassDataLink!A2009 -> 2006 | L76: =LeadData!A214 -> 211 | M76: =StrokeData!A739 -> 736 | N76: =MassDataLink!A2018 -> 2015 | O76: =LeadData!A215 -> 212 | P76: =StrokeData!A740 -> 737 | Q76: =MassDataLink!A2030 -> 2027 | R76: -1 | S76: -1 | T76: -1 | U76: -1 | V76: -1 | W76: -1 | X76: -1 | Y76: -1 | Z76: -1 | AA76: -1 | AB76: -1 | AC76: -1
A77: 74 | B77: RCP6-SA6R | C77: 50 | D77: 800 | E77: 0 | F77: =LeadData!A216 -> 213 | G77: =StrokeData!A741 -> 738 | H77: =MassDataLink!A2039 -> 2036 | I77: =LeadData!A217 -> 214 | J77: =StrokeData!A748 -> 745 | K77: =MassDataLink!A2050 -> 2047 | L77: =LeadData!A218 -> 215 | M77: =StrokeData!A755 -> 752 | N77: =MassDataLink!A2061 -> 2058 | O77: =LeadData!A219 -> 216 | P77: =StrokeData!A762 -> 759 | Q77: =MassDataLink!A2072 -> 2069 | R77: -1 | S77: -1 | T77: -1 | U77: -1 | V77: -1 | W77: -1 | X77: -1 | Y77: -1 | Z77: -1 | AA77: -1 | AB77: -1 | AC77: -1
A78: 75 | B78: RCP6-SA7R | C78: 50 | D78: 800 | E78: 0 | F78: =LeadData!A220 -> 217 | G78: =StrokeData!A767 -> 764 | H78: =MassDataLink!A2082 -> 2079 | I78: =LeadData!A221 -> 218 | J78: =StrokeData!A770 -> 767 | K78: =MassDataLink!A2089 -> 2086 | L78: =LeadData!A222 -> 219 | M78: =StrokeData!A773 -> 770 | N78: =MassDataLink!A2098 -> 2095 | O78: =LeadData!A223 -> 220 | P78: =StrokeData!A775 -> 772 | Q78: =MassDataLink!A2110 -> 2107 | R78: -1 | S78: -1 | T78: -1 | U78: -1 | V78: -1 | W78: -1 | X78: -1 | Y78: -1 | Z78: -1 | AA78: -1 | AB78: -1 | AC78: -1
A79: 76 | B79: RCP6-WSA10C | C79: 50 | D79: 500 | E79: 0 | F79: =LeadData!A224 -> 221 | G79: =StrokeData!A777 -> 774 | H79: =MassDataLink!A2118 -> 2115 | I79: =LeadData!A225 -> 222 | J79: =StrokeData!A780 -> 777 | K79: =MassDataLink!A2126 -> 2123 | L79: =LeadData!A226 -> 223 | M79: =StrokeData!A783 -> 780 | N79: =MassDataLink!A2134 -> 2131 | O79: =LeadData!A227 -> 224 | P79: =StrokeData!A784 -> 781 | Q79: =MassDataLink!A2143 -> 2140 | R79: -1 | S79: -1 | T79: -1 | U79: -1 | V79: -1 | W79: -1 | X79: -1 | Y79: -1 | Z79: -1 | AA79: -1 | AB79: -1 | AC79: -1
A80: 77 | B80: RCP6-WSA12C | C80: 50 | D80: 800 | E80: 0 | F80: =LeadData!A228 -> 225 | G80: =StrokeData!A785 -> 782 | H80: =MassDataLink!A2147 -> 2144 | I80: =LeadData!A229 -> 226 | J80: =StrokeData!A792 -> 789 | K80: =MassDataLink!A2156 -> 2153 | L80: =LeadData!A230 -> 227 | M80: =StrokeData!A799 -> 796 | N80: =MassDataLink!A2165 -> 2162 | O80: =LeadData!A231 -> 228 | P80: =StrokeData!A805 -> 802 | Q80: =MassDataLink!A2173 -> 2170 | R80: -1 | S80: -1 | T80: -1 | U80: -1 | V80: -1 | W80: -1 | X80: -1 | Y80: -1 | Z80: -1 | AA80: -1 | AB80: -1 | AC80: -1
A81: 78 | B81: RCP6-WSA14C | C81: 50 | D81: 800 | E81: 0 | F81: =LeadData!A232 -> 229 | G81: =StrokeData!A808 -> 805 | H81: =MassDataLink!A2177 -> 2174 | I81: =LeadData!A233 -> 230 | J81: =StrokeData!A809 -> 806 | K81: =MassDataLink!A2183 -> 2180 | L81: =LeadData!A234 -> 231 | M81: =StrokeData!A810 -> 807 | N81: =MassDataLink!A2191 -> 2188 | O81: =LeadData!A235 -> 232 | P81: =StrokeData!A811 -> 808 | Q81: =MassDataLink!A2197 -> 2194 | R81: -1 | S81: -1 | T81: -1 | U81: -1 | V81: -1 | W81: -1 | X81: -1 | Y81: -1 | Z81: -1 | AA81: -1 | AB81: -1 | AC81: -1
A82: 79 | B82: RCP6-WSA10R | C82: 50 | D82: 500 | E82: 0 | F82: =LeadData!A236 -> 233 | G82: =StrokeData!A812 -> 809 | H82: =MassDataLink!A2203 -> 2200 | I82: =LeadData!A237 -> 234 | J82: =StrokeData!A815 -> 812 | K82: =MassDataLink!A2211 -> 2208 | L82: =LeadData!A238 -> 235 | M82: =StrokeData!A818 -> 815 | N82: =MassDataLink!A2219 -> 2216 | O82: =LeadData!A239 -> 236 | P82: =StrokeData!A819 -> 816 | Q82: =MassDataLink!A2228 -> 2225 | R82: -1 | S82: -1 | T82: -1 | U82: -1 | V82: -1 | W82: -1 | X82: -1 | Y82: -1 | Z82: -1 | AA82: -1 | AB82: -1 | AC82: -1
A83: 80 | B83: RCP6-WSA12R | C83: 50 | D83: 800 | E83: 0 | F83: =LeadData!A240 -> 237 | G83: =StrokeData!A820 -> 817 | H83: =MassDataLink!A2232 -> 2229 | I83: =LeadData!A241 -> 238 | J83: =StrokeData!A827 -> 824 | K83: =MassDataLink!A2241 -> 2238 | L83: =LeadData!A242 -> 239 | M83: =StrokeData!A834 -> 831 | N83: =MassDataLink!A2250 -> 2247 | O83: =LeadData!A243 -> 240 | P83: =StrokeData!A840 -> 837 | Q83: =MassDataLink!A2258 -> 2255 | R83: -1 | S83: -1 | T83: -1 | U83: -1 | V83: -1 | W83: -1 | X83: -1 | Y83: -1 | Z83: -1 | AA83: -1 | AB83: -1 | AC83: -1
A84: 81 | B84: RCP6-WSA14R | C84: 50 | D84: 800 | E84: 0 | F84: =LeadData!A244 -> 241 | G84: =StrokeData!A843 -> 840 | H84: =MassDataLink!A2262 -> 2259 | I84: =LeadData!A245 -> 242 | J84: =StrokeData!A844 -> 841 | K84: =MassDataLink!A2268 -> 2265 | L84: =LeadData!A246 -> 243 | M84: =StrokeData!A845 -> 842 | N84: =MassDataLink!A2276 -> 2273 | O84: =LeadData!A247 -> 244 | P84: =StrokeData!A846 -> 843 | Q84: =MassDataLink!A2282 -> 2279 | R84: -1 | S84: -1 | T84: -1 | U84: -1 | V84: -1 | W84: -1 | X84: -1 | Y84: -1 | Z84: -1 | AA84: -1 | AB84: -1 | AC84: -1
A85: 82 | B85: RCP6-RA4C | C85: 50 | D85: 200 | E85: 0 | F85: =LeadData!A248 -> 245 | G85: =StrokeData!A847 -> 844 | H85: =MassDataLink!A2288 -> 2285 | I85: =LeadData!A249 -> 246 | J85: =StrokeData!A848 -> 845 | K85: =MassDataLink!A2298 -> 2295 | L85: =LeadData!A250 -> 247 | M85: =StrokeData!A849 -> 846 | N85: =MassDataLink!A2310 -> 2307 | O85: =LeadData!A251 -> 248 | P85: =StrokeData!A850 -> 847 | Q85: =MassDataLink!A2322 -> 2319 | R85: -1 | S85: -1 | T85: -1 | U85: -1 | V85: -1 | W85: -1 | X85: -1 | Y85: -1 | Z85: -1 | AA85: -1 | AB85: -1 | AC85: -1
A86: 83 | B86: RCP6-RA6C | C86: 50 | D86: 300 | E86: 0 | F86: =LeadData!A252 -> 249 | G86: =StrokeData!A851 -> 848 | H86: =MassDataLink!A2329 -> 2326 | I86: =LeadData!A253 -> 250 | J86: =StrokeData!A852 -> 849 | K86: =MassDataLink!A2335 -> 2332 | L86: =LeadData!A254 -> 251 | M86: =StrokeData!A853 -> 850 | N86: =MassDataLink!A2345 -> 2342 | O86: =LeadData!A255 -> 252 | P86: =StrokeData!A854 -> 851 | Q86: =MassDataLink!A2355 -> 2352 | R86: -1 | S86: -1 | T86: -1 | U86: -1 | V86: -1 | W86: -1 | X86: -1 | Y86: -1 | Z86: -1 | AA86: -1 | AB86: -1 | AC86: -1
A87: 84 | B87: RCP6-RA7C | C87: 50 | D87: 300 | E87: 0 | F87: =LeadData!A256 -> 253 | G87: =StrokeData!A855 -> 852 | H87: =MassDataLink!A2362 -> 2359 | I87: =LeadData!A257 -> 254 | J87: =StrokeData!A856 -> 853 | K87: =MassDataLink!A2369 -> 2366 | L87: =LeadData!A258 -> 255 | M87: =StrokeData!A857 -> 854 | N87: =MassDataLink!A2376 -> 2373 | O87: =LeadData!A259 -> 256 | P87: =StrokeData!A858 -> 855 | Q87: =MassDataLink!A2384 -> 2381 | R87: -1 | S87: -1 | T87: -1 | U87: -1 | V87: -1 | W87: -1 | X87: -1 | Y87: -1 | Z87: -1 | AA87: -1 | AB87: -1 | AC87: -1
A88: 85 | B88: RCP6-RA4R | C88: 50 | D88: 200 | E88: 0 | F88: =LeadData!A260 -> 257 | G88: =StrokeData!A859 -> 856 | H88: =MassDataLink!A2393 -> 2390 | I88: =LeadData!A261 -> 258 | J88: =StrokeData!A860 -> 857 | K88: =MassDataLink!A2403 -> 2400 | L88: =LeadData!A262 -> 259 | M88: =StrokeData!A861 -> 858 | N88: =MassDataLink!A2415 -> 2412 | O88: =LeadData!A263 -> 260 | P88: =StrokeData!A862 -> 859 | Q88: =MassDataLink!A2427 -> 2424 | R88: -1 | S88: -1 | T88: -1 | U88: -1 | V88: -1 | W88: -1 | X88: -1 | Y88: -1 | Z88: -1 | AA88: -1 | AB88: -1 | AC88: -1
A89: 86 | B89: RCP6-RA6R | C89: 50 | D89: 300 | E89: 0 | F89: =LeadData!A264 -> 261 | G89: =StrokeData!A863 -> 860 | H89: =MassDataLink!A2434 -> 2431 | I89: =LeadData!A265 -> 262 | J89: =StrokeData!A864 -> 861 | K89: =MassDataLink!A2440 -> 2437 | L89: =LeadData!A266 -> 263 | M89: =StrokeData!A865 -> 862 | N89: =MassDataLink!A2450 -> 2447 | O89: =LeadData!A267 -> 264 | P89: =StrokeData!A866 -> 863 | Q89: =MassDataLink!A2460 -> 2457 | R89: -1 | S89: -1 | T89: -1 | U89: -1 | V89: -1 | W89: -1 | X89: -1 | Y89: -1 | Z89: -1 | AA89: -1 | AB89: -1 | AC89: -1
A90: 87 | B90: RCP6-RA7R | C90: 50 | D90: 300 | E90: =E85 -> 0 | F90: =LeadData!A268 -> 265 | G90: =StrokeData!A867 -> 864 | H90: =MassDataLink!A2467 -> 2464 | I90: =LeadData!A269 -> 266 | J90: =StrokeData!A868 -> 865 | K90: =MassDataLink!A2474 -> 2471 | L90: =LeadData!A270 -> 267 | M90: =StrokeData!A869 -> 866 | N90: =MassDataLink!A2481 -> 2478 | O90: =LeadData!A271 -> 268 | P90: =StrokeData!A870 -> 867 | Q90: =MassDataLink!A2489 -> 2486 | R90: -1 | S90: -1 | T90: -1 | U90: -1 | V90: -1 | W90: -1 | X90: -1 | Y90: -1 | Z90: -1 | AA90: -1 | AB90: -1 | AC90: -1
A91: 88 | B91: RCP6-RRA4C | C91: 60 | D91: 410 | E91: =E52 -> 0 | F91: =LeadData!A272 -> 269 | G91: =StrokeData!A871 -> 868 | H91: =MassDataLink!A2498 -> 2495 | I91: =LeadData!A273 -> 270 | J91: =StrokeData!A872 -> 869 | K91: =MassDataLink!A2508 -> 2505 | L91: =LeadData!A274 -> 271 | M91: =StrokeData!A873 -> 870 | N91: =MassDataLink!A2520 -> 2517 | O91: =LeadData!A275 -> 272 | P91: =StrokeData!A874 -> 871 | Q91: =MassDataLink!A2532 -> 2529 | R91: -1 | S91: -1 | T91: -1 | U91: -1 | V91: -1 | W91: -1 | X91: -1 | Y91: -1 | Z91: -1 | AA91: -1 | AB91: -1 | AC91: -1
A92: 89 | B92: RCP6-RRA6C | C92: 65 | D92: 415 | E92: =E53 -> 0 | F92: =LeadData!A276 -> 273 | G92: =StrokeData!A875 -> 872 | H92: =MassDataLink!A2539 -> 2536 | I92: =LeadData!A277 -> 274 | J92: =StrokeData!A876 -> 873 | K92: =MassDataLink!A2545 -> 2542 | L92: =LeadData!A278 -> 275 | M92: =StrokeData!A877 -> 874 | N92: =MassDataLink!A2555 -> 2552 | O92: =LeadData!A279 -> 276 | P92: =StrokeData!A878 -> 875 | Q92: =MassDataLink!A2565 -> 2562 | R92: -1 | S92: -1 | T92: -1 | U92: -1 | V92: -1 | W92: -1 | X92: -1 | Y92: -1 | Z92: -1 | AA92: -1 | AB92: -1 | AC92: -1
A93: 90 | B93: RCP6-RRA7C | C93: 70 | D93: 520 | E93: =E54 -> 0 | F93: =LeadData!A280 -> 277 | G93: =StrokeData!A879 -> 876 | H93: =MassDataLink!A2572 -> 2569 | I93: =LeadData!A281 -> 278 | J93: =StrokeData!A880 -> 877 | K93: =MassDataLink!A2579 -> 2576 | L93: =LeadData!A282 -> 279 | M93: =StrokeData!A881 -> 878 | N93: =MassDataLink!A2586 -> 2583 | O93: =LeadData!A283 -> 280 | P93: =StrokeData!A882 -> 879 | Q93: =MassDataLink!A2594 -> 2591 | R93: -1 | S93: -1 | T93: -1 | U93: -1 | V93: -1 | W93: -1 | X93: -1 | Y93: -1 | Z93: -1 | AA93: -1 | AB93: -1 | AC93: -1
A94: 91 | B94: RCP6-RRA4R | C94: 60 | D94: 410 | E94: =E70 -> 0 | F94: =LeadData!A284 -> 281 | G94: =StrokeData!A883 -> 880 | H94: =MassDataLink!A2601 -> 2598 | I94: =LeadData!A285 -> 282 | J94: =StrokeData!A884 -> 881 | K94: =MassDataLink!A2611 -> 2608 | L94: =LeadData!A286 -> 283 | M94: =StrokeData!A885 -> 882 | N94: =MassDataLink!A2623 -> 2620 | O94: =LeadData!A287 -> 284 | P94: =StrokeData!A886 -> 883 | Q94: =MassDataLink!A2635 -> 2632 | R94: -1 | S94: -1 | T94: -1 | U94: -1 | V94: -1 | W94: -1 | X94: -1 | Y94: -1 | Z94: -1 | AA94: -1 | AB94: -1 | AC94: -1
A95: 92 | B95: RCP6-RRA6R | C95: 65 | D95: 415 | E95: =E71 -> 0 | F95: =LeadData!A288 -> 285 | G95: =StrokeData!A887 -> 884 | H95: =MassDataLink!A2642 -> 2639 | I95: =LeadData!A289 -> 286 | J95: =StrokeData!A888 -> 885 | K95: =MassDataLink!A2648 -> 2645 | L95: =LeadData!A290 -> 287 | M95: =StrokeData!A889 -> 886 | N95: =MassDataLink!A2658 -> 2655 | O95: =LeadData!A291 -> 288 | P95: =StrokeData!A890 -> 887 | Q95: =MassDataLink!A2668 -> 2665 | R95: -1 | S95: -1 | T95: -1 | U95: -1 | V95: -1 | W95: -1 | X95: -1 | Y95: -1 | Z95: -1 | AA95: -1 | AB95: -1 | AC95: -1
A96: 93 | B96: RCP6-RRA7R | C96: 70 | D96: 520 | E96: =E72 -> 0 | F96: =LeadData!A292 -> 289 | G96: =StrokeData!A891 -> 888 | H96: =MassDataLink!A2675 -> 2672 | I96: =LeadData!A293 -> 290 | J96: =StrokeData!A892 -> 889 | K96: =MassDataLink!A2682 -> 2679 | L96: =LeadData!A294 -> 291 | M96: =StrokeData!A893 -> 890 | N96: =MassDataLink!A2689 -> 2686 | O96: =LeadData!A295 -> 292 | P96: =StrokeData!A894 -> 891 | Q96: =MassDataLink!A2697 -> 2694 | R96: -1 | S96: -1 | T96: -1 | U96: -1 | V96: -1 | W96: -1 | X96: -1 | Y96: -1 | Z96: -1 | AA96: -1 | AB96: -1 | AC96: -1
A97: 94 | B97: RCP6-WRA10C | C97: 50 | D97: 500 | E97: 0 | F97: =LeadData!A296 -> 293 | G97: =StrokeData!A895 -> 892 | H97: =MassDataLink!A2704 -> 2701 | I97: =LeadData!A297 -> 294 | J97: =StrokeData!A897 -> 894 | K97: =MassDataLink!A2713 -> 2710 | L97: =LeadData!A298 -> 295 | M97: =StrokeData!A899 -> 896 | N97: =MassDataLink!A2723 -> 2720 | O97: =LeadData!A299 -> 296 | P97: =StrokeData!A900 -> 897 | Q97: =MassDataLink!A2730 -> 2727 | R97: -1 | S97: -1 | T97: -1 | U97: -1 | V97: -1 | W97: -1 | X97: -1 | Y97: -1 | Z97: -1 | AA97: -1 | AB97: -1 | AC97: -1
A98: 95 | B98: RCP6-WRA12C | C98: 50 | D98: 500 | E98: 0 | F98: =LeadData!A300 -> 297 | G98: =StrokeData!A901 -> 898 | H98: =MassDataLink!A2733 -> 2730 | I98: =LeadData!A301 -> 298 | J98: =StrokeData!A902 -> 899 | K98: =MassDataLink!A2738 -> 2735 | L98: =LeadData!A302 -> 299 | M98: =StrokeData!A903 -> 900 | N98: =MassDataLink!A2745 -> 2742 | O98: =LeadData!A303 -> 300 | P98: =StrokeData!A904 -> 901 | Q98: =MassDataLink!A2752 -> 2749 | R98: -1 | S98: -1 | T98: -1 | U98: -1 | V98: -1 | W98: -1 | X98: -1 | Y98: -1 | Z98: -1 | AA98: -1 | AB98: -1 | AC98: -1
A99: 96 | B99: RCP6-WRA14C | C99: 50 | D99: 600 | E99: 0 | F99: =LeadData!A304 -> 301 | G99: =StrokeData!A905 -> 902 | H99: =MassDataLink!A2757 -> 2754 | I99: =LeadData!A305 -> 302 | J99: =StrokeData!A906 -> 903 | K99: =MassDataLink!A2764 -> 2761 | L99: =LeadData!A306 -> 303 | M99: =StrokeData!A907 -> 904 | N99: =MassDataLink!A2771 -> 2768 | O99: =LeadData!A307 -> 304 | P99: =StrokeData!A908 -> 905 | Q99: =MassDataLink!A2776 -> 2773 | R99: -1 | S99: -1 | T99: -1 | U99: -1 | V99: -1 | W99: -1 | X99: -1 | Y99: -1 | Z99: -1 | AA99: -1 | AB99: -1 | AC99: -1
A100: 97 | B100: RCP6-WRA10R | C100: 50 | D100: 500 | E100: 0 | F100: =LeadData!A308 -> 305 | G100: =StrokeData!A909 -> 906 | H100: =MassDataLink!A2780 -> 2777 | I100: =LeadData!A309 -> 306 | J100: =StrokeData!A911 -> 908 | K100: =MassDataLink!A2789 -> 2786 | L100: =LeadData!A310 -> 307 | M100: =StrokeData!A913 -> 910 | N100: =MassDataLink!A2799 -> 2796 | O100: =LeadData!A311 -> 308 | P100: =StrokeData!A914 -> 911 | Q100: =MassDataLink!A2806 -> 2803 | R100: -1 | S100: -1 | T100: -1 | U100: -1 | V100: -1 | W100: -1 | X100: -1 | Y100: -1 | Z100: -1 | AA100: -1 | AB100: -1 | AC100: -1
A101: 98 | B101: RCP6-WRA12R | C101: 50 | D101: 500 | E101: 0 | F101: =LeadData!A312 -> 309 | G101: =StrokeData!A915 -> 912 | H101: =MassDataLink!A2809 -> 2806 | I101: =LeadData!A313 -> 310 | J101: =StrokeData!A916 -> 913 | K101: =MassDataLink!A2814 -> 2811 | L101: =LeadData!A314 -> 311 | M101: =StrokeData!A917 -> 914 | N101: =MassDataLink!A2821 -> 2818 | O101: =LeadData!A315 -> 312 | P101: =StrokeData!A918 -> 915 | Q101: =MassDataLink!A2828 -> 2825 | R101: -1 | S101: -1 | T101: -1 | U101: -1 | V101: -1 | W101: -1 | X101: -1 | Y101: -1 | Z101: -1 | AA101: -1 | AB101: -1 | AC101: -1
A102: 99 | B102: RCP6-WRA14R | C102: 50 | D102: 600 | E102: 0 | F102: =LeadData!A316 -> 313 | G102: =StrokeData!A919 -> 916 | H102: =MassDataLink!A2833 -> 2830 | I102: =LeadData!A317 -> 314 | J102: =StrokeData!A920 -> 917 | K102: =MassDataLink!A2840 -> 2837 | L102: =LeadData!A318 -> 315 | M102: =StrokeData!A921 -> 918 | N102: =MassDataLink!A2847 -> 2844 | O102: =LeadData!A319 -> 316 | P102: =StrokeData!A922 -> 919 | Q102: =MassDataLink!A2852 -> 2849 | R102: -1 | S102: -1 | T102: -1 | U102: -1 | V102: -1 | W102: -1 | X102: -1 | Y102: -1 | Z102: -1 | AA102: -1 | AB102: -1 | AC102: -1
A103: 100 | B103: RCP6-TA4C(SB) | C103: 25 | D103: 150 | E103: 0 | F103: =LeadData!A320 -> 317 | G103: =StrokeData!A923 -> 920 | H103: =MassDataLink!A2856 -> 2853 | I103: =LeadData!A321 -> 318 | J103: =StrokeData!A924 -> 921 | K103: =MassDataLink!A2861 -> 2858 | L103: =LeadData!A322 -> 319 | M103: =StrokeData!A925 -> 922 | N103: =MassDataLink!A2866 -> 2863 | O103: =LeadData!A323 -> 320 | P103: =StrokeData!A926 -> 923 | Q103: =MassDataLink!A2873 -> 2870 | R103: -1 | S103: -1 | T103: -1 | U103: -1 | V103: -1 | W103: -1 | X103: -1 | Y103: -1 | Z103: -1 | AA103: -1 | AB103: -1 | AC103: -1
A104: 101 | B104: RCP6-TA6C(SB) | C104: 25 | D104: 200 | E104: 0 | F104: =LeadData!A324 -> 321 | G104: =StrokeData!A927 -> 924 | H104: =MassDataLink!A2880 -> 2877 | I104: =LeadData!A325 -> 322 | J104: =StrokeData!A928 -> 925 | K104: =MassDataLink!A2889 -> 2886 | L104: =LeadData!A326 -> 323 | M104: =StrokeData!A929 -> 926 | N104: =MassDataLink!A2898 -> 2895 | O104: =LeadData!A327 -> 324 | P104: =StrokeData!A930 -> 927 | Q104: =MassDataLink!A2909 -> 2906 | R104: -1 | S104: -1 | T104: -1 | U104: -1 | V104: -1 | W104: -1 | X104: -1 | Y104: -1 | Z104: -1 | AA104: -1 | AB104: -1 | AC104: -1
A105: 102 | B105: RCP6-TA7C(SB) | C105: 50 | D105: 300 | E105: 0 | F105: =LeadData!A328 -> 325 | G105: =StrokeData!A931 -> 928 | H105: =MassDataLink!A2916 -> 2913 | I105: =LeadData!A329 -> 326 | J105: =StrokeData!A932 -> 929 | K105: =MassDataLink!A2922 -> 2919 | L105: =LeadData!A330 -> 327 | M105: =StrokeData!A933 -> 930 | N105: =MassDataLink!A2927 -> 2924 | O105: =LeadData!A331 -> 328 | P105: =StrokeData!A934 -> 931 | Q105: =MassDataLink!A2932 -> 2929 | R105: -1 | S105: -1 | T105: -1 | U105: -1 | V105: -1 | W105: -1 | X105: -1 | Y105: -1 | Z105: -1 | AA105: -1 | AB105: -1 | AC105: -1
A106: 103 | B106: RCP6-TA4R(SB) | C106: 25 | D106: 150 | E106: =E82 -> 0 | F106: =LeadData!A332 -> 329 | G106: =StrokeData!A935 -> 932 | H106: =MassDataLink!A2937 -> 2934 | I106: =LeadData!A333 -> 330 | J106: =StrokeData!A936 -> 933 | K106: =MassDataLink!A2942 -> 2939 | L106: =LeadData!A334 -> 331 | M106: =StrokeData!A937 -> 934 | N106: =MassDataLink!A2947 -> 2944 | O106: =LeadData!A335 -> 332 | P106: =StrokeData!A938 -> 935 | Q106: =MassDataLink!A2954 -> 2951 | R106: -1 | S106: -1 | T106: -1 | U106: -1 | V106: -1 | W106: -1 | X106: -1 | Y106: -1 | Z106: -1 | AA106: -1 | AB106: -1 | AC106: -1
A107: 104 | B107: RCP6-TA6R(SB) | C107: 25 | D107: 200 | E107: =E83 -> 0 | F107: =LeadData!A336 -> 333 | G107: =StrokeData!A939 -> 936 | H107: =MassDataLink!A2961 -> 2958 | I107: =LeadData!A337 -> 334 | J107: =StrokeData!A940 -> 937 | K107: =MassDataLink!A2970 -> 2967 | L107: =LeadData!A338 -> 335 | M107: =StrokeData!A941 -> 938 | N107: =MassDataLink!A2979 -> 2976 | O107: =LeadData!A339 -> 336 | P107: =StrokeData!A942 -> 939 | Q107: =MassDataLink!A2990 -> 2987 | R107: -1 | S107: -1 | T107: -1 | U107: -1 | V107: -1 | W107: -1 | X107: -1 | Y107: -1 | Z107: -1 | AA107: -1 | AB107: -1 | AC107: -1
A108: 105 | B108: RCP6-TA7R(SB) | C108: 50 | D108: 300 | E108: =E84 -> 0 | F108: =LeadData!A340 -> 337 | G108: =StrokeData!A943 -> 940 | H108: =MassDataLink!A2997 -> 2994 | I108: =LeadData!A341 -> 338 | J108: =StrokeData!A944 -> 941 | K108: =MassDataLink!A3003 -> 3000 | L108: =LeadData!A342 -> 339 | M108: =StrokeData!A945 -> 942 | N108: =MassDataLink!A3008 -> 3005 | O108: =LeadData!A343 -> 340 | P108: =StrokeData!A946 -> 943 | Q108: =MassDataLink!A3013 -> 3010 | R108: -1 | S108: -1 | T108: -1 | U108: -1 | V108: -1 | W108: -1 | X108: -1 | Y108: -1 | Z108: -1 | AA108: -1 | AB108: -1 | AC108: -1
A109: 106 | B109: RCP6-TA4C(DB) | C109: 40 | D109: 240 | E109: 0 | F109: =LeadData!A344 -> 341 | G109: =StrokeData!A947 -> 944 | H109: =MassDataLink!A3018 -> 3015 | I109: =LeadData!A345 -> 342 | J109: =StrokeData!A948 -> 945 | K109: =MassDataLink!A3027 -> 3024 | L109: =LeadData!A346 -> 343 | M109: =StrokeData!A949 -> 946 | N109: =MassDataLink!A3036 -> 3033 | O109: -1 | P109: -1 | Q109: -1 | R109: -1 | S109: -1 | T109: -1 | U109: -1 | V109: -1 | W109: -1 | X109: -1 | Y109: -1 | Z109: -1 | AA109: -1 | AB109: -1 | AC109: -1
A110: 107 | B110: RCP6-TA6C(DB) | C110: 70 | D110: 320 | E110: 0 | F110: =LeadData!A347 -> 344 | G110: =StrokeData!A950 -> 947 | H110: =MassDataLink!A3046 -> 3043 | I110: =LeadData!A348 -> 345 | J110: =StrokeData!A952 -> 949 | K110: =MassDataLink!A3057 -> 3054 | L110: =LeadData!A349 -> 346 | M110: =StrokeData!A954 -> 951 | N110: =MassDataLink!A3069 -> 3066 | O110: -1 | P110: -1 | Q110: -1 | R110: -1 | S110: -1 | T110: -1 | U110: -1 | V110: -1 | W110: -1 | X110: -1 | Y110: -1 | Z110: -1 | AA110: -1 | AB110: -1 | AC110: -1
A111: 108 | B111: RCP6-TA7C(DB) | C111: 40 | D111: 390 | E111: 0 | F111: =LeadData!A350 -> 347 | G111: =StrokeData!A955 -> 952 | H111: =MassDataLink!A3081 -> 3078 | I111: =LeadData!A351 -> 348 | J111: =StrokeData!A956 -> 953 | K111: =MassDataLink!A3089 -> 3086 | L111: =LeadData!A352 -> 349 | M111: =StrokeData!A957 -> 954 | N111: =MassDataLink!A3097 -> 3094 | O111: -1 | P111: -1 | Q111: -1 | R111: -1 | S111: -1 | T111: -1 | U111: -1 | V111: -1 | W111: -1 | X111: -1 | Y111: -1 | Z111: -1 | AA111: -1 | AB111: -1 | AC111: -1
A112: 109 | B112: RCP6-TA4R(DB) | C112: 40 | D112: 240 | E112: =E88 -> 0 | F112: =LeadData!A353 -> 350 | G112: =StrokeData!A958 -> 955 | H112: =MassDataLink!A3105 -> 3102 | I112: =LeadData!A354 -> 351 | J112: =StrokeData!A959 -> 956 | K112: =MassDataLink!A3114 -> 3111 | L112: =LeadData!A355 -> 352 | M112: =StrokeData!A960 -> 957 | N112: =MassDataLink!A3123 -> 3120 | O112: -1 | P112: -1 | Q112: -1 | R112: -1 | S112: -1 | T112: -1 | U112: -1 | V112: -1 | W112: -1 | X112: -1 | Y112: -1 | Z112: -1 | AA112: -1 | AB112: -1 | AC112: -1
A113: 110 | B113: RCP6-TA6R(DB) | C113: 70 | D113: 320 | E113: =E89 -> 0 | F113: =LeadData!A356 -> 353 | G113: =StrokeData!A961 -> 958 | H113: =MassDataLink!A3133 -> 3130 | I113: =LeadData!A357 -> 354 | J113: =StrokeData!A963 -> 960 | K113: =MassDataLink!A3144 -> 3141 | L113: =LeadData!A358 -> 355 | M113: =StrokeData!A965 -> 962 | N113: =MassDataLink!A3156 -> 3153 | O113: -1 | P113: -1 | Q113: -1 | R113: -1 | S113: -1 | T113: -1 | U113: -1 | V113: -1 | W113: -1 | X113: -1 | Y113: -1 | Z113: -1 | AA113: -1 | AB113: -1 | AC113: -1
A114: 111 | B114: RCP6-TA7R(DB) | C114: 40 | D114: 390 | E114: =E90 -> 0 | F114: =LeadData!A359 -> 356 | G114: =StrokeData!A966 -> 963 | H114: =MassDataLink!A3168 -> 3165 | I114: =LeadData!A360 -> 357 | J114: =StrokeData!A967 -> 964 | K114: =MassDataLink!A3176 -> 3173 | L114: =LeadData!A361 -> 358 | M114: =StrokeData!A968 -> 965 | N114: =MassDataLink!A3184 -> 3181 | O114: -1 | P114: -1 | Q114: -1 | R114: -1 | S114: -1 | T114: -1 | U114: -1 | V114: -1 | W114: -1 | X114: -1 | Y114: -1 | Z114: -1 | AA114: -1 | AB114: -1 | AC114: -1
A115: 112 | B115: RCP6CR-SA4C | C115: =C73 -> 50 | D115: 500 | E115: 0 | F115: 197 | G115: 694 | H115: 1881 | I115: 198 | J115: 695 | K115: 1889 | L115: 199 | M115: 696 | N115: 1898 | O115: 200 | P115: 697 | Q115: 1910 | R115: -1 | S115: -1 | T115: -1 | U115: -1 | V115: -1 | W115: -1 | X115: -1 | Y115: -1 | Z115: -1 | AA115: -1 | AB115: -1 | AC115: -1
A116: 113 | B116: RCP6CR-SA6C | C116: =C74 -> 50 | D116: 800 | E116: 0 | F116: 201 | G116: 698 | H116: 1919 | I116: 202 | J116: 705 | K116: 1930 | L116: 203 | M116: 712 | N116: 1941 | O116: 204 | P116: 719 | Q116: 1952 | R116: -1 | S116: -1 | T116: -1 | U116: -1 | V116: -1 | W116: -1 | X116: -1 | Y116: -1 | Z116: -1 | AA116: -1 | AB116: -1 | AC116: -1
A117: 114 | B117: RCP6CR-SA7C | C117: =C75 -> 50 | D117: 800 | E117: 0 | F117: 205 | G117: 724 | H117: 1962 | I117: 206 | J117: 727 | K117: 1969 | L117: 207 | M117: 730 | N117: 1978 | O117: 208 | P117: 732 | Q117: 1990 | R117: -1 | S117: -1 | T117: -1 | U117: -1 | V117: -1 | W117: -1 | X117: -1 | Y117: -1 | Z117: -1 | AA117: -1 | AB117: -1 | AC117: -1
A118: 115 | B118: RCP6CR-SA8C | C118: =C63 -> 50 | D118: 1100 | E118: 0 | F118: 165 | G118: 471 | H118: 1402 | I118: 166 | J118: 481 | K118: 1421 | L118: 167 | M118: 491 | N118: 1444 | O118: 168 | P118: 501 | Q118: 1470 | R118: -1 | S118: -1 | T118: -1 | U118: -1 | V118: -1 | W118: -1 | X118: -1 | Y118: -1 | Z118: -1 | AA118: -1 | AB118: -1 | AC118: -1
A119: 116 | B119: RCP6CR-WSA10C | C119: =C79 -> 50 | D119: 500 | E119: 0 | F119: 221 | G119: 774 | H119: 2115 | I119: 222 | J119: 777 | K119: 2123 | L119: 223 | M119: 780 | N119: 2131 | O119: 224 | P119: 781 | Q119: 2140 | R119: -1 | S119: -1 | T119: -1 | U119: -1 | V119: -1 | W119: -1 | X119: -1 | Y119: -1 | Z119: -1 | AA119: -1 | AB119: -1 | AC119: -1
A120: 117 | B120: RCP6CR-WSA12C | C120: =C80 -> 50 | D120: 800 | E120: 0 | F120: 225 | G120: 782 | H120: 2144 | I120: 226 | J120: 789 | K120: 2153 | L120: 227 | M120: 796 | N120: 2162 | O120: 228 | P120: 802 | Q120: 2170 | R120: -1 | S120: -1 | T120: -1 | U120: -1 | V120: -1 | W120: -1 | X120: -1 | Y120: -1 | Z120: -1 | AA120: -1 | AB120: -1 | AC120: -1
A121: 118 | B121: RCP6CR-WSA14C | C121: =C81 -> 50 | D121: 800 | E121: 0 | F121: 229 | G121: 805 | H121: 2174 | I121: 230 | J121: 806 | K121: 2180 | L121: 231 | M121: 807 | N121: 2188 | O121: 232 | P121: 808 | Q121: 2194 | R121: -1 | S121: -1 | T121: -1 | U121: -1 | V121: -1 | W121: -1 | X121: -1 | Y121: -1 | Z121: -1 | AA121: -1 | AB121: -1 | AC121: -1
A122: 119 | B122: RCP6CR-WSA16C | C122: =C65 -> 50 | D122: 1100 | E122: 0 | F122: 173 | G122: 547 | H122: 1590 | I122: 174 | J122: 555 | K122: 1609 | L122: 175 | M122: 565 | N122: 1626 | O122: -1 | P122: -1 | Q122: -1 | R122: -1 | S122: -1 | T122: -1 | U122: -1 | V122: -1 | W122: -1 | X122: -1 | Y122: -1 | Z122: -1 | AA122: -1 | AB122: -1 | AC122: -1
A123: 120 | B123: RCP6-HSA6C | C123: 50 | D123: 800 | E123: 0 | F123: 359 | G123: 966 | H123: 3189 | I123: 360 | J123: 975 | K123: 3220 | L123: 361 | M123: 984 | N123: 3246 | O123: 362 | P123: 993 | Q123: 3262 | R123: -1 | S123: -1 | T123: -1 | U123: -1 | V123: -1 | W123: -1 | X123: -1 | Y123: -1 | Z123: -1 | AA123: -1 | AB123: -1 | AC123: -1 | AD123: ↓ Ver.3.80 追加
A124: 121 | B124: RCP6-HSA7C | C124: 50 | D124: 800 | E124: 0 | F124: 363 | G124: 1002 | H124: 3272 | I124: 364 | J124: 1009 | K124: 3318 | L124: 365 | M124: 1016 | N124: 3359 | O124: 366 | P124: 1023 | Q124: 3402 | R124: -1 | S124: -1 | T124: -1 | U124: -1 | V124: -1 | W124: -1 | X124: -1 | Y124: -1 | Z124: -1 | AA124: -1 | AB124: -1 | AC124: -1
A125: 122 | B125: RCP6-HSA6C-W | C125: 200 | D125: 800 | E125: 0 | F125: 367 | G125: 1030 | H125: 3424 | I125: 368 | J125: 1039 | K125: 3452 | L125: 369 | M125: 1048 | N125: 3472 | O125: -1 | P125: -1 | Q125: -1 | R125: -1 | S125: -1 | T125: -1 | U125: -1 | V125: -1 | W125: -1 | X125: -1 | Y125: -1 | Z125: -1 | AA125: -1 | AB125: -1 | AC125: -1
A126: 123 | B126: RCP6-HSA7C-W | C126: 200 | D126: 800 | E126: 0 | F126: 370 | G126: 1057 | H126: 3483 | I126: 371 | J126: 1063 | K126: 3526 | L126: 372 | M126: 1069 | N126: 3567 | O126: -1 | P126: -1 | Q126: -1 | R126: -1 | S126: -1 | T126: -1 | U126: -1 | V126: -1 | W126: -1 | X126: -1 | Y126: -1 | Z126: -1 | AA126: -1 | AB126: -1 | AC126: -1 | AD126: ↑ Ver.3.80 追加
A127: EOF

Sheet LeadData (hidden)
A1: 9.80665 | B1: 1 | C1: 3 | D1: 4 | E1: 5 | F1: 6 | G1: 10 | H1: 11 | I1: 14 | J1: 15
A2: データ№ | B2: ﾘｰﾄﾞ長 | C2: 水平定格加速度 | D2: 垂直定格加速度 | E2: 水平最大加速度 | F2: 垂直最大加速度 | G2: ｷﾞｱ比分子 | H2: ｷﾞｱ比分母 | I2: ｽﾄﾛｰｸ刻み | J2: 位置決め幅 初期値 | K2: 備考
A3: =ModelData!A3 -> 0 | B3: 0.001㎜ | C3: 0.001mm/s^2 | D3: 0.001mm/s^2 | E3: 0.001mm/s^2 | F3: 0.001mm/s^2 | I3: mm | J3: mm
A4: =A3+1 -> 1 | B4: 3000 | C4: =0.3*$A$1*1000000 -> 2941995 | D4: 2941995 | E4: =0.7*$A$1*1000000 -> 6864655 | F4: =0.3*$A$1*1000000 -> 2941995 | G4: 1 | H4: 1 | I4: 50 | J4: 0.1 | K4: RCP4-SA5C
A5: =A4+1 -> 2 | B5: 6000 | C5: 2941995 | D5: 2941995 | E5: 6864655 | F5: =0.3*$A$1*1000000 -> 2941995 | G5: 1 | H5: 1 | I5: 50 | J5: 0.1
A6: =A5+1 -> 3 | B6: 12000 | C6: 2941995 | D6: 2941995 | E6: 6864655 | F6: =0.3*$A$1*1000000 -> 2941995 | G6: 1 | H6: 1 | I6: 50 | J6: 0.1
A7: 4 | B7: 20000 | C7: =0.3*$A$1*1000000 -> 2941995 | D7: =0.2*$A$1*1000000 -> 1961330 | E7: 6864655 | F7: =0.2*$A$1*1000000 -> 1961330 | G7: 1 | H7: 1 | I7: 50 | J7: 0.1
A8: 5 | B8: 3000 | C8: =0.3*$A$1*1000000 -> 2941995 | D8: =0.3*$A$1*1000000 -> 2941995 | E8: 6864655 | F8: =0.3*$A$1*1000000 -> 2941995 | G8: 1 | H8: 1 | I8: 50 | J8: 0.1 | K8: RCP4-SA6C
A9: 6 | B9: 6000 | C9: =0.3*$A$1*1000000 -> 2941995 | D9: =0.3*$A$1*1000000 -> 2941995 | E9: 6864655 | F9: =0.3*$A$1*1000000 -> 2941995 | G9: 1 | H9: 1 | I9: 50 | J9: 0.1
A10: 7 | B10: 12000 | C10: =0.3*$A$1*1000000 -> 2941995 | D10: =0.3*$A$1*1000000 -> 2941995 | E10: 6864655 | F10: =0.3*$A$1*1000000 -> 2941995 | G10: 1 | H10: 1 | I10: 50 | J10: 0.1
A11: 8 | B11: 20000 | C11: =0.3*$A$1*1000000 -> 2941995 | D11: =0.2*$A$1*1000000 -> 1961330 | E11: 6864655 | F11: =0.2*$A$1*1000000 -> 1961330 | G11: 1 | H11: 1 | I11: 50 | J11: 0.1
A12: 9 | B12: 4000 | C12: =0.2*$A$1*1000000 -> 1961330 | D12: 1961330 | E12: =0.2*$A$1*1000000 -> 1961330 | F12: 1961330 | G12: 1 | H12: 1 | I12: 50 | J12: 0.1 | K12: RCP4-SA7C
A13: 10 | B13: 8000 | C13: =0.3*$A$1*1000000 -> 2941995 | D13: 1961330 | E13: =0.3*$A$1*1000000 -> 2941995 | F13: 1961330 | G13: 1 | H13: 1 | I13: 50 | J13: 0.1
A14: 11 | B14: 16000 | C14: =0.3*$A$1*1000000 -> 2941995 | D14: 1961330 | E14: =0.3*$A$1*1000000 -> 2941995 | F14: 1961330 | G14: 1 | H14: 1 | I14: 50 | J14: 0.1
A15: 12 | B15: 24000 | C15: =0.3*$A$1*1000000 -> 2941995 | D15: 1961330 | E15: =0.3*$A$1*1000000 -> 2941995 | F15: 1961330 | G15: 1 | H15: 1 | I15: 50 | J15: 0.1
A16: 13 | B16: 3000 | C16: =0.2*$A$1*1000000 -> 1961330 | D16: 1961330 | E16: =0.2*$A$1*1000000 -> 1961330 | F16: 1961330 | G16: 1 | H16: 1 | I16: 50 | J16: 0.1 | K16: RCP4-RA5C
A17: 14 | B17: 6000 | C17: =0.2*$A$1*1000000 -> 1961330 | D17: 1961330 | E17: =0.2*$A$1*1000000 -> 1961330 | F17: 1961330 | G17: 1 | H17: 1 | I17: 50 | J17: 0.1
A18: 15 | B18: 12000 | C18: =0.2*$A$1*1000000 -> 1961330 | D18: 1961330 | E18: =0.2*$A$1*1000000 -> 1961330 | F18: 1961330 | G18: 1 | H18: 1 | I18: 50 | J18: 0.1
A19: 16 | B19: 20000 | C19: =0.3*$A$1*1000000 -> 2941995 | D19: 1961330 | E19: =0.3*$A$1*1000000 -> 2941995 | F19: 1961330 | G19: 1 | H19: 1 | I19: 50 | J19: 0.1
A20: 17 | B20: 4000 | C20: =0.2*$A$1*1000000 -> 1961330 | D20: 1961330 | E20: =0.2*$A$1*1000000 -> 1961330 | F20: 1961330 | G20: 1 | H20: 1 | I20: 50 | J20: 0.1 | K20: RCP4-RA6C
A21: 18 | B21: 8000 | C21: =0.2*$A$1*1000000 -> 1961330 | D21: 1961330 | E21: =0.2*$A$1*1000000 -> 1961330 | F21: 1961330 | G21: 1 | H21: 1 | I21: 50 | J21: 0.1
A22: 19 | B22: 16000 | C22: =0.2*$A$1*1000000 -> 1961330 | D22: 1961330 | E22: =0.2*$A$1*1000000 -> 1961330 | F22: 1961330 | G22: 1 | H22: 1 | I22: 50 | J22: 0.1
A23: 20 | B23: 24000 | C23: =0.3*$A$1*1000000 -> 2941995 | D23: 1961330 | E23: =0.3*$A$1*1000000 -> 2941995 | F23: 1961330 | G23: 1 | H23: 1 | I23: 50 | J23: 0.1
A24: 21 | B24: 3000 | C24: =0.2*$A$1*1000000 -> 1961330 | D24: 1961330 | E24: =0.2*$A$1*1000000 -> 1961330 | F24: 1961330 | G24: 1 | H24: 1 | I24: 50 | J24: 0.1 | K24: ERC3-SA5
A25: 22 | B25: 6000 | C25: =0.3*$A$1*1000000 -> 2941995 | D25: 1961330 | E25: =0.3*$A$1*1000000 -> 2941995 | F25: 1961330 | G25: 1 | H25: 1 | I25: 50 | J25: 0.1
A26: 23 | B26: 12000 | C26: =0.3*$A$1*1000000 -> 2941995 | D26: 1961330 | E26: =0.3*$A$1*1000000 -> 2941995 | F26: 1961330 | G26: 1 | H26: 1 | I26: 50 | J26: 0.1
A27: 24 | B27: 20000 | C27: =0.3*$A$1*1000000 -> 2941995 | D27: 1961330 | E27: =0.3*$A$1*1000000 -> 2941995 | F27: 1961330 | G27: 1 | H27: 1 | I27: 50 | J27: 0.1
A28: 25 | B28: 4000 | C28: =0.2*$A$1*1000000 -> 1961330 | D28: 1961330 | E28: =0.2*$A$1*1000000 -> 1961330 | F28: 1961330 | G28: 1 | H28: 1 | I28: 50 | J28: 0.1 | K28: ERC3-SA7
A29: 26 | B29: 8000 | C29: =0.3*$A$1*1000000 -> 2941995 | D29: 1961330 | E29: =0.3*$A$1*1000000 -> 2941995 | F29: 1961330 | G29: 1 | H29: 1 | I29: 50 | J29: 0.1
A30: 27 | B30: 16000 | C30: 2941995 | D30: 1961330 | E30: =0.3*$A$1*1000000 -> 2941995 | F30: 1961330 | G30: 1 | H30: 1 | I30: 50 | J30: 0.1
A31: 28 | B31: 24000 | C31: 2941995 | D31: 1961330 | E31: =0.3*$A$1*1000000 -> 2941995 | F31: 1961330 | G31: 1 | H31: 1 | I31: 50 | J31: 0.1
A32: 29 | B32: 3000 | C32: =0.2*$A$1*1000000 -> 1961330 | D32: 1961330 | E32: =0.2*$A$1*1000000 -> 1961330 | F32: 1961330 | G32: 1 | H32: 1 | I32: 50 | J32: 0.1 | K32: ERC3-RA4
A33: 30 | B33: 6000 | C33: 2941995 | D33: 1961330 | E33: =0.3*$A$1*1000000 -> 2941995 | F33: 1961330 | G33: 1 | H33: 1 | I33: 50 | J33: 0.1
A34: 31 | B34: 12000 | C34: 2941995 | D34: 1961330 | E34: =0.3*$A$1*1000000 -> 2941995 | F34: 1961330 | G34: 1 | H34: 1 | I34: 50 | J34: 0.1
A35: 32 | B35: 20000 | C35: 2941995 | D35: 1961330 | E35: =0.3*$A$1*1000000 -> 2941995 | F35: 1961330 | G35: 1 | H35: 1 | I35: 50 | J35: 0.1
A36: 33 | B36: 4000 | C36: =0.2*$A$1*1000000 -> 1961330 | D36: 1961330 | E36: =0.2*$A$1*1000000 -> 1961330 | F36: 1961330 | G36: 1 | H36: 1 | I36: 50 | J36: 0.1 | K36: ERC3-RA6
A37: 34 | B37: 8000 | C37: =0.3*$A$1*1000000 -> 2941995 | D37: 1961330 | E37: =0.3*$A$1*1000000 -> 2941995 | F37: 1961330 | G37: 1 | H37: 1 | I37: 50 | J37: 0.1
A38: 35 | B38: 16000 | C38: 2941995 | D38: 1961330 | E38: =0.3*$A$1*1000000 -> 2941995 | F38: 1961330 | G38: 1 | H38: 1 | I38: 50 | J38: 0.1
A39: 36 | B39: 24000 | C39: 2941995 | D39: 1961330 | E39: =0.3*$A$1*1000000 -> 2941995 | F39: 1961330 | G39: 1 | H39: 1 | I39: 50 | J39: 0.1
A40: =A39+1 -> 37 | B40: 3000 | C40: 2941995 | D40: 2941995 | E40: =0.7*$A$1*1000000 -> 6864655 | F40: =0.3*$A$1*1000000 -> 2941995 | G40: 1 | H40: 1 | I40: 50 | J40: 0.1 | K40: RCP4-SA5R
A41: =A40+1 -> 38 | B41: 6000 | C41: 2941995 | D41: 2941995 | E41: 6864655 | F41: =0.3*$A$1*1000000 -> 2941995 | G41: 1 | H41: 1 | I41: 50 | J41: 0.1
A42: =A41+1 -> 39 | B42: 12000 | C42: 2941995 | D42: 2941995 | E42: 6864655 | F42: =0.3*$A$1*1000000 -> 2941995 | G42: 1 | H42: 1 | I42: 50 | J42: 0.1
A43: 40 | B43: 20000 | C43: 2941995 | D43: =0.2*$A$1*1000000 -> 1961330 | E43: 6864655 | F43: =0.2*$A$1*1000000 -> 1961330 | G43: 1 | H43: 1 | I43: 50 | J43: 0.1
A44: 41 | B44: 3000 | C44: 2941995 | D44: 2941995 | E44: 6864655 | F44: =0.3*$A$1*1000000 -> 2941995 | G44: 1 | H44: 1 | I44: 50 | J44: 0.1 | K44: RCP4-SA6R
A45: 42 | B45: 6000 | C45: 2941995 | D45: 2941995 | E45: 6864655 | F45: =0.3*$A$1*1000000 -> 2941995 | G45: 1 | H45: 1 | I45: 50 | J45: 0.1
A46: 43 | B46: 12000 | C46: 2941995 | D46: 2941995 | E46: 6864655 | F46: =0.3*$A$1*1000000 -> 2941995 | G46: 1 | H46: 1 | I46: 50 | J46: 0.1
A47: 44 | B47: 20000 | C47: 2941995 | D47: =0.2*$A$1*1000000 -> 1961330 | E47: 6864655 | F47: =0.2*$A$1*1000000 -> 1961330 | G47: 1 | H47: 1 | I47: 50 | J47: 0.1
A48: 45 | B48: 4000 | C48: =0.2*$A$1*1000000 -> 1961330 | D48: =0.2*$A$1*1000000 -> 1961330 | E48: =0.2*$A$1*1000000 -> 1961330 | F48: 1961330 | G48: 1 | H48: 1 | I48: 50 | J48: 0.1 | K48: RCP4-SA7R
A49: 46 | B49: 8000 | C49: 2941995 | D49: =0.2*$A$1*1000000 -> 1961330 | E49: =0.3*$A$1*1000000 -> 2941995 | F49: 1961330 | G49: 1 | H49: 1 | I49: 50 | J49: 0.1
A50: 47 | B50: 16000 | C50: 2941995 | D50: =0.2*$A$1*1000000 -> 1961330 | E50: =0.3*$A$1*1000000 -> 2941995 | F50: 1961330 | G50: 1 | H50: 1 | I50: 50 | J50: 0.1
A51: 48 | B51: 24000 | C51: 2941995 | D51: =0.2*$A$1*1000000 -> 1961330 | E51: =0.3*$A$1*1000000 -> 2941995 | F51: 1961330 | G51: 1 | H51: 1 | I51: 50 | J51: 0.1
A52: 49 | B52: 3000 | C52: =0.2*$A$1*1000000 -> 1961330 | D52: 1961330 | E52: =0.2*$A$1*1000000 -> 1961330 | F52: 1961330 | G52: 1 | H52: 1 | I52: 50 | J52: 0.1 | K52: RCP4-RA5R
A53: 50 | B53: 6000 | C53: 1961330 | D53: 1961330 | E53: =0.2*$A$1*1000000 -> 1961330 | F53: 1961330 | G53: 1 | H53: 1 | I53: 50 | J53: 0.1
A54: 51 | B54: 12000 | C54: 1961330 | D54: 1961330 | E54: =0.2*$A$1*1000000 -> 1961330 | F54: 1961330 | G54: 1 | H54: 1 | I54: 50 | J54: 0.1
A55: 52 | B55: 20000 | C55: =0.3*$A$1*1000000 -> 2941995 | D55: =0.2*$A$1*1000000 -> 1961330 | E55: =0.3*$A$1*1000000 -> 2941995 | F55: 1961330 | G55: 1 | H55: 1 | I55: 50 | J55: 0.1
A56: 53 | B56: 4000 | C56: =0.2*$A$1*1000000 -> 1961330 | D56: 1961330 | E56: =0.2*$A$1*1000000 -> 1961330 | F56: 1961330 | G56: 1 | H56: 1 | I56: 50 | J56: 0.1 | K56: RCP4-RA6R
A57: 54 | B57: 8000 | C57: 1961330 | D57: 1961330 | E57: =0.2*$A$1*1000000 -> 1961330 | F57: 1961330 | G57: 1 | H57: 1 | I57: 50 | J57: 0.1
A58: 55 | B58: 16000 | C58: 1961330 | D58: 1961330 | E58: =0.2*$A$1*1000000 -> 1961330 | F58: 1961330 | G58: 1 | H58: 1 | I58: 50 | J58: 0.1
A59: 56 | B59: 24000 | C59: 2941995 | D59: =0.2*$A$1*1000000 -> 1961330 | E59: =0.3*$A$1*1000000 -> 2941995 | F59: 1961330 | G59: 1 | H59: 1 | I59: 50 | J59: 0.1
A60: 57 | B60: 3000 | C60: =0.2*$A$1*1000000 -> 1961330 | D60: 1961330 | E60: =0.2*$A$1*1000000 -> 1961330 | F60: 1961330 | G60: 1 | H60: 1 | I60: 50 | J60: 0.1 | K60: ERC3D-SA5
A61: 58 | B61: 6000 | C61: 2941995 | D61: 1961330 | E61: =0.3*$A$1*1000000 -> 2941995 | F61: 1961330 | G61: 1 | H61: 1 | I61: 50 | J61: 0.1
A62: 59 | B62: 12000 | C62: 2941995 | D62: 1961330 | E62: =0.3*$A$1*1000000 -> 2941995 | F62: 1961330 | G62: 1 | H62: 1 | I62: 50 | J62: 0.1
A63: 60 | B63: 20000 | C63: 2941995 | D63: 1961330 | E63: =0.3*$A$1*1000000 -> 2941995 | F63: 1961330 | G63: 1 | H63: 1 | I63: 50 | J63: 0.1
A64: 61 | B64: 4000 | C64: =0.2*$A$1*1000000 -> 1961330 | D64: 1961330 | E64: =0.2*$A$1*1000000 -> 1961330 | F64: 1961330 | G64: 1 | H64: 1 | I64: 50 | J64: 0.1 | K64: ERC3D-SA7
A65: 62 | B65: 8000 | C65: 2941995 | D65: =0.2*$A$1*1000000 -> 1961330 | E65: =0.3*$A$1*1000000 -> 2941995 | F65: 1961330 | G65: 1 | H65: 1 | I65: 50 | J65: 0.1
A66: 63 | B66: 16000 | C66: 2941995 | D66: 1961330 | E66: =0.3*$A$1*1000000 -> 2941995 | F66: 1961330 | G66: 1 | H66: 1 | I66: 50 | J66: 0.1
A67: 64 | B67: 24000 | C67: 2941995 | D67: 1961330 | E67: =0.3*$A$1*1000000 -> 2941995 | F67: 1961330 | G67: 1 | H67: 1 | I67: 50 | J67: 0.1
A68: 65 | B68: 3000 | C68: =0.2*$A$1*1000000 -> 1961330 | D68: =0.2*$A$1*1000000 -> 1961330 | E68: =0.2*$A$1*1000000 -> 1961330 | F68: 1961330 | G68: 1 | H68: 1 | I68: 50 | J68: 0.1 | K68: ERC3CR-SA5
A69: 66 | B69: 6000 | C69: =0.3*$A$1*1000000 -> 2941995 | D69: 1961330 | E69: =0.3*$A$1*1000000 -> 2941995 | F69: 1961330 | G69: 1 | H69: 1 | I69: 50 | J69: 0.1
A70: 67 | B70: 12000 | C70: 2941995 | D70: 1961330 | E70: =0.3*$A$1*1000000 -> 2941995 | F70: 1961330 | G70: 1 | H70: 1 | I70: 50 | J70: 0.1
A71: 68 | B71: 20000 | C71: 2941995 | D71: 1961330 | E71: =0.3*$A$1*1000000 -> 2941995 | F71: 1961330 | G71: 1 | H71: 1 | I71: 50 | J71: 0.1
A72: 69 | B72: 4000 | C72: =0.2*$A$1*1000000 -> 1961330 | D72: =0.2*$A$1*1000000 -> 1961330 | E72: =0.2*$A$1*1000000 -> 1961330 | F72: 1961330 | G72: 1 | H72: 1 | I72: 50 | J72: 0.1 | K72: ERC3CR-SA7
A73: 70 | B73: 8000 | C73: 2941995 | D73: 1961330 | E73: =0.3*$A$1*1000000 -> 2941995 | F73: 1961330 | G73: 1 | H73: 1 | I73: 50 | J73: 0.1
A74: 71 | B74: 16000 | C74: 2941995 | D74: 1961330 | E74: =0.3*$A$1*1000000 -> 2941995 | F74: 1961330 | G74: 1 | H74: 1 | I74: 50 | J74: 0.1
A75: 72 | B75: 24000 | C75: 2941995 | D75: =0.2*$A$1*1000000 -> 1961330 | E75: =0.3*$A$1*1000000 -> 2941995 | F75: 1961330 | G75: 1 | H75: 1 | I75: 50 | J75: 0.1
A76: 73 | B76: 2500 | C76: 2941995 | D76: 2941995 | E76: =0.7*$A$1*1000000 -> 6864655 | F76: =0.3*$A$1*1000000 -> 2941995 | G76: 1 | H76: 1 | I76: 50 | J76: 0.1 | K76: RCP5-SA4C
A77: 74 | B77: 5000 | C77: 2941995 | D77: 2941995 | E77: 6864655 | F77: 2941995 | G77: 1 | H77: 1 | I77: 50 | J77: 0.1
A78: 75 | B78: 10000 | C78: 2941995 | D78: 2941995 | E78: 6864655 | F78: 2941995 | G78: 1 | H78: 1 | I78: 50 | J78: 0.1
A79: 76 | B79: 16000 | C79: 2941995 | D79: 2941995 | E79: 6864655 | F79: 2941995 | G79: 1 | H79: 1 | I79: 50 | J79: 0.1
A80: 77 | B80: 3000 | C80: 2941995 | D80: 2941995 | E80: 6864655 | F80: 2941995 | G80: 1 | H80: 1 | I80: 50 | J80: 0.1 | K80: RCP5-SA6C
A81: 78 | B81: 6000 | C81: 2941995 | D81: 2941995 | E81: 6864655 | F81: 2941995 | G81: 1 | H81: 1 | I81: 50 | J81: 0.1
A82: 79 | B82: 12000 | C82: 2941995 | D82: 2941995 | E82: 6864655 | F82: 2941995 | G82: 1 | H82: 1 | I82: 50 | J82: 0.1
A83: 80 | B83: 20000 | C83: 2941995 | D83: =0.2*$A$1*1000000 -> 1961330 | E83: 6864655 | F83: =0.2*$A$1*1000000 -> 1961330 | G83: 1 | H83: 1 | I83: 50 | J83: 0.1
A84: 81 | B84: 4000 | C84: =0.2*$A$1*1000000 -> 1961330 | D84: =0.2*$A$1*1000000 -> 1961330 | E84: =0.2*$A$1*1000000 -> 1961330 | F84: =0.2*$A$1*1000000 -> 1961330 | G84: 1 | H84: 1 | I84: 50 | J84: 0.1 | K84: RCP5-SA7C
A85: 82 | B85: 8000 | C85: =0.3*$A$1*1000000 -> 2941995 | D85: =0.2*$A$1*1000000 -> 1961330 | E85: =0.3*$A$1*1000000 -> 2941995 | F85: =0.2*$A$1*1000000 -> 1961330 | G85: 1 | H85: 1 | I85: 50 | J85: 0.1
A86: 83 | B86: 16000 | C86: 2941995 | D86: =0.2*$A$1*1000000 -> 1961330 | E86: =0.3*$A$1*1000000 -> 2941995 | F86: =0.2*$A$1*1000000 -> 1961330 | G86: 1 | H86: 1 | I86: 50 | J86: 0.1
A87: 84 | B87: 24000 | C87: 2941995 | D87: =0.2*$A$1*1000000 -> 1961330 | E87: =0.3*$A$1*1000000 -> 2941995 | F87: =0.2*$A$1*1000000 -> 1961330 | G87: 1 | H87: 1 | I87: 50 | J87: 0.1
A88: 85 | B88: 2500 | C88: 2941995 | D88: =0.3*$A$1*1000000 -> 2941995 | E88: =1*$A$1*1000000 -> 9806650 | F88: =0.5*$A$1*1000000 -> 4903325 | G88: 1 | H88: 1 | I88: 50 | J88: 0.1 | K88: RCP5-RA4C
A89: 86 | B89: 5000 | C89: 2941995 | D89: =0.3*$A$1*1000000 -> 2941995 | E89: =1*$A$1*1000000 -> 9806650 | F89: =0.5*$A$1*1000000 -> 4903325 | G89: 1 | H89: 1 | I89: 50 | J89: 0.1
A90: 87 | B90: 10000 | C90: 2941995 | D90: =0.3*$A$1*1000000 -> 2941995 | E90: =1*$A$1*1000000 -> 9806650 | F90: =0.5*$A$1*1000000 -> 4903325 | G90: 1 | H90: 1 | I90: 50 | J90: 0.1
A91: 88 | B91: 16000 | C91: 2941995 | D91: =0.3*$A$1*1000000 -> 2941995 | E91: =1*$A$1*1000000 -> 9806650 | F91: =0.5*$A$1*1000000 -> 4903325 | G91: 1 | H91: 1 | I91: 50 | J91: 0.1
A92: 89 | B92: 3000 | C92: =0.2*$A$1*1000000 -> 1961330 | D92: 1961330 | E92: =0.2*$A$1*1000000 -> 1961330 | F92: 1961330 | G92: 1 | H92: 1 | I92: 50 | J92: 0.1 | K92: RCP5-RA6C
A93: 90 | B93: 6000 | C93: 1961330 | D93: 1961330 | E93: 1961330 | F93: 1961330 | G93: 1 | H93: 1 | I93: 50 | J93: 0.1
A94: 91 | B94: 12000 | C94: 1961330 | D94: 1961330 | E94: 1961330 | F94: 1961330 | G94: 1 | H94: 1 | I94: 50 | J94: 0.1
A95: 92 | B95: 20000 | C95: =0.3*$A$1*1000000 -> 2941995 | D95: =0.2*$A$1*1000000 -> 1961330 | E95: =0.3*$A$1*1000000 -> 2941995 | F95: =0.2*$A$1*1000000 -> 1961330 | G95: 1 | H95: 1 | I95: 50 | J95: 0.1
A96: 93 | B96: 4000 | C96: =0.2*$A$1*1000000 -> 1961330 | D96: 1961330 | E96: =0.2*$A$1*1000000 -> 1961330 | F96: =0.2*$A$1*1000000 -> 1961330 | G96: 1 | H96: 1 | I96: 50 | J96: 0.1 | K96: RCP5-RA7C
A97: 94 | B97: 8000 | C97: 1961330 | D97: 1961330 | E97: =0.2*$A$1*1000000 -> 1961330 | F97: =0.2*$A$1*1000000 -> 1961330 | G97: 1 | H97: 1 | I97: 50 | J97: 0.1
A98: 95 | B98: 16000 | C98: 1961330 | D98: 1961330 | E98: =0.2*$A$1*1000000 -> 1961330 | F98: =0.2*$A$1*1000000 -> 1961330 | G98: 1 | H98: 1 | I98: 50 | J98: 0.1
A99: =A98+1 -> 96 | B99: 24000 | C99: =0.3*$A$1*1000000 -> 2941995 | D99: =0.2*$A$1*1000000 -> 1961330 | E99: =0.3*$A$1*1000000 -> 2941995 | F99: =0.2*$A$1*1000000 -> 1961330 | G99: 1 | H99: 1 | I99: 50 | J99: 0.1
A100: 97 | B100: 3000 | C100: =0.3*$A$1*1000000 -> 2941995 | D100: 2941995 | E100: 2941995 | F100: 2941995 | G100: 1 | H100: 1 | I100: 50 | J100: 0.1 | K100: RCP4W-RA6C
A101: 98 | B101: 6000 | C101: 2941995 | D101: 2941995 | E101: 2941995 | F101: 2941995 | G101: 1 | H101: 1 | I101: 50 | J101: 0.1
A102: 99 | B102: 12000 | C102: 2941995 | D102: 2941995 | E102: 2941995 | F102: 2941995 | G102: 1 | H102: 1 | I102: 50 | J102: 0.1
A103: 100 | B103: 3000 | C103: -1 | D103: =0.3*$A$1*1000000 -> 2941995 | E103: -1 | F103: =0.3*$A$1*1000000 -> 2941995 | G103: 1 | H103: 1 | I103: 50 | J103: 0.1 | K103: RCP4W-RA6C(高推力)
A104: 101 | B104: 4000 | C104: =0.3*$A$1*1000000 -> 2941995 | D104: =0.3*$A$1*1000000 -> 2941995 | E104: =0.3*$A$1*1000000 -> 2941995 | F104: =0.3*$A$1*1000000 -> 2941995 | G104: 1 | H104: 1 | I104: 50 | J104: 0.1 | K104: RCP4W-RA7C
A105: 102 | B105: 8000 | C105: =0.3*$A$1*1000000 -> 2941995 | D105: =0.3*$A$1*1000000 -> 2941995 | E105: =0.3*$A$1*1000000 -> 2941995 | F105: =0.3*$A$1*1000000 -> 2941995 | G105: 1 | H105: 1 | I105: 50 | J105: 0.1
A106: 103 | B106: 16000 | C106: =0.3*$A$1*1000000 -> 2941995 | D106: =0.3*$A$1*1000000 -> 2941995 | E106: =0.3*$A$1*1000000 -> 2941995 | F106: =0.3*$A$1*1000000 -> 2941995 | G106: 1 | H106: 1 | I106: 50 | J106: 0.1
A107: 104 | B107: 4000 | C107: -1 | D107: =0.3*$A$1*1000000 -> 2941995 | E107: -1 | F107: =0.5*$A$1*1000000 -> 4903325 | G107: 1 | H107: 1 | I107: 50 | J107: 0.1 | K107: RCP4W-RA7C(高推力)
A108: 105 | B108: 2000 | C108: =0.1*$A$1*1000000 -> 980665 | D108: 980665 | E108: =1*$A$1*1000000 -> 9806650 | F108: =0.5*$A$1*1000000 -> 4903325 | G108: 1 | H108: 1 | I108: 25 | J108: 0.1 | K108: RCP4-SA3C
A109: 106 | B109: 4000 | C109: 980665 | D109: 980665 | E109: 9806650 | F109: 4903325 | G109: 1 | H109: 1 | I109: 25 | J109: 0.1
A110: 107 | B110: 6000 | C110: 980665 | D110: 980665 | E110: 9806650 | F110: 4903325 | G110: 1 | H110: 1 | I110: 25 | J110: 0.1
A111: 108 | B111: 2500 | C111: 980665 | D111: 980665 | E111: 9806650 | F111: 4903325 | G111: 1 | H111: 1 | I111: 25 | J111: 0.1 | K111: RCP4-RA3C
A112: 109 | B112: 5000 | C112: 980665 | D112: 980665 | E112: 9806650 | F112: 4903325 | G112: 1 | H112: 1 | I112: 25 | J112: 0.1
A113: 110 | B113: 10000 | C113: 980665 | D113: 980665 | E113: 9806650 | F113: 4903325 | G113: 1 | H113: 1 | I113: 25 | J113: 0.1
A114: 111 | B114: 16000 | C114: 980665 | D114: 980665 | E114: 9806650 | F114: 4903325 | G114: 1 | H114: 1 | I114: 25 | J114: 0.1
A115: 112 | B115: 5000 | C115: =0.1*$A$1*1000000 -> 980665 | D115: =0.1*$A$1*1000000 -> 980665 | E115: =0.1*$A$1*1000000 -> 980665 | F115: =0.1*$A$1*1000000 -> 980665 | G115: 1 | H115: 1 | I115: 50 | J115: 0.1 | K115: RCP5-RA8C
A116: 113 | B116: 10000 | C116: =0.2*$A$1*1000000 -> 1961330 | D116: 1961330 | E116: 1961330 | F116: 1961330 | G116: 1 | H116: 1 | I116: 50 | J116: 0.1
A117: 114 | B117: 20000 | C117: 1961330 | D117: 1961330 | E117: 1961330 | F117: 1961330 | G117: 1 | H117: 1 | I117: 50 | J117: 0.1
A118: 115 | B118: 2500 | C118: =ROUND(0.01*$A$1*1000000,0) -> 98067 | D118: =ROUND(0.01*$A$1*1000000,0) -> 98067 | E118: =ROUND(0.01*$A$1*1000000,0) -> 98067 | F118: =ROUND(0.01*$A$1*1000000,0) -> 98067 | G118: 1 | H118: 1 | I118: 50 | J118: 0.1 | K118: RCP5-RA10C
A119: 116 | B119: 5000 | C119: =0.02*$A$1*1000000 -> 196133 | D119: =0.02*$A$1*1000000 -> 196133 | E119: =0.02*$A$1*1000000 -> 196133 | F119: =0.02*$A$1*1000000 -> 196133 | G119: 1 | H119: 1 | I119: 50 | J119: 0.1
A120: 117 | B120: 10000 | C120: =0.04*$A$1*1000000 -> 392266 | D120: =0.04*$A$1*1000000 -> 392266 | E120: =0.04*$A$1*1000000 -> 392266 | F120: =0.04*$A$1*1000000 -> 392266 | G120: 1 | H120: 1 | I120: 50 | J120: 0.1
A121: 118 | B121: 5000 | C121: =0.1*$A$1*1000000 -> 980665 | D121: =0.1*$A$1*1000000 -> 980665 | E121: =0.1*$A$1*1000000 -> 980665 | F121: =0.1*$A$1*1000000 -> 980665 | G121: 1 | H121: 1 | I121: 50 | J121: 0.1 | K121: RCP5-RA8R
A122: 119 | B122: 10000 | C122: =0.2*$A$1*1000000 -> 1961330 | D122: 1961330 | E122: 1961330 | F122: 1961330 | G122: 1 | H122: 1 | I122: 50 | J122: 0.1
A123: 120 | B123: 20000 | C123: 1961330 | D123: 1961330 | E123: 1961330 | F123: 1961330 | G123: 1 | H123: 1 | I123: 50 | J123: 0.1
A124: 121 | B124: 2500 | C124: =ROUND(0.01*$A$1*1000000,0) -> 98067 | D124: =ROUND(0.01*$A$1*1000000,0) -> 98067 | E124: =ROUND(0.01*$A$1*1000000,0) -> 98067 | F124: =ROUND(0.01*$A$1*1000000,0) -> 98067 | G124: 1 | H124: 1 | I124: 50 | J124: 0.1 | K124: RCP5-RA10R
A125: 122 | B125: 5000 | C125: =0.02*$A$1*1000000 -> 196133 | D125: =0.02*$A$1*1000000 -> 196133 | E125: =0.02*$A$1*1000000 -> 196133 | F125: =0.02*$A$1*1000000 -> 196133 | G125: 1 | H125: 1 | I125: 50 | J125: 0.1
A126: =A125+1 -> 123 | B126: 10000 | C126: =0.04*$A$1*1000000 -> 392266 | D126: =0.04*$A$1*1000000 -> 392266 | E126: =0.04*$A$1*1000000 -> 392266 | F126: =0.04*$A$1*1000000 -> 392266 | G126: 1 | H126: 1 | I126: 50 | J126: 0.1
A127: =A126+1 -> 124 | B127: 2000 | C127: =0.1*$A$1*1000000 -> 980665 | D127: 980665 | E127: =1*$A$1*1000000 -> 9806650 | F127: =0.5*$A$1*1000000 -> 4903325 | G127: 1 | H127: 1 | I127: 25 | J127: 0.1 | K127: RCP4-SA3R
A128: 125 | B128: 4000 | C128: 980665 | D128: 980665 | E128: 9806650 | F128: 4903325 | G128: 1 | H128: 1 | I128: 25 | J128: 0.1
A129: 126 | B129: 6000 | C129: 980665 | D129: 980665 | E129: 9806650 | F129: 4903325 | G129: 1 | H129: 1 | I129: 25 | J129: 0.1
A130: 127 | B130: 2500 | C130: 980665 | D130: 980665 | E130: 9806650 | F130: 4903325 | G130: 1 | H130: 1 | I130: 25 | J130: 0.1 | K130: RCP4-RA3R
A131: 128 | B131: 5000 | C131: 980665 | D131: 980665 | E131: 9806650 | F131: 4903325 | G131: 1 | H131: 1 | I131: 25 | J131: 0.1
A132: 129 | B132: 10000 | C132: 980665 | D132: 980665 | E132: 9806650 | F132: 4903325 | G132: 1 | H132: 1 | I132: 25 | J132: 0.1
A133: =A132+1 -> 130 | B133: 16000 | C133: =0.1*$A$1*1000000 -> 980665 | D133: 980665 | E133: =1*$A$1*1000000 -> 9806650 | F133: 4903325 | G133: 1 | H133: 1 | I133: 25 | J133: 0.1
A134: =A133+1 -> 131 | B134: 48000 | C134: =0.5*$A$1*1000000 -> 4903325 | D134: -1 | E134: =0.5*$A$1*1000000 -> 4903325 | F134: -1 | G134: 1 | H134: 1 | I134: 100 | J134: 0.1 | K134: RCP5-BA4
A135: =A134+1 -> 132 | B135: 48000 | C135: =0.5*$A$1*1000000 -> 4903325 | D135: -1 | E135: =0.5*$A$1*1000000 -> 4903325 | F135: -1 | G135: 1 | H135: 1 | I135: 100 | J135: 0.1 | K135: RCP5-BA6
A136: =A135+1 -> 133 | B136: 48000 | C136: =0.5*$A$1*1000000 -> 4903325 | D136: -1 | E136: =0.5*$A$1*1000000 -> 4903325 | F136: -1 | G136: 1 | H136: 1 | I136: 100 | J136: 0.1 | K136: RCP5-BA7
A137: =A136+1 -> 134 | B137: 2500 | C137: =0.3*$A$1*1000000 -> 2941995 | D137: 2941995 | E137: =0.7*$A$1*1000000 -> 6864655 | F137: =0.3*$A$1*1000000 -> 2941995 | G137: 1 | H137: 1 | I137: 50 | J137: 0.1 | K137: RCP5-SA4R
A138: 135 | B138: 5000 | C138: 2941995 | D138: 2941995 | E138: 6864655 | F138: 2941995 | G138: 1 | H138: 1 | I138: 50 | J138: 0.1
A139: 136 | B139: 10000 | C139: 2941995 | D139: 2941995 | E139: 6864655 | F139: 2941995 | G139: 1 | H139: 1 | I139: 50 | J139: 0.1
A140: 137 | B140: 16000 | C140: 2941995 | D140: 2941995 | E140: 6864655 | F140: 2941995 | G140: 1 | H140: 1 | I140: 50 | J140: 0.1
A141: 138 | B141: 3000 | C141: 2941995 | D141: 2941995 | E141: 6864655 | F141: 2941995 | G141: 1 | H141: 1 | I141: 50 | J141: 0.1 | K141: RCP5-SA6R
A142: 139 | B142: 6000 | C142: 2941995 | D142: 2941995 | E142: 6864655 | F142: 2941995 | G142: 1 | H142: 1 | I142: 50 | J142: 0.1
A143: 140 | B143: 12000 | C143: 2941995 | D143: 2941995 | E143: 6864655 | F143: 2941995 | G143: 1 | H143: 1 | I143: 50 | J143: 0.1
A144: 141 | B144: 20000 | C144: =0.3*$A$1*1000000 -> 2941995 | D144: =0.2*$A$1*1000000 -> 1961330 | E144: 6864655 | F144: =0.2*$A$1*1000000 -> 1961330 | G144: 1 | H144: 1 | I144: 50 | J144: 0.1
A145: 142 | B145: 4000 | C145: =0.2*$A$1*1000000 -> 1961330 | D145: =0.2*$A$1*1000000 -> 1961330 | E145: =0.2*$A$1*1000000 -> 1961330 | F145: =0.2*$A$1*1000000 -> 1961330 | G145: 1 | H145: 1 | I145: 50 | J145: 0.1 | K145: RCP5-SA7R
A146: 143 | B146: 8000 | C146: =0.3*$A$1*1000000 -> 2941995 | D146: =0.2*$A$1*1000000 -> 1961330 | E146: =0.3*$A$1*1000000 -> 2941995 | F146: =0.2*$A$1*1000000 -> 1961330 | G146: 1 | H146: 1 | I146: 50 | J146: 0.1
A147: 144 | B147: 16000 | C147: =0.3*$A$1*1000000 -> 2941995 | D147: =0.2*$A$1*1000000 -> 1961330 | E147: =0.3*$A$1*1000000 -> 2941995 | F147: =0.2*$A$1*1000000 -> 1961330 | G147: 1 | H147: 1 | I147: 50 | J147: 0.1
A148: 145 | B148: 24000 | C148: =0.3*$A$1*1000000 -> 2941995 | D148: =0.2*$A$1*1000000 -> 1961330 | E148: =0.3*$A$1*1000000 -> 2941995 | F148: =0.2*$A$1*1000000 -> 1961330 | G148: 1 | H148: 1 | I148: 50 | J148: 0.1
A149: 146 | B149: 2500 | C149: =0.3*$A$1*1000000 -> 2941995 | D149: 2941995 | E149: =0.7*$A$1*1000000 -> 6864655 | F149: =0.3*$A$1*1000000 -> 2941995 | G149: 1 | H149: 1 | I149: 50 | J149: 0.1 | K149: RCP5-RA4R
A150: 147 | B150: 5000 | C150: 2941995 | D150: 2941995 | E150: =0.7*$A$1*1000000 -> 6864655 | F150: =0.3*$A$1*1000000 -> 2941995 | G150: 1 | H150: 1 | I150: 50 | J150: 0.1
A151: 148 | B151: 10000 | C151: 2941995 | D151: 2941995 | E151: =0.7*$A$1*1000000 -> 6864655 | F151: =0.3*$A$1*1000000 -> 2941995 | G151: 1 | H151: 1 | I151: 50 | J151: 0.1
A152: 149 | B152: 16000 | C152: 2941995 | D152: 2941995 | E152: =0.7*$A$1*1000000 -> 6864655 | F152: =0.3*$A$1*1000000 -> 2941995 | G152: 1 | H152: 1 | I152: 50 | J152: 0.1
A153: 150 | B153: 3000 | C153: =0.2*$A$1*1000000 -> 1961330 | D153: 1961330 | E153: 1961330 | F153: 1961330 | G153: 1 | H153: 1 | I153: 50 | J153: 0.1 | K153: RCP5-RA6R
A154: 151 | B154: 6000 | C154: 1961330 | D154: 1961330 | E154: 1961330 | F154: 1961330 | G154: 1 | H154: 1 | I154: 50 | J154: 0.1
A155: 152 | B155: 12000 | C155: 1961330 | D155: 1961330 | E155: 1961330 | F155: 1961330 | G155: 1 | H155: 1 | I155: 50 | J155: 0.1
A156: 153 | B156: 20000 | C156: 1961330 | D156: 1961330 | E156: =0.3*$A$1*1000000 -> 2941995 | F156: 1961330 | G156: 1 | H156: 1 | I156: 50 | J156: 0.1
A157: 154 | B157: 4000 | C157: =0.2*$A$1*1000000 -> 1961330 | D157: 1961330 | E157: 1961330 | F157: 1961330 | G157: 1 | H157: 1 | I157: 50 | J157: 0.1 | K157: RCP5-RA7R
A158: 155 | B158: 8000 | C158: 1961330 | D158: 1961330 | E158: 1961330 | F158: 1961330 | G158: 1 | H158: 1 | I158: 50 | J158: 0.1
A159: 156 | B159: 16000 | C159: 1961330 | D159: 1961330 | E159: 1961330 | F159: 1961330 | G159: 1 | H159: 1 | I159: 50 | J159: 0.1
A160: 157 | B160: 24000 | C160: 1961330 | D160: 1961330 | E160: =0.3*$A$1*1000000 -> 2941995 | F160: 1961330 | G160: 1 | H160: 1 | I160: 50 | J160: 0.1
A161: 158 | B161: 4000 | C161: -1 | D161: =0.2*$A$1*1000000 -> 1961330 | E161: -1 | F161: =0.5*$A$1*1000000 -> 4903325 | G161: 1 | H161: 1 | I161: 50 | J161: 0.1 | K161: RCP4-RA6C(高推力)
A162: 159 | B162: 5000 | C162: =0.1*$A$1*1000000 -> 980665 | D162: =0.1*$A$1*1000000 -> 980665 | E162: =0.1*$A$1*1000000 -> 980665 | F162: =0.1*$A$1*1000000 -> 980665 | G162: 1 | H162: 1 | I162: 50 | J162: 0.1 | K162: RCP5W-RA8C
A163: 160 | B163: 10000 | C163: =0.2*$A$1*1000000 -> 1961330 | D163: 1961330 | E163: 1961330 | F163: 1961330 | G163: 1 | H163: 1 | I163: 50 | J163: 0.1
A164: 161 | B164: 20000 | C164: 1961330 | D164: 1961330 | E164: 1961330 | F164: 1961330 | G164: 1 | H164: 1 | I164: 50 | J164: 0.1
A165: 162 | B165: 2500 | C165: =ROUND(0.01*$A$1*1000000,0) -> 98067 | D165: =ROUND(0.01*$A$1*1000000,0) -> 98067 | E165: =ROUND(0.01*$A$1*1000000,0) -> 98067 | F165: =ROUND(0.01*$A$1*1000000,0) -> 98067 | G165: 1 | H165: 1 | I165: 50 | J165: 0.1 | K165: RCP5W-RA10C
A166: 163 | B166: 5000 | C166: =0.02*$A$1*1000000 -> 196133 | D166: =0.02*$A$1*1000000 -> 196133 | E166: =0.02*$A$1*1000000 -> 196133 | F166: =0.02*$A$1*1000000 -> 196133 | G166: 1 | H166: 1 | I166: 50 | J166: 0.1
A167: 164 | B167: 10000 | C167: =0.04*$A$1*1000000 -> 392266 | D167: =0.04*$A$1*1000000 -> 392266 | E167: =0.04*$A$1*1000000 -> 392266 | F167: =0.04*$A$1*1000000 -> 392266 | G167: 1 | H167: 1 | I167: 50 | J167: 0.1
A168: =A167+1 -> 165 | B168: 5000 | C168: =0.3*$A$1*1000000 -> 2941995 | D168: 2941995 | E168: =1*$A$1*1000000 -> 9806650 | F168: =0.5*$A$1*1000000 -> 4903325 | G168: 1 | H168: 1 | I168: 50 | J168: 0.1 | K168: RCP6-SA8C
A169: 166 | B169: 10000 | C169: 2941995 | D169: 2941995 | E169: 9806650 | F169: 4903325 | G169: 1 | H169: 1 | I169: 50 | J169: 0.1
A170: 167 | B170: 20000 | C170: 2941995 | D170: 2941995 | E170: 9806650 | F170: 4903325 | G170: 1 | H170: 1 | I170: 50 | J170: 0.1
A171: 168 | B171: 30000 | C171: 2941995 | D171: 2941995 | E171: 9806650 | F171: 4903325 | G171: 1 | H171: 1 | I171: 50 | J171: 0.1
A172: 169 | B172: 5000 | C172: 2941995 | D172: 2941995 | E172: 9806650 | F172: 4903325 | G172: 1 | H172: 1 | I172: 50 | J172: 0.1 | K172: RCP6-SA8R
A173: 170 | B173: 10000 | C173: 2941995 | D173: 2941995 | E173: 9806650 | F173: 4903325 | G173: 1 | H173: 1 | I173: 50 | J173: 0.1
A174: 171 | B174: 20000 | C174: 2941995 | D174: 2941995 | E174: 9806650 | F174: 4903325 | G174: 1 | H174: 1 | I174: 50 | J174: 0.1
A175: 172 | B175: 30000 | C175: =0.3*$A$1*1000000 -> 2941995 | D175: 2941995 | E175: =1*$A$1*1000000 -> 9806650 | F175: =0.5*$A$1*1000000 -> 4903325 | G175: 1 | H175: 1 | I175: 50 | J175: 0.1
A176: 173 | B176: 5000 | C176: 2941995 | D176: 2941995 | E176: 9806650 | F176: 4903325 | G176: 1 | H176: 1 | I176: 50 | J176: 0.1 | K176: RCP6-WSA16C
A177: 174 | B177: 10000 | C177: 2941995 | D177: 2941995 | E177: 9806650 | F177: 4903325 | G177: 1 | H177: 1 | I177: 50 | J177: 0.1
A178: 175 | B178: 20000 | C178: 2941995 | D178: -1 | E178: 9806650 | F178: -1 | G178: 1 | H178: 1 | I178: 50 | J178: 0.1
A179: 176 | B179: 5000 | C179: 2941995 | D179: 2941995 | E179: 9806650 | F179: 4903325 | G179: 1 | H179: 1 | I179: 50 | J179: 0.1 | K179: RCP6-WSA16R
A180: 177 | B180: 10000 | C180: 2941995 | D180: 2941995 | E180: 9806650 | F180: 4903325 | G180: 1 | H180: 1 | I180: 50 | J180: 0.1
A181: 178 | B181: 20000 | C181: 2941995 | D181: -1 | E181: 9806650 | F181: -1 | G181: 1 | H181: 1 | I181: 50 | J181: 0.1
A182: 179 | B182: 5000 | C182: =0.1*$A$1*1000000 -> 980665 | D182: =0.1*$A$1*1000000 -> 980665 | E182: =0.1*$A$1*1000000 -> 980665 | F182: =0.1*$A$1*1000000 -> 980665 | G182: 1 | H182: 1 | I182: 50 | J182: 0.1 | K182: RCP6-RA8C
A183: 180 | B183: 10000 | C183: =0.2*$A$1*1000000 -> 1961330 | D183: 1961330 | E183: 1961330 | F183: 1961330 | G183: 1 | H183: 1 | I183: 50 | J183: 0.1
A184: 181 | B184: 20000 | C184: 1961330 | D184: 1961330 | E184: 1961330 | F184: 1961330 | G184: 1 | H184: 1 | I184: 50 | J184: 0.1
A185: 182 | B185: 5000 | C185: =0.1*$A$1*1000000 -> 980665 | D185: =0.1*$A$1*1000000 -> 980665 | E185: =0.1*$A$1*1000000 -> 980665 | F185: =0.1*$A$1*1000000 -> 980665 | G185: 1 | H185: 1 | I185: 50 | J185: 0.1 | K185: RCP6-RA8R
A186: 183 | B186: 10000 | C186: =0.2*$A$1*1000000 -> 1961330 | D186: 1961330 | E186: 1961330 | F186: 1961330 | G186: 1 | H186: 1 | I186: 50 | J186: 0.1
A187: 184 | B187: 20000 | C187: 1961330 | D187: 1961330 | E187: 1961330 | F187: 1961330 | G187: 1 | H187: 1 | I187: 50 | J187: 0.1
A188: 185 | B188: 5000 | C188: =0.1*$A$1*1000000 -> 980665 | D188: =0.1*$A$1*1000000 -> 980665 | E188: =0.1*$A$1*1000000 -> 980665 | F188: =0.1*$A$1*1000000 -> 980665 | G188: 1 | H188: 1 | I188: 50 | J188: 0.1 | K188: RCP6-RRA8C
A189: 186 | B189: 10000 | C189: =0.2*$A$1*1000000 -> 1961330 | D189: 1961330 | E189: 1961330 | F189: 1961330 | G189: 1 | H189: 1 | I189: 50 | J189: 0.1
A190: 187 | B190: 20000 | C190: 1961330 | D190: 1961330 | E190: 1961330 | F190: 1961330 | G190: 1 | H190: 1 | I190: 50 | J190: 0.1
A191: 188 | B191: 5000 | C191: =0.1*$A$1*1000000 -> 980665 | D191: =0.1*$A$1*1000000 -> 980665 | E191: =0.1*$A$1*1000000 -> 980665 | F191: =0.1*$A$1*1000000 -> 980665 | G191: 1 | H191: 1 | I191: 50 | J191: 0.1 | K191: RCP6-RRA8R
A192: 189 | B192: 10000 | C192: =0.2*$A$1*1000000 -> 1961330 | D192: 1961330 | E192: 1961330 | F192: 1961330 | G192: 1 | H192: 1 | I192: 50 | J192: 0.1
A193: 190 | B193: 20000 | C193: 1961330 | D193: 1961330 | E193: 1961330 | F193: 1961330 | G193: 1 | H193: 1 | I193: 50 | J193: 0.1
A194: 191 | B194: 5000 | C194: =0.1*$A$1*1000000 -> 980665 | D194: =0.1*$A$1*1000000 -> 980665 | E194: =0.1*$A$1*1000000 -> 980665 | F194: =0.1*$A$1*1000000 -> 980665 | G194: 1 | H194: 1 | I194: 50 | J194: 0.1 | K194: RCP6-WRA16C
A195: 192 | B195: 10000 | C195: =0.2*$A$1*1000000 -> 1961330 | D195: 1961330 | E195: 1961330 | F195: 1961330 | G195: 1 | H195: 1 | I195: 50 | J195: 0.1
A196: 193 | B196: 20000 | C196: 1961330 | D196: -1 | E196: 1961330 | F196: -1 | G196: 1 | H196: 1 | I196: 50 | J196: 0.1
A197: 194 | B197: 5000 | C197: =0.1*$A$1*1000000 -> 980665 | D197: =0.1*$A$1*1000000 -> 980665 | E197: =0.1*$A$1*1000000 -> 980665 | F197: =0.1*$A$1*1000000 -> 980665 | G197: 1 | H197: 1 | I197: 50 | J197: 0.1 | K197: RCP6-WRA16R
A198: 195 | B198: 10000 | C198: =0.2*$A$1*1000000 -> 1961330 | D198: 1961330 | E198: 1961330 | F198: 1961330 | G198: 1 | H198: 1 | I198: 50 | J198: 0.1
A199: 196 | B199: 20000 | C199: 1961330 | D199: -1 | E199: 1961330 | F199: -1 | G199: 1 | H199: 1 | I199: 50 | J199: 0.1
A200: =A199+1 -> 197 | B200: 2500 | C200: =0.3*$A$1*1000000 -> 2941995 | D200: 2941995 | E200: =0.7*$A$1*1000000 -> 6864655 | F200: =0.3*$A$1*1000000 -> 2941995 | G200: 1 | H200: 1 | I200: 50 | J200: 0.1 | K200: RCP6-SA4C
... 176 more rows

Sheet StrokeData (hidden)
B1: 1 | C1: 2 | D1: 4 | E1: 5 | F1: 6 | G1: 7 | H1: 8 | I1: 9 | J1: 10 | K1: 17 | L1: 18
A2: ﾃﾞｰﾀ№ | B2: ｽﾄﾛｰｸ長 | C2: 有効ｽﾄﾛｰｸ補正 | D2: 基準ｹﾞｲﾝ用搬送質量 | E2: 水平可搬質量 | F2: 垂直可搬質量 | G2: 最大速度 | H2: 位置ｹﾞｲﾝ | I2: FFｹﾞｲﾝ | J2: 速度制御帯域 | K2: 前ﾃﾞｰﾀ№ | L2: 次ﾃﾞｰﾀ№ | M2: 備考
A3: =ModelData!A3 -> 0 | B3: ㎜ | C3: ㎜ | D3: 1g | E3: 1g | F3: 1g | G3: ㎜/s | H3: 1/s | I3: % | J3: rad/s | N3: 前№ﾁｪｯｸ | O3: 後№ﾁｪｯｸ
A4: =A3+1 -> 1 | B4: 550 | C4: 0 | D4: 16000 | E4: 16000 | F4: 10000 | G4: 150 | H4: 40 | I4: 0 | J4: 400 | K4: -1 | L4: =A5 -> 2 | M4: RCP4-SA5C-3 | N4: =IF(K4<>-1,IF(K4=A3,"○","◆"),IF(M4<>"","先頭","▼")) -> 先頭 | O4: =IF(L4<>-1,IF(L4=A5,"○","◆"),IF(M5<>"","最後","▼")) -> ○
A5: 2 | B5: 600 | C5: 0 | D5: 16000 | E5: 16000 | F5: 10000 | G5: 140 | H5: 40 | I5: 0 | J5: 400 | K5: =A4 -> 1 | L5: =A6 -> 3 | N5: ○ | O5: ○
A6: 3 | B6: 650 | C6: 0 | D6: 16000 | E6: 16000 | F6: 10000 | G6: 120 | H6: 40 | I6: 0 | J6: 400 | K6: =A5 -> 2 | L6: =A7 -> 4 | N6: ○ | O6: ○
A7: 4 | B7: 700 | C7: 0 | D7: 16000 | E7: 16000 | F7: 10000 | G7: 105 | H7: 40 | I7: 0 | J7: 400 | K7: =A6 -> 3 | L7: =A8 -> 5 | N7: ○ | O7: ○
A8: 5 | B8: 750 | C8: 0 | D8: 16000 | E8: 16000 | F8: 10000 | G8: 90 | H8: 40 | I8: 0 | J8: 400 | K8: =A7 -> 4 | L8: =A9 -> 6 | N8: ○ | O8: ○
A9: 6 | B9: 800 | C9: 0 | D9: 16000 | E9: 16000 | F9: 10000 | G9: 80 | H9: 40 | I9: 0 | J9: 400 | K9: =A8 -> 5 | L9: -1 | N9: ○ | O9: 最後
A10: 7 | B10: 550 | C10: 0 | D10: 13000 | E10: 13000 | F10: 5000 | G10: 300 | H10: 40 | I10: 0 | J10: 400 | K10: -1 | L10: =A11 -> 8 | M10: RCP4-SA5C-6 | N10: 先頭 | O10: ○
A11: 8 | B11: 600 | C11: 0 | D11: 13000 | E11: 13000 | F11: 5000 | G11: 285 | H11: 40 | I11: 0 | J11: 400 | K11: =A10 -> 7 | L11: =A12 -> 9 | N11: ○ | O11: ○
A12: 9 | B12: 650 | C12: 0 | D12: 13000 | E12: 13000 | F12: 5000 | G12: 245 | H12: 40 | I12: 0 | J12: 400 | K12: =A11 -> 8 | L12: =A13 -> 10 | N12: ○ | O12: ○
A13: 10 | B13: 700 | C13: 0 | D13: 13000 | E13: 13000 | F13: 5000 | G13: 215 | H13: 40 | I13: 0 | J13: 400 | K13: =A12 -> 9 | L13: =A14 -> 11 | N13: ○ | O13: ○
A14: 11 | B14: 750 | C14: 0 | D14: 13000 | E14: 13000 | F14: 5000 | G14: 185 | H14: 40 | I14: 0 | J14: 400 | K14: =A13 -> 10 | L14: =A15 -> 12 | N14: ○ | O14: ○
A15: 12 | B15: 800 | C15: 0 | D15: 13000 | E15: 13000 | F15: 5000 | G15: 165 | H15: 40 | I15: 0 | J15: 400 | K15: =A14 -> 11 | L15: -1 | N15: ○ | O15: 最後
A16: 13 | B16: 550 | C16: 0 | D16: 8000 | E16: 8000 | F16: 2000 | G16: 600 | H16: 40 | I16: 0 | J16: 300 | K16: -1 | L16: =A17 -> 14 | M16: RCP4-SA5C-12 | N16: 先頭 | O16: ○
A17: 14 | B17: 600 | C17: 0 | D17: 8000 | E17: 8000 | F17: 2000 | G17: 570 | H17: 40 | I17: 0 | J17: 300 | K17: =A16 -> 13 | L17: =A18 -> 15 | N17: ○ | O17: ○
A18: 15 | B18: 650 | C18: 0 | D18: 8000 | E18: 8000 | F18: 2000 | G18: 490 | H18: 40 | I18: 0 | J18: 300 | K18: =A17 -> 14 | L18: =A19 -> 16 | N18: ○ | O18: ○
A19: 16 | B19: 700 | C19: 0 | D19: 8000 | E19: 8000 | F19: 2000 | G19: 425 | H19: 40 | I19: 0 | J19: 300 | K19: =A18 -> 15 | L19: =A20 -> 17 | N19: ○ | O19: ○
A20: 17 | B20: 750 | C20: 0 | D20: 8000 | E20: 8000 | F20: 2000 | G20: 375 | H20: 40 | I20: 0 | J20: 300 | K20: =A19 -> 16 | L20: =A21 -> 18 | N20: ○ | O20: ○
A21: 18 | B21: 800 | C21: 0 | D21: 8000 | E21: 8000 | F21: 2000 | G21: 330 | H21: 40 | I21: 0 | J21: 300 | K21: =A20 -> 17 | L21: -1 | N21: ○ | O21: 最後
A22: 19 | B22: 600 | C22: 0 | D22: 5000 | E22: 5000 | F22: 500 | G22: 960 | H22: 40 | I22: 0 | J22: 220 | K22: -1 | L22: =A23 -> 20 | M22: RCP4-SA5C-20 | N22: 先頭 | O22: ○
A23: 20 | B23: 650 | C23: 0 | D23: 5000 | E23: 5000 | F23: 500 | G23: 900 | H23: 40 | I23: 0 | J23: 220 | K23: =A22 -> 19 | L23: =A24 -> 21 | N23: ○ | O23: ○
A24: 21 | B24: 700 | C24: 0 | D24: 5000 | E24: 5000 | F24: 500 | G24: 785 | H24: 40 | I24: 0 | J24: 220 | K24: =A23 -> 20 | L24: =A25 -> 22 | N24: ○ | O24: ○
A25: 22 | B25: 750 | C25: 0 | D25: 5000 | E25: 5000 | F25: 500 | G25: 690 | H25: 40 | I25: 0 | J25: 220 | K25: =A24 -> 21 | L25: =A26 -> 23 | N25: ○ | O25: ○
A26: 23 | B26: 800 | C26: 0 | D26: 5000 | E26: 5000 | F26: 500 | G26: 610 | H26: 40 | I26: 0 | J26: 220 | K26: =A25 -> 22 | L26: -1 | N26: ○ | O26: 最後
A27: 24 | B27: 550 | C27: 0 | D27: 19000 | E27: 19000 | F27: 10000 | G27: 150 | H27: 40 | I27: 0 | J27: 400 | K27: -1 | L27: =A28 -> 25 | M27: RCP4-SA6C-3 | N27: 先頭 | O27: ○
A28: 25 | B28: 600 | C28: 0 | D28: 19000 | E28: 19000 | F28: 10000 | G28: 140 | H28: 40 | I28: 0 | J28: 400 | K28: =A27 -> 24 | L28: =A29 -> 26 | N28: ○ | O28: ○
A29: 26 | B29: 650 | C29: 0 | D29: 19000 | E29: 19000 | F29: 10000 | G29: 120 | H29: 40 | I29: 0 | J29: 400 | K29: =A28 -> 25 | L29: =A30 -> 27 | N29: ○ | O29: ○
A30: 27 | B30: 700 | C30: 0 | D30: 19000 | E30: 19000 | F30: 10000 | G30: 105 | H30: 40 | I30: 0 | J30: 400 | K30: =A29 -> 26 | L30: =A31 -> 28 | N30: ○ | O30: ○
A31: 28 | B31: 750 | C31: 0 | D31: 19000 | E31: 19000 | F31: 10000 | G31: 90 | H31: 40 | I31: 0 | J31: 400 | K31: =A30 -> 27 | L31: =A32 -> 29 | N31: ○ | O31: ○
A32: 29 | B32: 800 | C32: 0 | D32: 19000 | E32: 19000 | F32: 10000 | G32: 80 | H32: 40 | I32: 0 | J32: 400 | K32: =A31 -> 28 | L32: -1 | N32: ○ | O32: 最後
A33: 30 | B33: 550 | C33: 0 | D33: 16000 | E33: 16000 | F33: 5000 | G33: 300 | H33: 40 | I33: 0 | J33: 385 | K33: -1 | L33: =A34 -> 31 | M33: RCP4-SA6C-6 | N33: 先頭 | O33: ○
A34: 31 | B34: 600 | C34: 0 | D34: 16000 | E34: 16000 | F34: 5000 | G34: 285 | H34: 40 | I34: 0 | J34: 385 | K34: =A33 -> 30 | L34: =A35 -> 32 | N34: ○ | O34: ○
A35: 32 | B35: 650 | C35: 0 | D35: 16000 | E35: 16000 | F35: 5000 | G35: 245 | H35: 40 | I35: 0 | J35: 385 | K35: =A34 -> 31 | L35: =A36 -> 33 | N35: ○ | O35: ○
A36: 33 | B36: 700 | C36: 0 | D36: 16000 | E36: 16000 | F36: 5000 | G36: 215 | H36: 40 | I36: 0 | J36: 385 | K36: =A35 -> 32 | L36: =A37 -> 34 | N36: ○ | O36: ○
A37: 34 | B37: 750 | C37: 0 | D37: 16000 | E37: 16000 | F37: 5000 | G37: 185 | H37: 40 | I37: 0 | J37: 385 | K37: =A36 -> 33 | L37: =A38 -> 35 | N37: ○ | O37: ○
A38: 35 | B38: 800 | C38: 0 | D38: 16000 | E38: 16000 | F38: 5000 | G38: 165 | H38: 40 | I38: 0 | J38: 385 | K38: =A37 -> 34 | L38: -1 | N38: ○ | O38: 最後
A39: 36 | B39: 550 | C39: 0 | D39: 8500 | E39: 8500 | F39: 2000 | G39: 600 | H39: 40 | I39: 0 | J39: 350 | K39: -1 | L39: =A40 -> 37 | M39: RCP4-SA6C-12 | N39: 先頭 | O39: ○
A40: 37 | B40: 600 | C40: 0 | D40: 8500 | E40: 8500 | F40: 2000 | G40: 570 | H40: 40 | I40: 0 | J40: 350 | K40: =A39 -> 36 | L40: =A41 -> 38 | N40: ○ | O40: ○
A41: 38 | B41: 650 | C41: 0 | D41: 8500 | E41: 8500 | F41: 2000 | G41: 490 | H41: 40 | I41: 0 | J41: 350 | K41: =A40 -> 37 | L41: =A42 -> 39 | N41: ○ | O41: ○
A42: 39 | B42: 700 | C42: 0 | D42: 8500 | E42: 8500 | F42: 2000 | G42: 430 | H42: 40 | I42: 0 | J42: 350 | K42: =A41 -> 38 | L42: =A43 -> 40 | N42: ○ | O42: ○
A43: 40 | B43: 750 | C43: 0 | D43: 8500 | E43: 8500 | F43: 2000 | G43: 375 | H43: 40 | I43: 0 | J43: 350 | K43: =A42 -> 39 | L43: =A44 -> 41 | N43: ○ | O43: ○
A44: 41 | B44: 800 | C44: 0 | D44: 8500 | E44: 8500 | F44: 2000 | G44: 335 | H44: 40 | I44: 0 | J44: 350 | K44: =A43 -> 40 | L44: -1 | N44: ○ | O44: 最後
A45: 42 | B45: 600 | C45: 0 | D45: 6000 | E45: 6000 | F45: 500 | G45: 960 | H45: 40 | I45: 0 | J45: 225 | K45: -1 | L45: =A46 -> 43 | M45: RCP4-SA6C-20 | N45: 先頭 | O45: ○
A46: 43 | B46: 650 | C46: 0 | D46: 6000 | E46: 6000 | F46: 500 | G46: 905 | H46: 40 | I46: 0 | J46: 225 | K46: =A45 -> 42 | L46: =A47 -> 44 | N46: ○ | O46: ○
A47: 44 | B47: 700 | C47: 0 | D47: 6000 | E47: 6000 | F47: 500 | G47: 785 | H47: 40 | I47: 0 | J47: 225 | K47: =A46 -> 43 | L47: =A48 -> 45 | N47: ○ | O47: ○
A48: 45 | B48: 750 | C48: 0 | D48: 6000 | E48: 6000 | F48: 500 | G48: 690 | H48: 40 | I48: 0 | J48: 225 | K48: =A47 -> 44 | L48: =A49 -> 46 | N48: ○ | O48: ○
A49: 46 | B49: 800 | C49: 0 | D49: 6000 | E49: 6000 | F49: 500 | G49: 615 | H49: 40 | I49: 0 | J49: 225 | K49: =A48 -> 45 | L49: -1 | N49: ○ | O49: 最後
A50: 47 | B50: 750 | C50: 0 | D50: 40000 | E50: 40000 | F50: 15000 | G50: 140 | H50: 40 | I50: 0 | J50: 400 | K50: -1 | L50: =A51 -> 48 | M50: RCP4-SA7C-4 | N50: 先頭 | O50: ○
A51: 48 | B51: 800 | C51: 0 | D51: 40000 | E51: 40000 | F51: 15000 | G51: 125 | H51: 40 | I51: 0 | J51: 400 | K51: =A50 -> 47 | L51: -1 | N51: ○ | O51: 最後
A52: 49 | B52: 750 | C52: 0 | D52: 40000 | E52: 40000 | F52: 10000 | G52: 280 | H52: 40 | I52: 0 | J52: 290 | K52: -1 | L52: =A53 -> 50 | M52: RCP4-SA7C-8 | N52: 先頭 | O52: ○
A53: 50 | B53: 800 | C53: 0 | D53: 40000 | E53: 40000 | F53: 10000 | G53: 255 | H53: 40 | I53: 0 | J53: 290 | K53: =A52 -> 49 | L53: -1 | N53: ○ | O53: 最後
A54: 51 | B54: 750 | C54: 0 | D54: 35000 | E54: 35000 | F54: 5000 | G54: 560 | H54: 40 | I54: 0 | J54: 240 | K54: -1 | L54: =A55 -> 52 | M54: RCP4-SA7C-16 | N54: 先頭 | O54: ○
A55: 52 | B55: 800 | C55: 0 | D55: 35000 | E55: 35000 | F55: 5000 | G55: 515 | H55: 40 | I55: 0 | J55: 240 | K55: =A54 -> 51 | L55: -1 | N55: ○ | O55: 最後
A56: 53 | B56: 700 | C56: 0 | D56: 18000 | E56: 18000 | F56: 2000 | G56: 1000 | H56: 40 | I56: 0 | J56: 175 | K56: -1 | L56: =A57 -> 54 | M56: RCP4-SA7C-24 | N56: 先頭 | O56: ○
A57: 54 | B57: 750 | C57: 0 | D57: 18000 | E57: 18000 | F57: 2000 | G57: 890 | H57: 40 | I57: 0 | J57: 175 | K57: =A56 -> 53 | L57: =A58 -> 55 | N57: ○ | O57: ○
A58: 55 | B58: 800 | C58: 0 | D58: 18000 | E58: 18000 | F58: 2000 | G58: 790 | H58: 40 | I58: 0 | J58: 175 | K58: =A57 -> 54 | L58: -1 | N58: ○ | O58: 最後
A59: 56 | B59: 400 | C59: 0 | D59: 40000 | E59: 40000 | F59: 20000 | G59: 125 | H59: 40 | I59: 0 | J59: 380 | K59: -1 | L59: -1 | M59: RCP4-RA5C-3 | N59: 先頭 | O59: 最後
A60: 57 | B60: 400 | C60: 0 | D60: 40000 | E60: 40000 | F60: 10000 | G60: 250 | H60: 40 | I60: 0 | J60: 240 | K60: -1 | L60: -1 | M60: RCP4-RA5C-6 | N60: 先頭 | O60: 最後
A61: 58 | B61: 400 | C61: 0 | D61: 25000 | E61: 25000 | F61: 4000 | G61: 500 | H61: 40 | I61: 0 | J61: 200 | K61: -1 | L61: -1 | M61: RCP4-RA5C-12 | N61: 先頭 | O61: 最後
A62: 59 | B62: 400 | C62: 0 | D62: 6000 | E62: 6000 | F62: 1500 | G62: 640 | H62: 40 | I62: 0 | J62: 210 | K62: -1 | L62: -1 | M62: RCP4-RA5C-20 | N62: 先頭 | O62: 最後
A63: 60 | B63: 500 | C63: 0 | D63: 55000 | E63: 55000 | F63: 26000 | G63: 140 | H63: 40 | I63: 0 | J63: 400 | K63: -1 | L63: -1 | M63: RCP4-RA6C-4 | N63: 先頭 | O63: 最後
A64: 61 | B64: 500 | C64: 0 | D64: 50000 | E64: 50000 | F64: 17500 | G64: 210 | H64: 40 | I64: 0 | J64: 400 | K64: -1 | L64: -1 | M64: RCP4-RA6C-8 | N64: 先頭 | O64: 最後
A65: 62 | B65: 500 | C65: 0 | D65: 40000 | E65: 40000 | F65: 5000 | G65: 420 | H65: 40 | I65: 0 | J65: 300 | K65: -1 | L65: -1 | M65: RCP4-RA6C-16 | N65: 先頭 | O65: 最後
A66: 63 | B66: 500 | C66: 0 | D66: 18000 | E66: 18000 | F66: 3000 | G66: 600 | H66: 40 | I66: 0 | J66: 215 | K66: -1 | L66: -1 | M66: RCP4-RA6C-24 | N66: 先頭 | O66: 最後
A67: 64 | B67: 550 | C67: 0 | D67: 16000 | E67: 12000 | F67: 6000 | G67: 150 | H67: 40 | I67: 0 | J67: 400 | K67: -1 | L67: =A68 -> 65 | M67: ERC3-SA5-3 | N67: 先頭 | O67: ○
A68: =A67+1 -> 65 | B68: 600 | C68: 0 | D68: 16000 | E68: 12000 | F68: 6000 | G68: 140 | H68: 40 | I68: 0 | J68: 400 | K68: =A67 -> 64 | L68: =A69 -> 66 | N68: =IF(K68<>-1,IF(K68=A67,"○","◆"),IF(M68<>"","先頭","▼")) -> ○ | O68: =IF(L68<>-1,IF(L68=A69,"○","◆"),IF(M69<>"","最後","▼")) -> ○
A69: 66 | B69: 650 | C69: 0 | D69: 16000 | E69: 12000 | F69: 6000 | G69: 115 | H69: 40 | I69: 0 | J69: 400 | K69: =A68 -> 65 | L69: =A70 -> 67 | N69: ○ | O69: ○
A70: 67 | B70: 700 | C70: 0 | D70: 16000 | E70: 12000 | F70: 6000 | G70: 100 | H70: 40 | I70: 0 | J70: 400 | K70: =A69 -> 66 | L70: =A71 -> 68 | N70: ○ | O70: ○
A71: 68 | B71: 750 | C71: 0 | D71: 16000 | E71: 12000 | F71: 6000 | G71: 85 | H71: 40 | I71: 0 | J71: 400 | K71: =A70 -> 67 | L71: =A72 -> 69 | N71: ○ | O71: ○
A72: 69 | B72: 800 | C72: 0 | D72: 16000 | E72: 12000 | F72: 6000 | G72: 75 | H72: 40 | I72: 0 | J72: 400 | K72: =A71 -> 68 | L72: -1 | N72: ○ | O72: 最後
A73: 70 | B73: 550 | C73: 0 | D73: 13000 | E73: 12000 | F73: 3000 | G73: 300 | H73: 40 | I73: 0 | J73: 400 | K73: -1 | L73: =A74 -> 71 | M73: ERC3-SA5-6 | N73: 先頭 | O73: ○
A74: 71 | B74: 600 | C74: 0 | D74: 13000 | E74: 12000 | F74: 3000 | G74: 280 | H74: 40 | I74: 0 | J74: 400 | K74: =A73 -> 70 | L74: =A75 -> 72 | N74: ○ | O74: ○
A75: 72 | B75: 650 | C75: 0 | D75: 13000 | E75: 12000 | F75: 3000 | G75: 235 | H75: 40 | I75: 0 | J75: 400 | K75: =A74 -> 71 | L75: =A76 -> 73 | N75: ○ | O75: ○
A76: 73 | B76: 700 | C76: 0 | D76: 13000 | E76: 12000 | F76: 3000 | G76: 200 | H76: 40 | I76: 0 | J76: 400 | K76: =A75 -> 72 | L76: =A77 -> 74 | N76: ○ | O76: ○
A77: 74 | B77: 750 | C77: 0 | D77: 13000 | E77: 12000 | F77: 3000 | G77: 175 | H77: 40 | I77: 0 | J77: 400 | K77: =A76 -> 73 | L77: =A78 -> 75 | N77: ○ | O77: ○
A78: 75 | B78: 800 | C78: 0 | D78: 13000 | E78: 12000 | F78: 3000 | G78: 150 | H78: 40 | I78: 0 | J78: 400 | K78: =A77 -> 74 | L78: -1 | N78: ○ | O78: 最後
A79: 76 | B79: 550 | C79: 0 | D79: 8000 | E79: 6000 | F79: 1500 | G79: 600 | H79: 40 | I79: 0 | J79: 400 | K79: -1 | L79: =A80 -> 77 | M79: ERC3-SA5-12 | N79: 先頭 | O79: ○
A80: 77 | B80: 600 | C80: 0 | D80: 8000 | E80: 6000 | F80: 1500 | G80: 560 | H80: 40 | I80: 0 | J80: 400 | K80: =A79 -> 76 | L80: =A81 -> 78 | N80: ○ | O80: ○
A81: 78 | B81: 650 | C81: 0 | D81: 8000 | E81: 6000 | F81: 1500 | G81: 475 | H81: 40 | I81: 0 | J81: 400 | K81: =A80 -> 77 | L81: =A82 -> 79 | N81: ○ | O81: ○
A82: 79 | B82: 700 | C82: 0 | D82: 8000 | E82: 6000 | F82: 1500 | G82: 405 | H82: 40 | I82: 0 | J82: 400 | K82: =A81 -> 78 | L82: =A83 -> 80 | N82: ○ | O82: ○
A83: 80 | B83: 750 | C83: 0 | D83: 8000 | E83: 6000 | F83: 1500 | G83: 350 | H83: 40 | I83: 0 | J83: 400 | K83: =A82 -> 79 | L83: =A84 -> 81 | N83: ○ | O83: ○
A84: 81 | B84: 800 | C84: 0 | D84: 8000 | E84: 6000 | F84: 1500 | G84: 300 | H84: 40 | I84: 0 | J84: 400 | K84: =A83 -> 80 | L84: -1 | N84: ○ | O84: 最後
A85: 82 | B85: 550 | C85: 0 | D85: 5000 | E85: 3500 | F85: 1000 | G85: 1000 | H85: 40 | I85: 0 | J85: 400 | K85: -1 | L85: =A86 -> 83 | M85: ERC3-SA5-20 | N85: 先頭 | O85: ○
A86: 83 | B86: 600 | C86: 0 | D86: 5000 | E86: 3500 | F86: 1000 | G86: 935 | H86: 40 | I86: 0 | J86: 400 | K86: =A85 -> 82 | L86: =A87 -> 84 | N86: ○ | O86: ○
A87: 84 | B87: 650 | C87: 0 | D87: 5000 | E87: 3500 | F87: 1000 | G87: 795 | H87: 40 | I87: 0 | J87: 400 | K87: =A86 -> 83 | L87: =A88 -> 85 | N87: ○ | O87: ○
A88: 85 | B88: 700 | C88: 0 | D88: 5000 | E88: 3500 | F88: 1000 | G88: 680 | H88: 40 | I88: 0 | J88: 400 | K88: =A87 -> 84 | L88: =A89 -> 86 | N88: ○ | O88: ○
A89: 86 | B89: 750 | C89: 0 | D89: 5000 | E89: 3500 | F89: 1000 | G89: 585 | H89: 40 | I89: 0 | J89: 400 | K89: =A88 -> 85 | L89: =A90 -> 87 | N89: ○ | O89: ○
A90: 87 | B90: 800 | C90: 0 | D90: 5000 | E90: 3500 | F90: 1000 | G90: 510 | H90: 40 | I90: 0 | J90: 400 | K90: =A89 -> 86 | L90: -1 | N90: ○ | O90: 最後
A91: 88 | B91: 750 | C91: 0 | D91: 40000 | E91: 20000 | F91: 10000 | G91: 125 | H91: 40 | I91: 0 | J91: 400 | K91: -1 | L91: =A92 -> 89 | M91: ERC3-SA7-4 | N91: 先頭 | O91: ○
A92: 89 | B92: 800 | C92: 0 | D92: 40000 | E92: 20000 | F92: 10000 | G92: 120 | H92: 40 | I92: 0 | J92: 400 | K92: =A91 -> 88 | L92: -1 | N92: ○ | O92: 最後
A93: 90 | B93: 750 | C93: 0 | D93: 40000 | E93: 20000 | F93: 5000 | G93: 250 | H93: 40 | I93: 0 | J93: 400 | K93: -1 | L93: =A94 -> 91 | M93: ERC3-SA7-8 | N93: 先頭 | O93: ○
A94: 91 | B94: 800 | C94: 0 | D94: 40000 | E94: 20000 | F94: 5000 | G94: 245 | H94: 40 | I94: 0 | J94: 400 | K94: =A93 -> 90 | L94: -1 | N94: ○ | O94: 最後
A95: 92 | B95: 800 | C95: 0 | D95: 35000 | E95: 10000 | F95: 2500 | G95: 450 | H95: 40 | I95: 0 | J95: 400 | K95: -1 | L95: -1 | M95: ERC3-SA7-16 | N95: 先頭 | O95: 最後
A96: 93 | B96: 800 | C96: 0 | D96: 13000 | E96: 6000 | F96: 1500 | G96: 675 | H96: 40 | I96: 0 | J96: 400 | K96: -1 | L96: -1 | M96: ERC3-SA7-24 | N96: 先頭 | O96: 最後
A97: 94 | B97: 250 | C97: 0 | D97: 33300 | E97: 40000 | F97: 18000 | G97: 150 | H97: 40 | I97: 0 | J97: 400 | K97: -1 | L97: =A98 -> 95 | M97: ERC3-RA4-3 | N97: 先頭 | O97: ○
A98: 95 | B98: 300 | C98: 0 | D98: 33300 | E98: 40000 | F98: 18000 | G98: 120 | H98: 40 | I98: 0 | J98: 400 | K98: =A97 -> 94 | L98: -1 | N98: ○ | O98: 最後
A99: 96 | B99: 250 | C99: 0 | D99: 33300 | E99: 40000 | F99: 12000 | G99: 300 | H99: 40 | I99: 0 | J99: 400 | K99: -1 | L99: =A100 -> 97 | M99: ERC3-RA4-6 | N99: 先頭 | O99: ○
A100: 97 | B100: 300 | C100: 0 | D100: 33300 | E100: 40000 | F100: 12000 | G100: 240 | H100: 40 | I100: 0 | J100: 400 | K100: =A99 -> 96 | L100: -1 | N100: ○ | O100: 最後
A101: 98 | B101: 250 | C101: 0 | D101: 20800 | E101: 25000 | F101: 4500 | G101: 600 | H101: 40 | I101: 0 | J101: 400 | K101: -1 | L101: =A102 -> 99 | M101: ERC3-RA4-12 | N101: 先頭 | O101: ○
A102: 99 | B102: 300 | C102: 0 | D102: 20800 | E102: 25000 | F102: 4500 | G102: 485 | H102: 40 | I102: 0 | J102: 400 | K102: =A101 -> 98 | L102: -1 | N102: ○ | O102: 最後
A103: 100 | B103: 300 | C103: 0 | D103: 12500 | E103: 12000 | F103: 2000 | G103: 667 | H103: 40 | I103: 0 | J103: 400 | K103: -1 | L103: -1 | M103: ERC3-RA4-20 | N103: 先頭 | O103: 最後
A104: 101 | B104: 300 | C104: 0 | D104: 55000 | E104: 55000 | F104: 25000 | G104: 125 | H104: 40 | I104: 0 | J104: 400 | K104: -1 | L104: -1 | M104: ERC3-RA6-4 | N104: 先頭 | O104: 最後
A105: 102 | B105: 300 | C105: 0 | D105: 50000 | E105: 50000 | F105: 17500 | G105: 250 | H105: 40 | I105: 0 | J105: 400 | K105: -1 | L105: -1 | M105: ERC3-RA6-8 | N105: 先頭 | O105: 最後
A106: 103 | B106: 300 | C106: 0 | D106: 40000 | E106: 40000 | F106: 5000 | G106: 450 | H106: 40 | I106: 0 | J106: 400 | K106: -1 | L106: -1 | M106: ERC3-RA6-16 | N106: 先頭 | O106: 最後
A107: 104 | B107: 300 | C107: 0 | D107: 26000 | E107: 25000 | F107: 3000 | G107: 675 | H107: 40 | I107: 0 | J107: 400 | K107: -1 | L107: -1 | M107: ERC3-RA6-24 | N107: 先頭 | O107: 最後
A108: 105 | B108: 550 | C108: 0 | D108: 16000 | E108: 16000 | F108: 10000 | G108: 150 | H108: 40 | I108: 0 | J108: 400 | K108: -1 | L108: =A109 -> 106 | M108: RCP4-SA5R-3 | N108: 先頭 | O108: ○
A109: 106 | B109: 600 | C109: 0 | D109: 16000 | E109: 16000 | F109: 10000 | G109: 140 | H109: 40 | I109: 0 | J109: 400 | K109: =A108 -> 105 | L109: =A110 -> 107 | N109: ○ | O109: ○
A110: 107 | B110: 650 | C110: 0 | D110: 16000 | E110: 16000 | F110: 10000 | G110: 120 | H110: 40 | I110: 0 | J110: 400 | K110: =A109 -> 106 | L110: =A111 -> 108 | N110: ○ | O110: ○
A111: 108 | B111: 700 | C111: 0 | D111: 16000 | E111: 16000 | F111: 10000 | G111: 105 | H111: 40 | I111: 0 | J111: 400 | K111: =A110 -> 107 | L111: =A112 -> 109 | N111: ○ | O111: ○
A112: 109 | B112: 750 | C112: 0 | D112: 16000 | E112: 16000 | F112: 10000 | G112: 90 | H112: 40 | I112: 0 | J112: 400 | K112: =A111 -> 108 | L112: =A113 -> 110 | N112: ○ | O112: ○
A113: 110 | B113: 800 | C113: 0 | D113: 16000 | E113: 16000 | F113: 10000 | G113: 80 | H113: 40 | I113: 0 | J113: 400 | K113: =A112 -> 109 | L113: -1 | N113: ○ | O113: 最後
A114: 111 | B114: 550 | C114: 0 | D114: 13000 | E114: 13000 | F114: 5000 | G114: 300 | H114: 40 | I114: 0 | J114: 400 | K114: -1 | L114: =A115 -> 112 | M114: RCP4-SA5R-6 | N114: 先頭 | O114: ○
A115: 112 | B115: 600 | C115: 0 | D115: 13000 | E115: 13000 | F115: 5000 | G115: 285 | H115: 40 | I115: 0 | J115: 400 | K115: =A114 -> 111 | L115: =A116 -> 113 | N115: ○ | O115: ○
A116: 113 | B116: 650 | C116: 0 | D116: 13000 | E116: 13000 | F116: 5000 | G116: 245 | H116: 40 | I116: 0 | J116: 400 | K116: =A115 -> 112 | L116: =A117 -> 114 | N116: ○ | O116: ○
A117: 114 | B117: 700 | C117: 0 | D117: 13000 | E117: 13000 | F117: 5000 | G117: 215 | H117: 40 | I117: 0 | J117: 400 | K117: =A116 -> 113 | L117: =A118 -> 115 | N117: ○ | O117: ○
A118: 115 | B118: 750 | C118: 0 | D118: 13000 | E118: 13000 | F118: 5000 | G118: 185 | H118: 40 | I118: 0 | J118: 400 | K118: =A117 -> 114 | L118: =A119 -> 116 | N118: ○ | O118: ○
A119: 116 | B119: 800 | C119: 0 | D119: 13000 | E119: 13000 | F119: 5000 | G119: 165 | H119: 40 | I119: 0 | J119: 400 | K119: =A118 -> 115 | L119: -1 | N119: ○ | O119: 最後
A120: 117 | B120: 550 | C120: 0 | D120: 8000 | E120: 8000 | F120: 2000 | G120: 600 | H120: 40 | I120: 0 | J120: 300 | K120: -1 | L120: =A121 -> 118 | M120: RCP4-SA5R-12 | N120: 先頭 | O120: ○
A121: 118 | B121: 600 | C121: 0 | D121: 8000 | E121: 8000 | F121: 2000 | G121: 570 | H121: 40 | I121: 0 | J121: 300 | K121: =A120 -> 117 | L121: =A122 -> 119 | N121: ○ | O121: ○
A122: 119 | B122: 650 | C122: 0 | D122: 8000 | E122: 8000 | F122: 2000 | G122: 490 | H122: 40 | I122: 0 | J122: 300 | K122: =A121 -> 118 | L122: =A123 -> 120 | N122: ○ | O122: ○
A123: 120 | B123: 700 | C123: 0 | D123: 8000 | E123: 8000 | F123: 2000 | G123: 425 | H123: 40 | I123: 0 | J123: 300 | K123: =A122 -> 119 | L123: =A124 -> 121 | N123: ○ | O123: ○
A124: 121 | B124: 750 | C124: 0 | D124: 8000 | E124: 8000 | F124: 2000 | G124: 375 | H124: 40 | I124: 0 | J124: 300 | K124: =A123 -> 120 | L124: =A125 -> 122 | N124: ○ | O124: ○
A125: 122 | B125: 800 | C125: 0 | D125: 8000 | E125: 8000 | F125: 2000 | G125: 330 | H125: 40 | I125: 0 | J125: 300 | K125: =A124 -> 121 | L125: -1 | N125: ○ | O125: 最後
A126: 123 | B126: 600 | C126: 0 | D126: 5000 | E126: 5000 | F126: 500 | G126: 960 | H126: 40 | I126: 0 | J126: 220 | K126: -1 | L126: =A127 -> 124 | M126: RCP4-SA5R-20 | N126: 先頭 | O126: ○
A127: 124 | B127: 650 | C127: 0 | D127: 5000 | E127: 5000 | F127: 500 | G127: 900 | H127: 40 | I127: 0 | J127: 220 | K127: =A126 -> 123 | L127: =A128 -> 125 | N127: ○ | O127: ○
A128: 125 | B128: 700 | C128: 0 | D128: 5000 | E128: 5000 | F128: 500 | G128: 785 | H128: 40 | I128: 0 | J128: 220 | K128: =A127 -> 124 | L128: =A129 -> 126 | N128: ○ | O128: ○
A129: 126 | B129: 750 | C129: 0 | D129: 5000 | E129: 5000 | F129: 500 | G129: 690 | H129: 40 | I129: 0 | J129: 220 | K129: =A128 -> 125 | L129: =A130 -> 127 | N129: ○ | O129: ○
A130: 127 | B130: 800 | C130: 0 | D130: 5000 | E130: 5000 | F130: 500 | G130: 610 | H130: 40 | I130: 0 | J130: 220 | K130: =A129 -> 126 | L130: -1 | N130: ○ | O130: 最後
A131: 128 | B131: 550 | C131: 0 | D131: 19000 | E131: 19000 | F131: 10000 | G131: 150 | H131: 40 | I131: 0 | J131: 400 | K131: -1 | L131: =A132 -> 129 | M131: RCP4-SA6R-3 | N131: 先頭 | O131: ○
A132: =A131+1 -> 129 | B132: 600 | C132: 0 | D132: 19000 | E132: 19000 | F132: 10000 | G132: 140 | H132: 40 | I132: 0 | J132: 400 | K132: =A131 -> 128 | L132: =A133 -> 130 | N132: =IF(K132<>-1,IF(K132=A131,"○","◆"),IF(M132<>"","先頭","▼")) -> ○ | O132: =IF(L132<>-1,IF(L132=A133,"○","◆"),IF(M133<>"","最後","▼")) -> ○
A133: 130 | B133: 650 | C133: 0 | D133: 19000 | E133: 19000 | F133: 10000 | G133: 120 | H133: 40 | I133: 0 | J133: 400 | K133: =A132 -> 129 | L133: =A134 -> 131 | N133: ○ | O133: ○
A134: 131 | B134: 700 | C134: 0 | D134: 19000 | E134: 19000 | F134: 10000 | G134: 105 | H134: 40 | I134: 0 | J134: 400 | K134: =A133 -> 130 | L134: =A135 -> 132 | N134: ○ | O134: ○
A135: 132 | B135: 750 | C135: 0 | D135: 19000 | E135: 19000 | F135: 10000 | G135: 90 | H135: 40 | I135: 0 | J135: 400 | K135: =A134 -> 131 | L135: =A136 -> 133 | N135: ○ | O135: ○
A136: 133 | B136: 800 | C136: 0 | D136: 19000 | E136: 19000 | F136: 10000 | G136: 80 | H136: 40 | I136: 0 | J136: 400 | K136: =A135 -> 132 | L136: -1 | N136: ○ | O136: 最後
A137: 134 | B137: 550 | C137: 0 | D137: 16000 | E137: 16000 | F137: 5000 | G137: 300 | H137: 40 | I137: 0 | J137: 385 | K137: -1 | L137: =A138 -> 135 | M137: RCP4-SA6R-6 | N137: 先頭 | O137: ○
A138: 135 | B138: 600 | C138: 0 | D138: 16000 | E138: 16000 | F138: 5000 | G138: 285 | H138: 40 | I138: 0 | J138: 385 | K138: =A137 -> 134 | L138: =A139 -> 136 | N138: ○ | O138: ○
A139: 136 | B139: 650 | C139: 0 | D139: 16000 | E139: 16000 | F139: 5000 | G139: 245 | H139: 40 | I139: 0 | J139: 385 | K139: =A138 -> 135 | L139: =A140 -> 137 | N139: ○ | O139: ○
A140: 137 | B140: 700 | C140: 0 | D140: 16000 | E140: 16000 | F140: 5000 | G140: 215 | H140: 40 | I140: 0 | J140: 385 | K140: =A139 -> 136 | L140: =A141 -> 138 | N140: ○ | O140: ○
A141: 138 | B141: 750 | C141: 0 | D141: 16000 | E141: 16000 | F141: 5000 | G141: 185 | H141: 40 | I141: 0 | J141: 385 | K141: =A140 -> 137 | L141: =A142 -> 139 | N141: ○ | O141: ○
A142: 139 | B142: 800 | C142: 0 | D142: 16000 | E142: 16000 | F142: 5000 | G142: 165 | H142: 40 | I142: 0 | J142: 385 | K142: =A141 -> 138 | L142: -1 | N142: ○ | O142: 最後
A143: 140 | B143: 550 | C143: 0 | D143: 8500 | E143: 8500 | F143: 2000 | G143: 600 | H143: 40 | I143: 0 | J143: 350 | K143: -1 | L143: =A144 -> 141 | M143: RCP4-SA6R-12 | N143: 先頭 | O143: ○
A144: 141 | B144: 600 | C144: 0 | D144: 8500 | E144: 8500 | F144: 2000 | G144: 570 | H144: 40 | I144: 0 | J144: 350 | K144: =A143 -> 140 | L144: =A145 -> 142 | N144: ○ | O144: ○
A145: 142 | B145: 650 | C145: 0 | D145: 8500 | E145: 8500 | F145: 2000 | G145: 490 | H145: 40 | I145: 0 | J145: 350 | K145: =A144 -> 141 | L145: =A146 -> 143 | N145: ○ | O145: ○
A146: 143 | B146: 700 | C146: 0 | D146: 8500 | E146: 8500 | F146: 2000 | G146: 430 | H146: 40 | I146: 0 | J146: 350 | K146: =A145 -> 142 | L146: =A147 -> 144 | N146: ○ | O146: ○
A147: 144 | B147: 750 | C147: 0 | D147: 8500 | E147: 8500 | F147: 2000 | G147: 375 | H147: 40 | I147: 0 | J147: 350 | K147: =A146 -> 143 | L147: =A148 -> 145 | N147: ○ | O147: ○
A148: 145 | B148: 800 | C148: 0 | D148: 8500 | E148: 8500 | F148: 2000 | G148: 335 | H148: 40 | I148: 0 | J148: 350 | K148: =A147 -> 144 | L148: -1 | N148: ○ | O148: 最後
A149: 146 | B149: 600 | C149: 0 | D149: 6000 | E149: 6000 | F149: 500 | G149: 960 | H149: 40 | I149: 0 | J149: 225 | K149: -1 | L149: =A150 -> 147 | M149: RCP4-SA6R-20 | N149: 先頭 | O149: ○
A150: 147 | B150: 650 | C150: 0 | D150: 6000 | E150: 6000 | F150: 500 | G150: 905 | H150: 40 | I150: 0 | J150: 225 | K150: =A149 -> 146 | L150: =A151 -> 148 | N150: ○ | O150: ○
A151: 148 | B151: 700 | C151: 0 | D151: 6000 | E151: 6000 | F151: 500 | G151: 785 | H151: 40 | I151: 0 | J151: 225 | K151: =A150 -> 147 | L151: =A152 -> 149 | N151: ○ | O151: ○
A152: 149 | B152: 750 | C152: 0 | D152: 6000 | E152: 6000 | F152: 500 | G152: 690 | H152: 40 | I152: 0 | J152: 225 | K152: =A151 -> 148 | L152: =A153 -> 150 | N152: ○ | O152: ○
A153: 150 | B153: 800 | C153: 0 | D153: 6000 | E153: 6000 | F153: 500 | G153: 615 | H153: 40 | I153: 0 | J153: 225 | K153: =A152 -> 149 | L153: -1 | N153: ○ | O153: 最後
A154: 151 | B154: 750 | C154: 0 | D154: 40000 | E154: 40000 | F154: 15000 | G154: 140 | H154: 40 | I154: 0 | J154: 400 | K154: -1 | L154: =A155 -> 152 | M154: RCP4-SA7R-4 | N154: 先頭 | O154: ○
A155: 152 | B155: 800 | C155: 0 | D155: 40000 | E155: 40000 | F155: 15000 | G155: 125 | H155: 40 | I155: 0 | J155: 400 | K155: =A154 -> 151 | L155: -1 | N155: ○ | O155: 最後
A156: 153 | B156: 750 | C156: 0 | D156: 40000 | E156: 40000 | F156: 10000 | G156: 280 | H156: 40 | I156: 0 | J156: 290 | K156: -1 | L156: =A157 -> 154 | M156: RCP4-SA7R-8 | N156: 先頭 | O156: ○
A157: 154 | B157: 800 | C157: 0 | D157: 40000 | E157: 40000 | F157: 10000 | G157: 255 | H157: 40 | I157: 0 | J157: 290 | K157: =A156 -> 153 | L157: -1 | N157: ○ | O157: 最後
A158: 155 | B158: 750 | C158: 0 | D158: 35000 | E158: 35000 | F158: 5000 | G158: 560 | H158: 40 | I158: 0 | J158: 240 | K158: -1 | L158: =A159 -> 156 | M158: RCP4-SA7R-16 | N158: 先頭 | O158: ○
A159: 156 | B159: 800 | C159: 0 | D159: 35000 | E159: 35000 | F159: 5000 | G159: 515 | H159: 40 | I159: 0 | J159: 240 | K159: =A158 -> 155 | L159: -1 | N159: ○ | O159: 最後
A160: 157 | B160: 750 | C160: 0 | D160: 18000 | E160: 18000 | F160: 2000 | G160: 800 | H160: 40 | I160: 0 | J160: 175 | K160: -1 | L160: =A161 -> 158 | M160: RCP4-SA7R-24 | N160: 先頭 | O160: ○
A161: 158 | B161: 800 | C161: 0 | D161: 18000 | E161: 18000 | F161: 2000 | G161: 790 | H161: 40 | I161: 0 | J161: 175 | K161: =A160 -> 157 | L161: -1 | N161: ○ | O161: 最後
A162: 159 | B162: 400 | C162: 0 | D162: 40000 | E162: 40000 | F162: 20000 | G162: 125 | H162: 40 | I162: 0 | J162: 380 | K162: -1 | L162: -1 | M162: RCP4-RA5R-3 | N162: 先頭 | O162: 最後
A163: 160 | B163: 400 | C163: 0 | D163: 40000 | E163: 40000 | F163: 10000 | G163: 250 | H163: 40 | I163: 0 | J163: 240 | K163: -1 | L163: -1 | M163: RCP4-RA5R-6 | N163: 先頭 | O163: 最後
A164: 161 | B164: 400 | C164: 0 | D164: 25000 | E164: 25000 | F164: 4000 | G164: 500 | H164: 40 | I164: 0 | J164: 200 | K164: -1 | L164: -1 | M164: RCP4-RA5R-12 | N164: 先頭 | O164: 最後
A165: 162 | B165: 400 | C165: 0 | D165: 6000 | E165: 6000 | F165: 1500 | G165: 640 | H165: 40 | I165: 0 | J165: 210 | K165: -1 | L165: -1 | M165: RCP4-RA5R-20 | N165: 先頭 | O165: 最後
A166: 163 | B166: 500 | C166: 0 | D166: 55000 | E166: 55000 | F166: 26000 | G166: 140 | H166: 40 | I166: 0 | J166: 400 | K166: -1 | L166: -1 | M166: RCP4-RA6R-4 | N166: 先頭 | O166: 最後
A167: 164 | B167: 500 | C167: 0 | D167: 50000 | E167: 50000 | F167: 17500 | G167: 210 | H167: 40 | I167: 0 | J167: 400 | K167: -1 | L167: -1 | M167: RCP4-RA6R-8 | N167: 先頭 | O167: 最後
A168: 165 | B168: 500 | C168: 0 | D168: 40000 | E168: 40000 | F168: 5000 | G168: 420 | H168: 40 | I168: 0 | J168: 300 | K168: -1 | L168: -1 | M168: RCP4-RA6R-16 | N168: 先頭 | O168: 最後
A169: 166 | B169: 500 | C169: 0 | D169: 18000 | E169: 18000 | F169: 3000 | G169: 600 | H169: 40 | I169: 0 | J169: 215 | K169: -1 | L169: -1 | M169: RCP4-RA6R-24 | N169: 先頭 | O169: 最後
A170: 167 | B170: 550 | C170: 0 | D170: 12000 | E170: 12000 | F170: 6000 | G170: 150 | H170: 40 | I170: 0 | J170: 425 | K170: -1 | L170: =A171 -> 168 | M170: ERC3D-SA5-3 | N170: 先頭 | O170: ○
A171: 168 | B171: 600 | C171: 0 | D171: 12000 | E171: 12000 | F171: 6000 | G171: 140 | H171: 40 | I171: 0 | J171: 422 | K171: =A170 -> 167 | L171: =A172 -> 169 | N171: ○ | O171: ○
A172: 169 | B172: 650 | C172: 0 | D172: 12000 | E172: 12000 | F172: 6000 | G172: 120 | H172: 40 | I172: 0 | J172: 421 | K172: =A171 -> 168 | L172: =A173 -> 170 | N172: ○ | O172: ○
A173: 170 | B173: 700 | C173: 0 | D173: 12000 | E173: 12000 | F173: 6000 | G173: 105 | H173: 40 | I173: 0 | J173: 421 | K173: =A172 -> 169 | L173: =A174 -> 171 | N173: ○ | O173: ○
A174: 171 | B174: 750 | C174: 0 | D174: 12000 | E174: 12000 | F174: 6000 | G174: 90 | H174: 40 | I174: 0 | J174: 419 | K174: =A173 -> 170 | L174: =A175 -> 172 | N174: ○ | O174: ○
A175: 172 | B175: 800 | C175: 0 | D175: 12000 | E175: 12000 | F175: 6000 | G175: 80 | H175: 40 | I175: 0 | J175: 419 | K175: =A174 -> 171 | L175: -1 | N175: ○ | O175: 最後
A176: 173 | B176: 550 | C176: 0 | D176: 12000 | E176: 12000 | F176: 3000 | G176: 300 | H176: 40 | I176: 0 | J176: 416 | K176: -1 | L176: =A177 -> 174 | M176: ERC3D-SA5-6 | N176: 先頭 | O176: ○
A177: 174 | B177: 600 | C177: 0 | D177: 12000 | E177: 12000 | F177: 3000 | G177: 285 | H177: 40 | I177: 0 | J177: 414 | K177: =A176 -> 173 | L177: =A178 -> 175 | N177: ○ | O177: ○
A178: 175 | B178: 650 | C178: 0 | D178: 12000 | E178: 12000 | F178: 3000 | G178: 245 | H178: 40 | I178: 0 | J178: 414 | K178: =A177 -> 174 | L178: =A179 -> 176 | N178: ○ | O178: ○
A179: 176 | B179: 700 | C179: 0 | D179: 12000 | E179: 12000 | F179: 3000 | G179: 215 | H179: 40 | I179: 0 | J179: 414 | K179: =A178 -> 175 | L179: =A180 -> 177 | N179: ○ | O179: ○
A180: 177 | B180: 750 | C180: 0 | D180: 12000 | E180: 12000 | F180: 3000 | G180: 185 | H180: 40 | I180: 0 | J180: 413 | K180: =A179 -> 176 | L180: =A181 -> 178 | N180: ○ | O180: ○
A181: 178 | B181: 800 | C181: 0 | D181: 12000 | E181: 12000 | F181: 3000 | G181: 165 | H181: 40 | I181: 0 | J181: 413 | K181: =A180 -> 177 | L181: -1 | N181: ○ | O181: 最後
A182: 179 | B182: 550 | C182: 0 | D182: 6000 | E182: 6000 | F182: 1500 | G182: 600 | H182: 40 | I182: 0 | J182: 361 | K182: -1 | L182: =A183 -> 180 | M182: ERC3D-SA5-12 | N182: 先頭 | O182: ○
A183: 180 | B183: 600 | C183: 0 | D183: 6000 | E183: 6000 | F183: 1500 | G183: 570 | H183: 40 | I183: 0 | J183: 358 | K183: =A182 -> 179 | L183: =A184 -> 181 | N183: ○ | O183: ○
A184: 181 | B184: 650 | C184: 0 | D184: 6000 | E184: 6000 | F184: 1500 | G184: 490 | H184: 40 | I184: 0 | J184: 357 | K184: =A183 -> 180 | L184: =A185 -> 182 | N184: ○ | O184: ○
A185: 182 | B185: 700 | C185: 0 | D185: 6000 | E185: 6000 | F185: 1500 | G185: 425 | H185: 40 | I185: 0 | J185: 357 | K185: =A184 -> 181 | L185: =A186 -> 183 | N185: ○ | O185: ○
A186: 183 | B186: 750 | C186: 0 | D186: 6000 | E186: 6000 | F186: 1500 | G186: 375 | H186: 40 | I186: 0 | J186: 356 | K186: =A185 -> 182 | L186: =A187 -> 184 | N186: ○ | O186: ○
A187: 184 | B187: 800 | C187: 0 | D187: 6000 | E187: 6000 | F187: 1500 | G187: 330 | H187: 40 | I187: 0 | J187: 356 | K187: =A186 -> 183 | L187: -1 | N187: ○ | O187: 最後
A188: 185 | B188: 600 | C188: 0 | D188: 3500 | E188: 3500 | F188: 1000 | G188: 1000 | H188: 40 | I188: 0 | J188: 284 | K188: -1 | L188: =A189 -> 186 | M188: ERC3D-SA5-20 | N188: 先頭 | O188: ○
A189: 186 | B189: 650 | C189: 0 | D189: 3500 | E189: 3500 | F189: 1000 | G189: 900 | H189: 40 | I189: 0 | J189: 281 | K189: =A188 -> 185 | L189: =A190 -> 187 | N189: ○ | O189: ○
A190: 187 | B190: 700 | C190: 0 | D190: 3500 | E190: 3500 | F190: 1000 | G190: 785 | H190: 40 | I190: 0 | J190: 281 | K190: =A189 -> 186 | L190: =A191 -> 188 | N190: ○ | O190: ○
A191: 188 | B191: 750 | C191: 0 | D191: 3500 | E191: 3500 | F191: 1000 | G191: 690 | H191: 40 | I191: 0 | J191: 280 | K191: =A190 -> 187 | L191: =A192 -> 189 | N191: ○ | O191: ○
A192: 189 | B192: 800 | C192: 0 | D192: 3500 | E192: 3500 | F192: 1000 | G192: 610 | H192: 40 | I192: 0 | J192: 280 | K192: =A191 -> 188 | L192: -1 | N192: ○ | O192: 最後
A193: 190 | B193: 800 | C193: 0 | D193: 20000 | E193: 20000 | F193: 10000 | G193: 125 | H193: 40 | I193: 0 | J193: 457 | K193: -1 | L193: -1 | M193: ERC3D-SA7-4 | N193: 先頭 | O193: 最後
A194: 191 | B194: 800 | C194: 0 | D194: 20000 | E194: 20000 | F194: 5000 | G194: 250 | H194: 40 | I194: 0 | J194: 405 | K194: -1 | L194: -1 | M194: ERC3D-SA7-8 | N194: 先頭 | O194: 最後
A195: =A194+1 -> 192 | B195: 400 | C195: 0 | D195: 10000 | E195: 10000 | F195: 2500 | G195: 450 | H195: 40 | I195: 0 | J195: 581 | K195: -1 | L195: =A196 -> 193 | M195: ERC3D-SA7-16 | N195: 先頭 | O195: ○
A196: =A195+1 -> 193 | B196: 800 | C196: 0 | D196: 10000 | E196: 10000 | F196: 2500 | G196: 450 | H196: 40 | I196: 0 | J196: 563 | K196: =A195 -> 192 | L196: -1 | N196: =IF(K196<>-1,IF(K196=A195,"○","◆"),IF(M196<>"","先頭","▼")) -> ○ | O196: =IF(L196<>-1,IF(L196=A197,"○","◆"),IF(M197<>"","最後","▼")) -> 最後
A197: =A196+1 -> 194 | B197: 400 | C197: 0 | D197: 6000 | E197: 6000 | F197: 1500 | G197: 675 | H197: 40 | I197: 0 | J197: 393 | K197: -1 | L197: =A198 -> 195 | M197: ERC3D-SA7-24 | N197: 先頭 | O197: ○
A198: =A197+1 -> 195 | B198: 800 | C198: 0 | D198: 6000 | E198: 6000 | F198: 1500 | G198: 675 | H198: 40 | I198: 0 | J198: 383 | K198: =A197 -> 194 | L198: -1 | N198: ○ | O198: 最後
A199: =A198+1 -> 196 | B199: 550 | C199: 0 | D199: 12000 | E199: 12000 | F199: 6000 | G199: 150 | H199: 40 | I199: 0 | J199: 425 | K199: -1 | L199: =A200 -> 197 | M199: ERC3CR-SA5-3 | N199: 先頭 | O199: ○
A200: =A199+1 -> 197 | B200: 600 | C200: 0 | D200: 12000 | E200: 12000 | F200: 6000 | G200: 140 | H200: 40 | I200: 0 | J200: 422 | K200: =A199 -> 196 | L200: =A201 -> 198 | N200: ○ | O200: ○
... 879 more rows

Sheet MassDataLink (hidden)
B1: 1 | C1: 2 | D1: 3 | E1: 4 | F1: 5 | H1: 1000
A2: ﾃﾞｰﾀ№ | B2: ｱｸﾁｭｴｰﾀ姿勢 | C2: 搬送負荷質量 | D2: 加減速・速度ﾃﾞｰﾀ | E2: 前ﾃﾞｰﾀ№ | F2: 次ﾃﾞｰﾀ№ | G2: 備考
A3: =ModelData!A3 -> 0 | B3: 0/1 | C3: 1g | D3: ﾚｺｰﾄﾞ№ | E3: ﾚｺｰﾄﾞ№ | F3: ﾚｺｰﾄﾞ№ | G3: 型式-姿勢 | H3: 質量 | I3: 先頭RNO | J3: 前№ﾁｪｯｸ | K3: 後№ﾁｪｯｸ
A4: =A3+1 -> 1 | B4: 0 | C4: =H4*$H$1 -> 8000 | D4: =I4 -> 1 | E4: -1 | F4: =A5 -> 2 | G4: =AccVelDataLink!F4 -> RCP4-SA5C-3-水平 | H4: =AccVelDataLink!G4 -> 8 | I4: =AccVelDataLink!A4 -> 1 | J4: =IF(E4=A3,"○",IF(G4=0,"つなぎまちがい","先頭")) -> 先頭 | K4: =IF(F4=A5,"○",IF(F4<>E5,"つなぎまちがい","終端")) -> ○
A5: 2 | B5: 0 | C5: 9000 | D5: 2 | E5: =A4 -> 1 | F5: 3 | H5: =AccVelDataLink!G5 -> 9 | I5: =AccVelDataLink!A5 -> 2 | J5: ○ | K5: ○
A6: 3 | B6: 0 | C6: 10000 | D6: 3 | E6: 2 | F6: 4 | H6: =AccVelDataLink!G6 -> 10 | I6: =AccVelDataLink!A6 -> 3 | J6: ○ | K6: ○
A7: 4 | B7: 0 | C7: 11000 | D7: 5 | E7: 3 | F7: 5 | H7: =AccVelDataLink!G8 -> 11 | I7: =AccVelDataLink!A8 -> 5 | J7: ○ | K7: ○
A8: 5 | B8: 0 | C8: 12000 | D8: 6 | E8: 4 | F8: 6 | H8: =AccVelDataLink!G9 -> 12 | I8: =AccVelDataLink!A9 -> 6 | J8: ○ | K8: ○
A9: 6 | B9: 0 | C9: 13000 | D9: 7 | E9: 5 | F9: 7 | H9: =AccVelDataLink!G10 -> 13 | I9: =AccVelDataLink!A10 -> 7 | J9: ○ | K9: ○
A10: 7 | B10: 0 | C10: 14000 | D10: 8 | E10: 6 | F10: 8 | H10: =AccVelDataLink!G11 -> 14 | I10: =AccVelDataLink!A11 -> 8 | J10: ○ | K10: ○
A11: 8 | B11: 0 | C11: 16000 | D11: 10 | E11: 7 | F11: 9 | H11: =AccVelDataLink!G13 -> 16 | I11: =AccVelDataLink!A13 -> 10 | J11: ○ | K11: ○
A12: 9 | B12: 1 | C12: 3000 | D12: 14 | E12: 8 | F12: 10 | G12: =AccVelDataLink!F17 -> RCP4-SA5C-3-垂直 | H12: =AccVelDataLink!G17 -> 3 | I12: =AccVelDataLink!A17 -> 14 | J12: ○ | K12: ○
A13: 10 | B13: 1 | C13: 4500 | D13: 15 | E13: 9 | F13: 11 | H13: =AccVelDataLink!G18 -> 4.5 | I13: =AccVelDataLink!A18 -> 15 | J13: ○ | K13: ○
A14: 11 | B14: 1 | C14: 5000 | D14: 16 | E14: 10 | F14: 12 | H14: =AccVelDataLink!G19 -> 5 | I14: =AccVelDataLink!A19 -> 16 | J14: ○ | K14: ○
A15: 12 | B15: 1 | C15: 6000 | D15: 17 | E15: 11 | F15: 13 | H15: =AccVelDataLink!G20 -> 6 | I15: =AccVelDataLink!A20 -> 17 | J15: ○ | K15: ○
A16: 13 | B16: 1 | C16: 7000 | D16: 18 | E16: 12 | F16: 14 | H16: =AccVelDataLink!G21 -> 7 | I16: =AccVelDataLink!A21 -> 18 | J16: ○ | K16: ○
A17: 14 | B17: 1 | C17: 8000 | D17: 19 | E17: 13 | F17: 15 | H17: =AccVelDataLink!G22 -> 8 | I17: =AccVelDataLink!A22 -> 19 | J17: ○ | K17: ○
A18: 15 | B18: 1 | C18: 9000 | D18: 20 | E18: 14 | F18: 16 | H18: =AccVelDataLink!G23 -> 9 | I18: =AccVelDataLink!A23 -> 20 | J18: ○ | K18: ○
A19: 16 | B19: 1 | C19: 10000 | D19: 21 | E19: 15 | F19: -1 | H19: =AccVelDataLink!G24 -> 10 | I19: =AccVelDataLink!A24 -> 21 | J19: ○ | K19: 終端
A20: 17 | B20: 0 | C20: =H20*$H$1 -> 4000 | D20: 23 | E20: -1 | F20: =A21 -> 18 | G20: =AccVelDataLink!F26 -> RCP4-SA5C-6-水平 | H20: =AccVelDataLink!G26 -> 4 | I20: =AccVelDataLink!A26 -> 23 | J20: 先頭 | K20: ○
A21: 18 | B21: 0 | C21: 5000 | D21: 24 | E21: =A20 -> 17 | F21: 19 | H21: =AccVelDataLink!G27 -> 5 | I21: =AccVelDataLink!A27 -> 24 | J21: ○ | K21: ○
A22: 19 | B22: 0 | C22: 7000 | D22: 25 | E22: 18 | F22: 20 | H22: =AccVelDataLink!G28 -> 7 | I22: =AccVelDataLink!A28 -> 25 | J22: ○ | K22: ○
A23: 20 | B23: 0 | C23: 8000 | D23: 26 | E23: 19 | F23: 21 | H23: =AccVelDataLink!G29 -> 8 | I23: =AccVelDataLink!A29 -> 26 | J23: ○ | K23: ○
A24: 21 | B24: 0 | C24: 9000 | D24: 27 | E24: 20 | F24: 22 | H24: =AccVelDataLink!G30 -> 9 | I24: =AccVelDataLink!A30 -> 27 | J24: ○ | K24: ○
A25: 22 | B25: 0 | C25: 10000 | D25: 28 | E25: 21 | F25: 23 | H25: =AccVelDataLink!G31 -> 10 | I25: =AccVelDataLink!A31 -> 28 | J25: ○ | K25: ○
A26: 23 | B26: 0 | C26: 12000 | D26: 29 | E26: 22 | F26: 24 | H26: =AccVelDataLink!G32 -> 12 | I26: =AccVelDataLink!A32 -> 29 | J26: ○ | K26: ○
A27: 24 | B27: 0 | C27: 13000 | D27: 30 | E27: 23 | F27: 25 | H27: =AccVelDataLink!G33 -> 13 | I27: =AccVelDataLink!A33 -> 30 | J27: ○ | K27: ○
A28: 25 | B28: 1 | C28: 2000 | D28: 32 | E28: 24 | F28: 26 | G28: =AccVelDataLink!F35 -> RCP4-SA5C-6-垂直 | H28: =AccVelDataLink!G35 -> 2 | I28: =AccVelDataLink!A35 -> 32 | J28: ○ | K28: ○
A29: 26 | B29: 1 | C29: 2500 | D29: 33 | E29: 25 | F29: 27 | H29: =AccVelDataLink!G36 -> 2.5 | I29: =AccVelDataLink!A36 -> 33 | J29: ○ | K29: ○
A30: 27 | B30: 1 | C30: 3000 | D30: 34 | E30: 26 | F30: 28 | H30: =AccVelDataLink!G37 -> 3 | I30: =AccVelDataLink!A37 -> 34 | J30: ○ | K30: ○
A31: 28 | B31: 1 | C31: 4000 | D31: 36 | E31: 27 | F31: 29 | H31: =AccVelDataLink!G39 -> 4 | I31: =AccVelDataLink!A39 -> 36 | J31: ○ | K31: ○
A32: 29 | B32: 1 | C32: 4500 | D32: 38 | E32: 28 | F32: 30 | H32: =AccVelDataLink!G41 -> 4.5 | I32: =AccVelDataLink!A41 -> 38 | J32: ○ | K32: ○
A33: 30 | B33: 1 | C33: 5000 | D33: 39 | E33: 29 | F33: -1 | H33: =AccVelDataLink!G42 -> 5 | I33: =AccVelDataLink!A42 -> 39 | J33: ○ | K33: 終端
A34: =A33+1 -> 31 | B34: 0 | C34: =H34*$H$1 -> 1500 | D34: 41 | E34: -1 | F34: =A35 -> 32 | G34: =AccVelDataLink!F44 -> RCP4-SA5C-12-水平 | H34: =AccVelDataLink!G44 -> 1.5 | I34: =AccVelDataLink!A44 -> 41 | J34: 先頭 | K34: ○
A35: 32 | B35: 0 | C35: 2000 | D35: 42 | E35: =A34 -> 31 | F35: 33 | H35: =AccVelDataLink!G45 -> 2 | I35: =AccVelDataLink!A45 -> 42 | J35: ○ | K35: ○
A36: 33 | B36: 0 | C36: 3500 | D36: 43 | E36: 32 | F36: 34 | H36: =AccVelDataLink!G46 -> 3.5 | I36: =AccVelDataLink!A46 -> 43 | J36: ○ | K36: ○
A37: 34 | B37: 0 | C37: 4000 | D37: 44 | E37: 33 | F37: 35 | H37: =AccVelDataLink!G47 -> 4 | I37: =AccVelDataLink!A47 -> 44 | J37: ○ | K37: ○
A38: 35 | B38: 0 | C38: 5000 | D38: 46 | E38: 34 | F38: 36 | H38: =AccVelDataLink!G49 -> 5 | I38: =AccVelDataLink!A49 -> 46 | J38: ○ | K38: ○
A39: 36 | B39: 0 | C39: 5500 | D39: 49 | E39: 35 | F39: 37 | H39: =AccVelDataLink!G52 -> 5.5 | I39: =AccVelDataLink!A52 -> 49 | J39: ○ | K39: ○
A40: 37 | B40: 0 | C40: 6000 | D40: 50 | E40: 36 | F40: 38 | H40: =AccVelDataLink!G53 -> 6 | I40: =AccVelDataLink!A53 -> 50 | J40: ○ | K40: ○
A41: 38 | B41: 0 | C41: 7000 | D41: 51 | E41: 37 | F41: 39 | H41: =AccVelDataLink!G54 -> 7 | I41: =AccVelDataLink!A54 -> 51 | J41: ○ | K41: ○
A42: 39 | B42: 0 | C42: 8000 | D42: 52 | E42: 38 | F42: 40 | H42: =AccVelDataLink!G55 -> 8 | I42: =AccVelDataLink!A55 -> 52 | J42: ○ | K42: ○
A43: 40 | B43: 1 | C43: 500 | D43: 53 | E43: 39 | F43: 41 | G43: =AccVelDataLink!F56 -> RCP4-SA5C-12-垂直 | H43: =AccVelDataLink!G56 -> 0.5 | I43: =AccVelDataLink!A56 -> 53 | J43: ○ | K43: ○
A44: 41 | B44: 1 | C44: 1000 | D44: 54 | E44: 40 | F44: 42 | H44: =AccVelDataLink!G57 -> 1 | I44: =AccVelDataLink!A57 -> 54 | J44: ○ | K44: ○
A45: 42 | B45: 1 | C45: 1500 | D45: 56 | E45: 41 | F45: 43 | H45: =AccVelDataLink!G59 -> 1.5 | I45: =AccVelDataLink!A59 -> 56 | J45: ○ | K45: ○
A46: 43 | B46: 1 | C46: 2000 | D46: 58 | E46: 42 | F46: -1 | H46: =AccVelDataLink!G61 -> 2 | I46: =AccVelDataLink!A61 -> 58 | J46: ○ | K46: 終端
A47: =A46+1 -> 44 | B47: 0 | C47: =H47*$H$1 -> 500 | D47: 60 | E47: -1 | F47: =A48 -> 45 | G47: =AccVelDataLink!F63 -> RCP4-SA5C-20-水平 | H47: =AccVelDataLink!G63 -> 0.5 | I47: =AccVelDataLink!A63 -> 60 | J47: 先頭 | K47: ○
A48: 45 | B48: 0 | C48: 1000 | D48: 61 | E48: =A47 -> 44 | F48: 46 | H48: =AccVelDataLink!G64 -> 1 | I48: =AccVelDataLink!A64 -> 61 | J48: ○ | K48: ○
A49: 46 | B49: 0 | C49: 2000 | D49: 63 | E49: 45 | F49: 47 | H49: =AccVelDataLink!G66 -> 2 | I49: =AccVelDataLink!A66 -> 63 | J49: ○ | K49: ○
A50: 47 | B50: 0 | C50: 2500 | D50: 65 | E50: 46 | F50: 48 | H50: =AccVelDataLink!G68 -> 2.5 | I50: =AccVelDataLink!A68 -> 65 | J50: ○ | K50: ○
A51: 48 | B51: 0 | C51: 3000 | D51: 66 | E51: 47 | F51: 49 | H51: =AccVelDataLink!G69 -> 3 | I51: =AccVelDataLink!A69 -> 66 | J51: ○ | K51: ○
A52: 49 | B52: 0 | C52: 3500 | D52: 68 | E52: 48 | F52: 50 | H52: =AccVelDataLink!G71 -> 3.5 | I52: =AccVelDataLink!A71 -> 68 | J52: ○ | K52: ○
A53: 50 | B53: 0 | C53: 4000 | D53: 69 | E53: 49 | F53: 51 | H53: =AccVelDataLink!G72 -> 4 | I53: =AccVelDataLink!A72 -> 69 | J53: ○ | K53: ○
A54: 51 | B54: 0 | C54: 4500 | D54: 71 | E54: 50 | F54: 52 | H54: =AccVelDataLink!G74 -> 4.5 | I54: =AccVelDataLink!A74 -> 71 | J54: ○ | K54: ○
A55: 52 | B55: 0 | C55: 5000 | D55: 72 | E55: 51 | F55: 53 | H55: =AccVelDataLink!G75 -> 5 | I55: =AccVelDataLink!A75 -> 72 | J55: ○ | K55: ○
A56: 53 | B56: 1 | C56: 500 | D56: 73 | E56: 52 | F56: -1 | G56: =AccVelDataLink!F76 -> RCP4-SA5C-20-垂直 | H56: =AccVelDataLink!G76 -> 0.5 | I56: =AccVelDataLink!A76 -> 73 | J56: ○ | K56: 終端
A57: =A56+1 -> 54 | B57: 0 | C57: =H57*$H$1 -> 9000 | D57: 74 | E57: -1 | F57: =A58 -> 55 | G57: =AccVelDataLink!F77 -> RCP4-SA6C-3-水平 | H57: =AccVelDataLink!G77 -> 9 | I57: =AccVelDataLink!A77 -> 74 | J57: 先頭 | K57: ○
A58: 55 | B58: 0 | C58: 10000 | D58: 75 | E58: =A57 -> 54 | F58: 56 | H58: =AccVelDataLink!G78 -> 10 | I58: =AccVelDataLink!A78 -> 75 | J58: ○ | K58: ○
A59: 56 | B59: 0 | C59: 11000 | D59: 77 | E59: 55 | F59: 57 | H59: =AccVelDataLink!G80 -> 11 | I59: =AccVelDataLink!A80 -> 77 | J59: ○ | K59: ○
A60: 57 | B60: 0 | C60: 12000 | D60: 78 | E60: 56 | F60: 58 | H60: =AccVelDataLink!G81 -> 12 | I60: =AccVelDataLink!A81 -> 78 | J60: ○ | K60: ○
A61: 58 | B61: 0 | C61: 13000 | D61: 79 | E61: 57 | F61: 59 | H61: =AccVelDataLink!G82 -> 13 | I61: =AccVelDataLink!A82 -> 79 | J61: ○ | K61: ○
A62: 59 | B62: 0 | C62: 14000 | D62: 80 | E62: 58 | F62: 60 | H62: =AccVelDataLink!G83 -> 14 | I62: =AccVelDataLink!A83 -> 80 | J62: ○ | K62: ○
A63: 60 | B63: 0 | C63: 16000 | D63: 82 | E63: 59 | F63: 61 | H63: =AccVelDataLink!G85 -> 16 | I63: =AccVelDataLink!A85 -> 82 | J63: ○ | K63: ○
A64: 61 | B64: 0 | C64: 18000 | D64: 84 | E64: 60 | F64: 62 | H64: =AccVelDataLink!G87 -> 18 | I64: =AccVelDataLink!A87 -> 84 | J64: ○ | K64: ○
A65: 62 | B65: 0 | C65: 19000 | D65: 85 | E65: 61 | F65: 63 | H65: =AccVelDataLink!G88 -> 19 | I65: =AccVelDataLink!A88 -> 85 | J65: ○ | K65: ○
A66: 63 | B66: 1 | C66: 3000 | D66: 87 | E66: 62 | F66: 64 | G66: =AccVelDataLink!F90 -> RCP4-SA6C-3-垂直 | H66: =AccVelDataLink!G90 -> 3 | I66: =AccVelDataLink!A90 -> 87 | J66: ○ | K66: ○
A67: 64 | B67: 1 | C67: 4500 | D67: 88 | E67: 63 | F67: 65 | H67: =AccVelDataLink!G91 -> 4.5 | I67: =AccVelDataLink!A91 -> 88 | J67: ○ | K67: ○
A68: 65 | B68: 1 | C68: 5000 | D68: =I68 -> 89 | E68: 64 | F68: 66 | H68: =AccVelDataLink!G92 -> 5 | I68: =AccVelDataLink!A92 -> 89 | J68: =IF(E68=A67,"○",IF(G68=0,"つなぎまちがい","先頭")) -> ○ | K68: =IF(F68=A69,"○",IF(F68<>E69,"つなぎまちがい","終端")) -> ○
A69: 66 | B69: 1 | C69: 6000 | D69: 90 | E69: 65 | F69: 67 | H69: =AccVelDataLink!G93 -> 6 | I69: =AccVelDataLink!A93 -> 90 | J69: ○ | K69: ○
A70: 67 | B70: 1 | C70: 7000 | D70: 91 | E70: 66 | F70: 68 | H70: =AccVelDataLink!G94 -> 7 | I70: =AccVelDataLink!A94 -> 91 | J70: ○ | K70: ○
A71: 68 | B71: 1 | C71: 8000 | D71: 92 | E71: 67 | F71: 69 | H71: =AccVelDataLink!G95 -> 8 | I71: =AccVelDataLink!A95 -> 92 | J71: ○ | K71: ○
A72: 69 | B72: 1 | C72: 9000 | D72: 93 | E72: 68 | F72: 70 | H72: =AccVelDataLink!G96 -> 9 | I72: =AccVelDataLink!A96 -> 93 | J72: ○ | K72: ○
A73: 70 | B73: 1 | C73: 10000 | D73: 94 | E73: 69 | F73: -1 | H73: =AccVelDataLink!G97 -> 10 | I73: =AccVelDataLink!A97 -> 94 | J73: ○ | K73: 終端
A74: =A73+1 -> 71 | B74: 0 | C74: =H74*$H$1 -> 4000 | D74: 96 | E74: -1 | F74: =A75 -> 72 | G74: =AccVelDataLink!F99 -> RCP4-SA6C-6-水平 | H74: =AccVelDataLink!G99 -> 4 | I74: =AccVelDataLink!A99 -> 96 | J74: 先頭 | K74: ○
A75: 72 | B75: 0 | C75: 6000 | D75: 97 | E75: =A74 -> 71 | F75: 73 | H75: =AccVelDataLink!G100 -> 6 | I75: =AccVelDataLink!A100 -> 97 | J75: ○ | K75: ○
A76: 73 | B76: 0 | C76: 7000 | D76: 98 | E76: 72 | F76: 74 | H76: =AccVelDataLink!G101 -> 7 | I76: =AccVelDataLink!A101 -> 98 | J76: ○ | K76: ○
A77: 74 | B77: 0 | C77: 10000 | D77: 99 | E77: 73 | F77: 75 | H77: =AccVelDataLink!G102 -> 10 | I77: =AccVelDataLink!A102 -> 99 | J77: ○ | K77: ○
A78: 75 | B78: 0 | C78: 12000 | D78: 100 | E78: 74 | F78: 76 | H78: =AccVelDataLink!G103 -> 12 | I78: =AccVelDataLink!A103 -> 100 | J78: ○ | K78: ○
A79: 76 | B79: 0 | C79: 13000 | D79: 102 | E79: 75 | F79: 77 | H79: =AccVelDataLink!G105 -> 13 | I79: =AccVelDataLink!A105 -> 102 | J79: ○ | K79: ○
A80: 77 | B80: 0 | C80: 15000 | D80: 104 | E80: 76 | F80: 78 | H80: =AccVelDataLink!G107 -> 15 | I80: =AccVelDataLink!A107 -> 104 | J80: ○ | K80: ○
A81: 78 | B81: 0 | C81: 16000 | D81: 106 | E81: 77 | F81: 79 | H81: =AccVelDataLink!G109 -> 16 | I81: =AccVelDataLink!A109 -> 106 | J81: ○ | K81: ○
A82: 79 | B82: 1 | C82: 2000 | D82: 107 | E82: 78 | F82: 80 | G82: =AccVelDataLink!F110 -> RCP4-SA6C-6-垂直 | H82: =AccVelDataLink!G110 -> 2 | I82: =AccVelDataLink!A110 -> 107 | J82: ○ | K82: ○
A83: 80 | B83: 1 | C83: 2500 | D83: 108 | E83: 79 | F83: 81 | H83: =AccVelDataLink!G111 -> 2.5 | I83: =AccVelDataLink!A111 -> 108 | J83: ○ | K83: ○
A84: 81 | B84: 1 | C84: 3000 | D84: 109 | E84: 80 | F84: 82 | H84: =AccVelDataLink!G112 -> 3 | I84: =AccVelDataLink!A112 -> 109 | J84: ○ | K84: ○
A85: 82 | B85: 1 | C85: 4000 | D85: 111 | E85: 81 | F85: 83 | H85: =AccVelDataLink!G114 -> 4 | I85: =AccVelDataLink!A114 -> 111 | J85: ○ | K85: ○
A86: 83 | B86: 1 | C86: 4500 | D86: 113 | E86: 82 | F86: 84 | H86: =AccVelDataLink!G116 -> 4.5 | I86: =AccVelDataLink!A116 -> 113 | J86: ○ | K86: ○
A87: 84 | B87: 1 | C87: 5000 | D87: 114 | E87: 83 | F87: -1 | H87: =AccVelDataLink!G117 -> 5 | I87: =AccVelDataLink!A117 -> 114 | J87: ○ | K87: 終端
A88: =A87+1 -> 85 | B88: 0 | C88: =H88*$H$1 -> 1500 | D88: 116 | E88: -1 | F88: =A89 -> 86 | G88: =AccVelDataLink!F119 -> RCP4-SA6C-12-水平 | H88: =AccVelDataLink!G119 -> 1.5 | I88: =AccVelDataLink!A119 -> 116 | J88: 先頭 | K88: ○
A89: 86 | B89: 0 | C89: 2000 | D89: 117 | E89: =A88 -> 85 | F89: 87 | H89: =AccVelDataLink!G120 -> 2 | I89: =AccVelDataLink!A120 -> 117 | J89: ○ | K89: ○
A90: 87 | B90: 0 | C90: 3000 | D90: 119 | E90: 86 | F90: 88 | H90: =AccVelDataLink!G122 -> 3 | I90: =AccVelDataLink!A122 -> 119 | J90: ○ | K90: ○
A91: 88 | B91: 0 | C91: 3500 | D91: 120 | E91: 87 | F91: 89 | H91: =AccVelDataLink!G123 -> 3.5 | I91: =AccVelDataLink!A123 -> 120 | J91: ○ | K91: ○
A92: 89 | B92: 0 | C92: 4000 | D92: 121 | E92: 88 | F92: 90 | H92: =AccVelDataLink!G124 -> 4 | I92: =AccVelDataLink!A124 -> 121 | J92: ○ | K92: ○
A93: 90 | B93: 0 | C93: 6000 | D93: 122 | E93: 89 | F93: 91 | H93: =AccVelDataLink!G125 -> 6 | I93: =AccVelDataLink!A125 -> 122 | J93: ○ | K93: ○
A94: 91 | B94: 0 | C94: 7000 | D94: 124 | E94: 90 | F94: 92 | H94: =AccVelDataLink!G127 -> 7 | I94: =AccVelDataLink!A127 -> 124 | J94: ○ | K94: ○
A95: 92 | B95: 0 | C95: 8000 | D95: 127 | E95: 91 | F95: 93 | H95: =AccVelDataLink!G130 -> 8 | I95: =AccVelDataLink!A130 -> 127 | J95: ○ | K95: ○
A96: 93 | B96: 0 | C96: 8500 | D96: 128 | E96: 92 | F96: 94 | H96: =AccVelDataLink!G131 -> 8.5 | I96: =AccVelDataLink!A131 -> 128 | J96: ○ | K96: ○
A97: 94 | B97: 1 | C97: 500 | D97: 129 | E97: 93 | F97: 95 | G97: =AccVelDataLink!F132 -> RCP4-SA6C-12-垂直 | H97: =AccVelDataLink!G132 -> 0.5 | I97: =AccVelDataLink!A132 -> 129 | J97: ○ | K97: ○
A98: 95 | B98: 1 | C98: 1000 | D98: 130 | E98: 94 | F98: 96 | H98: =AccVelDataLink!G133 -> 1 | I98: =AccVelDataLink!A133 -> 130 | J98: ○ | K98: ○
A99: 96 | B99: 1 | C99: 1500 | D99: 132 | E99: 95 | F99: 97 | H99: =AccVelDataLink!G135 -> 1.5 | I99: =AccVelDataLink!A135 -> 132 | J99: ○ | K99: ○
A100: 97 | B100: 1 | C100: 2000 | D100: 134 | E100: 96 | F100: -1 | H100: =AccVelDataLink!G137 -> 2 | I100: =AccVelDataLink!A137 -> 134 | J100: ○ | K100: 終端
A101: =A100+1 -> 98 | B101: 0 | C101: =H101*$H$1 -> 500 | D101: 136 | E101: -1 | F101: =A102 -> 99 | G101: =AccVelDataLink!F139 -> RCP4-SA6C-20-水平 | H101: =AccVelDataLink!G139 -> 0.5 | I101: =AccVelDataLink!A139 -> 136 | J101: 先頭 | K101: ○
A102: 99 | B102: 0 | C102: 1000 | D102: 137 | E102: =A101 -> 98 | F102: 100 | H102: =AccVelDataLink!G140 -> 1 | I102: =AccVelDataLink!A140 -> 137 | J102: ○ | K102: ○
A103: 100 | B103: 0 | C103: 2000 | D103: 139 | E103: 99 | F103: 101 | H103: =AccVelDataLink!G142 -> 2 | I103: =AccVelDataLink!A142 -> 139 | J103: ○ | K103: ○
A104: 101 | B104: 0 | C104: 3000 | D104: 141 | E104: 100 | F104: 102 | H104: =AccVelDataLink!G144 -> 3 | I104: =AccVelDataLink!A144 -> 141 | J104: ○ | K104: ○
A105: 102 | B105: 0 | C105: 4000 | D105: 143 | E105: 101 | F105: 103 | H105: =AccVelDataLink!G146 -> 4 | I105: =AccVelDataLink!A146 -> 143 | J105: ○ | K105: ○
A106: 103 | B106: 0 | C106: 5000 | D106: 145 | E106: 102 | F106: 104 | H106: =AccVelDataLink!G148 -> 5 | I106: =AccVelDataLink!A148 -> 145 | J106: ○ | K106: ○
A107: 104 | B107: 0 | C107: 6000 | D107: 146 | E107: 103 | F107: 105 | H107: =AccVelDataLink!G149 -> 6 | I107: =AccVelDataLink!A149 -> 146 | J107: ○ | K107: ○
A108: 105 | B108: 1 | C108: 500 | D108: 147 | E108: 104 | F108: -1 | G108: =AccVelDataLink!F150 -> RCP4-SA6C-20-垂直 | H108: =AccVelDataLink!G150 -> 0.5 | I108: =AccVelDataLink!A150 -> 147 | J108: ○ | K108: 終端
A109: =A108+1 -> 106 | B109: 0 | C109: =H109*$H$1 -> 40000 | D109: 148 | E109: -1 | F109: =A110 -> 107 | G109: =AccVelDataLink!F151 -> RCP4-SA7C-4-水平 | H109: =AccVelDataLink!G151 -> 40 | I109: =AccVelDataLink!A151 -> 148 | J109: 先頭 | K109: ○
A110: =A109+1 -> 107 | B110: 1 | C110: =H110*$H$1 -> 5000 | D110: 149 | E110: =A109 -> 106 | F110: =A111 -> 108 | G110: =AccVelDataLink!F152 -> RCP4-SA7C-4-垂直 | H110: =AccVelDataLink!G152 -> 5 | I110: =AccVelDataLink!A152 -> 149 | J110: ○ | K110: ○
A111: =A110+1 -> 108 | B111: 1 | C111: =H111*$H$1 -> 10000 | D111: 150 | E111: =A110 -> 107 | F111: =A112 -> 109 | H111: =AccVelDataLink!G153 -> 10 | I111: =AccVelDataLink!A153 -> 150 | J111: ○ | K111: ○
A112: =A111+1 -> 109 | B112: 1 | C112: =H112*$H$1 -> 15000 | D112: 151 | E112: =A111 -> 108 | F112: -1 | H112: =AccVelDataLink!G154 -> 15 | I112: =AccVelDataLink!A154 -> 151 | J112: ○ | K112: 終端
A113: =A112+1 -> 110 | B113: 0 | C113: =H113*$H$1 -> 10000 | D113: 152 | E113: -1 | F113: =A114 -> 111 | G113: =AccVelDataLink!F155 -> RCP4-SA7C-8-水平 | H113: =AccVelDataLink!G155 -> 10 | I113: =AccVelDataLink!A155 -> 152 | J113: 先頭 | K113: ○
A114: 111 | B114: 0 | C114: 25000 | D114: 153 | E114: =A113 -> 110 | F114: 112 | H114: =AccVelDataLink!G156 -> 25 | I114: =AccVelDataLink!A156 -> 153 | J114: ○ | K114: ○
A115: 112 | B115: 0 | C115: 40000 | D115: 154 | E115: 111 | F115: 113 | H115: =AccVelDataLink!G157 -> 40 | I115: =AccVelDataLink!A157 -> 154 | J115: ○ | K115: ○
A116: 113 | B116: 1 | C116: 1500 | D116: 155 | E116: 112 | F116: 114 | G116: =AccVelDataLink!F158 -> RCP4-SA7C-8-垂直 | H116: =AccVelDataLink!G158 -> 1.5 | I116: =AccVelDataLink!A158 -> 155 | J116: ○ | K116: ○
A117: 114 | B117: 1 | C117: 4000 | D117: 156 | E117: 113 | F117: 115 | H117: =AccVelDataLink!G159 -> 4 | I117: =AccVelDataLink!A159 -> 156 | J117: ○ | K117: ○
A118: 115 | B118: 1 | C118: 7000 | D118: 157 | E118: 114 | F118: 116 | H118: =AccVelDataLink!G160 -> 7 | I118: =AccVelDataLink!A160 -> 157 | J118: ○ | K118: ○
A119: 116 | B119: 1 | C119: 10000 | D119: 158 | E119: 115 | F119: -1 | H119: =AccVelDataLink!G161 -> 10 | I119: =AccVelDataLink!A161 -> 158 | J119: ○ | K119: 終端
A120: 117 | B120: 0 | C120: 7000 | D120: 159 | E120: -1 | F120: 118 | G120: =AccVelDataLink!F162 -> RCP4-SA7C-16-水平 | H120: =AccVelDataLink!G162 -> 7 | I120: =AccVelDataLink!A162 -> 159 | J120: 先頭 | K120: ○
A121: 118 | B121: 0 | C121: 15000 | D121: 160 | E121: 117 | F121: 119 | H121: =AccVelDataLink!G163 -> 15 | I121: =AccVelDataLink!A163 -> 160 | J121: ○ | K121: ○
A122: 119 | B122: 0 | C122: 25000 | D122: 161 | E122: 118 | F122: 120 | H122: =AccVelDataLink!G164 -> 25 | I122: =AccVelDataLink!A164 -> 161 | J122: ○ | K122: ○
A123: 120 | B123: 0 | C123: 35000 | D123: 162 | E123: 119 | F123: 121 | H123: =AccVelDataLink!G165 -> 35 | I123: =AccVelDataLink!A165 -> 162 | J123: ○ | K123: ○
A124: 121 | B124: 1 | C124: 500 | D124: 163 | E124: 120 | F124: 122 | G124: =AccVelDataLink!F166 -> RCP4-SA7C-16-垂直 | H124: =AccVelDataLink!G166 -> 0.5 | I124: =AccVelDataLink!A166 -> 163 | J124: ○ | K124: ○
A125: 122 | B125: 1 | C125: 1500 | D125: 164 | E125: 121 | F125: 123 | H125: =AccVelDataLink!G167 -> 1.5 | I125: =AccVelDataLink!A167 -> 164 | J125: ○ | K125: ○
A126: 123 | B126: 1 | C126: 3000 | D126: 165 | E126: 122 | F126: 124 | H126: =AccVelDataLink!G168 -> 3 | I126: =AccVelDataLink!A168 -> 165 | J126: ○ | K126: ○
A127: 124 | B127: 1 | C127: 5000 | D127: 166 | E127: 123 | F127: -1 | H127: =AccVelDataLink!G169 -> 5 | I127: =AccVelDataLink!A169 -> 166 | J127: ○ | K127: 終端
A128: 125 | B128: 0 | C128: 1500 | D128: 167 | E128: -1 | F128: 126 | G128: =AccVelDataLink!F170 -> RCP4-SA7C-24-水平 | H128: =AccVelDataLink!G170 -> 1.5 | I128: =AccVelDataLink!A170 -> 167 | J128: 先頭 | K128: ○
A129: 126 | B129: 0 | C129: 5000 | D129: 168 | E129: 125 | F129: 127 | H129: =AccVelDataLink!G171 -> 5 | I129: =AccVelDataLink!A171 -> 168 | J129: ○ | K129: ○
A130: 127 | B130: 0 | C130: 10000 | D130: 169 | E130: 126 | F130: 128 | H130: =AccVelDataLink!G172 -> 10 | I130: =AccVelDataLink!A172 -> 169 | J130: ○ | K130: ○
A131: 128 | B131: 0 | C131: 18000 | D131: 170 | E131: 127 | F131: 129 | H131: =AccVelDataLink!G173 -> 18 | I131: =AccVelDataLink!A173 -> 170 | J131: ○ | K131: ○
A132: 129 | B132: 1 | C132: 1000 | D132: =I132 -> 171 | E132: 128 | F132: 130 | G132: =AccVelDataLink!F174 -> RCP4-SA7C-24-垂直 | H132: =AccVelDataLink!G174 -> 1 | I132: =AccVelDataLink!A174 -> 171 | J132: =IF(E132=A131,"○",IF(G132=0,"つなぎまちがい","先頭")) -> ○ | K132: =IF(F132=A133,"○",IF(F132<>E133,"つなぎまちがい","終端")) -> ○
A133: 130 | B133: 1 | C133: 1500 | D133: 172 | E133: 129 | F133: 131 | H133: =AccVelDataLink!G175 -> 1.5 | I133: =AccVelDataLink!A175 -> 172 | J133: ○ | K133: ○
A134: 131 | B134: 1 | C134: 2000 | D134: 173 | E134: 130 | F134: -1 | H134: =AccVelDataLink!G176 -> 2 | I134: =AccVelDataLink!A176 -> 173 | J134: ○ | K134: 終端
A135: 132 | B135: 0 | C135: 40000 | D135: 174 | E135: -1 | F135: 133 | G135: =AccVelDataLink!F177 -> RCP4-RA5C-3-水平 | H135: =AccVelDataLink!G177 -> 40 | I135: =AccVelDataLink!A177 -> 174 | J135: 先頭 | K135: ○
A136: 133 | B136: 1 | C136: 5000 | D136: 175 | E136: 132 | F136: 134 | G136: =AccVelDataLink!F178 -> RCP4-RA5C-3-垂直 | H136: =AccVelDataLink!G178 -> 5 | I136: =AccVelDataLink!A178 -> 175 | J136: ○ | K136: ○
A137: 134 | B137: 1 | C137: 9000 | D137: 176 | E137: 133 | F137: 135 | H137: =AccVelDataLink!G179 -> 9 | I137: =AccVelDataLink!A179 -> 176 | J137: ○ | K137: ○
A138: 135 | B138: 1 | C138: 12000 | D138: 177 | E138: 134 | F138: 136 | H138: =AccVelDataLink!G180 -> 12 | I138: =AccVelDataLink!A180 -> 177 | J138: ○ | K138: ○
A139: 136 | B139: 1 | C139: 16000 | D139: 178 | E139: 135 | F139: 137 | H139: =AccVelDataLink!G181 -> 16 | I139: =AccVelDataLink!A181 -> 178 | J139: ○ | K139: ○
A140: 137 | B140: 1 | C140: 20000 | D140: 179 | E140: 136 | F140: -1 | H140: =AccVelDataLink!G182 -> 20 | I140: =AccVelDataLink!A182 -> 179 | J140: ○ | K140: 終端
A141: 138 | B141: 0 | C141: 10000 | D141: 180 | E141: -1 | F141: 139 | G141: =AccVelDataLink!F183 -> RCP4-RA5C-6-水平 | H141: =AccVelDataLink!G183 -> 10 | I141: =AccVelDataLink!A183 -> 180 | J141: 先頭 | K141: ○
A142: 139 | B142: 0 | C142: 35000 | D142: 181 | E142: 138 | F142: 140 | H142: =AccVelDataLink!G184 -> 35 | I142: =AccVelDataLink!A184 -> 181 | J142: ○ | K142: ○
A143: 140 | B143: 0 | C143: 40000 | D143: 182 | E143: 139 | F143: 141 | H143: =AccVelDataLink!G185 -> 40 | I143: =AccVelDataLink!A185 -> 182 | J143: ○ | K143: ○
